Workbook

Sheet Data (hidden)
C3: MONTHLY SALES REPORTING BY OUTLET
B6: SUBJECT | C6: DATABASE FOR MONTHLY OUTLET SALES REPORT
B8: OUTLET | C8: =MID(CELL("FILENAME",$A$1),FIND("[",CELL("FILENAME",$A$1))+1,3) -> SBA
B10: MONTH / YEAR | C10: =INDEX($D$14:$D$25,MONTH(DATE(MID(CELL("FILENAME",$A$1),FIND("[",CELL("FILENAME",$A$1))+4,4),MID(CELL("FILENAME",$A$1),FIND("[",CELL("FILENAME",$A$1))+8,2),1)),1)&" "&MID(CELL("FILENAME",$A$1),FIND("[",CELL("FILENAME",$A$1))+4,4) -> July 2014
B12: FILE NAME | C12: =MID(CELL("FILENAME",$A$1),1,FIND("[",CELL("FILENAME",$A$1))-1) -> C:\Users\Lion\Desktop\Sales Report\ROOM OCCUPANCY\7 JULY 2014\04SBA\
V13: ROOM
B14: LISTS | C14: 2 | D14: January | F14: ALL | H14: BEER EXCHANGE | J14: RECEPTION
C15: =INDEX($C$16:$C$25,$C$14,1) -> REPORT B | D15: February | F15: NORMAL | H15: BEER PACKAGE | J15: MV / AUDIO
C16: REPORT A | D16: March | F16: CHILDREN | H16: BEER SIDE ORDER | J16: F&B
C17: REPORT B | D17: April | F17: LADIES | H17: LIQUOR PACKAGE | J17: OVERALL EXPERIENCE
C18: REPORT C | D18: May | F18: SENIOR CITIZEN | H18: LIQUOR SIDE ORDER
C19: REPORT D | D19: June | F19: STUDENT | H19: MEAL
C20: REPORT E | D20: July | H20: MEMBERSHIP
C21: REPORT F | D21: August | H21: WINE
C22: REPORT G | D22: September
C23: DATA | D23: October
D24: November
D25: December
B27: MENU
B29: DATE | C29: DATE | D29: PUBLIC | E29: PUBLIC | F29: SALES | J29: ROOMS USED | AI29: PAX | AT29: PROMOTION | CR29: KITCHEN | CV29: MEMBERSHIP | CZ29: BEER PACKAGE | DD29: BEER EXCHANGE | DH29: BEER BOTTLE | DL29: BEER BUCKET | DP29: BEER ROUND | DT29: LIQUOR PACKAGE | DX29: LIQUOR SIDE ORDER | EB29: WINE PACKAGE | EF29: =$J$14 -> RECEPTION | EJ29: =$J$15 -> MV / AUDIO | EN29: =$J$16 -> F&B | ER29: =$J$17 -> OVERALL EXPERIENCE | EV29: QUESTION 01 | EX29: QUESTION 02 | EZ29: COMPLIMENT / COMPLAINT
D30: HOLIDAY | E30: HOLIDAY | F30: CASH A.M. | G30: CARD A.M. | H30: CASH P.M. | I30: CARD P.M. | J30: ROOMS | K30: NOON K | L30: HAPPY | M30: NORMAL | N30: MIDNIGHT | O30: PARTY ROOMS | P30: TIME | Q30: PAX | R30: AMOUNT | S30: PARTY ROOMS | T30: TIME | U30: PAX | V30: AMOUNT | W30: PARTY ROOMS | X30: TIME | Y30: PAX | Z30: AMOUNT | AA30: PARTY ROOMS | AB30: TIME | AC30: PAX | AD30: AMOUNT | AE30: PARTY ROOMS | AF30: TIME | AG30: PAX | AH30: AMOUNT | AI30: NOON K | AJ30: NOON K | AK30: HAPPY | AL30: HAPPY | AM30: HAPPY | AN30: HAPPY | AO30: NORMAL | AP30: NORMAL | AQ30: MIDNIGHT | AR30: MIDNIGHT | AS30: MIDNIGHT | AT30: TYPE | AU30: NOON K | AV30: HAPPY | AW30: NORMAL | AX30: MIDNIGHT | AY30: TYPE | AZ30: NOON K | BA30: HAPPY | BB30: NORMAL | BC30: MIDNIGHT | BD30: TYPE | BE30: NOON K | BF30: HAPPY | BG30: NORMAL | BH30: MIDNIGHT | BI30: TYPE | BJ30: NOON K | BK30: HAPPY | BL30: NORMAL | BM30: MIDNIGHT | BN30: TYPE | BO30: NOON K | BP30: HAPPY | BQ30: NORMAL | BR30: MIDNIGHT | BS30: TYPE | BT30: NOON K | BU30: HAPPY | BV30: NORMAL | BW30: MIDNIGHT | BX30: TYPE | BY30: NOON K | BZ30: HAPPY | CA30: NORMAL | CB30: MIDNIGHT | CC30: TYPE | CD30: NOON K | CE30: HAPPY | CF30: NORMAL | CG30: MIDNIGHT | CH30: TYPE | CI30: NOON K | CJ30: HAPPY | CK30: NORMAL | CL30: MIDNIGHT | CM30: TYPE | CN30: NOON K | CO30: HAPPY | CP30: NORMAL | CQ30: MIDNIGHT | CR30: NOON K | CS30: HAPPY | CT30: NORMAL | CU30: MIDNIGHT | CV30: NOON K | CW30: HAPPY | CX30: NORMAL | CY30: MIDNIGHT | CZ30: NOON K | DA30: HAPPY | DB30: NORMAL | DC30: MIDNIGHT | DD30: NOON K | DE30: HAPPY | DF30: NORMAL | DG30: MIDNIGHT | DH30: NOON K | DI30: HAPPY | DJ30: NORMAL | DK30: MIDNIGHT | DL30: NOON K | DM30: HAPPY | DN30: NORMAL | DO30: MIDNIGHT | DP30: NOON K | DQ30: HAPPY | DR30: NORMAL | DS30: MIDNIGHT | DT30: NOON K | DU30: HAPPY | DV30: NORMAL | DW30: MIDNIGHT | DX30: NOON K | DY30: HAPPY | DZ30: NORMAL | EA30: MIDNIGHT | EB30: NOON K | EC30: HAPPY | ED30: NORMAL | EE30: MIDNIGHT | EF30: EXCELLENT | EG30: GOOD | EH30: NORMAL | EI30: POOR | EJ30: EXCELLENT | EK30: GOOD | EL30: NORMAL | EM30: POOR | EN30: EXCELLENT | EO30: GOOD | EP30: NORMAL | EQ30: POOR | ER30: EXCELLENT | ES30: GOOD | ET30: NORMAL | EU30: POOR | EV30: YES | EW30: NO | EX30: YES | EY30: NO | EZ30: J | FA30: L | FB30: LL | FC30: LLL
D31: EVE | AI31: NORMAL | AJ31: CHILDREN | AK31: NORMAL | AL31: CHILDREN | AM31: SENIOR | AN31: STUDENT | AO31: NORMAL | AP31: CHILDREN | AQ31: NORMAL | AR31: CHILDREN | AS31: LADIES
B32: CELL | C32: C8 | D32: K6 | E32: K8 | F32: C102 | G32: D102 | H32: C103 | I32: D103 | J32: D106 | K32: C109 | L32: C110 | M32: C111 | N32: C112 | O32: E109 | P32: F109 | Q32: G109 | R32: H109 | S32: E110 | T32: F110 | U32: G110 | V32: H110 | W32: E111 | X32: F111 | Y32: G111 | Z32: H111 | AA32: E112 | AB32: F112 | AC32: G112 | AD32: H112 | AE32: E113 | AF32: F113 | AG32: G113 | AH32: H113 | AI32: C116 | AJ32: D116 | AK32: C117 | AL32: D117 | AM32: F117 | AN32: G117 | AO32: C118 | AP32: D118 | AQ32: C119 | AR32: D119 | AS32: E119 | AT32: B192 | AU32: D192 | AV32: E192 | AW32: F192 | AX32: G192 | AY32: B193 | AZ32: D193 | BA32: E193 | BB32: F193 | BC32: G193 | BD32: B194 | BE32: D194 | BF32: E194 | BG32: F194 | BH32: G194 | BI32: B195 | BJ32: D195 | BK32: E195 | BL32: F195 | BM32: G195 | BN32: B196 | BO32: D196 | BP32: E196 | BQ32: F196 | BR32: G196 | BS32: B197 | BT32: D197 | BU32: E197 | BV32: F197 | BW32: G197 | BX32: B198 | BY32: D198 | BZ32: E198 | CA32: F198 | CB32: G198 | CC32: B199 | CD32: D199 | CE32: E199 | CF32: F199 | CG32: G199 | CH32: B200 | CI32: D200 | CJ32: E200 | CK32: F200 | CL32: G200 | CM32: B201 | CN32: D201 | CO32: E201 | CP32: F201 | CQ32: G201 | CR32: D208 | CS32: E208 | CT32: F208 | CU32: G208 | CV32: D212 | CW32: E212 | CX32: F212 | CY32: G212 | CZ32: D226 | DA32: E226 | DB32: F226 | DC32: G226 | DD32: D227 | DE32: E227 | DF32: F227 | DG32: G227 | DH32: D228 | DI32: E228 | DJ32: F228 | DK32: G228 | DL32: D229 | DM32: E229 | DN32: F229 | DO32: G229 | DP32: D230 | DQ32: E230 | DR32: F230 | DS32: G230 | DT32: D234 | DU32: E234 | DV32: F234 | DW32: G234 | DX32: D235 | DY32: E235 | DZ32: F235 | EA32: G235 | EB32: D239 | EC32: E239 | ED32: F239 | EE32: G239 | EF32: C418 | EG32: D418 | EH32: E418 | EI32: F418 | EJ32: C419 | EK32: D419 | EL32: E419 | EM32: F419 | EN32: C420 | EO32: D420 | EP32: E420 | EQ32: F420 | ER32: C421 | ES32: D421 | ET32: E421 | EU32: F421 | EV32: F427 | EW32: G427 | EX32: F428 | EY32: G428 | EZ32: D446 | FA32: E446 | FB32: F446 | FC32: G446
B33: =IFERROR(DATE(MID(CELL("FILENAME",$A$1),FIND("[",CELL("FILENAME",$A$1))+4,4),MID(CELL("FILENAME",$A$1),FIND("[",CELL("FILENAME",$A$1))+8,2),MID($C33,1,2)),"") -> 2014-07-01 | C33: 01 July 2014 Tuesday | D33: FALSE | E33: FALSE | F33: 1374.6 | G33: 245.7 | H33: 4244.4 | I33: 2666.4 | J33: 38 | K33: 8 | L33: 19 | M33: 43 | N33: 11 | O33: 0 | P33: 0 | Q33: 0 | R33: 0 | S33: 0 | T33: 0 | U33: 0 | V33: 0 | W33: 0 | X33: 0 | Y33: 0 | Z33: 0 | AA33: 0 | AB33: 0 | AC33: 0 | AD33: 0 | AE33: 0 | AF33: 0 | AG33: 0 | AH33: 0 | AI33: 24 | AJ33: 0 | AK33: 57 | AL33: 0 | AM33: 0 | AN33: 39 | AO33: 182 | AP33: 0 | AQ33: 42 | AR33: 0 | AS33: 23 | AT33: K-Lunch | AU33: 22 | AV33: 0 | AW33: 0 | AX33: 0 | AY33: K-Dinner | AZ33: 0 | BA33: 0 | BB33: 38 | BC33: 0 | BD33: 4BP | BE33: 0 | BF33: 0 | BG33: 5 | BH33: 1 | BI33: Member 30% | BJ33: 0 | BK33: 4 | BL33: 47 | BM33: 2 | BN33: Tiger 2+1 | BO33: 0 | BP33: 0 | BQ33: 0 | BR33: 0 | BS33: Heineken 3+1 | BT33: 0 | BU33: 0 | BV33: 0 | BW33: 0 | BX33: WC Ladies 30% | BY33: 0 | BZ33: 0 | CA33: 23 | CB33: 0 | CC33: 2 Bkt Tiger Rm 88 | CD33: 0 | CE33: 0 | CF33: 7 | CG33: 0 | CH33: 5pm-8pm RM 8 | CI33: 0 | CJ33: 0 | CK33: 32 | CL33: 0 | CM33: 0 | CN33: 0 | CO33: 0 | CP33: 0 | CQ33: 0 | CR33: 0 | CS33: 0 | CT33: 138 | CU33: 0 | CV33: 0 | CW33: 0 | CX33: 5 | CY33: 0 | CZ33: 0 | DA33: 0 | DB33: 60 | DC33: 12 | DD33: 0 | DE33: 0 | DF33: 0 | DG33: 0 | DH33: 0 | DI33: 0 | DJ33: 0 | DK33: 0 | DL33: 0 | DM33: 0 | DN33: 68 | DO33: 0 | DP33: 0 | DQ33: 0 | DR33: 36 | DS33: 0 | DT33: 0 | DU33: 0 | DV33: 0 | DW33: 0 | DX33: 0 | DY33: 0 | DZ33: 0 | EA33: 0 | EB33: 0 | EC33: 0 | ED33: 0 | EE33: 0 | EF33: 0 | EG33: 0 | EH33: 0 | EI33: 0 | EJ33: 0 | EK33: 0 | EL33: 0 | EM33: 0 | EN33: 0 | EO33: 0 | EP33: 0 | EQ33: 0 | ER33: 0 | ES33: 0 | ET33: 0 | EU33: 0 | EV33: 0 | EW33: 0 | EX33: 0 | EY33: 0 | EZ33: 0 | FA33: 0 | FB33: 0 | FC33: 0
B34: =IFERROR(DATE(MID(CELL("FILENAME",$A$1),FIND("[",CELL("FILENAME",$A$1))+4,4),MID(CELL("FILENAME",$A$1),FIND("[",CELL("FILENAME",$A$1))+8,2),MID($C34,1,2)),"") -> 2014-07-02 | C34: 02 July 2014 Wednesday | D34: FALSE | E34: FALSE | F34: 1456.3 | G34: 0 | H34: 4454.4 | I34: 1220.7 | J34: 38 | K34: 16 | L34: 17 | M34: 43 | N34: 16 | O34: 0 | P34: 0 | Q34: 0 | R34: 0 | S34: 0 | T34: 0 | U34: 0 | V34: 0 | W34: 0 | X34: 0 | Y34: 0 | Z34: 0 | AA34: 0 | AB34: 0 | AC34: 0 | AD34: 0 | AE34: 0 | AF34: 0 | AG34: 0 | AH34: 0 | AI34: 52 | AJ34: 1 | AK34: 45 | AL34: 1 | AM34: 0 | AN34: 33 | AO34: 134 | AP34: 0 | AQ34: 65 | AR34: 0 | AS34: 28 | AT34: K-Lunch | AU34: 51 | AV34: 0 | AW34: 0 | AX34: 0 | AY34: K-Dinner | AZ34: 0 | BA34: 0 | BB34: 32 | BC34: 0 | BD34: 4BP | BE34: 0 | BF34: 0 | BG34: 0 | BH34: 0 | BI34: Member 30% | BJ34: 0 | BK34: 0 | BL34: 0 | BM34: 0 | BN34: Tiger 2+1 | BO34: 0 | BP34: 0 | BQ34: 0 | BR34: 0 | BS34: Heineken 3+1 | BT34: 0 | BU34: 0 | BV34: 0 | BW34: 1 | BX34: WC Ladies 30% | BY34: 0 | BZ34: 0 | CA34: 37 | CB34: 0 | CC34: 2 Bkt Tiger Rm 88 | CD34: 0 | CE34: 0 | CF34: 5 | CG34: 0 | CH34: 5pm-8pm RM 8 | CI34: 0 | CJ34: 0 | CK34: 11 | CL34: 0 | CM34: 0 | CN34: 0 | CO34: 0 | CP34: 0 | CQ34: 0 | CR34: 0 | CS34: 0 | CT34: 136 | CU34: 0 | CV34: 0 | CW34: 0 | CX34: 0 | CY34: 0 | CZ34: 0 | DA34: 0 | DB34: 0 | DC34: 0 | DD34: 0 | DE34: 0 | DF34: 0 | DG34: 0 | DH34: 0 | DI34: 0 | DJ34: 4 | DK34: 0 | DL34: 0 | DM34: 0 | DN34: 68 | DO34: 0 | DP34: 0 | DQ34: 0 | DR34: 12 | DS34: 0 | DT34: 0 | DU34: 0 | DV34: 0 | DW34: 0 | DX34: 0 | DY34: 0 | DZ34: 0 | EA34: 0 | EB34: 0 | EC34: 0 | ED34: 0 | EE34: 0 | EF34: 0 | EG34: 0 | EH34: 0 | EI34: 0 | EJ34: 0 | EK34: 0 | EL34: 0 | EM34: 0 | EN34: 0 | EO34: 0 | EP34: 0 | EQ34: 0 | ER34: 0 | ES34: 0 | ET34: 0 | EU34: 0 | EV34: 0 | EW34: 0 | EX34: 0 | EY34: 0 | EZ34: 0 | FA34: 0 | FB34: 0 | FC34: 0
B35: =IFERROR(DATE(MID(CELL("FILENAME",$A$1),FIND("[",CELL("FILENAME",$A$1))+4,4),MID(CELL("FILENAME",$A$1),FIND("[",CELL("FILENAME",$A$1))+8,2),MID($C35,1,2)),"") -> 2014-07-03 | C35: 03 July 2014 Thursday | D35: FALSE | E35: FALSE | F35: 1864.9 | G35: 280.6 | H35: 6742.2 | I35: 1089.8 | J35: 38 | K35: 12 | L35: 16 | M35: 57 | N35: 14 | O35: 0 | P35: 0 | Q35: 0 | R35: 0 | S35: 0 | T35: 0 | U35: 0 | V35: 0 | W35: 0 | X35: 0 | Y35: 0 | Z35: 0 | AA35: 0 | AB35: 0 | AC35: 0 | AD35: 0 | AE35: 0 | AF35: 0 | AG35: 0 | AH35: 0 | AI35: 39 | AJ35: 0 | AK35: 46 | AL35: 0 | AM35: 0 | AN35: 30 | AO35: 220 | AP35: 3 | AQ35: 84 | AR35: 0 | AS35: 44 | AT35: K-Lunch | AU35: 32 | AV35: 0 | AW35: 0 | AX35: 0 | AY35: K-Dinner | AZ35: 0 | BA35: 0 | BB35: 79 | BC35: 0 | BD35: 4BP | BE35: 0 | BF35: 0 | BG35: 2 | BH35: 1 | BI35: Member 30% | BJ35: 0 | BK35: 0 | BL35: 0 | BM35: 0 | BN35: Tiger 2+1 | BO35: 0 | BP35: 0 | BQ35: 0 | BR35: 0 | BS35: Heineken 3+1 | BT35: 0 | BU35: 0 | BV35: 0 | BW35: 0 | BX35: WC Ladies 30% | BY35: 0 | BZ35: 0 | CA35: 45 | CB35: 0 | CC35: 2 Bkt Tiger Rm 88 | CD35: 0 | CE35: 0 | CF35: 7 | CG35: 0 | CH35: 5pm-8pm RM 8 | CI35: 0 | CJ35: 0 | CK35: 18 | CL35: 0 | CM35: 0 | CN35: 0 | CO35: 0 | CP35: 0 | CQ35: 0 | CR35: 0 | CS35: 0 | CT35: 185 | CU35: 0 | CV35: 0 | CW35: 0 | CX35: 2 | CY35: 0 | CZ35: 0 | DA35: 0 | DB35: 24 | DC35: 12 | DD35: 0 | DE35: 0 | DF35: 0 | DG35: 0 | DH35: 0 | DI35: 0 | DJ35: 3 | DK35: 0 | DL35: 0 | DM35: 0 | DN35: 76 | DO35: 0 | DP35: 0 | DQ35: 0 | DR35: 12 | DS35: 0 | DT35: 0 | DU35: 0 | DV35: 0 | DW35: 0 | DX35: 0 | DY35: 0 | DZ35: 0 | EA35: 0 | EB35: 0 | EC35: 0 | ED35: 0 | EE35: 0 | EF35: 0 | EG35: 0 | EH35: 0 | EI35: 0 | EJ35: 0 | EK35: 0 | EL35: 0 | EM35: 0 | EN35: 0 | EO35: 0 | EP35: 0 | EQ35: 0 | ER35: 0 | ES35: 0 | ET35: 0 | EU35: 0 | EV35: 0 | EW35: 0 | EX35: 0 | EY35: 0 | EZ35: 0 | FA35: 0 | FB35: 0 | FC35: 0
B36: 2014-07-04 | C36: 04 July 2014 Friday | D36: FALSE | E36: FALSE | F36: 1613.3 | G36: 432 | H36: 7537.4 | I36: 6393.5 | J36: 38 | K36: 10 | L36: 20 | M36: 66 | N36: 10 | O36: 0 | P36: 0 | Q36: 0 | R36: 0 | S36: 0 | T36: 0 | U36: 0 | V36: 0 | W36: 0 | X36: 0 | Y36: 0 | Z36: 0 | AA36: 0 | AB36: 0 | AC36: 0 | AD36: 0 | AE36: 0 | AF36: 0 | AG36: 0 | AH36: 0 | AI36: 37 | AJ36: 0 | AK36: 61 | AL36: 0 | AM36: 0 | AN36: 46 | AO36: 333 | AP36: 0 | AQ36: 39 | AR36: 0 | AS36: 0 | AT36: K-Lunch | AU36: 37 | AV36: 0 | AW36: 0 | AX36: 0 | AY36: K-Dinner | AZ36: 0 | BA36: 0 | BB36: 129 | BC36: 0 | BD36: 4BP | BE36: 0 | BF36: 0 | BG36: 11 | BH36: 0 | BI36: 0 | BJ36: 0 | BK36: 0 | BL36: 0 | BM36: 0 | BN36: 0 | BO36: 0 | BP36: 0 | BQ36: 0 | BR36: 0 | BS36: 0 | BT36: 0 | BU36: 0 | BV36: 0 | BW36: 0 | BX36: 0 | BY36: 0 | BZ36: 0 | CA36: 0 | CB36: 0 | CC36: 0 | CD36: 0 | CE36: 0 | CF36: 0 | CG36: 0 | CH36: 0 | CI36: 0 | CJ36: 0 | CK36: 0 | CL36: 0 | CM36: 0 | CN36: 0 | CO36: 0 | CP36: 0 | CQ36: 0 | CR36: 0 | CS36: 0 | CT36: 214 | CU36: 0 | CV36: 0 | CW36: 0 | CX36: 4 | CY36: 0 | CZ36: 0 | DA36: 0 | DB36: 132 | DC36: 0 | DD36: 0 | DE36: 0 | DF36: 0 | DG36: 0 | DH36: 0 | DI36: 0 | DJ36: 6 | DK36: 0 | DL36: 0 | DM36: 0 | DN36: 44 | DO36: 0 | DP36: 0 | DQ36: 0 | DR36: 36 | DS36: 0 | DT36: 0 | DU36: 0 | DV36: 0 | DW36: 0 | DX36: 0 | DY36: 0 | DZ36: 0 | EA36: 0 | EB36: 0 | EC36: 0 | ED36: 0 | EE36: 0 | EF36: 0 | EG36: 0 | EH36: 0 | EI36: 0 | EJ36: 0 | EK36: 0 | EL36: 0 | EM36: 0 | EN36: 0 | EO36: 0 | EP36: 0 | EQ36: 0 | ER36: 0 | ES36: 0 | ET36: 0 | EU36: 0 | EV36: 0 | EW36: 0 | EX36: 0 | EY36: 0 | EZ36: 0 | FA36: 0 | FB36: 0 | FC36: 0
B37: 2014-07-05 | C37: 05 July 2014 Saturday | D37: FALSE | E37: FALSE | F37: 2614.6 | G37: 728.3 | H37: 9276.5 | I37: 4489.8 | J37: 38 | K37: 22 | L37: 19 | M37: 51 | N37: 25 | O37: 0 | P37: 0 | Q37: 0 | R37: 0 | S37: 0 | T37: 0 | U37: 0 | V37: 0 | W37: 0 | X37: 0 | Y37: 0 | Z37: 0 | AA37: 0 | AB37: 0 | AC37: 0 | AD37: 0 | AE37: 0 | AF37: 0 | AG37: 0 | AH37: 0 | AI37: 66 | AJ37: 0 | AK37: 70 | AL37: 0 | AM37: 0 | AN37: 0 | AO37: 244 | AP37: 4 | AQ37: 106 | AR37: 0 | AS37: 0 | AT37: K-Lunch | AU37: 62 | AV37: 0 | AW37: 0 | AX37: 0 | AY37: K-Dinner | AZ37: 0 | BA37: 0 | BB37: 34 | BC37: 0 | BD37: 4BP | BE37: 0 | BF37: 0 | BG37: 8 | BH37: 1 | BI37: 0 | BJ37: 0 | BK37: 0 | BL37: 0 | BM37: 0 | BN37: 0 | BO37: 0 | BP37: 0 | BQ37: 0 | BR37: 0 | BS37: 0 | BT37: 0 | BU37: 0 | BV37: 0 | BW37: 0 | BX37: 0 | BY37: 0 | BZ37: 0 | CA37: 0 | CB37: 0 | CC37: 0 | CD37: 0 | CE37: 0 | CF37: 0 | CG37: 0 | CH37: 0 | CI37: 0 | CJ37: 0 | CK37: 0 | CL37: 0 | CM37: 0 | CN37: 0 | CO37: 0 | CP37: 0 | CQ37: 0 | CR37: 0 | CS37: 0 | CT37: 173 | CU37: 0 | CV37: 0 | CW37: 0 | CX37: 4 | CY37: 0 | CZ37: 0 | DA37: 0 | DB37: 96 | DC37: 12 | DD37: 0 | DE37: 0 | DF37: 0 | DG37: 0 | DH37: 0 | DI37: 0 | DJ37: 0 | DK37: 0 | DL37: 0 | DM37: 0 | DN37: 68 | DO37: 0 | DP37: 0 | DQ37: 0 | DR37: 48 | DS37: 0 | DT37: 0 | DU37: 0 | DV37: 0 | DW37: 0 | DX37: 0 | DY37: 0 | DZ37: 0 | EA37: 0 | EB37: 0 | EC37: 0 | ED37: 0 | EE37: 0 | EF37: 0 | EG37: 0 | EH37: 0 | EI37: 0 | EJ37: 0 | EK37: 0 | EL37: 0 | EM37: 0 | EN37: 0 | EO37: 0 | EP37: 0 | EQ37: 0 | ER37: 0 | ES37: 0 | ET37: 0 | EU37: 0 | EV37: 0 | EW37: 0 | EX37: 0 | EY37: 0 | EZ37: 0 | FA37: 0 | FB37: 0 | FC37: 0
B38: 2014-07-06 | C38: 06 July 2014 Sunday | D38: FALSE | E38: FALSE | F38: 3851.8 | G38: 715.2 | H38: 4296.2 | I38: 1429.6 | J38: 38 | K38: 31 | L38: 1 | M38: 38 | N38: 12 | O38: 0 | P38: 0 | Q38: 0 | R38: 0 | S38: 0 | T38: 0 | U38: 0 | V38: 0 | W38: 0 | X38: 0 | Y38: 0 | Z38: 0 | AA38: 0 | AB38: 0 | AC38: 0 | AD38: 0 | AE38: 0 | AF38: 0 | AG38: 0 | AH38: 0 | AI38: 108 | AJ38: 5 | AK38: 72 | AL38: 0 | AM38: 0 | AN38: 0 | AO38: 143 | AP38: 3 | AQ38: 49 | AR38: 0 | AS38: 22 | AT38: K-Lunch | AU38: 103 | AV38: 0 | AW38: 0 | AX38: 0 | AY38: K-Dinner | AZ38: 0 | BA38: 0 | BB38: 36 | BC38: 0 | BD38: 4BP | BE38: 0 | BF38: 0 | BG38: 3 | BH38: 0 | BI38: 0 | BJ38: 0 | BK38: 0 | BL38: 0 | BM38: 0 | BN38: 0 | BO38: 0 | BP38: 0 | BQ38: 0 | BR38: 0 | BS38: 0 | BT38: 0 | BU38: 0 | BV38: 0 | BW38: 0 | BX38: 0 | BY38: 0 | BZ38: 0 | CA38: 0 | CB38: 0 | CC38: 0 | CD38: 0 | CE38: 0 | CF38: 0 | CG38: 0 | CH38: 0 | CI38: 0 | CJ38: 0 | CK38: 0 | CL38: 0 | CM38: 0 | CN38: 0 | CO38: 0 | CP38: 0 | CQ38: 0 | CR38: 0 | CS38: 0 | CT38: 184 | CU38: 0 | CV38: 0 | CW38: 0 | CX38: 1 | CY38: 0 | CZ38: 0 | DA38: 0 | DB38: 36 | DC38: 0 | DD38: 0 | DE38: 0 | DF38: 0 | DG38: 0 | DH38: 0 | DI38: 0 | DJ38: 5 | DK38: 0 | DL38: 0 | DM38: 0 | DN38: 24 | DO38: 0 | DP38: 0 | DQ38: 0 | DR38: 48 | DS38: 0 | DT38: 0 | DU38: 0 | DV38: 0 | DW38: 0 | DX38: 0 | DY38: 0 | DZ38: 0 | EA38: 0 | EB38: 0 | EC38: 0 | ED38: 0 | EE38: 0 | EF38: 0 | EG38: 0 | EH38: 0 | EI38: 0 | EJ38: 0 | EK38: 0 | EL38: 0 | EM38: 0 | EN38: 0 | EO38: 0 | EP38: 0 | EQ38: 0 | ER38: 0 | ES38: 0 | ET38: 0 | EU38: 0 | EV38: 0 | EW38: 0 | EX38: 0 | EY38: 0 | EZ38: 0 | FA38: 0 | FB38: 0 | FC38: 0
B39: 2014-07-07 | C39: 07 July 2014 Monday | D39: FALSE | E39: FALSE | F39: 1870.1 | G39: 292 | H39: 3306.5 | I39: 1348.1 | J39: 38 | K39: 12 | L39: 23 | M39: 47 | N39: 9 | O39: 0 | P39: 0 | Q39: 0 | R39: 0 | S39: 0 | T39: 0 | U39: 0 | V39: 0 | W39: 0 | X39: 0 | Y39: 0 | Z39: 0 | AA39: 0 | AB39: 0 | AC39: 0 | AD39: 0 | AE39: 0 | AF39: 0 | AG39: 0 | AH39: 0 | AI39: 36 | AJ39: 0 | AK39: 68 | AL39: 0 | AM39: 0 | AN39: 57 | AO39: 185 | AP39: 0 | AQ39: 31 | AR39: 0 | AS39: 15 | AT39: K-Lunch | AU39: 32 | AV39: 0 | AW39: 0 | AX39: 0 | AY39: K-Dinner | AZ39: 0 | BA39: 0 | BB39: 13 | BC39: 0 | BD39: 4BP | BE39: 0 | BF39: 0 | BG39: 3 | BH39: 0 | BI39: Member 30% | BJ39: 0 | BK39: 0 | BL39: 0 | BM39: 0 | BN39: Tiger 2+1 | BO39: 0 | BP39: 0 | BQ39: 2 | BR39: 0 | BS39: WC Ladies 30% | BT39: 0 | BU39: 0 | BV39: 42 | BW39: 0 | BX39: 5PM-8PM Rm 4 | BY39: 0 | BZ39: 0 | CA39: 59 | CB39: 0 | CC39: 2 Bkt Tiger Rm 88 | CD39: 0 | CE39: 0 | CF39: 4 | CG39: 0 | CH39: 0 | CI39: 0 | CJ39: 0 | CK39: 0 | CL39: 0 | CM39: 0 | CN39: 0 | CO39: 0 | CP39: 0 | CQ39: 0 | CR39: 0 | CS39: 0 | CT39: 88 | CU39: 0 | CV39: 0 | CW39: 0 | CX39: 2 | CY39: 0 | CZ39: 0 | DA39: 0 | DB39: 36 | DC39: 0 | DD39: 0 | DE39: 0 | DF39: 0 | DG39: 0 | DH39: 0 | DI39: 0 | DJ39: 2 | DK39: 0 | DL39: 0 | DM39: 0 | DN39: 68 | DO39: 0 | DP39: 0 | DQ39: 0 | DR39: 12 | DS39: 0 | DT39: 0 | DU39: 0 | DV39: 0 | DW39: 0 | DX39: 0 | DY39: 0 | DZ39: 0 | EA39: 0 | EB39: 0 | EC39: 0 | ED39: 0 | EE39: 0 | EF39: 0 | EG39: 0 | EH39: 0 | EI39: 0 | EJ39: 0 | EK39: 0 | EL39: 0 | EM39: 0 | EN39: 0 | EO39: 0 | EP39: 0 | EQ39: 0 | ER39: 0 | ES39: 0 | ET39: 0 | EU39: 0 | EV39: 0 | EW39: 0 | EX39: 0 | EY39: 0 | EZ39: 0 | FA39: 0 | FB39: 0 | FC39: 0
B40: 2014-07-08 | C40: 08 July 2014 Tuesday | D40: FALSE | E40: FALSE | F40: 1515 | G40: 69.3 | H40: 3089.7 | I40: 457.2 | J40: 38 | K40: 14 | L40: 16 | M40: 44 | N40: 3 | O40: 0 | P40: 0 | Q40: 0 | R40: 0 | S40: 0 | T40: 0 | U40: 0 | V40: 0 | W40: 0 | X40: 0 | Y40: 0 | Z40: 0 | AA40: 0 | AB40: 0 | AC40: 0 | AD40: 0 | AE40: 0 | AF40: 0 | AG40: 0 | AH40: 0 | AI40: 46 | AJ40: 1 | AK40: 29 | AL40: 1 | AM40: 1 | AN40: 16 | AO40: 165 | AP40: 0 | AQ40: 16 | AR40: 0 | AS40: 6 | AT40: K-Lunch | AU40: 45 | AV40: 0 | AW40: 0 | AX40: 0 | AY40: K-Dinner | AZ40: 0 | BA40: 0 | BB40: 14 | BC40: 0 | BD40: 4BP | BE40: 0 | BF40: 0 | BG40: 1 | BH40: 0 | BI40: Member 30% | BJ40: 0 | BK40: 0 | BL40: 38 | BM40: 0 | BN40: Tiger 2+1 | BO40: 0 | BP40: 0 | BQ40: 0 | BR40: 0 | BS40: Heineken 3+1 | BT40: 0 | BU40: 0 | BV40: 0 | BW40: 0 | BX40: RM4 PROMO | BY40: 0 | BZ40: 0 | CA40: 63 | CB40: 0 | CC40: 2 Bkt Tiger Rm 88 | CD40: 0 | CE40: 0 | CF40: 2 | CG40: 0 | CH40: WC COMBO | CI40: 0 | CJ40: 0 | CK40: 3 | CL40: 0 | CM40: WC 30% | CN40: 0 | CO40: 0 | CP40: 30 | CQ40: 0 | CR40: 0 | CS40: 0 | CT40: 120 | CU40: 0 | CV40: 0 | CW40: 0 | CX40: 2 | CY40: 0 | CZ40: 0 | DA40: 0 | DB40: 12 | DC40: 0 | DD40: 0 | DE40: 0 | DF40: 0 | DG40: 0 | DH40: 0 | DI40: 0 | DJ40: 1 | DK40: 0 | DL40: 0 | DM40: 0 | DN40: 40 | DO40: 0 | DP40: 0 | DQ40: 0 | DR40: 12 | DS40: 0 | DT40: 0 | DU40: 0 | DV40: 0 | DW40: 0 | DX40: 0 | DY40: 0 | DZ40: 0 | EA40: 0 | EB40: 0 | EC40: 0 | ED40: 0 | EE40: 0 | EF40: 0 | EG40: 0 | EH40: 0 | EI40: 0 | EJ40: 0 | EK40: 0 | EL40: 0 | EM40: 0 | EN40: 0 | EO40: 0 | EP40: 0 | EQ40: 0 | ER40: 0 | ES40: 0 | ET40: 0 | EU40: 0 | EV40: 0 | EW40: 0 | EX40: 0 | EY40: 0 | EZ40: 0 | FA40: 0 | FB40: 0 | FC40: 0
B41: 2014-07-09 | C41: 09 July 2014 Wednesday | D41: FALSE | E41: FALSE | F41: 1466.5 | G41: 140 | H41: 3651.2 | I41: 1025.6 | J41: 38 | K41: 13 | L41: 16 | M41: 50 | N41: 8 | O41: 0 | P41: 0 | Q41: 0 | R41: 0 | S41: 0 | T41: 0 | U41: 0 | V41: 0 | W41: 0 | X41: 0 | Y41: 0 | Z41: 0 | AA41: 0 | AB41: 0 | AC41: 0 | AD41: 0 | AE41: 0 | AF41: 0 | AG41: 0 | AH41: 0 | AI41: 41 | AJ41: 0 | AK41: 33 | AL41: 0 | AM41: 0 | AN41: 25 | AO41: 166 | AP41: 0 | AQ41: 43 | AR41: 0 | AS41: 27 | AT41: K-Lunch | AU41: 38 | AV41: 0 | AW41: 0 | AX41: 0 | AY41: K-Dinner | AZ41: 0 | BA41: 0 | BB41: 29 | BC41: 0 | BD41: 4BP | BE41: 0 | BF41: 0 | BG41: 2 | BH41: 1 | BI41: Member 30% | BJ41: 0 | BK41: 0 | BL41: 0 | BM41: 0 | BN41: Tiger 2+1 | BO41: 0 | BP41: 0 | BQ41: 0 | BR41: 0 | BS41: Heineken 3+1 | BT41: 0 | BU41: 0 | BV41: 2 | BW41: 0 | BX41: RM4 PROMO | BY41: 0 | BZ41: 0 | CA41: 42 | CB41: 0 | CC41: 2 Bkt Tiger Rm 88 | CD41: 0 | CE41: 0 | CF41: 1 | CG41: 0 | CH41: WC COMBO | CI41: 0 | CJ41: 0 | CK41: 0 | CL41: 0 | CM41: WC 30% | CN41: 0 | CO41: 0 | CP41: 37 | CQ41: 0 | CR41: 0 | CS41: 0 | CT41: 107 | CU41: 0 | CV41: 0 | CW41: 0 | CX41: 1 | CY41: 0 | CZ41: 0 | DA41: 0 | DB41: 24 | DC41: 12 | DD41: 0 | DE41: 0 | DF41: 0 | DG41: 0 | DH41: 0 | DI41: 0 | DJ41: 2 | DK41: 0 | DL41: 0 | DM41: 0 | DN41: 44 | DO41: 0 | DP41: 0 | DQ41: 0 | DR41: 12 | DS41: 0 | DT41: 0 | DU41: 0 | DV41: 0 | DW41: 0 | DX41: 0 | DY41: 0 | DZ41: 0 | EA41: 0 | EB41: 0 | EC41: 0 | ED41: 0 | EE41: 0 | EF41: 0 | EG41: 0 | EH41: 0 | EI41: 0 | EJ41: 0 | EK41: 0 | EL41: 0 | EM41: 0 | EN41: 0 | EO41: 0 | EP41: 0 | EQ41: 0 | ER41: 0 | ES41: 0 | ET41: 0 | EU41: 0 | EV41: 0 | EW41: 0 | EX41: 0 | EY41: 0 | EZ41: 0 | FA41: 0 | FB41: 0 | FC41: 0
B42: 2014-07-10 | C42: 10 July 2014 Thursday | D42: FALSE | E42: FALSE | F42: 1432.8 | G42: 135 | H42: 2992.5 | I42: 467.5 | J42: 38 | K42: 11 | L42: 14 | M42: 44 | N42: 17 | O42: 0 | P42: 0 | Q42: 0 | R42: 0 | S42: 0 | T42: 0 | U42: 0 | V42: 0 | W42: 0 | X42: 0 | Y42: 0 | Z42: 0 | AA42: 0 | AB42: 0 | AC42: 0 | AD42: 0 | AE42: 0 | AF42: 0 | AG42: 0 | AH42: 0 | AI42: 39 | AJ42: 0 | AK42: 36 | AL42: 0 | AM42: 0 | AN42: 24 | AO42: 131 | AP42: 0 | AQ42: 59 | AR42: 0 | AS42: 32 | AT42: K-Lunch | AU42: 35 | AV42: 0 | AW42: 0 | AX42: 0 | AY42: K-Dinner | AZ42: 0 | BA42: 0 | BB42: 20 | BC42: 0 | BD42: 4BP | BE42: 0 | BF42: 0 | BG42: 0 | BH42: 1 | BI42: Member 30% | BJ42: 0 | BK42: 0 | BL42: 0 | BM42: 0 | BN42: Tiger 2+1 | BO42: 0 | BP42: 0 | BQ42: 0 | BR42: 0 | BS42: Heineken 3+1 | BT42: 0 | BU42: 0 | BV42: 0 | BW42: 0 | BX42: RM4 PROMO | BY42: 0 | BZ42: 0 | CA42: 47 | CB42: 0 | CC42: 2 Bkt Tiger Rm 88 | CD42: 0 | CE42: 0 | CF42: 2 | CG42: 0 | CH42: WC COMBO | CI42: 0 | CJ42: 0 | CK42: 0 | CL42: 0 | CM42: WC 30% | CN42: 0 | CO42: 0 | CP42: 30 | CQ42: 0 | CR42: 0 | CS42: 0 | CT42: 93 | CU42: 0 | CV42: 0 | CW42: 1 | CX42: 1 | CY42: 0 | CZ42: 0 | DA42: 0 | DB42: 0 | DC42: 12 | DD42: 0 | DE42: 0 | DF42: 0 | DG42: 0 | DH42: 0 | DI42: 0 | DJ42: 4 | DK42: 0 | DL42: 0 | DM42: 0 | DN42: 20 | DO42: 0 | DP42: 0 | DQ42: 0 | DR42: 0 | DS42: 0 | DT42: 0 | DU42: 0 | DV42: 0 | DW42: 0 | DX42: 0 | DY42: 0 | DZ42: 0 | EA42: 0 | EB42: 0 | EC42: 0 | ED42: 0 | EE42: 0 | EF42: 0 | EG42: 0 | EH42: 0 | EI42: 0 | EJ42: 0 | EK42: 0 | EL42: 0 | EM42: 0 | EN42: 0 | EO42: 0 | EP42: 0 | EQ42: 0 | ER42: 0 | ES42: 0 | ET42: 0 | EU42: 0 | EV42: 0 | EW42: 0 | EX42: 0 | EY42: 0 | EZ42: 0 | FA42: 0 | FB42: 0 | FC42: 0
B43: 2014-07-11 | C43: 11 July 2014 Friday | D43: FALSE | E43: FALSE | F43: 1722.7 | G43: 1318.3 | H43: 6455.1 | I43: 4118.1 | J43: 38 | K43: 17 | L43: 21 | M43: 61 | N43: 16 | O43: 0 | P43: 0 | Q43: 0 | R43: 0 | S43: 0 | T43: 0 | U43: 0 | V43: 0 | W43: 0 | X43: 0 | Y43: 0 | Z43: 0 | AA43: 0 | AB43: 0 | AC43: 0 | AD43: 0 | AE43: 0 | AF43: 0 | AG43: 0 | AH43: 0 | AI43: 54 | AJ43: 1 | AK43: 53 | AL43: 0 | AM43: 0 | AN43: 46 | AO43: 265 | AP43: 1 | AQ43: 55 | AR43: 0 | AS43: 0 | AT43: K-Lunch | AU43: 50 | AV43: 0 | AW43: 0 | AX43: 0 | AY43: K-Dinner | AZ43: 0 | BA43: 0 | BB43: 94 | BC43: 0 | BD43: 4BP | BE43: 0 | BF43: 0 | BG43: 7 | BH43: 4 | BI43: Member 30% | BJ43: 0 | BK43: 0 | BL43: 0 | BM43: 0 | BN43: Tiger 2+1 | BO43: 0 | BP43: 0 | BQ43: 0 | BR43: 0 | BS43: Heineken 3+1 | BT43: 0 | BU43: 0 | BV43: 0 | BW43: 0 | BX43: RM4 PROMO | BY43: 0 | BZ43: 0 | CA43: 0 | CB43: 0 | CC43: 2 Bkt Tiger Rm 88 | CD43: 0 | CE43: 0 | CF43: 0 | CG43: 0 | CH43: WC COMBO | CI43: 0 | CJ43: 0 | CK43: 0 | CL43: 0 | CM43: WC 30% | CN43: 0 | CO43: 0 | CP43: 0 | CQ43: 0 | CR43: 0 | CS43: 0 | CT43: 174 | CU43: 0 | CV43: 0 | CW43: 1 | CX43: 4 | CY43: 0 | CZ43: 0 | DA43: 0 | DB43: 84 | DC43: 48 | DD43: 0 | DE43: 0 | DF43: 0 | DG43: 0 | DH43: 0 | DI43: 0 | DJ43: 8 | DK43: 0 | DL43: 0 | DM43: 0 | DN43: 24 | DO43: 0 | DP43: 0 | DQ43: 0 | DR43: 24 | DS43: 0 | DT43: 0 | DU43: 0 | DV43: 0 | DW43: 0 | DX43: 0 | DY43: 0 | DZ43: 0 | EA43: 0 | EB43: 0 | EC43: 0 | ED43: 0 | EE43: 0 | EF43: 0 | EG43: 0 | EH43: 0 | EI43: 0 | EJ43: 0 | EK43: 0 | EL43: 0 | EM43: 0 | EN43: 0 | EO43: 0 | EP43: 0 | EQ43: 0 | ER43: 0 | ES43: 0 | ET43: 0 | EU43: 0 | EV43: 0 | EW43: 0 | EX43: 0 | EY43: 0 | EZ43: 0 | FA43: 0 | FB43: 0 | FC43: 0
B44: 2014-07-12 | C44: 12 July 2014 Saturday | D44: FALSE | E44: FALSE | F44: 3206.4 | G44: 590.4 | H44: 7144.7 | I44: 2659.1 | J44: 38 | K44: 18 | L44: 22 | M44: 64 | N44: 11 | O44: 0 | P44: 0 | Q44: 0 | R44: 0 | S44: 0 | T44: 0 | U44: 0 | V44: 0 | W44: 0 | X44: 0 | Y44: 0 | Z44: 0 | AA44: 0 | AB44: 0 | AC44: 0 | AD44: 0 | AE44: 0 | AF44: 0 | AG44: 0 | AH44: 0 | AI44: 58 | AJ44: 0 | AK44: 71 | AL44: 1 | AM44: 0 | AN44: 0 | AO44: 260 | AP44: 0 | AQ44: 48 | AR44: 0 | AS44: 0 | AT44: K-Lunch | AU44: 57 | AV44: 0 | AW44: 0 | AX44: 0 | AY44: K-Dinner | AZ44: 0 | BA44: 0 | BB44: 72 | BC44: 0 | BD44: 4BP | BE44: 0 | BF44: 0 | BG44: 5 | BH44: 0 | BI44: Member 30% | BJ44: 0 | BK44: 0 | BL44: 0 | BM44: 0 | BN44: Tiger 2+1 | BO44: 0 | BP44: 0 | BQ44: 0 | BR44: 0 | BS44: Heineken 3+1 | BT44: 0 | BU44: 0 | BV44: 0 | BW44: 0 | BX44: RM4 PROMO | BY44: 0 | BZ44: 0 | CA44: 0 | CB44: 0 | CC44: 2 Bkt Tiger Rm 88 | CD44: 0 | CE44: 0 | CF44: 0 | CG44: 0 | CH44: WC COMBO | CI44: 0 | CJ44: 0 | CK44: 0 | CL44: 0 | CM44: WC 30% | CN44: 0 | CO44: 0 | CP44: 0 | CQ44: 0 | CR44: 0 | CS44: 0 | CT44: 146 | CU44: 0 | CV44: 0 | CW44: 2 | CX44: 1 | CY44: 0 | CZ44: 0 | DA44: 0 | DB44: 60 | DC44: 0 | DD44: 0 | DE44: 0 | DF44: 0 | DG44: 0 | DH44: 0 | DI44: 0 | DJ44: 1 | DK44: 0 | DL44: 0 | DM44: 0 | DN44: 28 | DO44: 0 | DP44: 0 | DQ44: 0 | DR44: 0 | DS44: 0 | DT44: 0 | DU44: 0 | DV44: 0 | DW44: 0 | DX44: 0 | DY44: 0 | DZ44: 0 | EA44: 0 | EB44: 0 | EC44: 0 | ED44: 0 | EE44: 0 | EF44: 0 | EG44: 0 | EH44: 0 | EI44: 0 | EJ44: 0 | EK44: 0 | EL44: 0 | EM44: 0 | EN44: 0 | EO44: 0 | EP44: 0 | EQ44: 0 | ER44: 0 | ES44: 0 | ET44: 0 | EU44: 0 | EV44: 0 | EW44: 0 | EX44: 0 | EY44: 0 | EZ44: 0 | FA44: 0 | FB44: 0 | FC44: 0
B45: 2014-07-13 | C45: 13 July 2014 Sunday | D45: FALSE | E45: FALSE | F45: 2676.4 | G45: 731.2 | H45: 3396.1 | I45: 592 | J45: 38 | K45: 14 | L45: 26 | M45: 32 | N45: 12 | O45: 0 | P45: 0 | Q45: 0 | R45: 0 | S45: 0 | T45: 0 | U45: 0 | V45: 0 | W45: 0 | X45: 0 | Y45: 0 | Z45: 0 | AA45: 0 | AB45: 0 | AC45: 0 | AD45: 0 | AE45: 0 | AF45: 0 | AG45: 0 | AH45: 0 | AI45: 45 | AJ45: 1 | AK45: 83 | AL45: 1 | AM45: 0 | AN45: 0 | AO45: 98 | AP45: 0 | AQ45: 42 | AR45: 0 | AS45: 21 | AT45: K-Lunch | AU45: 41 | AV45: 0 | AW45: 0 | AX45: 0 | AY45: K-Dinner | AZ45: 0 | BA45: 0 | BB45: 32 | BC45: 0 | BD45: 4BP | BE45: 0 | BF45: 0 | BG45: 2 | BH45: 0 | BI45: Member 30% | BJ45: 0 | BK45: 0 | BL45: 0 | BM45: 0 | BN45: Tiger 2+1 | BO45: 0 | BP45: 0 | BQ45: 0 | BR45: 0 | BS45: Heineken 3+1 | BT45: 0 | BU45: 0 | BV45: 0 | BW45: 0 | BX45: RM4 PROMO | BY45: 0 | BZ45: 0 | CA45: 0 | CB45: 0 | CC45: 2 Bkt Tiger Rm 88 | CD45: 0 | CE45: 0 | CF45: 0 | CG45: 0 | CH45: WC COMBO | CI45: 0 | CJ45: 0 | CK45: 0 | CL45: 0 | CM45: WC 30% | CN45: 0 | CO45: 0 | CP45: 0 | CQ45: 0 | CR45: 0 | CS45: 0 | CT45: 103 | CU45: 0 | CV45: 3 | CW45: 0 | CX45: 1 | CY45: 0 | CZ45: 0 | DA45: 0 | DB45: 24 | DC45: 0 | DD45: 0 | DE45: 0 | DF45: 0 | DG45: 0 | DH45: 0 | DI45: 0 | DJ45: 2 | DK45: 0 | DL45: 0 | DM45: 0 | DN45: 16 | DO45: 0 | DP45: 0 | DQ45: 0 | DR45: 12 | DS45: 0 | DT45: 0 | DU45: 0 | DV45: 0 | DW45: 0 | DX45: 0 | DY45: 0 | DZ45: 0 | EA45: 0 | EB45: 0 | EC45: 0 | ED45: 0 | EE45: 0 | EF45: 0 | EG45: 0 | EH45: 0 | EI45: 0 | EJ45: 0 | EK45: 0 | EL45: 0 | EM45: 0 | EN45: 0 | EO45: 0 | EP45: 0 | EQ45: 0 | ER45: 0 | ES45: 0 | ET45: 0 | EU45: 0 | EV45: 0 | EW45: 0 | EX45: 0 | EY45: 0 | EZ45: 0 | FA45: 0 | FB45: 0 | FC45: 0
B46: 2014-07-14 | C46: 14 July 2014 Monday | D46: FALSE | E46: FALSE | F46: 2992.2 | G46: 128 | H46: 8170 | I46: 2913.1 | J46: 38 | K46: 14 | L46: 26 | M46: 63 | N46: 16 | O46: 0 | P46: 0 | Q46: 0 | R46: 0 | S46: 0 | T46: 0 | U46: 0 | V46: 0 | W46: 0 | X46: 0 | Y46: 0 | Z46: 0 | AA46: 0 | AB46: 0 | AC46: 0 | AD46: 0 | AE46: 0 | AF46: 0 | AG46: 0 | AH46: 0 | AI46: 60 | AJ46: 1 | AK46: 81 | AL46: 0 | AM46: 0 | AN46: 55 | AO46: 271 | AP46: 0 | AQ46: 46 | AR46: 0 | AS46: 0 | AT46: K-Lunch | AU46: 57 | AV46: 0 | AW46: 0 | AX46: 0 | AY46: K-Dinner | AZ46: 0 | BA46: 0 | BB46: 69 | BC46: 0 | BD46: 4BP | BE46: 0 | BF46: 0 | BG46: 10 | BH46: 1 | BI46: Member 30% | BJ46: 0 | BK46: 0 | BL46: 0 | BM46: 0 | BN46: Tiger 2+1 | BO46: 0 | BP46: 0 | BQ46: 0 | BR46: 0 | BS46: Heineken 3+1 | BT46: 0 | BU46: 0 | BV46: 0 | BW46: 0 | BX46: RM4 PROMO | BY46: 0 | BZ46: 0 | CA46: 0 | CB46: 0 | CC46: 2 Bkt Tiger Rm 88 | CD46: 0 | CE46: 0 | CF46: 0 | CG46: 0 | CH46: WC COMBO | CI46: 0 | CJ46: 0 | CK46: 0 | CL46: 0 | CM46: WC 30% | CN46: 0 | CO46: 0 | CP46: 0 | CQ46: 0 | CR46: 0 | CS46: 0 | CT46: 185 | CU46: 0 | CV46: 0 | CW46: 2 | CX46: 0 | CY46: 0 | CZ46: 0 | DA46: 0 | DB46: 120 | DC46: 12 | DD46: 0 | DE46: 0 | DF46: 0 | DG46: 0 | DH46: 0 | DI46: 0 | DJ46: 7 | DK46: 0 | DL46: 0 | DM46: 0 | DN46: 20 | DO46: 0 | DP46: 0 | DQ46: 0 | DR46: 24 | DS46: 0 | DT46: 0 | DU46: 0 | DV46: 0 | DW46: 0 | DX46: 0 | DY46: 0 | DZ46: 0 | EA46: 0 | EB46: 0 | EC46: 0 | ED46: 0 | EE46: 0 | EF46: 0 | EG46: 0 | EH46: 0 | EI46: 0 | EJ46: 0 | EK46: 0 | EL46: 0 | EM46: 0 | EN46: 0 | EO46: 0 | EP46: 0 | EQ46: 0 | ER46: 0 | ES46: 0 | ET46: 0 | EU46: 0 | EV46: 0 | EW46: 0 | EX46: 0 | EY46: 0 | EZ46: 0 | FA46: 0 | FB46: 0 | FC46: 0
B47: 2014-07-15 | C47: 15 July 2014 Tuesday | D47: FALSE | E47: FALSE | F47: 4748.8 | G47: 608.4 | H47: 3262.4 | I47: 942.4 | J47: 38 | K47: 34 | L47: 31 | M47: 30 | N47: 9 | O47: 0 | P47: 0 | Q47: 0 | R47: 0 | S47: 0 | T47: 0 | U47: 0 | V47: 0 | W47: 0 | X47: 0 | Y47: 0 | Z47: 0 | AA47: 0 | AB47: 0 | AC47: 0 | AD47: 0 | AE47: 0 | AF47: 0 | AG47: 0 | AH47: 0 | AI47: 149 | AJ47: 3 | AK47: 103 | AL47: 0 | AM47: 0 | AN47: 0 | AO47: 103 | AP47: 0 | AQ47: 48 | AR47: 0 | AS47: 37 | AT47: K-Lunch | AU47: 145 | AV47: 0 | AW47: 0 | AX47: 0 | AY47: K-Dinner | AZ47: 0 | BA47: 0 | BB47: 36 | BC47: 0 | BD47: 4BP | BE47: 0 | BF47: 0 | BG47: 0 | BH47: 0 | BI47: Member 30% | BJ47: 0 | BK47: 0 | BL47: 0 | BM47: 0 | BN47: Tiger 2+1 | BO47: 0 | BP47: 0 | BQ47: 0 | BR47: 0 | BS47: Heineken 3+1 | BT47: 0 | BU47: 0 | BV47: 0 | BW47: 0 | BX47: RM4 PROMO | BY47: 0 | BZ47: 0 | CA47: 0 | CB47: 0 | CC47: 2 Bkt Tiger Rm 88 | CD47: 0 | CE47: 0 | CF47: 0 | CG47: 0 | CH47: WC COMBO | CI47: 0 | CJ47: 0 | CK47: 0 | CL47: 0 | CM47: WC 30% | CN47: 0 | CO47: 0 | CP47: 0 | CQ47: 0 | CR47: 0 | CS47: 0 | CT47: 206 | CU47: 0 | CV47: 0 | CW47: 0 | CX47: 0 | CY47: 0 | CZ47: 0 | DA47: 0 | DB47: 0 | DC47: 0 | DD47: 0 | DE47: 0 | DF47: 0 | DG47: 0 | DH47: 0 | DI47: 0 | DJ47: 10 | DK47: 0 | DL47: 0 | DM47: 0 | DN47: 8 | DO47: 0 | DP47: 0 | DQ47: 0 | DR47: 0 | DS47: 0 | DT47: 0 | DU47: 0 | DV47: 0 | DW47: 0 | DX47: 0 | DY47: 0 | DZ47: 0 | EA47: 0 | EB47: 0 | EC47: 0 | ED47: 0 | EE47: 0 | EF47: 0 | EG47: 0 | EH47: 0 | EI47: 0 | EJ47: 0 | EK47: 0 | EL47: 0 | EM47: 0 | EN47: 0 | EO47: 0 | EP47: 0 | EQ47: 0 | ER47: 0 | ES47: 0 | ET47: 0 | EU47: 0 | EV47: 0 | EW47: 0 | EX47: 0 | EY47: 0 | EZ47: 0 | FA47: 0 | FB47: 0 | FC47: 0
B48: 2014-07-16 | C48: 16 July 2014 Wednesday | D48: FALSE | E48: FALSE | F48: 1482.1 | G48: 222 | H48: 4792.5 | I48: 249.6 | J48: 38 | K48: 11 | L48: 29 | M48: 27 | N48: 17 | O48: 0 | P48: 0 | Q48: 0 | R48: 0 | S48: 0 | T48: 0 | U48: 0 | V48: 0 | W48: 0 | X48: 0 | Y48: 0 | Z48: 0 | AA48: 0 | AB48: 0 | AC48: 0 | AD48: 0 | AE48: 0 | AF48: 0 | AG48: 0 | AH48: 0 | AI48: 45 | AJ48: 0 | AK48: 64 | AL48: 0 | AM48: 0 | AN48: 50 | AO48: 100 | AP48: 1 | AQ48: 68 | AR48: 0 | AS48: 36 | AT48: K-Lunch | AU48: 43 | AV48: 0 | AW48: 0 | AX48: 0 | AY48: K-Dinner | AZ48: 0 | BA48: 0 | BB48: 26 | BC48: 0 | BD48: 4BP | BE48: 0 | BF48: 0 | BG48: 2 | BH48: 0 | BI48: Member 30% | BJ48: 0 | BK48: 0 | BL48: 0 | BM48: 0 | BN48: Tiger 2+1 | BO48: 0 | BP48: 0 | BQ48: 0 | BR48: 0 | BS48: Heineken 3+1 | BT48: 0 | BU48: 0 | BV48: 1 | BW48: 0 | BX48: 0 | BY48: 0 | BZ48: 0 | CA48: 0 | CB48: 0 | CC48: 0 | CD48: 0 | CE48: 0 | CF48: 0 | CG48: 0 | CH48: 0 | CI48: 0 | CJ48: 0 | CK48: 0 | CL48: 0 | CM48: 0 | CN48: 0 | CO48: 0 | CP48: 0 | CQ48: 0 | CR48: 0 | CS48: 0 | CT48: 126 | CU48: 0 | CV48: 0 | CW48: 0 | CX48: 0 | CY48: 0 | CZ48: 0 | DA48: 0 | DB48: 24 | DC48: 0 | DD48: 0 | DE48: 0 | DF48: 0 | DG48: 0 | DH48: 0 | DI48: 0 | DJ48: 0 | DK48: 0 | DL48: 0 | DM48: 0 | DN48: 36 | DO48: 0 | DP48: 0 | DQ48: 0 | DR48: 24 | DS48: 0 | DT48: 0 | DU48: 0 | DV48: 0 | DW48: 0 | DX48: 0 | DY48: 0 | DZ48: 0 | EA48: 0 | EB48: 0 | EC48: 0 | ED48: 0 | EE48: 0 | EF48: 0 | EG48: 0 | EH48: 0 | EI48: 0 | EJ48: 0 | EK48: 0 | EL48: 0 | EM48: 0 | EN48: 0 | EO48: 0 | EP48: 0 | EQ48: 0 | ER48: 0 | ES48: 0 | ET48: 0 | EU48: 0 | EV48: 0 | EW48: 0 | EX48: 0 | EY48: 0 | EZ48: 0 | FA48: 0 | FB48: 0 | FC48: 0
B49: 2014-07-17 | C49: 17 July 2014 Thursday | D49: FALSE | E49: FALSE | F49: 1261.4 | G49: 168 | H49: 2714.2 | I49: 1908.1 | J49: 38 | K49: 8 | L49: 18 | M49: 32 | N49: 14 | O49: 0 | P49: 0 | Q49: 0 | R49: 0 | S49: 0 | T49: 0 | U49: 0 | V49: 0 | W49: 0 | X49: 0 | Y49: 0 | Z49: 0 | AA49: 0 | AB49: 0 | AC49: 0 | AD49: 0 | AE49: 0 | AF49: 0 | AG49: 0 | AH49: 0 | AI49: 31 | AJ49: 0 | AK49: 40 | AL49: 0 | AM49: 0 | AN49: 35 | AO49: 110 | AP49: 1 | AQ49: 39 | AR49: 0 | AS49: 23 | AT49: K-Lunch | AU49: 26 | AV49: 0 | AW49: 0 | AX49: 0 | AY49: K-Dinner | AZ49: 0 | BA49: 0 | BB49: 45 | BC49: 0 | BD49: 4BP | BE49: 0 | BF49: 0 | BG49: 4 | BH49: 0 | BI49: Member 30% | BJ49: 0 | BK49: 0 | BL49: 0 | BM49: 0 | BN49: Tiger 2+1 | BO49: 0 | BP49: 0 | BQ49: 0 | BR49: 0 | BS49: Heineken 3+1 | BT49: 0 | BU49: 0 | BV49: 0 | BW49: 0 | BX49: 0 | BY49: 0 | BZ49: 0 | CA49: 0 | CB49: 0 | CC49: 0 | CD49: 0 | CE49: 0 | CF49: 0 | CG49: 0 | CH49: 0 | CI49: 0 | CJ49: 0 | CK49: 0 | CL49: 0 | CM49: 0 | CN49: 0 | CO49: 0 | CP49: 0 | CQ49: 0 | CR49: 0 | CS49: 0 | CT49: 100 | CU49: 0 | CV49: 0 | CW49: 0 | CX49: 2 | CY49: 0 | CZ49: 0 | DA49: 0 | DB49: 48 | DC49: 0 | DD49: 0 | DE49: 0 | DF49: 0 | DG49: 0 | DH49: 0 | DI49: 0 | DJ49: 1 | DK49: 0 | DL49: 0 | DM49: 0 | DN49: 44 | DO49: 0 | DP49: 0 | DQ49: 0 | DR49: 36 | DS49: 0 | DT49: 0 | DU49: 0 | DV49: 0 | DW49: 0 | DX49: 0 | DY49: 0 | DZ49: 0 | EA49: 0 | EB49: 0 | EC49: 0 | ED49: 0 | EE49: 0 | EF49: 0 | EG49: 0 | EH49: 0 | EI49: 0 | EJ49: 0 | EK49: 0 | EL49: 0 | EM49: 0 | EN49: 0 | EO49: 0 | EP49: 0 | EQ49: 0 | ER49: 0 | ES49: 0 | ET49: 0 | EU49: 0 | EV49: 0 | EW49: 0 | EX49: 0 | EY49: 0 | EZ49: 0 | FA49: 0 | FB49: 0 | FC49: 0
B50: 2014-07-18 | C50: 18 July 2014 Friday | D50: FALSE | E50: FALSE | F50: 1965.6 | G50: 539 | H50: 5703.6 | I50: 3338.6 | J50: 38 | K50: 14 | L50: 31 | M50: 55 | N50: 14 | O50: 0 | P50: 0 | Q50: 0 | R50: 0 | S50: 0 | T50: 0 | U50: 0 | V50: 0 | W50: 0 | X50: 0 | Y50: 0 | Z50: 0 | AA50: 0 | AB50: 0 | AC50: 0 | AD50: 0 | AE50: 0 | AF50: 0 | AG50: 0 | AH50: 0 | AI50: 59 | AJ50: 0 | AK50: 103 | AL50: 0 | AM50: 0 | AN50: 88 | AO50: 213 | AP50: 2 | AQ50: 49 | AR50: 0 | AS50: 0 | AT50: K-Lunch | AU50: 51 | AV50: 0 | AW50: 0 | AX50: 0 | AY50: K-Dinner | AZ50: 0 | BA50: 0 | BB50: 78 | BC50: 0 | BD50: 4BP | BE50: 0 | BF50: 0 | BG50: 0 | BH50: 0 | BI50: Member 30% | BJ50: 0 | BK50: 0 | BL50: 0 | BM50: 0 | BN50: Tiger 2+1 | BO50: 0 | BP50: 0 | BQ50: 0 | BR50: 0 | BS50: Heineken 3+1 | BT50: 0 | BU50: 0 | BV50: 0 | BW50: 0 | BX50: 0 | BY50: 0 | BZ50: 0 | CA50: 0 | CB50: 0 | CC50: 0 | CD50: 0 | CE50: 0 | CF50: 0 | CG50: 0 | CH50: 0 | CI50: 0 | CJ50: 0 | CK50: 0 | CL50: 0 | CM50: 0 | CN50: 0 | CO50: 0 | CP50: 0 | CQ50: 0 | CR50: 0 | CS50: 0 | CT50: 152 | CU50: 0 | CV50: 0 | CW50: 0 | CX50: 2 | CY50: 0 | CZ50: 0 | DA50: 0 | DB50: 0 | DC50: 0 | DD50: 0 | DE50: 0 | DF50: 0 | DG50: 0 | DH50: 0 | DI50: 0 | DJ50: 4 | DK50: 0 | DL50: 0 | DM50: 0 | DN50: 48 | DO50: 0 | DP50: 0 | DQ50: 0 | DR50: 12 | DS50: 0 | DT50: 0 | DU50: 0 | DV50: 0 | DW50: 0 | DX50: 0 | DY50: 0 | DZ50: 0 | EA50: 0 | EB50: 0 | EC50: 0 | ED50: 0 | EE50: 0 | EF50: 0 | EG50: 0 | EH50: 0 | EI50: 0 | EJ50: 0 | EK50: 0 | EL50: 0 | EM50: 0 | EN50: 0 | EO50: 0 | EP50: 0 | EQ50: 0 | ER50: 0 | ES50: 0 | ET50: 0 | EU50: 0 | EV50: 0 | EW50: 0 | EX50: 0 | EY50: 0 | EZ50: 0 | FA50: 0 | FB50: 0 | FC50: 0
B51: 2014-07-19 | C51: 19 July 2014 Saturday | D51: FALSE | E51: FALSE | F51: 2871.2 | G51: 894.4 | H51: 7280.6 | I51: 4572 | J51: 38 | K51: 14 | L51: 29 | M51: 60 | N51: 24 | O51: 0 | P51: 0 | Q51: 0 | R51: 0 | S51: 0 | T51: 0 | U51: 0 | V51: 0 | W51: 0 | X51: 0 | Y51: 0 | Z51: 0 | AA51: 0 | AB51: 0 | AC51: 0 | AD51: 0 | AE51: 0 | AF51: 0 | AG51: 0 | AH51: 0 | AI51: 39 | AJ51: 0 | AK51: 98 | AL51: 0 | AM51: 0 | AN51: 0 | AO51: 259 | AP51: 1 | AQ51: 89 | AR51: 2 | AS51: 0 | AT51: K-Lunch | AU51: 39 | AV51: 0 | AW51: 0 | AX51: 0 | AY51: K-Dinner | AZ51: 0 | BA51: 0 | BB51: 40 | BC51: 0 | BD51: 4BP | BE51: 0 | BF51: 0 | BG51: 5 | BH51: 2 | BI51: Member 30% | BJ51: 0 | BK51: 0 | BL51: 0 | BM51: 0 | BN51: Tiger 2+1 | BO51: 0 | BP51: 0 | BQ51: 0 | BR51: 0 | BS51: Heineken 3+1 | BT51: 0 | BU51: 0 | BV51: 0 | BW51: 0 | BX51: Opening Promo 60% | BY51: 0 | BZ51: 0 | CA51: 0 | CB51: 0 | CC51: 2 Bkt Tiger Rm 88 | CD51: 0 | CE51: 0 | CF51: 0 | CG51: 0 | CH51: 0 | CI51: 0 | CJ51: 0 | CK51: 0 | CL51: 0 | CM51: 0 | CN51: 0 | CO51: 0 | CP51: 0 | CQ51: 0 | CR51: 0 | CS51: 0 | CT51: 152 | CU51: 0 | CV51: 0 | CW51: 0 | CX51: 6 | CY51: 0 | CZ51: 0 | DA51: 0 | DB51: 60 | DC51: 24 | DD51: 0 | DE51: 0 | DF51: 0 | DG51: 0 | DH51: 0 | DI51: 0 | DJ51: 4 | DK51: 0 | DL51: 0 | DM51: 0 | DN51: 20 | DO51: 0 | DP51: 0 | DQ51: 0 | DR51: 0 | DS51: 0 | DT51: 0 | DU51: 0 | DV51: 0 | DW51: 0 | DX51: 0 | DY51: 0 | DZ51: 0 | EA51: 0 | EB51: 0 | EC51: 0 | ED51: 0 | EE51: 0 | EF51: 0 | EG51: 0 | EH51: 0 | EI51: 0 | EJ51: 0 | EK51: 0 | EL51: 0 | EM51: 0 | EN51: 0 | EO51: 0 | EP51: 0 | EQ51: 0 | ER51: 0 | ES51: 0 | ET51: 0 | EU51: 0 | EV51: 0 | EW51: 0 | EX51: 0 | EY51: 0 | EZ51: 0 | FA51: 0 | FB51: 0 | FC51: 0
B52: 2014-07-20 | C52: 20 July 2014 Sunday | D52: FALSE | E52: FALSE | F52: 2946.8 | G52: 1219.6 | H52: 3027.1 | I52: 771.2 | J52: 38 | K52: 28 | L52: 23 | M52: 34 | N52: 17 | O52: 0 | P52: 0 | Q52: 0 | R52: 0 | S52: 0 | T52: 0 | U52: 0 | V52: 0 | W52: 0 | X52: 0 | Y52: 0 | Z52: 0 | AA52: 0 | AB52: 0 | AC52: 0 | AD52: 0 | AE52: 0 | AF52: 0 | AG52: 0 | AH52: 0 | AI52: 90 | AJ52: 2 | AK52: 76 | AL52: 2 | AM52: 0 | AN52: 0 | AO52: 89 | AP52: 0 | AQ52: 54 | AR52: 0 | AS52: 36 | AT52: K-Lunch | AU52: 84 | AV52: 0 | AW52: 0 | AX52: 0 | AY52: K-Dinner | AZ52: 0 | BA52: 0 | BB52: 38 | BC52: 0 | BD52: 4BP | BE52: 1 | BF52: 0 | BG52: 2 | BH52: 0 | BI52: Member 30% | BJ52: 0 | BK52: 0 | BL52: 0 | BM52: 0 | BN52: Tiger 2+1 | BO52: 0 | BP52: 0 | BQ52: 0 | BR52: 0 | BS52: Heineken 3+1 | BT52: 0 | BU52: 0 | BV52: 0 | BW52: 0 | BX52: Opening Promo 60% | BY52: 0 | BZ52: 0 | CA52: 0 | CB52: 0 | CC52: 2 Bkt Tiger Rm 88 | CD52: 0 | CE52: 0 | CF52: 0 | CG52: 0 | CH52: 0 | CI52: 0 | CJ52: 0 | CK52: 0 | CL52: 0 | CM52: 0 | CN52: 0 | CO52: 0 | CP52: 0 | CQ52: 0 | CR52: 0 | CS52: 0 | CT52: 168 | CU52: 0 | CV52: 0 | CW52: 0 | CX52: 4 | CY52: 0 | CZ52: 0 | DA52: 12 | DB52: 24 | DC52: 12 | DD52: 0 | DE52: 0 | DF52: 0 | DG52: 0 | DH52: 0 | DI52: 0 | DJ52: 9 | DK52: 0 | DL52: 0 | DM52: 0 | DN52: 40 | DO52: 0 | DP52: 0 | DQ52: 0 | DR52: 12 | DS52: 0 | DT52: 0 | DU52: 0 | DV52: 0 | DW52: 0 | DX52: 0 | DY52: 0 | DZ52: 0 | EA52: 0 | EB52: 0 | EC52: 0 | ED52: 0 | EE52: 0 | EF52: 0 | EG52: 0 | EH52: 0 | EI52: 0 | EJ52: 0 | EK52: 0 | EL52: 0 | EM52: 0 | EN52: 0 | EO52: 0 | EP52: 0 | EQ52: 0 | ER52: 0 | ES52: 0 | ET52: 0 | EU52: 0 | EV52: 0 | EW52: 0 | EX52: 0 | EY52: 0 | EZ52: 0 | FA52: 0 | FB52: 0 | FC52: 0
B53: 2014-07-21 | C53: 21 July 2014 Monday | D53: FALSE | E53: FALSE | F53: 1127.3 | G53: 56 | H53: 2779.2 | I53: 148 | J53: 38 | K53: 16 | L53: 12 | M53: 23 | N53: 12 | O53: 0 | P53: 0 | Q53: 0 | R53: 0 | S53: 0 | T53: 0 | U53: 0 | V53: 0 | W53: 0 | X53: 0 | Y53: 0 | Z53: 0 | AA53: 0 | AB53: 0 | AC53: 0 | AD53: 0 | AE53: 0 | AF53: 0 | AG53: 0 | AH53: 0 | AI53: 50 | AJ53: 0 | AK53: 30 | AL53: 0 | AM53: 3 | AN53: 15 | AO53: 65 | AP53: 1 | AQ53: 42 | AR53: 0 | AS53: 25 | AT53: K-Lunch | AU53: 46 | AV53: 0 | AW53: 0 | AX53: 0 | AY53: K-Dinner | AZ53: 0 | BA53: 0 | BB53: 20 | BC53: 0 | BD53: 4BP | BE53: 0 | BF53: 0 | BG53: 0 | BH53: 0 | BI53: Member 30% | BJ53: 0 | BK53: 0 | BL53: 0 | BM53: 0 | BN53: Tiger 2+1 | BO53: 0 | BP53: 0 | BQ53: 4 | BR53: 0 | BS53: Heineken 3+1 | BT53: 0 | BU53: 0 | BV53: 0 | BW53: 0 | BX53: 0 | BY53: 0 | BZ53: 0 | CA53: 0 | CB53: 0 | CC53: 0 | CD53: 0 | CE53: 0 | CF53: 0 | CG53: 0 | CH53: 0 | CI53: 0 | CJ53: 0 | CK53: 0 | CL53: 0 | CM53: 0 | CN53: 0 | CO53: 0 | CP53: 0 | CQ53: 0 | CR53: 0 | CS53: 0 | CT53: 86 | CU53: 0 | CV53: 0 | CW53: 0 | CX53: 0 | CY53: 0 | CZ53: 0 | DA53: 0 | DB53: 0 | DC53: 0 | DD53: 0 | DE53: 0 | DF53: 0 | DG53: 0 | DH53: 0 | DI53: 0 | DJ53: 2 | DK53: 0 | DL53: 0 | DM53: 0 | DN53: 4 | DO53: 0 | DP53: 0 | DQ53: 0 | DR53: 48 | DS53: 0 | DT53: 0 | DU53: 0 | DV53: 0 | DW53: 0 | DX53: 0 | DY53: 0 | DZ53: 0 | EA53: 0 | EB53: 0 | EC53: 0 | ED53: 0 | EE53: 0 | EF53: 0 | EG53: 0 | EH53: 0 | EI53: 0 | EJ53: 0 | EK53: 0 | EL53: 0 | EM53: 0 | EN53: 0 | EO53: 0 | EP53: 0 | EQ53: 0 | ER53: 0 | ES53: 0 | ET53: 0 | EU53: 0 | EV53: 0 | EW53: 0 | EX53: 0 | EY53: 0 | EZ53: 0 | FA53: 0 | FB53: 0 | FC53: 0
B54: 2014-07-22 | C54: 22 July 2014 Tuesday | D54: FALSE | E54: FALSE | F54: 1208 | G54: 630.2 | H54: 4116.2 | I54: 1185.7 | J54: 38 | K54: 15 | L54: 15 | M54: 39 | N54: 13 | O54: 0 | P54: 0 | Q54: 0 | R54: 0 | S54: 0 | T54: 0 | U54: 0 | V54: 0 | W54: 0 | X54: 0 | Y54: 0 | Z54: 0 | AA54: 0 | AB54: 0 | AC54: 0 | AD54: 0 | AE54: 0 | AF54: 0 | AG54: 0 | AH54: 0 | AI54: 61 | AJ54: 0 | AK54: 57 | AL54: 0 | AM54: 0 | AN54: 43 | AO54: 144 | AP54: 0 | AQ54: 51 | AR54: 0 | AS54: 27 | AT54: K-Lunch | AU54: 51 | AV54: 0 | AW54: 0 | AX54: 0 | AY54: K-Dinner | AZ54: 0 | BA54: 0 | BB54: 26 | BC54: 0 | BD54: 4BP | BE54: 0 | BF54: 0 | BG54: 0 | BH54: 0 | BI54: Member 30% | BJ54: 0 | BK54: 0 | BL54: 59 | BM54: 0 | BN54: Tiger 2+1 | BO54: 0 | BP54: 0 | BQ54: 0 | BR54: 0 | BS54: Heineken 3+1 | BT54: 0 | BU54: 0 | BV54: 0 | BW54: 0 | BX54: 0 | BY54: 0 | BZ54: 0 | CA54: 0 | CB54: 0 | CC54: 0 | CD54: 0 | CE54: 0 | CF54: 0 | CG54: 0 | CH54: 0 | CI54: 0 | CJ54: 0 | CK54: 0 | CL54: 0 | CM54: 0 | CN54: 0 | CO54: 0 | CP54: 0 | CQ54: 0 | CR54: 0 | CS54: 0 | CT54: 94 | CU54: 0 | CV54: 0 | CW54: 0 | CX54: 0 | CY54: 0 | CZ54: 0 | DA54: 0 | DB54: 24 | DC54: 0 | DD54: 0 | DE54: 0 | DF54: 0 | DG54: 0 | DH54: 0 | DI54: 0 | DJ54: 4 | DK54: 0 | DL54: 0 | DM54: 0 | DN54: 24 | DO54: 0 | DP54: 0 | DQ54: 0 | DR54: 24 | DS54: 0 | DT54: 0 | DU54: 0 | DV54: 0 | DW54: 0 | DX54: 0 | DY54: 0 | DZ54: 0 | EA54: 0 | EB54: 0 | EC54: 0 | ED54: 0 | EE54: 0 | EF54: 0 | EG54: 0 | EH54: 0 | EI54: 0 | EJ54: 0 | EK54: 0 | EL54: 0 | EM54: 0 | EN54: 0 | EO54: 0 | EP54: 0 | EQ54: 0 | ER54: 0 | ES54: 0 | ET54: 0 | EU54: 0 | EV54: 0 | EW54: 0 | EX54: 0 | EY54: 0 | EZ54: 0 | FA54: 0 | FB54: 0 | FC54: 0
B55: 2014-07-23 | C55: 23 July 2014 Wednesday | D55: FALSE | E55: FALSE | F55: 1747.7 | G55: 246.2 | H55: 2510.4 | I55: 641.8 | J55: 38 | K55: 16 | L55: 22 | M55: 28 | N55: 4 | O55: 0 | P55: 0 | Q55: 0 | R55: 0 | S55: 0 | T55: 0 | U55: 0 | V55: 0 | W55: 0 | X55: 0 | Y55: 0 | Z55: 0 | AA55: 0 | AB55: 0 | AC55: 0 | AD55: 0 | AE55: 0 | AF55: 0 | AG55: 0 | AH55: 0 | AI55: 49 | AJ55: 0 | AK55: 61 | AL55: 0 | AM55: 0 | AN55: 52 | AO55: 100 | AP55: 0 | AQ55: 12 | AR55: 0 | AS55: 4 | AT55: K-Lunch | AU55: 43 | AV55: 0 | AW55: 0 | AX55: 0 | AY55: K-Dinner | AZ55: 0 | BA55: 0 | BB55: 27 | BC55: 0 | BD55: 4BP | BE55: 0 | BF55: 0 | BG55: 0 | BH55: 0 | BI55: Member 30% | BJ55: 0 | BK55: 0 | BL55: 0 | BM55: 0 | BN55: Tiger 2+1 | BO55: 0 | BP55: 0 | BQ55: 0 | BR55: 0 | BS55: Heineken 3+1 | BT55: 0 | BU55: 0 | BV55: 0 | BW55: 0 | BX55: 0 | BY55: 0 | BZ55: 0 | CA55: 0 | CB55: 0 | CC55: 0 | CD55: 0 | CE55: 0 | CF55: 0 | CG55: 0 | CH55: 0 | CI55: 0 | CJ55: 0 | CK55: 0 | CL55: 0 | CM55: 0 | CN55: 0 | CO55: 0 | CP55: 0 | CQ55: 0 | CR55: 0 | CS55: 0 | CT55: 95 | CU55: 0 | CV55: 0 | CW55: 0 | CX55: 0 | CY55: 0 | CZ55: 0 | DA55: 0 | DB55: 12 | DC55: 0 | DD55: 0 | DE55: 0 | DF55: 0 | DG55: 0 | DH55: 0 | DI55: 0 | DJ55: 3 | DK55: 0 | DL55: 0 | DM55: 0 | DN55: 24 | DO55: 0 | DP55: 0 | DQ55: 0 | DR55: 0 | DS55: 0 | DT55: 0 | DU55: 0 | DV55: 0 | DW55: 0 | DX55: 0 | DY55: 0 | DZ55: 0 | EA55: 0 | EB55: 0 | EC55: 0 | ED55: 0 | EE55: 0 | EF55: 0 | EG55: 0 | EH55: 0 | EI55: 0 | EJ55: 0 | EK55: 0 | EL55: 0 | EM55: 0 | EN55: 0 | EO55: 0 | EP55: 0 | EQ55: 0 | ER55: 0 | ES55: 0 | ET55: 0 | EU55: 0 | EV55: 0 | EW55: 0 | EX55: 0 | EY55: 0 | EZ55: 0 | FA55: 0 | FB55: 0 | FC55: 0
B56: 2014-07-24 | C56: 24 July 2014 Thursday | D56: FALSE | E56: FALSE | F56: 1821.6 | G56: 336 | H56: 4861.4 | I56: 2052.6 | J56: 38 | K56: 17 | L56: 24 | M56: 45 | N56: 19 | O56: 0 | P56: 0 | Q56: 0 | R56: 0 | S56: 0 | T56: 0 | U56: 0 | V56: 0 | W56: 0 | X56: 0 | Y56: 0 | Z56: 0 | AA56: 0 | AB56: 0 | AC56: 0 | AD56: 0 | AE56: 0 | AF56: 0 | AG56: 0 | AH56: 0 | AI56: 63 | AJ56: 0 | AK56: 64 | AL56: 0 | AM56: 0 | AN56: 51 | AO56: 183 | AP56: 2 | AQ56: 63 | AR56: 0 | AS56: 33 | AT56: K-Lunch | AU56: 62 | AV56: 0 | AW56: 0 | AX56: 0 | AY56: K-Dinner | AZ56: 0 | BA56: 0 | BB56: 73 | BC56: 0 | BD56: 4BP | BE56: 0 | BF56: 0 | BG56: 0 | BH56: 0 | BI56: Member 30% | BJ56: 0 | BK56: 0 | BL56: 0 | BM56: 0 | BN56: Tiger 2+1 | BO56: 0 | BP56: 0 | BQ56: 0 | BR56: 0 | BS56: Heineken 3+1 | BT56: 0 | BU56: 0 | BV56: 0 | BW56: 0 | BX56: 0 | BY56: 0 | BZ56: 0 | CA56: 0 | CB56: 0 | CC56: 0 | CD56: 0 | CE56: 0 | CF56: 0 | CG56: 0 | CH56: 0 | CI56: 0 | CJ56: 0 | CK56: 0 | CL56: 0 | CM56: 0 | CN56: 0 | CO56: 0 | CP56: 0 | CQ56: 0 | CR56: 0 | CS56: 0 | CT56: 155 | CU56: 0 | CV56: 0 | CW56: 0 | CX56: 3 | CY56: 0 | CZ56: 0 | DA56: 0 | DB56: 24 | DC56: 12 | DD56: 0 | DE56: 0 | DF56: 0 | DG56: 0 | DH56: 0 | DI56: 0 | DJ56: 2 | DK56: 0 | DL56: 0 | DM56: 0 | DN56: 40 | DO56: 0 | DP56: 0 | DQ56: 0 | DR56: 24 | DS56: 0 | DT56: 0 | DU56: 0 | DV56: 0 | DW56: 0 | DX56: 0 | DY56: 0 | DZ56: 0 | EA56: 0 | EB56: 0 | EC56: 0 | ED56: 0 | EE56: 0 | EF56: 0 | EG56: 0 | EH56: 0 | EI56: 0 | EJ56: 0 | EK56: 0 | EL56: 0 | EM56: 0 | EN56: 0 | EO56: 0 | EP56: 0 | EQ56: 0 | ER56: 0 | ES56: 0 | ET56: 0 | EU56: 0 | EV56: 0 | EW56: 0 | EX56: 0 | EY56: 0 | EZ56: 0 | FA56: 0 | FB56: 0 | FC56: 0
B57: 2014-07-25 | C57: 25 July 2014 Friday | D57: FALSE | E57: FALSE | F57: 3794.1 | G57: 1377.8 | H57: 6772.1 | I57: 6109.5 | J57: 38 | K57: 25 | L57: 29 | M57: 65 | N57: 11 | O57: 0 | P57: 0 | Q57: 0 | R57: 0 | S57: 0 | T57: 0 | U57: 0 | V57: 0 | W57: 0 | X57: 0 | Y57: 0 | Z57: 0 | AA57: 0 | AB57: 0 | AC57: 0 | AD57: 0 | AE57: 0 | AF57: 0 | AG57: 0 | AH57: 0 | AI57: 94 | AJ57: 0 | AK57: 111 | AL57: 0 | AM57: 0 | AN57: 78 | AO57: 334 | AP57: 0 | AQ57: 35 | AR57: 0 | AS57: 0 | AT57: K-Lunch | AU57: 92 | AV57: 0 | AW57: 0 | AX57: 0 | AY57: K-Dinner | AZ57: 0 | BA57: 0 | BB57: 110 | BC57: 0 | BD57: 4BP | BE57: 0 | BF57: 1 | BG57: 9 | BH57: 2 | BI57: Member 30% | BJ57: 0 | BK57: 0 | BL57: 0 | BM57: 0 | BN57: Tiger 2+1 | BO57: 0 | BP57: 0 | BQ57: 0 | BR57: 0 | BS57: Heineken 3+1 | BT57: 0 | BU57: 0 | BV57: 0 | BW57: 0 | BX57: 0 | BY57: 0 | BZ57: 0 | CA57: 0 | CB57: 0 | CC57: 0 | CD57: 0 | CE57: 0 | CF57: 0 | CG57: 0 | CH57: 0 | CI57: 0 | CJ57: 0 | CK57: 0 | CL57: 0 | CM57: 0 | CN57: 0 | CO57: 0 | CP57: 0 | CQ57: 0 | CR57: 0 | CS57: 0 | CT57: 258 | CU57: 0 | CV57: 0 | CW57: 0 | CX57: 0 | CY57: 0 | CZ57: 0 | DA57: 12 | DB57: 108 | DC57: 36 | DD57: 0 | DE57: 0 | DF57: 0 | DG57: 0 | DH57: 0 | DI57: 0 | DJ57: 2 | DK57: 0 | DL57: 0 | DM57: 0 | DN57: 16 | DO57: 0 | DP57: 0 | DQ57: 0 | DR57: 156 | DS57: 0 | DT57: 0 | DU57: 0 | DV57: 0 | DW57: 0 | DX57: 0 | DY57: 0 | DZ57: 0 | EA57: 0 | EB57: 0 | EC57: 0 | ED57: 0 | EE57: 0 | EF57: 0 | EG57: 0 | EH57: 0 | EI57: 0 | EJ57: 0 | EK57: 0 | EL57: 0 | EM57: 0 | EN57: 0 | EO57: 0 | EP57: 0 | EQ57: 0 | ER57: 0 | ES57: 0 | ET57: 0 | EU57: 0 | EV57: 0 | EW57: 0 | EX57: 0 | EY57: 0 | EZ57: 0 | FA57: 0 | FB57: 0 | FC57: 0
B58: 2014-07-26 | C58: 26 July 2014 Saturday | D58: FALSE | E58: FALSE | F58: 2684.6 | G58: 1107.1 | H58: 6979 | I58: 5210.4 | J58: 38 | K58: 29 | L58: 18 | M58: 62 | N58: 18 | O58: 0 | P58: 0 | Q58: 0 | R58: 0 | S58: 0 | T58: 0 | U58: 0 | V58: 0 | W58: 0 | X58: 0 | Y58: 0 | Z58: 0 | AA58: 0 | AB58: 0 | AC58: 0 | AD58: 0 | AE58: 0 | AF58: 0 | AG58: 0 | AH58: 0 | AI58: 89 | AJ58: 0 | AK58: 55 | AL58: 0 | AM58: 0 | AN58: 0 | AO58: 263 | AP58: 2 | AQ58: 69 | AR58: 0 | AS58: 0 | AT58: K-Lunch | AU58: 81 | AV58: 0 | AW58: 0 | AX58: 0 | AY58: K-Dinner | AZ58: 0 | BA58: 0 | BB58: 52 | BC58: 0 | BD58: 4BP | BE58: 0 | BF58: 0 | BG58: 11 | BH58: 1 | BI58: Member 30% | BJ58: 0 | BK58: 0 | BL58: 0 | BM58: 0 | BN58: Tiger 2+1 | BO58: 0 | BP58: 0 | BQ58: 0 | BR58: 0 | BS58: Heineken 3+1 | BT58: 0 | BU58: 0 | BV58: 0 | BW58: 0 | BX58: 0 | BY58: 0 | BZ58: 0 | CA58: 0 | CB58: 0 | CC58: 0 | CD58: 0 | CE58: 0 | CF58: 0 | CG58: 0 | CH58: 0 | CI58: 0 | CJ58: 0 | CK58: 0 | CL58: 0 | CM58: 0 | CN58: 0 | CO58: 0 | CP58: 0 | CQ58: 0 | CR58: 0 | CS58: 0 | CT58: 179 | CU58: 0 | CV58: 0 | CW58: 0 | CX58: 1 | CY58: 0 | CZ58: 0 | DA58: 0 | DB58: 132 | DC58: 12 | DD58: 0 | DE58: 0 | DF58: 0 | DG58: 0 | DH58: 0 | DI58: 0 | DJ58: 2 | DK58: 0 | DL58: 0 | DM58: 0 | DN58: 32 | DO58: 0 | DP58: 0 | DQ58: 0 | DR58: 48 | DS58: 0 | DT58: 0 | DU58: 0 | DV58: 0 | DW58: 0 | DX58: 0 | DY58: 0 | DZ58: 0 | EA58: 0 | EB58: 0 | EC58: 0 | ED58: 0 | EE58: 0 | EF58: 0 | EG58: 0 | EH58: 0 | EI58: 0 | EJ58: 0 | EK58: 0 | EL58: 0 | EM58: 0 | EN58: 0 | EO58: 0 | EP58: 0 | EQ58: 0 | ER58: 0 | ES58: 0 | ET58: 0 | EU58: 0 | EV58: 0 | EW58: 0 | EX58: 0 | EY58: 0 | EZ58: 0 | FA58: 0 | FB58: 0 | FC58: 0
B59: 2014-07-27 | C59: 27 July 2014 Sunday | D59: FALSE | E59: FALSE | F59: 3316.4 | G59: 1709.7 | H59: 5589.3 | I59: 5885.4 | J59: 38 | K59: 28 | L59: 29 | M59: 63 | N59: 15 | O59: 0 | P59: 0 | Q59: 0 | R59: 0 | S59: 0 | T59: 0 | U59: 0 | V59: 0 | W59: 0 | X59: 0 | Y59: 0 | Z59: 0 | AA59: 0 | AB59: 0 | AC59: 0 | AD59: 0 | AE59: 0 | AF59: 0 | AG59: 0 | AH59: 0 | AI59: 106 | AJ59: 2 | AK59: 94 | AL59: 0 | AM59: 0 | AN59: 0 | AO59: 265 | AP59: 6 | AQ59: 74 | AR59: 0 | AS59: 0 | AT59: K-Lunch | AU59: 0 | AV59: 0 | AW59: 0 | AX59: 0 | AY59: K-Dinner | AZ59: 0 | BA59: 0 | BB59: 0 | BC59: 0 | BD59: 4BP | BE59: 0 | BF59: 0 | BG59: 0 | BH59: 0 | BI59: Member 30% | BJ59: 0 | BK59: 0 | BL59: 0 | BM59: 0 | BN59: Tiger 2+1 | BO59: 0 | BP59: 0 | BQ59: 0 | BR59: 0 | BS59: Heineken 3+1 | BT59: 0 | BU59: 0 | BV59: 0 | BW59: 0 | BX59: Opening Promo 60% | BY59: 0 | BZ59: 0 | CA59: 0 | CB59: 0 | CC59: 2 Bkt Tiger Rm 88 | CD59: 0 | CE59: 0 | CF59: 0 | CG59: 0 | CH59: 0 | CI59: 0 | CJ59: 0 | CK59: 0 | CL59: 0 | CM59: 0 | CN59: 0 | CO59: 0 | CP59: 0 | CQ59: 0 | CR59: 0 | CS59: 0 | CT59: 242 | CU59: 0 | CV59: 0 | CW59: 0 | CX59: 4 | CY59: 0 | CZ59: 0 | DA59: 0 | DB59: 60 | DC59: 24 | DD59: 0 | DE59: 0 | DF59: 0 | DG59: 0 | DH59: 0 | DI59: 0 | DJ59: 8 | DK59: 0 | DL59: 0 | DM59: 0 | DN59: 44 | DO59: 0 | DP59: 0 | DQ59: 0 | DR59: 12 | DS59: 0 | DT59: 0 | DU59: 0 | DV59: 0 | DW59: 0 | DX59: 0 | DY59: 0 | DZ59: 0 | EA59: 0 | EB59: 0 | EC59: 0 | ED59: 0 | EE59: 0 | EF59: 0 | EG59: 0 | EH59: 0 | EI59: 0 | EJ59: 0 | EK59: 0 | EL59: 0 | EM59: 0 | EN59: 0 | EO59: 0 | EP59: 0 | EQ59: 0 | ER59: 0 | ES59: 0 | ET59: 0 | EU59: 0 | EV59: 0 | EW59: 0 | EX59: 0 | EY59: 0 | EZ59: 0 | FA59: 0 | FB59: 0 | FC59: 0
B60: 2014-07-28 | C60: 28 July 2014 Monday | D60: FALSE | E60: FALSE | F60: 5215.1 | G60: 1438.4 | H60: 7763.8 | I60: 4327.6 | J60: 38 | K60: 30 | L60: 41 | M60: 64 | N60: 22 | O60: 0 | P60: 0 | Q60: 0 | R60: 0 | S60: 0 | T60: 0 | U60: 0 | V60: 0 | W60: 0 | X60: 0 | Y60: 0 | Z60: 0 | AA60: 0 | AB60: 0 | AC60: 0 | AD60: 0 | AE60: 0 | AF60: 0 | AG60: 0 | AH60: 0 | AI60: 122 | AJ60: 3 | AK60: 127 | AL60: 1 | AM60: 0 | AN60: 0 | AO60: 300 | AP60: 6 | AQ60: 72 | AR60: 1 | AS60: 0 | AT60: K-Lunch | AU60: 117 | AV60: 0 | AW60: 0 | AX60: 0 | AY60: K-Dinner | AZ60: 0 | BA60: 0 | BB60: 77 | BC60: 0 | BD60: 4BP | BE60: 0 | BF60: 0 | BG60: 8 | BH60: 1 | BI60: Member 30% | BJ60: 0 | BK60: 0 | BL60: 0 | BM60: 0 | BN60: Tiger 2+1 | BO60: 0 | BP60: 0 | BQ60: 0 | BR60: 0 | BS60: Heineken 3+1 | BT60: 0 | BU60: 0 | BV60: 0 | BW60: 0 | BX60: 0 | BY60: 0 | BZ60: 0 | CA60: 0 | CB60: 0 | CC60: 0 | CD60: 0 | CE60: 0 | CF60: 0 | CG60: 0 | CH60: 0 | CI60: 0 | CJ60: 0 | CK60: 0 | CL60: 0 | CM60: 0 | CN60: 0 | CO60: 0 | CP60: 0 | CQ60: 0 | CR60: 0 | CS60: 0 | CT60: 268 | CU60: 0 | CV60: 0 | CW60: 0 | CX60: 2 | CY60: 0 | CZ60: 0 | DA60: 0 | DB60: 96 | DC60: 12 | DD60: 0 | DE60: 0 | DF60: 0 | DG60: 0 | DH60: 0 | DI60: 0 | DJ60: 0 | DK60: 0 | DL60: 0 | DM60: 0 | DN60: 20 | DO60: 0 | DP60: 0 | DQ60: 0 | DR60: 36 | DS60: 0 | DT60: 0 | DU60: 0 | DV60: 0 | DW60: 0 | DX60: 0 | DY60: 0 | DZ60: 0 | EA60: 0 | EB60: 0 | EC60: 0 | ED60: 0 | EE60: 0 | EF60: 0 | EG60: 0 | EH60: 0 | EI60: 0 | EJ60: 0 | EK60: 0 | EL60: 0 | EM60: 0 | EN60: 0 | EO60: 0 | EP60: 0 | EQ60: 0 | ER60: 0 | ES60: 0 | ET60: 0 | EU60: 0 | EV60: 0 | EW60: 0 | EX60: 0 | EY60: 0 | EZ60: 0 | FA60: 0 | FB60: 0 | FC60: 0
B61: 2014-07-29 | C61: 29 July 2014 Tuesday | D61: FALSE | E61: FALSE | F61: 4823.7 | G61: 1563.5 | H61: 5708.3 | I61: 1143.2 | J61: 38 | K61: 33 | L61: 38 | M61: 45 | N61: 13 | O61: 0 | P61: 0 | Q61: 0 | R61: 0 | S61: 0 | T61: 0 | U61: 0 | V61: 0 | W61: 0 | X61: 0 | Y61: 0 | Z61: 0 | AA61: 0 | AB61: 0 | AC61: 0 | AD61: 0 | AE61: 0 | AF61: 0 | AG61: 0 | AH61: 0 | AI61: 131 | AJ61: 1 | AK61: 119 | AL61: 0 | AM61: 0 | AN61: 0 | AO61: 181 | AP61: 2 | AQ61: 53 | AR61: 2 | AS61: 24 | AT61: K-Lunch | AU61: 130 | AV61: 0 | AW61: 0 | AX61: 0 | AY61: K-Dinner | AZ61: 0 | BA61: 0 | BB61: 64 | BC61: 0 | BD61: 4BP | BE61: 0 | BF61: 0 | BG61: 2 | BH61: 1 | BI61: Member 30% | BJ61: 0 | BK61: 0 | BL61: 0 | BM61: 0 | BN61: Tiger 2+1 | BO61: 0 | BP61: 0 | BQ61: 0 | BR61: 0 | BS61: Heineken 3+1 | BT61: 0 | BU61: 0 | BV61: 0 | BW61: 0 | BX61: 0 | BY61: 0 | BZ61: 0 | CA61: 0 | CB61: 0 | CC61: 0 | CD61: 0 | CE61: 0 | CF61: 0 | CG61: 0 | CH61: 0 | CI61: 0 | CJ61: 0 | CK61: 0 | CL61: 0 | CM61: 0 | CN61: 0 | CO61: 0 | CP61: 0 | CQ61: 0 | CR61: 0 | CS61: 0 | CT61: 259 | CU61: 0 | CV61: 0 | CW61: 0 | CX61: 1 | CY61: 0 | CZ61: 0 | DA61: 0 | DB61: 24 | DC61: 12 | DD61: 0 | DE61: 0 | DF61: 0 | DG61: 0 | DH61: 0 | DI61: 0 | DJ61: 0 | DK61: 0 | DL61: 0 | DM61: 0 | DN61: 20 | DO61: 0 | DP61: 0 | DQ61: 0 | DR61: 48 | DS61: 0 | DT61: 0 | DU61: 0 | DV61: 0 | DW61: 0 | DX61: 0 | DY61: 0 | DZ61: 0 | EA61: 0 | EB61: 0 | EC61: 0 | ED61: 0 | EE61: 0 | EF61: 0 | EG61: 0 | EH61: 0 | EI61: 0 | EJ61: 0 | EK61: 0 | EL61: 0 | EM61: 0 | EN61: 0 | EO61: 0 | EP61: 0 | EQ61: 0 | ER61: 0 | ES61: 0 | ET61: 0 | EU61: 0 | EV61: 0 | EW61: 0 | EX61: 0 | EY61: 0 | EZ61: 0 | FA61: 0 | FB61: 0 | FC61: 0
B62: 2014-07-30 | C62: 30 July 2014 Wednesday | D62: FALSE | E62: FALSE | F62: 2695.4 | G62: 365.2 | H62: 4810.9 | I62: 2732 | J62: 38 | K62: 30 | L62: 37 | M62: 45 | N62: 18 | O62: 0 | P62: 0 | Q62: 0 | R62: 0 | S62: 0 | T62: 0 | U62: 0 | V62: 0 | W62: 0 | X62: 0 | Y62: 0 | Z62: 0 | AA62: 0 | AB62: 0 | AC62: 0 | AD62: 0 | AE62: 0 | AF62: 0 | AG62: 0 | AH62: 0 | AI62: 94 | AJ62: 0 | AK62: 85 | AL62: 0 | AM62: 0 | AN62: 59 | AO62: 190 | AP62: 8 | AQ62: 77 | AR62: 0 | AS62: 43 | AT62: K-Lunch | AU62: 83 | AV62: 0 | AW62: 0 | AX62: 0 | AY62: K-Dinner | AZ62: 0 | BA62: 0 | BB62: 64 | BC62: 0 | BD62: 4BP | BE62: 0 | BF62: 0 | BG62: 1 | BH62: 0 | BI62: Member 30% | BJ62: 0 | BK62: 0 | BL62: 0 | BM62: 0 | BN62: Tiger 2+1 | BO62: 0 | BP62: 0 | BQ62: 0 | BR62: 0 | BS62: Heineken 3+1 | BT62: 0 | BU62: 0 | BV62: 8 | BW62: 0 | BX62: 0 | BY62: 0 | BZ62: 0 | CA62: 0 | CB62: 0 | CC62: 0 | CD62: 0 | CE62: 0 | CF62: 0 | CG62: 0 | CH62: 0 | CI62: 0 | CJ62: 0 | CK62: 0 | CL62: 0 | CM62: 0 | CN62: 0 | CO62: 0 | CP62: 0 | CQ62: 0 | CR62: 0 | CS62: 0 | CT62: 184 | CU62: 0 | CV62: 0 | CW62: 0 | CX62: 1 | CY62: 0 | CZ62: 0 | DA62: 0 | DB62: 12 | DC62: 0 | DD62: 0 | DE62: 0 | DF62: 0 | DG62: 0 | DH62: 0 | DI62: 0 | DJ62: 1 | DK62: 0 | DL62: 0 | DM62: 0 | DN62: 156 | DO62: 0 | DP62: 0 | DQ62: 0 | DR62: 0 | DS62: 0 | DT62: 0 | DU62: 0 | DV62: 0 | DW62: 0 | DX62: 0 | DY62: 0 | DZ62: 0 | EA62: 0 | EB62: 0 | EC62: 0 | ED62: 0 | EE62: 0 | EF62: 0 | EG62: 0 | EH62: 0 | EI62: 0 | EJ62: 0 | EK62: 0 | EL62: 0 | EM62: 0 | EN62: 0 | EO62: 0 | EP62: 0 | EQ62: 0 | ER62: 0 | ES62: 0 | ET62: 0 | EU62: 0 | EV62: 0 | EW62: 0 | EX62: 0 | EY62: 0 | EZ62: 0 | FA62: 0 | FB62: 0 | FC62: 0
B63: 2014-07-31 | C63: 31 July 2014 Thursday | D63: FALSE | E63: FALSE | F63: 3488.8 | G63: 233.1 | H63: 4808.3 | I63: 3202.2 | J63: 38 | K63: 25 | L63: 33 | M63: 50 | N63: 14 | O63: 0 | P63: 0 | Q63: 0 | R63: 0 | S63: 0 | T63: 0 | U63: 0 | V63: 0 | W63: 0 | X63: 0 | Y63: 0 | Z63: 0 | AA63: 0 | AB63: 0 | AC63: 0 | AD63: 0 | AE63: 0 | AF63: 0 | AG63: 0 | AH63: 0 | AI63: 94 | AJ63: 0 | AK63: 102 | AL63: 2 | AM63: 0 | AN63: 50 | AO63: 217 | AP63: 4 | AQ63: 64 | AR63: 0 | AS63: 28 | AT63: K-Lunch | AU63: 91 | AV63: 0 | AW63: 0 | AX63: 0 | AY63: K-Dinner | AZ63: 0 | BA63: 0 | BB63: 81 | BC63: 0 | BD63: 4BP | BE63: 0 | BF63: 0 | BG63: 3 | BH63: 1 | BI63: Member 30% | BJ63: 0 | BK63: 0 | BL63: 0 | BM63: 0 | BN63: Tiger 2+1 | BO63: 0 | BP63: 0 | BQ63: 0 | BR63: 0 | BS63: Heineken 3+1 | BT63: 0 | BU63: 0 | BV63: 0 | BW63: 0 | BX63: Opening Promo 60% | BY63: 0 | BZ63: 0 | CA63: 0 | CB63: 0 | CC63: 2 Bkt Tiger Rm 88 | CD63: 0 | CE63: 0 | CF63: 0 | CG63: 0 | CH63: 0 | CI63: 0 | CJ63: 0 | CK63: 0 | CL63: 0 | CM63: 0 | CN63: 0 | CO63: 0 | CP63: 0 | CQ63: 0 | CR63: 0 | CS63: 0 | CT63: 240 | CU63: 0 | CV63: 1 | CW63: 0 | CX63: 1 | CY63: 0 | CZ63: 0 | DA63: 0 | DB63: 36 | DC63: 12 | DD63: 0 | DE63: 0 | DF63: 0 | DG63: 0 | DH63: 0 | DI63: 0 | DJ63: 2 | DK63: 0 | DL63: 0 | DM63: 0 | DN63: 28 | DO63: 0 | DP63: 0 | DQ63: 0 | DR63: 48 | DS63: 0 | DT63: 0 | DU63: 0 | DV63: 0 | DW63: 0 | DX63: 0 | DY63: 0 | DZ63: 0 | EA63: 0 | EB63: 0 | EC63: 0 | ED63: 0 | EE63: 0 | EF63: 0 | EG63: 0 | EH63: 0 | EI63: 0 | EJ63: 0 | EK63: 0 | EL63: 0 | EM63: 0 | EN63: 0 | EO63: 0 | EP63: 0 | EQ63: 0 | ER63: 0 | ES63: 0 | ET63: 0 | EU63: 0 | EV63: 0 | EW63: 0 | EX63: 0 | EY63: 0 | EZ63: 0 | FA63: 0 | FB63: 0 | FC63: 0

Sheet Report A
C3: MONTHLY SALES REPORTING BY OUTLET
B6: SUBJECT | C6: REPORT A : SALES PERFORMANCE FOR THE MONTH
B8: OUTLET | C8: =Data!$C$8 -> SBA
B10: MONTH / YEAR | C10: =Data!$C$10 -> July 2014
B12: MENU
B14: DATE | C14: DAY | D14: ROW | E14: ="SALES FOR "&IF(MATCH(MID($C$10,1,FIND(" ",$C$10,1)-1),Data!$D$14:$D$25,0)=1,"December "&MID($C$10,FIND(" ",$C$10,1)+1,4)-1,INDEX(Data!$D$14:$D$25,MATCH(MID($C$10,1,FIND(" ",$C$10,1)-1),Data!$D$14:$D$25,0)-1,1)&" "&MID($C$10,FIND(" ",$C$10,1)+1,4)) -> SALES FOR June 2014 | H14: ="SALES FOR "&C10 -> SALES FOR July 2014 | K14: ="SALES FOR "&MID(C10,1,FIND(" ",C10,1)-1)&" "&MID($C$10,FIND(" ",$C$10,1)+1,4)-1 -> SALES FOR July 2013 | N14: COMPARISON OF SALES | Q14: CHART : COMPARISON OF SALES PERFORMANCE
E15: =IF(MID(CELL("FILENAME",$A$1),FIND("[",CELL("FILENAME",$A$1))+8,2)="01",MID(CELL("FILENAME",$A$1),1,FIND("Y",CELL("FILENAME",$A$1))-1)&"YR"&MID(CELL("FILENAME",$A$1),FIND("[",CELL("FILENAME",$A$1))+4,4)-1&"\December\"&$C$8&"\",MID(CELL("FILENAME",$A$1),1,FIND("Y",CELL("FILENAME",$A$1))-1)&"YR"&MID(CELL("FILENAME",$A$1),FIND("[",CELL("FILENAME",$A$1))+4,4)&"\"&INDEX(Data!$D$14:$D$25,MATCH(MID($C$10,1,FIND(" ",$C$10,1)-1),Data!$D$14:$D$25,0)-1,1)&"\"&$C$8&"\") -> C:\Users\Lion\Desktop\Sales Report\ROOM OCCUPANCYR2014\June\SBA\ | K15: =MID(CELL("FILENAME",$A$1),1,FIND("R",CELL("FILENAME",$A$1),1))&MID($C$10,FIND(" ",$C$10,1)+1,4)-1&"\"&MID($C$10,1,FIND(" ",$C$10)-1)&"\"&C8&"\" -> C:\Users\Lion\Desktop\Sales R2013\July\SBA\
E16: =IF(MID(CELL("FILENAME",$A$1),FIND("[",CELL("FILENAME",$A$1))+8,2)="01",$C$8&MID(CELL("FILENAME",$A$1),FIND("[",CELL("FILENAME",$A$1))+4,4)-1&12&"Sales.xlsm",$C$8&MID(CELL("FILENAME",$A$1),FIND("[",CELL("FILENAME",$A$1))+4,4)&TEXT(MATCH(MID($C$10,1,FIND(" ",$C$10,1)-1),Data!$D$14:$D$25,0)-1,"00")&"Sales.xlsm") -> SBA201406Sales.xlsm | K16: =$C$8&MID($C$10,FIND(" ",$C$10,1)+1,4)-1&TEXT(MATCH(MID($C$10,1,FIND(" ",$C$10,1)-1),Data!$D$14:$D$25,0),"00")&"Sales.xlsm" -> SBA201307Sales.xlsm
E17: A.M. | F17: P.M. | G17: TOTAL | H17: A.M. | I17: P.M. | J17: TOTAL | K17: A.M. | L17: P.M. | M17: TOTAL | N17: LAST MONTH | O17: THIS MONTH | P17: LAST YEAR | Q17: SELECT TO VIEW
N18: =IF($N$20=TRUE,"A.M.",IF($O$20=TRUE,"P.M.","TOTAL")) -> TOTAL | O18: =$N$18 -> TOTAL | P18: =$N$18 -> TOTAL
E19: ( RM ) | F19: ( RM ) | G19: ( RM ) | H19: ( RM ) | I19: ( RM ) | J19: ( RM ) | K19: ( RM ) | L19: ( RM ) | M19: ( RM ) | N19: ( RM ) | O19: ( RM ) | P19: ( RM )
B20: SUMMARY FOR MONTH | N20: FALSE | O20: FALSE | P20: TRUE | Q20: LEGEND
B21: TOTAL SALES | E21: =SUM(E$32:E$62) -> 0 | F21: =SUM(F$32:F$62) -> 0 | G21: =SUM(G$32:G$62) -> 0 | H21: =SUM(H$32:H$62) -> 95376.8 | I21: =SUM(I$32:I$62) -> 233527 | J21: 328903.8 | K21: 0 | L21: 0 | M21: 0
B22: AVERAGE SALES | E22: =IFERROR(SUM(E$32:E$62)/COUNTIF($D$32:$D$62,">0"),"") -> 0 | F22: =IFERROR(SUM(F$32:F$62)/COUNTIF($D$32:$D$62,">0"),"") -> 0 | G22: =IFERROR(SUM(G$32:G$62)/COUNTIF($D$32:$D$62,">0"),"") -> 0 | H22: =IFERROR(SUM(H$32:H$62)/COUNTIF($D$32:$D$62,">0"),"") -> 3076.670968 | I22: 7533.129032 | J22: 10609.8 | K22: 0 | L22: 0 | M22: 0
B23: HIGHEST SALES | E23: =IFERROR(IF(LARGE(E$32:E$62,1)>0,LARGE(E$32:E$62,1),"NIL"),"NIL") -> NIL | F23: NIL | G23: NIL | H23: 6653.5 | I23: 13930.9 | J23: 18744.9 | K23: NIL | L23: NIL | M23: NIL
B24: LOWEST SALES | E24: =IFERROR(IF(LARGE(E$32:E$62,COUNTIF(E$32:E$62,">0"))<>E$23,LARGE(E$32:E$62,COUNTIF(E$32:E$62,">0")),"NIL"),"NIL") -> NIL | F24: NIL | G24: NIL | H24: 1183.3 | I24: 2927.2 | J24: 4110.5 | K24: NIL | L24: NIL | M24: NIL
B25: AVERAGE FOR | C25: MONDAY | H25: =IFERROR(SUMIF($C$32:$C$62,"Monday*",H$32:H$62)/COUNTIF($C$32:$C$62,"Monday*"),"") -> 3279.775 | I25: 7689.075 | J25: 10968.85
C26: TUESDAY | H26: =IFERROR(SUMIF($C$32:$C$62,"Tuesday*",H$32:H$62)/COUNTIF($C$32:$C$62,"Tuesday*"),"") -> 3357.44 | I26: 5363.18 | J26: 8720.62
C27: WEDNESDAY | H27: =IFERROR(SUMIF($C$32:$C$62,"Wednesday*",H$32:H$62)/COUNTIF($C$32:$C$62,"Wednesday*"),"") -> 1964.28 | I27: 5217.82 | J27: 7182.1
C28: THURSDAY | H28: =IFERROR(SUMIF($C$32:$C$62,"Thursday*",H$32:H$62)/COUNTIF($C$32:$C$62,"Thursday*"),"") -> 2204.44 | I28: 6167.76 | J28: 8372.2
C29: FRIDAY | H29: =IFERROR(SUMIF($C$32:$C$62,"Friday*",H$32:H$62)/COUNTIF($C$32:$C$62,"Friday*"),"") -> 3190.7 | I29: 11606.975 | J29: 14797.675
C30: SATURDAY | H30: =IFERROR(SUMIF($C$32:$C$62,"Saturday*",H$32:H$62)/COUNTIF($C$32:$C$62,"Saturday*"),"") -> 3674.25 | I30: 11903.025 | J30: 15577.275
C31: SUNDAY | D31: =COUNTIF(D32:D62,">0") -> 31 | H31: =IFERROR(SUMIF($C$32:$C$62,"Sunday*",H$32:H$62)/COUNTIF($C$32:$C$62,"Sunday*"),"") -> 4291.775 | I31: 6246.725 | J31: 10538.5
B32: =IFERROR(DATE(MID(CELL("FILENAME",$A$1),FIND("[",CELL("FILENAME",$A$1))+4,4),MID(CELL("FILENAME",$A$1),FIND("[",CELL("FILENAME",$A$1))+8,2),1),"") -> 2014-07-01 | C32: =IFERROR(IF($B32="","",IF(AND($B32<>"",INDEX(Data!$D$33:$D$82,MATCH($B32,Data!$B$33:$B$82,0),1)=TRUE),TEXT($B32,"DDDD")&" +",IF(AND($B32<>"",INDEX(Data!$E$33:$E$82,MATCH($B32,Data!$B$33:$B$82,0),1)=TRUE),TEXT($B32,"DDDD")&" ++",TEXT($B32,"DDDD")))),TEXT($B32,"DDDD")) -> Tuesday | D32: =IFERROR(MATCH($B32,Data!$B$33:$B$82,0),"") -> 1 | G32: =IFERROR($E32+$F32,"") -> 0 | H32: =IFERROR(INDEX(Data!$F$33:$F$82,$D32,1)+INDEX(Data!$G$33:$G$82,$D32,1),"") -> 1620.3 | I32: =IFERROR(INDEX(Data!$H$33:$H$82,$D32,1)+INDEX(Data!$I$33:$I$82,$D32,1),"") -> 6910.8 | J32: =IFERROR($H32+$I32,"") -> 8531.1 | M32: =IFERROR($K32+$L32,"") -> 0 | N32: =IFERROR(IF(N$18="A.M.",$E32,IF(N$18="P.M.",$F32,$G32)),"") -> 0 | O32: =IFERROR(IF(O$18="A.M.",$H32,IF(O$18="P.M.",$I32,$J32)),"") -> 8531.1 | P32: =IFERROR(IF(P$18="A.M.",$K32,IF(P$18="P.M.",$L32,$M32)),"") -> 0
B33: =IFERROR(IF(AND(MONTH($B32+1)=MONTH($B$32),YEAR($B32+1)=YEAR($B$32)),$B32+1,""),"") -> 2014-07-02 | C33: =IFERROR(IF($B33="","",IF(AND($B33<>"",INDEX(Data!$D$33:$D$82,MATCH($B33,Data!$B$33:$B$82,0),1)=TRUE),TEXT($B33,"DDDD")&" +",IF(AND($B33<>"",INDEX(Data!$E$33:$E$82,MATCH($B33,Data!$B$33:$B$82,0),1)=TRUE),TEXT($B33,"DDDD")&" ++",TEXT($B33,"DDDD")))),TEXT($B33,"DDDD")) -> Wednesday | D33: =IFERROR(MATCH($B33,Data!$B$33:$B$82,0),"") -> 2 | G33: 0 | H33: =IFERROR(INDEX(Data!$F$33:$F$82,$D33,1)+INDEX(Data!$G$33:$G$82,$D33,1),"") -> 1456.3 | I33: =IFERROR(INDEX(Data!$H$33:$H$82,$D33,1)+INDEX(Data!$I$33:$I$82,$D33,1),"") -> 5675.1 | J33: =IFERROR($H33+$I33,"") -> 7131.4 | M33: =IFERROR($K33+$L33,"") -> 0 | N33: =IFERROR(IF(N$18="A.M.",$E33,IF(N$18="P.M.",$F33,$G33)),"") -> 0 | O33: =IFERROR(IF(O$18="A.M.",$H33,IF(O$18="P.M.",$I33,$J33)),"") -> 7131.4 | P33: =IFERROR(IF(P$18="A.M.",$K33,IF(P$18="P.M.",$L33,$M33)),"") -> 0
B34: 2014-07-03 | C34: =IFERROR(IF($B34="","",IF(AND($B34<>"",INDEX(Data!$D$33:$D$82,MATCH($B34,Data!$B$33:$B$82,0),1)=TRUE),TEXT($B34,"DDDD")&" +",IF(AND($B34<>"",INDEX(Data!$E$33:$E$82,MATCH($B34,Data!$B$33:$B$82,0),1)=TRUE),TEXT($B34,"DDDD")&" ++",TEXT($B34,"DDDD")))),TEXT($B34,"DDDD")) -> Thursday | D34: =IFERROR(MATCH($B34,Data!$B$33:$B$82,0),"") -> 3 | G34: 0 | H34: =IFERROR(INDEX(Data!$F$33:$F$82,$D34,1)+INDEX(Data!$G$33:$G$82,$D34,1),"") -> 2145.5 | I34: =IFERROR(INDEX(Data!$H$33:$H$82,$D34,1)+INDEX(Data!$I$33:$I$82,$D34,1),"") -> 7832 | J34: 9977.5 | M34: 0 | N34: 0 | O34: 9977.5 | P34: =IFERROR(IF(P$18="A.M.",$K34,IF(P$18="P.M.",$L34,$M34)),"") -> 0
B35: 2014-07-04 | C35: =IFERROR(IF($B35="","",IF(AND($B35<>"",INDEX(Data!$D$33:$D$82,MATCH($B35,Data!$B$33:$B$82,0),1)=TRUE),TEXT($B35,"DDDD")&" +",IF(AND($B35<>"",INDEX(Data!$E$33:$E$82,MATCH($B35,Data!$B$33:$B$82,0),1)=TRUE),TEXT($B35,"DDDD")&" ++",TEXT($B35,"DDDD")))),TEXT($B35,"DDDD")) -> Friday | D35: =IFERROR(MATCH($B35,Data!$B$33:$B$82,0),"") -> 4 | G35: 0 | H35: =IFERROR(INDEX(Data!$F$33:$F$82,$D35,1)+INDEX(Data!$G$33:$G$82,$D35,1),"") -> 2045.3 | I35: =IFERROR(INDEX(Data!$H$33:$H$82,$D35,1)+INDEX(Data!$I$33:$I$82,$D35,1),"") -> 13930.9 | J35: 15976.2 | M35: 0 | N35: 0 | O35: 15976.2 | P35: 0
B36: 2014-07-05 | C36: =IFERROR(IF($B36="","",IF(AND($B36<>"",INDEX(Data!$D$33:$D$82,MATCH($B36,Data!$B$33:$B$82,0),1)=TRUE),TEXT($B36,"DDDD")&" +",IF(AND($B36<>"",INDEX(Data!$E$33:$E$82,MATCH($B36,Data!$B$33:$B$82,0),1)=TRUE),TEXT($B36,"DDDD")&" ++",TEXT($B36,"DDDD")))),TEXT($B36,"DDDD")) -> Saturday | D36: =IFERROR(MATCH($B36,Data!$B$33:$B$82,0),"") -> 5 | G36: 0 | H36: =IFERROR(INDEX(Data!$F$33:$F$82,$D36,1)+INDEX(Data!$G$33:$G$82,$D36,1),"") -> 3342.9 | I36: =IFERROR(INDEX(Data!$H$33:$H$82,$D36,1)+INDEX(Data!$I$33:$I$82,$D36,1),"") -> 13766.3 | J36: 17109.2 | M36: 0 | N36: 0 | O36: 17109.2 | P36: 0
B37: 2014-07-06 | C37: =IFERROR(IF($B37="","",IF(AND($B37<>"",INDEX(Data!$D$33:$D$82,MATCH($B37,Data!$B$33:$B$82,0),1)=TRUE),TEXT($B37,"DDDD")&" +",IF(AND($B37<>"",INDEX(Data!$E$33:$E$82,MATCH($B37,Data!$B$33:$B$82,0),1)=TRUE),TEXT($B37,"DDDD")&" ++",TEXT($B37,"DDDD")))),TEXT($B37,"DDDD")) -> Sunday | D37: =IFERROR(MATCH($B37,Data!$B$33:$B$82,0),"") -> 6 | G37: 0 | H37: =IFERROR(INDEX(Data!$F$33:$F$82,$D37,1)+INDEX(Data!$G$33:$G$82,$D37,1),"") -> 4567 | I37: =IFERROR(INDEX(Data!$H$33:$H$82,$D37,1)+INDEX(Data!$I$33:$I$82,$D37,1),"") -> 5725.8 | J37: 10292.8 | M37: 0 | N37: 0 | O37: 10292.8 | P37: 0
B38: 2014-07-07 | C38: =IFERROR(IF($B38="","",IF(AND($B38<>"",INDEX(Data!$D$33:$D$82,MATCH($B38,Data!$B$33:$B$82,0),1)=TRUE),TEXT($B38,"DDDD")&" +",IF(AND($B38<>"",INDEX(Data!$E$33:$E$82,MATCH($B38,Data!$B$33:$B$82,0),1)=TRUE),TEXT($B38,"DDDD")&" ++",TEXT($B38,"DDDD")))),TEXT($B38,"DDDD")) -> Monday | D38: =IFERROR(MATCH($B38,Data!$B$33:$B$82,0),"") -> 7 | G38: 0 | H38: =IFERROR(INDEX(Data!$F$33:$F$82,$D38,1)+INDEX(Data!$G$33:$G$82,$D38,1),"") -> 2162.1 | I38: =IFERROR(INDEX(Data!$H$33:$H$82,$D38,1)+INDEX(Data!$I$33:$I$82,$D38,1),"") -> 4654.6 | J38: 6816.7 | M38: 0 | N38: 0 | O38: 6816.7 | P38: 0
B39: 2014-07-08 | C39: =IFERROR(IF($B39="","",IF(AND($B39<>"",INDEX(Data!$D$33:$D$82,MATCH($B39,Data!$B$33:$B$82,0),1)=TRUE),TEXT($B39,"DDDD")&" +",IF(AND($B39<>"",INDEX(Data!$E$33:$E$82,MATCH($B39,Data!$B$33:$B$82,0),1)=TRUE),TEXT($B39,"DDDD")&" ++",TEXT($B39,"DDDD")))),TEXT($B39,"DDDD")) -> Tuesday | D39: =IFERROR(MATCH($B39,Data!$B$33:$B$82,0),"") -> 8 | G39: 0 | H39: =IFERROR(INDEX(Data!$F$33:$F$82,$D39,1)+INDEX(Data!$G$33:$G$82,$D39,1),"") -> 1584.3 | I39: =IFERROR(INDEX(Data!$H$33:$H$82,$D39,1)+INDEX(Data!$I$33:$I$82,$D39,1),"") -> 3546.9 | J39: 5131.2 | M39: 0 | N39: 0 | O39: 5131.2 | P39: 0
B40: 2014-07-09 | C40: =IFERROR(IF($B40="","",IF(AND($B40<>"",INDEX(Data!$D$33:$D$82,MATCH($B40,Data!$B$33:$B$82,0),1)=TRUE),TEXT($B40,"DDDD")&" +",IF(AND($B40<>"",INDEX(Data!$E$33:$E$82,MATCH($B40,Data!$B$33:$B$82,0),1)=TRUE),TEXT($B40,"DDDD")&" ++",TEXT($B40,"DDDD")))),TEXT($B40,"DDDD")) -> Wednesday | D40: =IFERROR(MATCH($B40,Data!$B$33:$B$82,0),"") -> 9 | G40: 0 | H40: =IFERROR(INDEX(Data!$F$33:$F$82,$D40,1)+INDEX(Data!$G$33:$G$82,$D40,1),"") -> 1606.5 | I40: =IFERROR(INDEX(Data!$H$33:$H$82,$D40,1)+INDEX(Data!$I$33:$I$82,$D40,1),"") -> 4676.8 | J40: 6283.3 | M40: 0 | N40: 0 | O40: 6283.3 | P40: 0
B41: 2014-07-10 | C41: =IFERROR(IF($B41="","",IF(AND($B41<>"",INDEX(Data!$D$33:$D$82,MATCH($B41,Data!$B$33:$B$82,0),1)=TRUE),TEXT($B41,"DDDD")&" +",IF(AND($B41<>"",INDEX(Data!$E$33:$E$82,MATCH($B41,Data!$B$33:$B$82,0),1)=TRUE),TEXT($B41,"DDDD")&" ++",TEXT($B41,"DDDD")))),TEXT($B41,"DDDD")) -> Thursday | D41: =IFERROR(MATCH($B41,Data!$B$33:$B$82,0),"") -> 10 | G41: 0 | H41: =IFERROR(INDEX(Data!$F$33:$F$82,$D41,1)+INDEX(Data!$G$33:$G$82,$D41,1),"") -> 1567.8 | I41: =IFERROR(INDEX(Data!$H$33:$H$82,$D41,1)+INDEX(Data!$I$33:$I$82,$D41,1),"") -> 3460 | J41: 5027.8 | M41: 0 | N41: 0 | O41: 5027.8 | P41: 0
B42: 2014-07-11 | C42: =IFERROR(IF($B42="","",IF(AND($B42<>"",INDEX(Data!$D$33:$D$82,MATCH($B42,Data!$B$33:$B$82,0),1)=TRUE),TEXT($B42,"DDDD")&" +",IF(AND($B42<>"",INDEX(Data!$E$33:$E$82,MATCH($B42,Data!$B$33:$B$82,0),1)=TRUE),TEXT($B42,"DDDD")&" ++",TEXT($B42,"DDDD")))),TEXT($B42,"DDDD")) -> Friday | D42: =IFERROR(MATCH($B42,Data!$B$33:$B$82,0),"") -> 11 | G42: 0 | H42: =IFERROR(INDEX(Data!$F$33:$F$82,$D42,1)+INDEX(Data!$G$33:$G$82,$D42,1),"") -> 3041 | I42: =IFERROR(INDEX(Data!$H$33:$H$82,$D42,1)+INDEX(Data!$I$33:$I$82,$D42,1),"") -> 10573.2 | J42: 13614.2 | M42: 0 | N42: 0 | O42: 13614.2 | P42: 0
B43: 2014-07-12 | C43: =IFERROR(IF($B43="","",IF(AND($B43<>"",INDEX(Data!$D$33:$D$82,MATCH($B43,Data!$B$33:$B$82,0),1)=TRUE),TEXT($B43,"DDDD")&" +",IF(AND($B43<>"",INDEX(Data!$E$33:$E$82,MATCH($B43,Data!$B$33:$B$82,0),1)=TRUE),TEXT($B43,"DDDD")&" ++",TEXT($B43,"DDDD")))),TEXT($B43,"DDDD")) -> Saturday | D43: =IFERROR(MATCH($B43,Data!$B$33:$B$82,0),"") -> 12 | G43: 0 | H43: =IFERROR(INDEX(Data!$F$33:$F$82,$D43,1)+INDEX(Data!$G$33:$G$82,$D43,1),"") -> 3796.8 | I43: =IFERROR(INDEX(Data!$H$33:$H$82,$D43,1)+INDEX(Data!$I$33:$I$82,$D43,1),"") -> 9803.8 | J43: 13600.6 | M43: 0 | N43: 0 | O43: 13600.6 | P43: 0
B44: 2014-07-13 | C44: =IFERROR(IF($B44="","",IF(AND($B44<>"",INDEX(Data!$D$33:$D$82,MATCH($B44,Data!$B$33:$B$82,0),1)=TRUE),TEXT($B44,"DDDD")&" +",IF(AND($B44<>"",INDEX(Data!$E$33:$E$82,MATCH($B44,Data!$B$33:$B$82,0),1)=TRUE),TEXT($B44,"DDDD")&" ++",TEXT($B44,"DDDD")))),TEXT($B44,"DDDD")) -> Sunday | D44: =IFERROR(MATCH($B44,Data!$B$33:$B$82,0),"") -> 13 | G44: 0 | H44: =IFERROR(INDEX(Data!$F$33:$F$82,$D44,1)+INDEX(Data!$G$33:$G$82,$D44,1),"") -> 3407.6 | I44: =IFERROR(INDEX(Data!$H$33:$H$82,$D44,1)+INDEX(Data!$I$33:$I$82,$D44,1),"") -> 3988.1 | J44: 7395.7 | M44: 0 | N44: 0 | O44: 7395.7 | P44: 0
B45: 2014-07-14 | C45: =IFERROR(IF($B45="","",IF(AND($B45<>"",INDEX(Data!$D$33:$D$82,MATCH($B45,Data!$B$33:$B$82,0),1)=TRUE),TEXT($B45,"DDDD")&" +",IF(AND($B45<>"",INDEX(Data!$E$33:$E$82,MATCH($B45,Data!$B$33:$B$82,0),1)=TRUE),TEXT($B45,"DDDD")&" ++",TEXT($B45,"DDDD")))),TEXT($B45,"DDDD")) -> Monday | D45: =IFERROR(MATCH($B45,Data!$B$33:$B$82,0),"") -> 14 | G45: 0 | H45: =IFERROR(INDEX(Data!$F$33:$F$82,$D45,1)+INDEX(Data!$G$33:$G$82,$D45,1),"") -> 3120.2 | I45: =IFERROR(INDEX(Data!$H$33:$H$82,$D45,1)+INDEX(Data!$I$33:$I$82,$D45,1),"") -> 11083.1 | J45: 14203.3 | M45: 0 | N45: 0 | O45: 14203.3 | P45: 0
B46: 2014-07-15 | C46: =IFERROR(IF($B46="","",IF(AND($B46<>"",INDEX(Data!$D$33:$D$82,MATCH($B46,Data!$B$33:$B$82,0),1)=TRUE),TEXT($B46,"DDDD")&" +",IF(AND($B46<>"",INDEX(Data!$E$33:$E$82,MATCH($B46,Data!$B$33:$B$82,0),1)=TRUE),TEXT($B46,"DDDD")&" ++",TEXT($B46,"DDDD")))),TEXT($B46,"DDDD")) -> Tuesday | D46: =IFERROR(MATCH($B46,Data!$B$33:$B$82,0),"") -> 15 | G46: 0 | H46: =IFERROR(INDEX(Data!$F$33:$F$82,$D46,1)+INDEX(Data!$G$33:$G$82,$D46,1),"") -> 5357.2 | I46: =IFERROR(INDEX(Data!$H$33:$H$82,$D46,1)+INDEX(Data!$I$33:$I$82,$D46,1),"") -> 4204.8 | J46: 9562 | M46: 0 | N46: 0 | O46: 9562 | P46: 0
B47: 2014-07-16 | C47: =IFERROR(IF($B47="","",IF(AND($B47<>"",INDEX(Data!$D$33:$D$82,MATCH($B47,Data!$B$33:$B$82,0),1)=TRUE),TEXT($B47,"DDDD")&" +",IF(AND($B47<>"",INDEX(Data!$E$33:$E$82,MATCH($B47,Data!$B$33:$B$82,0),1)=TRUE),TEXT($B47,"DDDD")&" ++",TEXT($B47,"DDDD")))),TEXT($B47,"DDDD")) -> Wednesday | D47: =IFERROR(MATCH($B47,Data!$B$33:$B$82,0),"") -> 16 | G47: 0 | H47: =IFERROR(INDEX(Data!$F$33:$F$82,$D47,1)+INDEX(Data!$G$33:$G$82,$D47,1),"") -> 1704.1 | I47: =IFERROR(INDEX(Data!$H$33:$H$82,$D47,1)+INDEX(Data!$I$33:$I$82,$D47,1),"") -> 5042.1 | J47: 6746.2 | M47: 0 | N47: 0 | O47: 6746.2 | P47: 0
B48: 2014-07-17 | C48: =IFERROR(IF($B48="","",IF(AND($B48<>"",INDEX(Data!$D$33:$D$82,MATCH($B48,Data!$B$33:$B$82,0),1)=TRUE),TEXT($B48,"DDDD")&" +",IF(AND($B48<>"",INDEX(Data!$E$33:$E$82,MATCH($B48,Data!$B$33:$B$82,0),1)=TRUE),TEXT($B48,"DDDD")&" ++",TEXT($B48,"DDDD")))),TEXT($B48,"DDDD")) -> Thursday | D48: =IFERROR(MATCH($B48,Data!$B$33:$B$82,0),"") -> 17 | G48: 0 | H48: =IFERROR(INDEX(Data!$F$33:$F$82,$D48,1)+INDEX(Data!$G$33:$G$82,$D48,1),"") -> 1429.4 | I48: =IFERROR(INDEX(Data!$H$33:$H$82,$D48,1)+INDEX(Data!$I$33:$I$82,$D48,1),"") -> 4622.3 | J48: 6051.7 | M48: 0 | N48: 0 | O48: 6051.7 | P48: 0
B49: 2014-07-18 | C49: =IFERROR(IF($B49="","",IF(AND($B49<>"",INDEX(Data!$D$33:$D$82,MATCH($B49,Data!$B$33:$B$82,0),1)=TRUE),TEXT($B49,"DDDD")&" +",IF(AND($B49<>"",INDEX(Data!$E$33:$E$82,MATCH($B49,Data!$B$33:$B$82,0),1)=TRUE),TEXT($B49,"DDDD")&" ++",TEXT($B49,"DDDD")))),TEXT($B49,"DDDD")) -> Friday | D49: =IFERROR(MATCH($B49,Data!$B$33:$B$82,0),"") -> 18 | G49: 0 | H49: =IFERROR(INDEX(Data!$F$33:$F$82,$D49,1)+INDEX(Data!$G$33:$G$82,$D49,1),"") -> 2504.6 | I49: =IFERROR(INDEX(Data!$H$33:$H$82,$D49,1)+INDEX(Data!$I$33:$I$82,$D49,1),"") -> 9042.2 | J49: 11546.8 | M49: 0 | N49: 0 | O49: 11546.8 | P49: 0
B50: 2014-07-19 | C50: =IFERROR(IF($B50="","",IF(AND($B50<>"",INDEX(Data!$D$33:$D$82,MATCH($B50,Data!$B$33:$B$82,0),1)=TRUE),TEXT($B50,"DDDD")&" +",IF(AND($B50<>"",INDEX(Data!$E$33:$E$82,MATCH($B50,Data!$B$33:$B$82,0),1)=TRUE),TEXT($B50,"DDDD")&" ++",TEXT($B50,"DDDD")))),TEXT($B50,"DDDD")) -> Saturday | D50: =IFERROR(MATCH($B50,Data!$B$33:$B$82,0),"") -> 19 | G50: 0 | H50: =IFERROR(INDEX(Data!$F$33:$F$82,$D50,1)+INDEX(Data!$G$33:$G$82,$D50,1),"") -> 3765.6 | I50: =IFERROR(INDEX(Data!$H$33:$H$82,$D50,1)+INDEX(Data!$I$33:$I$82,$D50,1),"") -> 11852.6 | J50: 15618.2 | M50: 0 | N50: 0 | O50: 15618.2 | P50: 0
B51: 2014-07-20 | C51: =IFERROR(IF($B51="","",IF(AND($B51<>"",INDEX(Data!$D$33:$D$82,MATCH($B51,Data!$B$33:$B$82,0),1)=TRUE),TEXT($B51,"DDDD")&" +",IF(AND($B51<>"",INDEX(Data!$E$33:$E$82,MATCH($B51,Data!$B$33:$B$82,0),1)=TRUE),TEXT($B51,"DDDD")&" ++",TEXT($B51,"DDDD")))),TEXT($B51,"DDDD")) -> Sunday | D51: =IFERROR(MATCH($B51,Data!$B$33:$B$82,0),"") -> 20 | G51: 0 | H51: =IFERROR(INDEX(Data!$F$33:$F$82,$D51,1)+INDEX(Data!$G$33:$G$82,$D51,1),"") -> 4166.4 | I51: =IFERROR(INDEX(Data!$H$33:$H$82,$D51,1)+INDEX(Data!$I$33:$I$82,$D51,1),"") -> 3798.3 | J51: 7964.7 | M51: 0 | N51: 0 | O51: 7964.7 | P51: 0
B52: 2014-07-21 | C52: =IFERROR(IF($B52="","",IF(AND($B52<>"",INDEX(Data!$D$33:$D$82,MATCH($B52,Data!$B$33:$B$82,0),1)=TRUE),TEXT($B52,"DDDD")&" +",IF(AND($B52<>"",INDEX(Data!$E$33:$E$82,MATCH($B52,Data!$B$33:$B$82,0),1)=TRUE),TEXT($B52,"DDDD")&" ++",TEXT($B52,"DDDD")))),TEXT($B52,"DDDD")) -> Monday | D52: =IFERROR(MATCH($B52,Data!$B$33:$B$82,0),"") -> 21 | G52: 0 | H52: =IFERROR(INDEX(Data!$F$33:$F$82,$D52,1)+INDEX(Data!$G$33:$G$82,$D52,1),"") -> 1183.3 | I52: =IFERROR(INDEX(Data!$H$33:$H$82,$D52,1)+INDEX(Data!$I$33:$I$82,$D52,1),"") -> 2927.2 | J52: 4110.5 | M52: 0 | N52: 0 | O52: 4110.5 | P52: 0
B53: 2014-07-22 | C53: =IFERROR(IF($B53="","",IF(AND($B53<>"",INDEX(Data!$D$33:$D$82,MATCH($B53,Data!$B$33:$B$82,0),1)=TRUE),TEXT($B53,"DDDD")&" +",IF(AND($B53<>"",INDEX(Data!$E$33:$E$82,MATCH($B53,Data!$B$33:$B$82,0),1)=TRUE),TEXT($B53,"DDDD")&" ++",TEXT($B53,"DDDD")))),TEXT($B53,"DDDD")) -> Tuesday | D53: =IFERROR(MATCH($B53,Data!$B$33:$B$82,0),"") -> 22 | G53: 0 | H53: =IFERROR(INDEX(Data!$F$33:$F$82,$D53,1)+INDEX(Data!$G$33:$G$82,$D53,1),"") -> 1838.2 | I53: =IFERROR(INDEX(Data!$H$33:$H$82,$D53,1)+INDEX(Data!$I$33:$I$82,$D53,1),"") -> 5301.9 | J53: 7140.1 | M53: 0 | N53: 0 | O53: 7140.1 | P53: 0
B54: 2014-07-23 | C54: =IFERROR(IF($B54="","",IF(AND($B54<>"",INDEX(Data!$D$33:$D$82,MATCH($B54,Data!$B$33:$B$82,0),1)=TRUE),TEXT($B54,"DDDD")&" +",IF(AND($B54<>"",INDEX(Data!$E$33:$E$82,MATCH($B54,Data!$B$33:$B$82,0),1)=TRUE),TEXT($B54,"DDDD")&" ++",TEXT($B54,"DDDD")))),TEXT($B54,"DDDD")) -> Wednesday | D54: =IFERROR(MATCH($B54,Data!$B$33:$B$82,0),"") -> 23 | G54: 0 | H54: =IFERROR(INDEX(Data!$F$33:$F$82,$D54,1)+INDEX(Data!$G$33:$G$82,$D54,1),"") -> 1993.9 | I54: =IFERROR(INDEX(Data!$H$33:$H$82,$D54,1)+INDEX(Data!$I$33:$I$82,$D54,1),"") -> 3152.2 | J54: 5146.1 | M54: 0 | N54: 0 | O54: 5146.1 | P54: 0
B55: 2014-07-24 | C55: =IFERROR(IF($B55="","",IF(AND($B55<>"",INDEX(Data!$D$33:$D$82,MATCH($B55,Data!$B$33:$B$82,0),1)=TRUE),TEXT($B55,"DDDD")&" +",IF(AND($B55<>"",INDEX(Data!$E$33:$E$82,MATCH($B55,Data!$B$33:$B$82,0),1)=TRUE),TEXT($B55,"DDDD")&" ++",TEXT($B55,"DDDD")))),TEXT($B55,"DDDD")) -> Thursday | D55: =IFERROR(MATCH($B55,Data!$B$33:$B$82,0),"") -> 24 | G55: 0 | H55: =IFERROR(INDEX(Data!$F$33:$F$82,$D55,1)+INDEX(Data!$G$33:$G$82,$D55,1),"") -> 2157.6 | I55: =IFERROR(INDEX(Data!$H$33:$H$82,$D55,1)+INDEX(Data!$I$33:$I$82,$D55,1),"") -> 6914 | J55: 9071.6 | M55: 0 | N55: 0 | O55: 9071.6 | P55: 0
B56: 2014-07-25 | C56: =IFERROR(IF($B56="","",IF(AND($B56<>"",INDEX(Data!$D$33:$D$82,MATCH($B56,Data!$B$33:$B$82,0),1)=TRUE),TEXT($B56,"DDDD")&" +",IF(AND($B56<>"",INDEX(Data!$E$33:$E$82,MATCH($B56,Data!$B$33:$B$82,0),1)=TRUE),TEXT($B56,"DDDD")&" ++",TEXT($B56,"DDDD")))),TEXT($B56,"DDDD")) -> Friday | D56: =IFERROR(MATCH($B56,Data!$B$33:$B$82,0),"") -> 25 | G56: 0 | H56: =IFERROR(INDEX(Data!$F$33:$F$82,$D56,1)+INDEX(Data!$G$33:$G$82,$D56,1),"") -> 5171.9 | I56: =IFERROR(INDEX(Data!$H$33:$H$82,$D56,1)+INDEX(Data!$I$33:$I$82,$D56,1),"") -> 12881.6 | J56: 18053.5 | M56: 0 | N56: 0 | O56: 18053.5 | P56: 0
B57: 2014-07-26 | C57: =IFERROR(IF($B57="","",IF(AND($B57<>"",INDEX(Data!$D$33:$D$82,MATCH($B57,Data!$B$33:$B$82,0),1)=TRUE),TEXT($B57,"DDDD")&" +",IF(AND($B57<>"",INDEX(Data!$E$33:$E$82,MATCH($B57,Data!$B$33:$B$82,0),1)=TRUE),TEXT($B57,"DDDD")&" ++",TEXT($B57,"DDDD")))),TEXT($B57,"DDDD")) -> Saturday | D57: =IFERROR(MATCH($B57,Data!$B$33:$B$82,0),"") -> 26 | G57: 0 | H57: =IFERROR(INDEX(Data!$F$33:$F$82,$D57,1)+INDEX(Data!$G$33:$G$82,$D57,1),"") -> 3791.7 | I57: =IFERROR(INDEX(Data!$H$33:$H$82,$D57,1)+INDEX(Data!$I$33:$I$82,$D57,1),"") -> 12189.4 | J57: 15981.1 | M57: 0 | N57: 0 | O57: 15981.1 | P57: 0
B58: 2014-07-27 | C58: =IFERROR(IF($B58="","",IF(AND($B58<>"",INDEX(Data!$D$33:$D$82,MATCH($B58,Data!$B$33:$B$82,0),1)=TRUE),TEXT($B58,"DDDD")&" +",IF(AND($B58<>"",INDEX(Data!$E$33:$E$82,MATCH($B58,Data!$B$33:$B$82,0),1)=TRUE),TEXT($B58,"DDDD")&" ++",TEXT($B58,"DDDD")))),TEXT($B58,"DDDD")) -> Sunday | D58: =IFERROR(MATCH($B58,Data!$B$33:$B$82,0),"") -> 27 | G58: 0 | H58: =IFERROR(INDEX(Data!$F$33:$F$82,$D58,1)+INDEX(Data!$G$33:$G$82,$D58,1),"") -> 5026.1 | I58: =IFERROR(INDEX(Data!$H$33:$H$82,$D58,1)+INDEX(Data!$I$33:$I$82,$D58,1),"") -> 11474.7 | J58: 16500.8 | M58: 0 | N58: 0 | O58: 16500.8 | P58: 0
B59: 2014-07-28 | C59: =IFERROR(IF($B59="","",IF(AND($B59<>"",INDEX(Data!$D$33:$D$82,MATCH($B59,Data!$B$33:$B$82,0),1)=TRUE),TEXT($B59,"DDDD")&" +",IF(AND($B59<>"",INDEX(Data!$E$33:$E$82,MATCH($B59,Data!$B$33:$B$82,0),1)=TRUE),TEXT($B59,"DDDD")&" ++",TEXT($B59,"DDDD")))),TEXT($B59,"DDDD")) -> Monday | D59: =IFERROR(MATCH($B59,Data!$B$33:$B$82,0),"") -> 28 | G59: 0 | H59: =IFERROR(INDEX(Data!$F$33:$F$82,$D59,1)+INDEX(Data!$G$33:$G$82,$D59,1),"") -> 6653.5 | I59: =IFERROR(INDEX(Data!$H$33:$H$82,$D59,1)+INDEX(Data!$I$33:$I$82,$D59,1),"") -> 12091.4 | J59: 18744.9 | M59: 0 | N59: 0 | O59: 18744.9 | P59: 0
B60: 2014-07-29 | C60: =IFERROR(IF($B60="","",IF(AND($B60<>"",INDEX(Data!$D$33:$D$82,MATCH($B60,Data!$B$33:$B$82,0),1)=TRUE),TEXT($B60,"DDDD")&" +",IF(AND($B60<>"",INDEX(Data!$E$33:$E$82,MATCH($B60,Data!$B$33:$B$82,0),1)=TRUE),TEXT($B60,"DDDD")&" ++",TEXT($B60,"DDDD")))),TEXT($B60,"DDDD")) -> Tuesday | D60: =IFERROR(MATCH($B60,Data!$B$33:$B$82,0),"") -> 29 | G60: 0 | H60: =IFERROR(INDEX(Data!$F$33:$F$82,$D60,1)+INDEX(Data!$G$33:$G$82,$D60,1),"") -> 6387.2 | I60: =IFERROR(INDEX(Data!$H$33:$H$82,$D60,1)+INDEX(Data!$I$33:$I$82,$D60,1),"") -> 6851.5 | J60: 13238.7 | M60: 0 | N60: 0 | O60: 13238.7 | P60: 0
B61: 2014-07-30 | C61: =IFERROR(IF($B61="","",IF(AND($B61<>"",INDEX(Data!$D$33:$D$82,MATCH($B61,Data!$B$33:$B$82,0),1)=TRUE),TEXT($B61,"DDDD")&" +",IF(AND($B61<>"",INDEX(Data!$E$33:$E$82,MATCH($B61,Data!$B$33:$B$82,0),1)=TRUE),TEXT($B61,"DDDD")&" ++",TEXT($B61,"DDDD")))),TEXT($B61,"DDDD")) -> Wednesday | D61: =IFERROR(MATCH($B61,Data!$B$33:$B$82,0),"") -> 30 | G61: 0 | H61: =IFERROR(INDEX(Data!$F$33:$F$82,$D61,1)+INDEX(Data!$G$33:$G$82,$D61,1),"") -> 3060.6 | I61: =IFERROR(INDEX(Data!$H$33:$H$82,$D61,1)+INDEX(Data!$I$33:$I$82,$D61,1),"") -> 7542.9 | J61: 10603.5 | M61: 0 | N61: 0 | O61: 10603.5 | P61: 0
B62: 2014-07-31 | C62: =IFERROR(IF($B62="","",IF(AND($B62<>"",INDEX(Data!$D$33:$D$82,MATCH($B62,Data!$B$33:$B$82,0),1)=TRUE),TEXT($B62,"DDDD")&" +",IF(AND($B62<>"",INDEX(Data!$E$33:$E$82,MATCH($B62,Data!$B$33:$B$82,0),1)=TRUE),TEXT($B62,"DDDD")&" ++",TEXT($B62,"DDDD")))),TEXT($B62,"DDDD")) -> Thursday | D62: =IFERROR(MATCH($B62,Data!$B$33:$B$82,0),"") -> 31 | G62: 0 | H62: =IFERROR(INDEX(Data!$F$33:$F$82,$D62,1)+INDEX(Data!$G$33:$G$82,$D62,1),"") -> 3721.9 | I62: =IFERROR(INDEX(Data!$H$33:$H$82,$D62,1)+INDEX(Data!$I$33:$I$82,$D62,1),"") -> 8010.5 | J62: 11732.4 | M62: 0 | N62: 0 | O62: 11732.4 | P62: 0

Sheet Report B
C3: MONTHLY SALES REPORTING BY OUTLET
B6: SUBJECT | C6: REPORT B : ROOM OCCUPANCY AND USAGE OF PARTY ROOMS
B8: OUTLET | C8: =Data!$C$8 -> SBA
B10: MONTH / YEAR | C10: =Data!$C$10 -> July 2014
B12: MENU
B14: DATE | C14: DAY | D14: ROW | E14: TOTAL | F14: OCCUPANCY OF ROOMS | K14: % OCCUPANCY OF ROOMS | O14: USAGE OF PARTY ROOMS | X14: CHART : % ROOM OCCUPANCY BY SESSION
E15: ROOMS
F16: SESSION | G16: TRUE | K16: SESSION | O16: ROOM | P16: AVERAGE | Q16: AVERAGE | R16: ROOM | S16: AVERAGE | T16: AVERAGE | U16: ROOM | V16: AVERAGE | W16: AVERAGE
F17: NOON K | G17: HAPPY | H17: NORMAL | I17: MIDNIGHT | J17: ALL | K17: NOON K | L17: HAPPY | M17: NORMAL | N17: MIDNIGHT | O17: V1 | P17: PAX | Q17: SPENDING | R17: V2 | S17: PAX | T17: SPENDING | U17: V3 | V17: PAX | W17: SPENDING
E18: ( ROOMS ) | F18: ( rooms ) | G18: ( rooms ) | H18: ( rooms ) | I18: ( rooms ) | J18: ( rooms ) | K18: ( % ) | L18: ( % ) | M18: ( % ) | N18: ( % ) | P18: ( pax ) | Q18: ( RM ) | S18: ( pax ) | T18: ( RM ) | V18: ( pax ) | W18: ( RM )
B19: SUMMARY FOR MONTH | X19: LEGEND
B20: TOTAL ROOM OCCUPANCY | F20: =IF($G$16=TRUE,SUM(F$31:F$61),"") -> 585 | G20: =IF($G$16=TRUE,SUM(G$31:G$61),"") -> 715 | H20: 1470 | I20: 434 | J20: 3204 | O20: =SUM(O$31:O$61) -> 0 | P20: 0 | Q20: 0 | R20: 0 | S20: 0 | T20: 0 | U20: 0 | V20: 0 | W20: 0
B21: AVERAGE ROOM OCCUPANCY | F21: =IFERROR(SUM(F$31:F$61)/COUNTIF($D$31:$D$61,">0"),"") -> 18.87096774 | G21: 23.06451613 | H21: 47.41935484 | I21: 14 | J21: 103.3548387 | K21: 0.09932088285 | L21: 0.1213921902 | M21: 0.2495755518 | N21: 0.07368421053 | O21: 0 | P21: 0 | Q21: 0 | R21: 0 | S21: 0 | T21: 0 | U21: 0 | V21: 0 | W21: 0
B22: HIGHEST ROOM OCCUPANCY | F22: =IFERROR(IF(LARGE(F$31:F$61,1)>0,LARGE(F$31:F$61,1),"NIL"),"NIL") -> 34 | G22: 41 | H22: 66 | I22: 25 | J22: 157 | K22: 0.1789473684 | L22: 0.2157894737 | M22: 0.3473684211 | N22: 0.1315789474 | O22: NIL | P22: NIL | Q22: NIL | R22: NIL | S22: NIL | T22: NIL | U22: NIL | V22: NIL | W22: NIL
B23: LOWEST ROOM OCCUPANCY | F23: =IFERROR(IF(LARGE(F$31:F$61,COUNTIF(F$31:F$61,">0"))<>F$22,LARGE(F$31:F$61,COUNTIF(F$31:F$61,">0")),"NIL"),"NIL") -> 8 | G23: 1 | H23: 23 | I23: 3 | J23: 63 | K23: 0.04210526316 | L23: 0.005263157895 | M23: 0.1210526316 | N23: 0.01578947368 | O23: NIL | P23: NIL | Q23: NIL | R23: NIL | S23: NIL | T23: NIL | U23: NIL | V23: NIL | W23: NIL
B24: AVERAGE FOR | C24: MONDAY | F24: =IFERROR(SUMIF($C$31:$C$61,"Monday*",F$31:F$61)/COUNTIF($C$31:$C$61,"Monday*"),"") -> 18 | G24: 25.5 | H24: 49.25 | I24: 14.75 | J24: 107.5 | K24: 0.09473684211 | L24: 0.1342105263 | M24: 0.2592105263 | N24: 0.07763157895 | O24: 0 | P24: 0 | Q24: 0 | R24: 0 | S24: 0 | T24: 0 | U24: 0 | V24: 0 | W24: 0
C25: TUESDAY | F25: =IFERROR(SUMIF($C$31:$C$61,"Tuesday*",F$31:F$61)/COUNTIF($C$31:$C$61,"Tuesday*"),"") -> 20.8 | G25: 23.8 | H25: 40.2 | I25: 9.8 | J25: 94.6 | K25: 0.1094736842 | L25: 0.1252631579 | M25: 0.2115789474 | N25: 0.05157894737 | O25: 0 | P25: 0 | Q25: 0 | R25: 0 | S25: 0 | T25: 0 | U25: 0 | V25: 0 | W25: 0
C26: WEDNESDAY | F26: =IFERROR(SUMIF($C$31:$C$61,"Wednesday*",F$31:F$61)/COUNTIF($C$31:$C$61,"Wednesday*"),"") -> 17.2 | G26: 24.2 | H26: 38.6 | I26: 12.6 | J26: 92.6 | K26: 0.09052631579 | L26: 0.1273684211 | M26: 0.2031578947 | N26: 0.06631578947 | O26: 0 | P26: 0 | Q26: 0 | R26: 0 | S26: 0 | T26: 0 | U26: 0 | V26: 0 | W26: 0
C27: THURSDAY | F27: =IFERROR(SUMIF($C$31:$C$61,"Thursday*",F$31:F$61)/COUNTIF($C$31:$C$61,"Thursday*"),"") -> 14.6 | G27: 21 | H27: 45.6 | I27: 15.6 | J27: 96.8 | K27: 0.07684210526 | L27: 0.1105263158 | M27: 0.24 | N27: 0.08210526316 | O27: 0 | P27: 0 | Q27: 0 | R27: 0 | S27: 0 | T27: 0 | U27: 0 | V27: 0 | W27: 0
C28: FRIDAY | F28: =IFERROR(SUMIF($C$31:$C$61,"Friday*",F$31:F$61)/COUNTIF($C$31:$C$61,"Friday*"),"") -> 16.5 | G28: 25.25 | H28: 61.75 | I28: 12.75 | J28: 116.25 | K28: 0.08684210526 | L28: 0.1328947368 | M28: 0.325 | N28: 0.06710526316 | O28: 0 | P28: 0 | Q28: 0 | R28: 0 | S28: 0 | T28: 0 | U28: 0 | V28: 0 | W28: 0
C29: SATURDAY | F29: =IFERROR(SUMIF($C$31:$C$61,"Saturday*",F$31:F$61)/COUNTIF($C$31:$C$61,"Saturday*"),"") -> 20.75 | G29: 22 | H29: 59.25 | I29: 19.5 | J29: 121.5 | K29: 0.1092105263 | L29: 0.1157894737 | M29: 0.3118421053 | N29: 0.1026315789 | O29: 0 | P29: 0 | Q29: 0 | R29: 0 | S29: 0 | T29: 0 | U29: 0 | V29: 0 | W29: 0
C30: SUNDAY | F30: =IFERROR(SUMIF($C$31:$C$61,"Sunday*",F$31:F$61)/COUNTIF($C$31:$C$61,"Sunday*"),"") -> 25.25 | G30: 19.75 | H30: 41.75 | I30: 14 | J30: 100.75 | K30: 0.1328947368 | L30: 0.1039473684 | M30: 0.2197368421 | N30: 0.07368421053 | O30: 0 | P30: 0 | Q30: 0 | R30: 0 | S30: 0 | T30: 0 | U30: 0 | V30: 0 | W30: 0
B31: ='Report A'!$B32 -> 2014-07-01 | C31: ='Report A'!$C32 -> Tuesday | D31: ='Report A'!$D32 -> 1 | E31: =IFERROR(INDEX(Data!$J$33:$J$82,$D31,1),"") -> 38 | F31: =IFERROR(IF($G$16=TRUE,INDEX(Data!$K$33:$K$82,$D31,1),INDEX(Data!$K$33:$K$82,$D31,1)/$E31),"") -> 8 | G31: =IFERROR(IF($G$16=TRUE,INDEX(Data!$L$33:$L$82,$D31,1),INDEX(Data!$L$33:$L$82,$D31,1)/(2*$E31)),"") -> 19 | H31: =IFERROR(IF($G$16=TRUE,INDEX(Data!$M$33:$M$82,$D31,1),INDEX(Data!$M$33:$M$82,$D31,1)/$E31),"") -> 43 | I31: =IFERROR(IF($G$16=TRUE,INDEX(Data!$N$33:$N$82,$D31,1),INDEX(Data!$N$33:$N$82,$D31,1)/$E31),"") -> 11 | J31: =IFERROR(IF($G$16=TRUE,INDEX(Data!$K$33:$K$82,$D31,1)+INDEX(Data!$L$33:$L$82,$D31,1)+INDEX(Data!$M$33:$M$82,$D31,1)+INDEX(Data!$N$33:$N$82,$D31,1),(INDEX(Data!$K$33:$K$82,$D31,1)+INDEX(Data!$L$33:$L$82,$D31,1)+INDEX(Data!$M$33:$M$82,$D31,1)+INDEX(Data!$N$33:$N$82,$D31,1))/(5*$E31)),"") -> 81 | K31: =IFERROR(INDEX(Data!$K$33:$K$82,$D31,1)/(5*$E31),"") -> 0.04210526316 | L31: =IFERROR(INDEX(Data!$L$33:$L$82,$D31,1)/(5*$E31),"") -> 0.1 | M31: =IFERROR(INDEX(Data!$M$33:$M$82,$D31,1)/(5*$E31),"") -> 0.2263157895 | N31: =IFERROR(INDEX(Data!$N$33:$N$82,$D31,1)/(5*$E31),"") -> 0.05789473684 | O31: =IFERROR(IF($O$17<>"",COUNTIF(INDIRECT("Data!$O$"&$D31+32&":$AH$"&$D31+32),$O$17),""),"") -> 0 | P31: =IFERROR((SUMIF(INDIRECT("Data!$O$"&$D31+32&":$O$"&$D31+32),$O$17,INDIRECT("Data!$Q$"&$D31+32&":$Q$"&$D31+32))+SUMIF(INDIRECT("Data!$S$"&$D31+32&":$S$"&$D31+32),$O$17,INDIRECT("Data!$U$"&$D31+32&":$U$"&$D31+32))+SUMIF(INDIRECT("Data!$W$"&$D31+32&":$W$"&$D31+32),$O$17,INDIRECT("Data!$Y$"&$D31+32&":$Y$"&$D31+32))+SUMIF(INDIRECT("Data!$AA$"&$D31+32&":$AA$"&$D31+32),$O$17,INDIRECT("Data!$AC$"&$D31+32&":$AC$"&$D31+32))+SUMIF(INDIRECT("Data!$AE$"&$D31+32&":$AE$"&$D31+32),$O$17,INDIRECT("Data!$AG$"&$D31+32&":$AG$"&$D31+32)))/$O31,"") ->  | Q31: =IFERROR((SUMIF(INDIRECT("Data!$O$"&$D31+32&":$O$"&$D31+32),$O$17,INDIRECT("Data!$R$"&$D31+32&":$R$"&$D31+32))+SUMIF(INDIRECT("Data!$S$"&$D31+32&":$S$"&$D31+32),$O$17,INDIRECT("Data!$V$"&$D31+32&":$V$"&$D31+32))+SUMIF(INDIRECT("Data!$W$"&$D31+32&":$W$"&$D31+32),$O$17,INDIRECT("Data!$Z$"&$D31+32&":$Z$"&$D31+32))+SUMIF(INDIRECT("Data!$AA$"&$D31+32&":$AA$"&$D31+32),$O$17,INDIRECT("Data!$AD$"&$D31+32&":$AD$"&$D31+32))+SUMIF(INDIRECT("Data!$AE$"&$D31+32&":$AE$"&$D31+32),$O$17,INDIRECT("Data!$AH$"&$D31+32&":$AH$"&$D31+32)))/$O31,"") ->  | R31: =IFERROR(IF($R$17<>"",COUNTIF(INDIRECT("Data!$O$"&$D31+32&":$AH$"&$D31+32),$R$17),""),"") -> 0 | S31: =IFERROR((SUMIF(INDIRECT("Data!$O$"&$D31+32&":$O$"&$D31+32),$R$17,INDIRECT("Data!$Q$"&$D31+32&":$Q$"&$D31+32))+SUMIF(INDIRECT("Data!$S$"&$D31+32&":$S$"&$D31+32),$R$17,INDIRECT("Data!$U$"&$D31+32&":$U$"&$D31+32))+SUMIF(INDIRECT("Data!$W$"&$D31+32&":$W$"&$D31+32),$R$17,INDIRECT("Data!$Y$"&$D31+32&":$Y$"&$D31+32))+SUMIF(INDIRECT("Data!$AA$"&$D31+32&":$AA$"&$D31+32),$R$17,INDIRECT("Data!$AC$"&$D31+32&":$AC$"&$D31+32))+SUMIF(INDIRECT("Data!$AE$"&$D31+32&":$AE$"&$D31+32),$R$17,INDIRECT("Data!$AG$"&$D31+32&":$AG$"&$D31+32)))/$R31,"") ->  | T31: =IFERROR((SUMIF(INDIRECT("Data!$O$"&$D31+32&":$O$"&$D31+32),$R$17,INDIRECT("Data!$R$"&$D31+32&":$R$"&$D31+32))+SUMIF(INDIRECT("Data!$S$"&$D31+32&":$S$"&$D31+32),$R$17,INDIRECT("Data!$V$"&$D31+32&":$V$"&$D31+32))+SUMIF(INDIRECT("Data!$W$"&$D31+32&":$W$"&$D31+32),$R$17,INDIRECT("Data!$Z$"&$D31+32&":$Z$"&$D31+32))+SUMIF(INDIRECT("Data!$AA$"&$D31+32&":$AA$"&$D31+32),$R$17,INDIRECT("Data!$AD$"&$D31+32&":$AD$"&$D31+32))+SUMIF(INDIRECT("Data!$AE$"&$D31+32&":$AE$"&$D31+32),$R$17,INDIRECT("Data!$AH$"&$D31+32&":$AH$"&$D31+32)))/$R31,"") ->  | U31: =IFERROR(IF($U$17<>"",COUNTIF(INDIRECT("Data!$O$"&$D31+32&":$AH$"&$D31+32),$U$17),""),"") -> 0 | V31: =IFERROR((SUMIF(INDIRECT("Data!$O$"&$D31+32&":$O$"&$D31+32),$U$17,INDIRECT("Data!$Q$"&$D31+32&":$Q$"&$D31+32))+SUMIF(INDIRECT("Data!$S$"&$D31+32&":$S$"&$D31+32),$U$17,INDIRECT("Data!$U$"&$D31+32&":$U$"&$D31+32))+SUMIF(INDIRECT("Data!$W$"&$D31+32&":$W$"&$D31+32),$U$17,INDIRECT("Data!$Y$"&$D31+32&":$Y$"&$D31+32))+SUMIF(INDIRECT("Data!$AA$"&$D31+32&":$AA$"&$D31+32),$U$17,INDIRECT("Data!$AC$"&$D31+32&":$AC$"&$D31+32))+SUMIF(INDIRECT("Data!$AE$"&$D31+32&":$AE$"&$D31+32),$U$17,INDIRECT("Data!$AG$"&$D31+32&":$AG$"&$D31+32)))/$U31,"") ->  | W31: =IFERROR((SUMIF(INDIRECT("Data!$O$"&$D31+32&":$O$"&$D31+32),$U$17,INDIRECT("Data!$R$"&$D31+32&":$R$"&$D31+32))+SUMIF(INDIRECT("Data!$S$"&$D31+32&":$S$"&$D31+32),$U$17,INDIRECT("Data!$V$"&$D31+32&":$V$"&$D31+32))+SUMIF(INDIRECT("Data!$W$"&$D31+32&":$W$"&$D31+32),$U$17,INDIRECT("Data!$Z$"&$D31+32&":$Z$"&$D31+32))+SUMIF(INDIRECT("Data!$AA$"&$D31+32&":$AA$"&$D31+32),$U$17,INDIRECT("Data!$AD$"&$D31+32&":$AD$"&$D31+32))+SUMIF(INDIRECT("Data!$AE$"&$D31+32&":$AE$"&$D31+32),$U$17,INDIRECT("Data!$AH$"&$D31+32&":$AH$"&$D31+32)))/$U31,"") -> 
B32: ='Report A'!$B33 -> 2014-07-02 | C32: ='Report A'!$C33 -> Wednesday | D32: ='Report A'!$D33 -> 2 | E32: =IFERROR(INDEX(Data!$J$33:$J$82,$D32,1),"") -> 38 | F32: =IFERROR(IF($G$16=TRUE,INDEX(Data!$K$33:$K$82,$D32,1),INDEX(Data!$K$33:$K$82,$D32,1)/$E32),"") -> 16 | G32: =IFERROR(IF($G$16=TRUE,INDEX(Data!$L$33:$L$82,$D32,1),INDEX(Data!$L$33:$L$82,$D32,1)/(2*$E32)),"") -> 17 | H32: =IFERROR(IF($G$16=TRUE,INDEX(Data!$M$33:$M$82,$D32,1),INDEX(Data!$M$33:$M$82,$D32,1)/$E32),"") -> 43 | I32: =IFERROR(IF($G$16=TRUE,INDEX(Data!$N$33:$N$82,$D32,1),INDEX(Data!$N$33:$N$82,$D32,1)/$E32),"") -> 16 | J32: =IFERROR(IF($G$16=TRUE,INDEX(Data!$K$33:$K$82,$D32,1)+INDEX(Data!$L$33:$L$82,$D32,1)+INDEX(Data!$M$33:$M$82,$D32,1)+INDEX(Data!$N$33:$N$82,$D32,1),(INDEX(Data!$K$33:$K$82,$D32,1)+INDEX(Data!$L$33:$L$82,$D32,1)+INDEX(Data!$M$33:$M$82,$D32,1)+INDEX(Data!$N$33:$N$82,$D32,1))/(5*$E32)),"") -> 92 | K32: =IFERROR(INDEX(Data!$K$33:$K$82,$D32,1)/(5*$E32),"") -> 0.08421052632 | L32: =IFERROR(INDEX(Data!$L$33:$L$82,$D32,1)/(5*$E32),"") -> 0.08947368421 | M32: =IFERROR(INDEX(Data!$M$33:$M$82,$D32,1)/(5*$E32),"") -> 0.2263157895 | N32: =IFERROR(INDEX(Data!$N$33:$N$82,$D32,1)/(5*$E32),"") -> 0.08421052632 | O32: 0 | R32: 0 | U32: 0
B33: ='Report A'!$B34 -> 2014-07-03 | C33: ='Report A'!$C34 -> Thursday | D33: ='Report A'!$D34 -> 3 | E33: =IFERROR(INDEX(Data!$J$33:$J$82,$D33,1),"") -> 38 | F33: =IFERROR(IF($G$16=TRUE,INDEX(Data!$K$33:$K$82,$D33,1),INDEX(Data!$K$33:$K$82,$D33,1)/$E33),"") -> 12 | G33: =IFERROR(IF($G$16=TRUE,INDEX(Data!$L$33:$L$82,$D33,1),INDEX(Data!$L$33:$L$82,$D33,1)/(2*$E33)),"") -> 16 | H33: =IFERROR(IF($G$16=TRUE,INDEX(Data!$M$33:$M$82,$D33,1),INDEX(Data!$M$33:$M$82,$D33,1)/$E33),"") -> 57 | I33: =IFERROR(IF($G$16=TRUE,INDEX(Data!$N$33:$N$82,$D33,1),INDEX(Data!$N$33:$N$82,$D33,1)/$E33),"") -> 14 | J33: =IFERROR(IF($G$16=TRUE,INDEX(Data!$K$33:$K$82,$D33,1)+INDEX(Data!$L$33:$L$82,$D33,1)+INDEX(Data!$M$33:$M$82,$D33,1)+INDEX(Data!$N$33:$N$82,$D33,1),(INDEX(Data!$K$33:$K$82,$D33,1)+INDEX(Data!$L$33:$L$82,$D33,1)+INDEX(Data!$M$33:$M$82,$D33,1)+INDEX(Data!$N$33:$N$82,$D33,1))/(5*$E33)),"") -> 99 | K33: =IFERROR(INDEX(Data!$K$33:$K$82,$D33,1)/(5*$E33),"") -> 0.06315789474 | L33: =IFERROR(INDEX(Data!$L$33:$L$82,$D33,1)/(5*$E33),"") -> 0.08421052632 | M33: =IFERROR(INDEX(Data!$M$33:$M$82,$D33,1)/(5*$E33),"") -> 0.3 | N33: =IFERROR(INDEX(Data!$N$33:$N$82,$D33,1)/(5*$E33),"") -> 0.07368421053 | O33: 0 | R33: 0 | U33: 0
B34: ='Report A'!$B35 -> 2014-07-04 | C34: ='Report A'!$C35 -> Friday | D34: ='Report A'!$D35 -> 4 | E34: =IFERROR(INDEX(Data!$J$33:$J$82,$D34,1),"") -> 38 | F34: =IFERROR(IF($G$16=TRUE,INDEX(Data!$K$33:$K$82,$D34,1),INDEX(Data!$K$33:$K$82,$D34,1)/$E34),"") -> 10 | G34: =IFERROR(IF($G$16=TRUE,INDEX(Data!$L$33:$L$82,$D34,1),INDEX(Data!$L$33:$L$82,$D34,1)/(2*$E34)),"") -> 20 | H34: =IFERROR(IF($G$16=TRUE,INDEX(Data!$M$33:$M$82,$D34,1),INDEX(Data!$M$33:$M$82,$D34,1)/$E34),"") -> 66 | I34: =IFERROR(IF($G$16=TRUE,INDEX(Data!$N$33:$N$82,$D34,1),INDEX(Data!$N$33:$N$82,$D34,1)/$E34),"") -> 10 | J34: =IFERROR(IF($G$16=TRUE,INDEX(Data!$K$33:$K$82,$D34,1)+INDEX(Data!$L$33:$L$82,$D34,1)+INDEX(Data!$M$33:$M$82,$D34,1)+INDEX(Data!$N$33:$N$82,$D34,1),(INDEX(Data!$K$33:$K$82,$D34,1)+INDEX(Data!$L$33:$L$82,$D34,1)+INDEX(Data!$M$33:$M$82,$D34,1)+INDEX(Data!$N$33:$N$82,$D34,1))/(5*$E34)),"") -> 106 | K34: =IFERROR(INDEX(Data!$K$33:$K$82,$D34,1)/(5*$E34),"") -> 0.05263157895 | L34: =IFERROR(INDEX(Data!$L$33:$L$82,$D34,1)/(5*$E34),"") -> 0.1052631579 | M34: =IFERROR(INDEX(Data!$M$33:$M$82,$D34,1)/(5*$E34),"") -> 0.3473684211 | N34: =IFERROR(INDEX(Data!$N$33:$N$82,$D34,1)/(5*$E34),"") -> 0.05263157895 | O34: 0 | R34: 0 | U34: 0
B35: ='Report A'!$B36 -> 2014-07-05 | C35: ='Report A'!$C36 -> Saturday | D35: ='Report A'!$D36 -> 5 | E35: =IFERROR(INDEX(Data!$J$33:$J$82,$D35,1),"") -> 38 | F35: =IFERROR(IF($G$16=TRUE,INDEX(Data!$K$33:$K$82,$D35,1),INDEX(Data!$K$33:$K$82,$D35,1)/$E35),"") -> 22 | G35: =IFERROR(IF($G$16=TRUE,INDEX(Data!$L$33:$L$82,$D35,1),INDEX(Data!$L$33:$L$82,$D35,1)/(2*$E35)),"") -> 19 | H35: =IFERROR(IF($G$16=TRUE,INDEX(Data!$M$33:$M$82,$D35,1),INDEX(Data!$M$33:$M$82,$D35,1)/$E35),"") -> 51 | I35: =IFERROR(IF($G$16=TRUE,INDEX(Data!$N$33:$N$82,$D35,1),INDEX(Data!$N$33:$N$82,$D35,1)/$E35),"") -> 25 | J35: =IFERROR(IF($G$16=TRUE,INDEX(Data!$K$33:$K$82,$D35,1)+INDEX(Data!$L$33:$L$82,$D35,1)+INDEX(Data!$M$33:$M$82,$D35,1)+INDEX(Data!$N$33:$N$82,$D35,1),(INDEX(Data!$K$33:$K$82,$D35,1)+INDEX(Data!$L$33:$L$82,$D35,1)+INDEX(Data!$M$33:$M$82,$D35,1)+INDEX(Data!$N$33:$N$82,$D35,1))/(5*$E35)),"") -> 117 | K35: =IFERROR(INDEX(Data!$K$33:$K$82,$D35,1)/(5*$E35),"") -> 0.1157894737 | L35: =IFERROR(INDEX(Data!$L$33:$L$82,$D35,1)/(5*$E35),"") -> 0.1 | M35: =IFERROR(INDEX(Data!$M$33:$M$82,$D35,1)/(5*$E35),"") -> 0.2684210526 | N35: =IFERROR(INDEX(Data!$N$33:$N$82,$D35,1)/(5*$E35),"") -> 0.1315789474 | O35: 0 | R35: 0 | U35: 0
B36: ='Report A'!$B37 -> 2014-07-06 | C36: ='Report A'!$C37 -> Sunday | D36: ='Report A'!$D37 -> 6 | E36: =IFERROR(INDEX(Data!$J$33:$J$82,$D36,1),"") -> 38 | F36: =IFERROR(IF($G$16=TRUE,INDEX(Data!$K$33:$K$82,$D36,1),INDEX(Data!$K$33:$K$82,$D36,1)/$E36),"") -> 31 | G36: =IFERROR(IF($G$16=TRUE,INDEX(Data!$L$33:$L$82,$D36,1),INDEX(Data!$L$33:$L$82,$D36,1)/(2*$E36)),"") -> 1 | H36: =IFERROR(IF($G$16=TRUE,INDEX(Data!$M$33:$M$82,$D36,1),INDEX(Data!$M$33:$M$82,$D36,1)/$E36),"") -> 38 | I36: =IFERROR(IF($G$16=TRUE,INDEX(Data!$N$33:$N$82,$D36,1),INDEX(Data!$N$33:$N$82,$D36,1)/$E36),"") -> 12 | J36: =IFERROR(IF($G$16=TRUE,INDEX(Data!$K$33:$K$82,$D36,1)+INDEX(Data!$L$33:$L$82,$D36,1)+INDEX(Data!$M$33:$M$82,$D36,1)+INDEX(Data!$N$33:$N$82,$D36,1),(INDEX(Data!$K$33:$K$82,$D36,1)+INDEX(Data!$L$33:$L$82,$D36,1)+INDEX(Data!$M$33:$M$82,$D36,1)+INDEX(Data!$N$33:$N$82,$D36,1))/(5*$E36)),"") -> 82 | K36: =IFERROR(INDEX(Data!$K$33:$K$82,$D36,1)/(5*$E36),"") -> 0.1631578947 | L36: =IFERROR(INDEX(Data!$L$33:$L$82,$D36,1)/(5*$E36),"") -> 0.005263157895 | M36: =IFERROR(INDEX(Data!$M$33:$M$82,$D36,1)/(5*$E36),"") -> 0.2 | N36: =IFERROR(INDEX(Data!$N$33:$N$82,$D36,1)/(5*$E36),"") -> 0.06315789474 | O36: 0 | R36: 0 | U36: 0
B37: ='Report A'!$B38 -> 2014-07-07 | C37: ='Report A'!$C38 -> Monday | D37: ='Report A'!$D38 -> 7 | E37: =IFERROR(INDEX(Data!$J$33:$J$82,$D37,1),"") -> 38 | F37: =IFERROR(IF($G$16=TRUE,INDEX(Data!$K$33:$K$82,$D37,1),INDEX(Data!$K$33:$K$82,$D37,1)/$E37),"") -> 12 | G37: =IFERROR(IF($G$16=TRUE,INDEX(Data!$L$33:$L$82,$D37,1),INDEX(Data!$L$33:$L$82,$D37,1)/(2*$E37)),"") -> 23 | H37: =IFERROR(IF($G$16=TRUE,INDEX(Data!$M$33:$M$82,$D37,1),INDEX(Data!$M$33:$M$82,$D37,1)/$E37),"") -> 47 | I37: =IFERROR(IF($G$16=TRUE,INDEX(Data!$N$33:$N$82,$D37,1),INDEX(Data!$N$33:$N$82,$D37,1)/$E37),"") -> 9 | J37: =IFERROR(IF($G$16=TRUE,INDEX(Data!$K$33:$K$82,$D37,1)+INDEX(Data!$L$33:$L$82,$D37,1)+INDEX(Data!$M$33:$M$82,$D37,1)+INDEX(Data!$N$33:$N$82,$D37,1),(INDEX(Data!$K$33:$K$82,$D37,1)+INDEX(Data!$L$33:$L$82,$D37,1)+INDEX(Data!$M$33:$M$82,$D37,1)+INDEX(Data!$N$33:$N$82,$D37,1))/(5*$E37)),"") -> 91 | K37: =IFERROR(INDEX(Data!$K$33:$K$82,$D37,1)/(5*$E37),"") -> 0.06315789474 | L37: =IFERROR(INDEX(Data!$L$33:$L$82,$D37,1)/(5*$E37),"") -> 0.1210526316 | M37: =IFERROR(INDEX(Data!$M$33:$M$82,$D37,1)/(5*$E37),"") -> 0.2473684211 | N37: =IFERROR(INDEX(Data!$N$33:$N$82,$D37,1)/(5*$E37),"") -> 0.04736842105 | O37: 0 | R37: 0 | U37: 0
B38: ='Report A'!$B39 -> 2014-07-08 | C38: ='Report A'!$C39 -> Tuesday | D38: ='Report A'!$D39 -> 8 | E38: =IFERROR(INDEX(Data!$J$33:$J$82,$D38,1),"") -> 38 | F38: =IFERROR(IF($G$16=TRUE,INDEX(Data!$K$33:$K$82,$D38,1),INDEX(Data!$K$33:$K$82,$D38,1)/$E38),"") -> 14 | G38: =IFERROR(IF($G$16=TRUE,INDEX(Data!$L$33:$L$82,$D38,1),INDEX(Data!$L$33:$L$82,$D38,1)/(2*$E38)),"") -> 16 | H38: =IFERROR(IF($G$16=TRUE,INDEX(Data!$M$33:$M$82,$D38,1),INDEX(Data!$M$33:$M$82,$D38,1)/$E38),"") -> 44 | I38: =IFERROR(IF($G$16=TRUE,INDEX(Data!$N$33:$N$82,$D38,1),INDEX(Data!$N$33:$N$82,$D38,1)/$E38),"") -> 3 | J38: =IFERROR(IF($G$16=TRUE,INDEX(Data!$K$33:$K$82,$D38,1)+INDEX(Data!$L$33:$L$82,$D38,1)+INDEX(Data!$M$33:$M$82,$D38,1)+INDEX(Data!$N$33:$N$82,$D38,1),(INDEX(Data!$K$33:$K$82,$D38,1)+INDEX(Data!$L$33:$L$82,$D38,1)+INDEX(Data!$M$33:$M$82,$D38,1)+INDEX(Data!$N$33:$N$82,$D38,1))/(5*$E38)),"") -> 77 | K38: =IFERROR(INDEX(Data!$K$33:$K$82,$D38,1)/(5*$E38),"") -> 0.07368421053 | L38: =IFERROR(INDEX(Data!$L$33:$L$82,$D38,1)/(5*$E38),"") -> 0.08421052632 | M38: =IFERROR(INDEX(Data!$M$33:$M$82,$D38,1)/(5*$E38),"") -> 0.2315789474 | N38: =IFERROR(INDEX(Data!$N$33:$N$82,$D38,1)/(5*$E38),"") -> 0.01578947368 | O38: 0 | R38: 0 | U38: 0
B39: ='Report A'!$B40 -> 2014-07-09 | C39: ='Report A'!$C40 -> Wednesday | D39: ='Report A'!$D40 -> 9 | E39: =IFERROR(INDEX(Data!$J$33:$J$82,$D39,1),"") -> 38 | F39: =IFERROR(IF($G$16=TRUE,INDEX(Data!$K$33:$K$82,$D39,1),INDEX(Data!$K$33:$K$82,$D39,1)/$E39),"") -> 13 | G39: =IFERROR(IF($G$16=TRUE,INDEX(Data!$L$33:$L$82,$D39,1),INDEX(Data!$L$33:$L$82,$D39,1)/(2*$E39)),"") -> 16 | H39: =IFERROR(IF($G$16=TRUE,INDEX(Data!$M$33:$M$82,$D39,1),INDEX(Data!$M$33:$M$82,$D39,1)/$E39),"") -> 50 | I39: =IFERROR(IF($G$16=TRUE,INDEX(Data!$N$33:$N$82,$D39,1),INDEX(Data!$N$33:$N$82,$D39,1)/$E39),"") -> 8 | J39: =IFERROR(IF($G$16=TRUE,INDEX(Data!$K$33:$K$82,$D39,1)+INDEX(Data!$L$33:$L$82,$D39,1)+INDEX(Data!$M$33:$M$82,$D39,1)+INDEX(Data!$N$33:$N$82,$D39,1),(INDEX(Data!$K$33:$K$82,$D39,1)+INDEX(Data!$L$33:$L$82,$D39,1)+INDEX(Data!$M$33:$M$82,$D39,1)+INDEX(Data!$N$33:$N$82,$D39,1))/(5*$E39)),"") -> 87 | K39: =IFERROR(INDEX(Data!$K$33:$K$82,$D39,1)/(5*$E39),"") -> 0.06842105263 | L39: =IFERROR(INDEX(Data!$L$33:$L$82,$D39,1)/(5*$E39),"") -> 0.08421052632 | M39: =IFERROR(INDEX(Data!$M$33:$M$82,$D39,1)/(5*$E39),"") -> 0.2631578947 | N39: =IFERROR(INDEX(Data!$N$33:$N$82,$D39,1)/(5*$E39),"") -> 0.04210526316 | O39: 0 | R39: 0 | U39: 0
B40: ='Report A'!$B41 -> 2014-07-10 | C40: ='Report A'!$C41 -> Thursday | D40: ='Report A'!$D41 -> 10 | E40: =IFERROR(INDEX(Data!$J$33:$J$82,$D40,1),"") -> 38 | F40: =IFERROR(IF($G$16=TRUE,INDEX(Data!$K$33:$K$82,$D40,1),INDEX(Data!$K$33:$K$82,$D40,1)/$E40),"") -> 11 | G40: =IFERROR(IF($G$16=TRUE,INDEX(Data!$L$33:$L$82,$D40,1),INDEX(Data!$L$33:$L$82,$D40,1)/(2*$E40)),"") -> 14 | H40: =IFERROR(IF($G$16=TRUE,INDEX(Data!$M$33:$M$82,$D40,1),INDEX(Data!$M$33:$M$82,$D40,1)/$E40),"") -> 44 | I40: =IFERROR(IF($G$16=TRUE,INDEX(Data!$N$33:$N$82,$D40,1),INDEX(Data!$N$33:$N$82,$D40,1)/$E40),"") -> 17 | J40: =IFERROR(IF($G$16=TRUE,INDEX(Data!$K$33:$K$82,$D40,1)+INDEX(Data!$L$33:$L$82,$D40,1)+INDEX(Data!$M$33:$M$82,$D40,1)+INDEX(Data!$N$33:$N$82,$D40,1),(INDEX(Data!$K$33:$K$82,$D40,1)+INDEX(Data!$L$33:$L$82,$D40,1)+INDEX(Data!$M$33:$M$82,$D40,1)+INDEX(Data!$N$33:$N$82,$D40,1))/(5*$E40)),"") -> 86 | K40: =IFERROR(INDEX(Data!$K$33:$K$82,$D40,1)/(5*$E40),"") -> 0.05789473684 | L40: =IFERROR(INDEX(Data!$L$33:$L$82,$D40,1)/(5*$E40),"") -> 0.07368421053 | M40: =IFERROR(INDEX(Data!$M$33:$M$82,$D40,1)/(5*$E40),"") -> 0.2315789474 | N40: =IFERROR(INDEX(Data!$N$33:$N$82,$D40,1)/(5*$E40),"") -> 0.08947368421 | O40: 0 | R40: 0 | U40: 0
B41: ='Report A'!$B42 -> 2014-07-11 | C41: ='Report A'!$C42 -> Friday | D41: ='Report A'!$D42 -> 11 | E41: =IFERROR(INDEX(Data!$J$33:$J$82,$D41,1),"") -> 38 | F41: =IFERROR(IF($G$16=TRUE,INDEX(Data!$K$33:$K$82,$D41,1),INDEX(Data!$K$33:$K$82,$D41,1)/$E41),"") -> 17 | G41: =IFERROR(IF($G$16=TRUE,INDEX(Data!$L$33:$L$82,$D41,1),INDEX(Data!$L$33:$L$82,$D41,1)/(2*$E41)),"") -> 21 | H41: =IFERROR(IF($G$16=TRUE,INDEX(Data!$M$33:$M$82,$D41,1),INDEX(Data!$M$33:$M$82,$D41,1)/$E41),"") -> 61 | I41: =IFERROR(IF($G$16=TRUE,INDEX(Data!$N$33:$N$82,$D41,1),INDEX(Data!$N$33:$N$82,$D41,1)/$E41),"") -> 16 | J41: =IFERROR(IF($G$16=TRUE,INDEX(Data!$K$33:$K$82,$D41,1)+INDEX(Data!$L$33:$L$82,$D41,1)+INDEX(Data!$M$33:$M$82,$D41,1)+INDEX(Data!$N$33:$N$82,$D41,1),(INDEX(Data!$K$33:$K$82,$D41,1)+INDEX(Data!$L$33:$L$82,$D41,1)+INDEX(Data!$M$33:$M$82,$D41,1)+INDEX(Data!$N$33:$N$82,$D41,1))/(5*$E41)),"") -> 115 | K41: =IFERROR(INDEX(Data!$K$33:$K$82,$D41,1)/(5*$E41),"") -> 0.08947368421 | L41: =IFERROR(INDEX(Data!$L$33:$L$82,$D41,1)/(5*$E41),"") -> 0.1105263158 | M41: =IFERROR(INDEX(Data!$M$33:$M$82,$D41,1)/(5*$E41),"") -> 0.3210526316 | N41: =IFERROR(INDEX(Data!$N$33:$N$82,$D41,1)/(5*$E41),"") -> 0.08421052632 | O41: 0 | R41: 0 | U41: 0
B42: ='Report A'!$B43 -> 2014-07-12 | C42: ='Report A'!$C43 -> Saturday | D42: ='Report A'!$D43 -> 12 | E42: =IFERROR(INDEX(Data!$J$33:$J$82,$D42,1),"") -> 38 | F42: =IFERROR(IF($G$16=TRUE,INDEX(Data!$K$33:$K$82,$D42,1),INDEX(Data!$K$33:$K$82,$D42,1)/$E42),"") -> 18 | G42: =IFERROR(IF($G$16=TRUE,INDEX(Data!$L$33:$L$82,$D42,1),INDEX(Data!$L$33:$L$82,$D42,1)/(2*$E42)),"") -> 22 | H42: =IFERROR(IF($G$16=TRUE,INDEX(Data!$M$33:$M$82,$D42,1),INDEX(Data!$M$33:$M$82,$D42,1)/$E42),"") -> 64 | I42: =IFERROR(IF($G$16=TRUE,INDEX(Data!$N$33:$N$82,$D42,1),INDEX(Data!$N$33:$N$82,$D42,1)/$E42),"") -> 11 | J42: =IFERROR(IF($G$16=TRUE,INDEX(Data!$K$33:$K$82,$D42,1)+INDEX(Data!$L$33:$L$82,$D42,1)+INDEX(Data!$M$33:$M$82,$D42,1)+INDEX(Data!$N$33:$N$82,$D42,1),(INDEX(Data!$K$33:$K$82,$D42,1)+INDEX(Data!$L$33:$L$82,$D42,1)+INDEX(Data!$M$33:$M$82,$D42,1)+INDEX(Data!$N$33:$N$82,$D42,1))/(5*$E42)),"") -> 115 | K42: =IFERROR(INDEX(Data!$K$33:$K$82,$D42,1)/(5*$E42),"") -> 0.09473684211 | L42: =IFERROR(INDEX(Data!$L$33:$L$82,$D42,1)/(5*$E42),"") -> 0.1157894737 | M42: =IFERROR(INDEX(Data!$M$33:$M$82,$D42,1)/(5*$E42),"") -> 0.3368421053 | N42: =IFERROR(INDEX(Data!$N$33:$N$82,$D42,1)/(5*$E42),"") -> 0.05789473684 | O42: 0 | R42: 0 | U42: 0
B43: ='Report A'!$B44 -> 2014-07-13 | C43: ='Report A'!$C44 -> Sunday | D43: ='Report A'!$D44 -> 13 | E43: =IFERROR(INDEX(Data!$J$33:$J$82,$D43,1),"") -> 38 | F43: =IFERROR(IF($G$16=TRUE,INDEX(Data!$K$33:$K$82,$D43,1),INDEX(Data!$K$33:$K$82,$D43,1)/$E43),"") -> 14 | G43: =IFERROR(IF($G$16=TRUE,INDEX(Data!$L$33:$L$82,$D43,1),INDEX(Data!$L$33:$L$82,$D43,1)/(2*$E43)),"") -> 26 | H43: =IFERROR(IF($G$16=TRUE,INDEX(Data!$M$33:$M$82,$D43,1),INDEX(Data!$M$33:$M$82,$D43,1)/$E43),"") -> 32 | I43: =IFERROR(IF($G$16=TRUE,INDEX(Data!$N$33:$N$82,$D43,1),INDEX(Data!$N$33:$N$82,$D43,1)/$E43),"") -> 12 | J43: =IFERROR(IF($G$16=TRUE,INDEX(Data!$K$33:$K$82,$D43,1)+INDEX(Data!$L$33:$L$82,$D43,1)+INDEX(Data!$M$33:$M$82,$D43,1)+INDEX(Data!$N$33:$N$82,$D43,1),(INDEX(Data!$K$33:$K$82,$D43,1)+INDEX(Data!$L$33:$L$82,$D43,1)+INDEX(Data!$M$33:$M$82,$D43,1)+INDEX(Data!$N$33:$N$82,$D43,1))/(5*$E43)),"") -> 84 | K43: =IFERROR(INDEX(Data!$K$33:$K$82,$D43,1)/(5*$E43),"") -> 0.07368421053 | L43: =IFERROR(INDEX(Data!$L$33:$L$82,$D43,1)/(5*$E43),"") -> 0.1368421053 | M43: =IFERROR(INDEX(Data!$M$33:$M$82,$D43,1)/(5*$E43),"") -> 0.1684210526 | N43: =IFERROR(INDEX(Data!$N$33:$N$82,$D43,1)/(5*$E43),"") -> 0.06315789474 | O43: 0 | R43: 0 | U43: 0
B44: ='Report A'!$B45 -> 2014-07-14 | C44: ='Report A'!$C45 -> Monday | D44: ='Report A'!$D45 -> 14 | E44: =IFERROR(INDEX(Data!$J$33:$J$82,$D44,1),"") -> 38 | F44: =IFERROR(IF($G$16=TRUE,INDEX(Data!$K$33:$K$82,$D44,1),INDEX(Data!$K$33:$K$82,$D44,1)/$E44),"") -> 14 | G44: =IFERROR(IF($G$16=TRUE,INDEX(Data!$L$33:$L$82,$D44,1),INDEX(Data!$L$33:$L$82,$D44,1)/(2*$E44)),"") -> 26 | H44: =IFERROR(IF($G$16=TRUE,INDEX(Data!$M$33:$M$82,$D44,1),INDEX(Data!$M$33:$M$82,$D44,1)/$E44),"") -> 63 | I44: =IFERROR(IF($G$16=TRUE,INDEX(Data!$N$33:$N$82,$D44,1),INDEX(Data!$N$33:$N$82,$D44,1)/$E44),"") -> 16 | J44: =IFERROR(IF($G$16=TRUE,INDEX(Data!$K$33:$K$82,$D44,1)+INDEX(Data!$L$33:$L$82,$D44,1)+INDEX(Data!$M$33:$M$82,$D44,1)+INDEX(Data!$N$33:$N$82,$D44,1),(INDEX(Data!$K$33:$K$82,$D44,1)+INDEX(Data!$L$33:$L$82,$D44,1)+INDEX(Data!$M$33:$M$82,$D44,1)+INDEX(Data!$N$33:$N$82,$D44,1))/(5*$E44)),"") -> 119 | K44: =IFERROR(INDEX(Data!$K$33:$K$82,$D44,1)/(5*$E44),"") -> 0.07368421053 | L44: =IFERROR(INDEX(Data!$L$33:$L$82,$D44,1)/(5*$E44),"") -> 0.1368421053 | M44: =IFERROR(INDEX(Data!$M$33:$M$82,$D44,1)/(5*$E44),"") -> 0.3315789474 | N44: =IFERROR(INDEX(Data!$N$33:$N$82,$D44,1)/(5*$E44),"") -> 0.08421052632 | O44: 0 | R44: 0 | U44: 0
B45: ='Report A'!$B46 -> 2014-07-15 | C45: ='Report A'!$C46 -> Tuesday | D45: ='Report A'!$D46 -> 15 | E45: =IFERROR(INDEX(Data!$J$33:$J$82,$D45,1),"") -> 38 | F45: =IFERROR(IF($G$16=TRUE,INDEX(Data!$K$33:$K$82,$D45,1),INDEX(Data!$K$33:$K$82,$D45,1)/$E45),"") -> 34 | G45: =IFERROR(IF($G$16=TRUE,INDEX(Data!$L$33:$L$82,$D45,1),INDEX(Data!$L$33:$L$82,$D45,1)/(2*$E45)),"") -> 31 | H45: =IFERROR(IF($G$16=TRUE,INDEX(Data!$M$33:$M$82,$D45,1),INDEX(Data!$M$33:$M$82,$D45,1)/$E45),"") -> 30 | I45: =IFERROR(IF($G$16=TRUE,INDEX(Data!$N$33:$N$82,$D45,1),INDEX(Data!$N$33:$N$82,$D45,1)/$E45),"") -> 9 | J45: =IFERROR(IF($G$16=TRUE,INDEX(Data!$K$33:$K$82,$D45,1)+INDEX(Data!$L$33:$L$82,$D45,1)+INDEX(Data!$M$33:$M$82,$D45,1)+INDEX(Data!$N$33:$N$82,$D45,1),(INDEX(Data!$K$33:$K$82,$D45,1)+INDEX(Data!$L$33:$L$82,$D45,1)+INDEX(Data!$M$33:$M$82,$D45,1)+INDEX(Data!$N$33:$N$82,$D45,1))/(5*$E45)),"") -> 104 | K45: =IFERROR(INDEX(Data!$K$33:$K$82,$D45,1)/(5*$E45),"") -> 0.1789473684 | L45: =IFERROR(INDEX(Data!$L$33:$L$82,$D45,1)/(5*$E45),"") -> 0.1631578947 | M45: =IFERROR(INDEX(Data!$M$33:$M$82,$D45,1)/(5*$E45),"") -> 0.1578947368 | N45: =IFERROR(INDEX(Data!$N$33:$N$82,$D45,1)/(5*$E45),"") -> 0.04736842105 | O45: 0 | R45: 0 | U45: 0
B46: ='Report A'!$B47 -> 2014-07-16 | C46: ='Report A'!$C47 -> Wednesday | D46: ='Report A'!$D47 -> 16 | E46: =IFERROR(INDEX(Data!$J$33:$J$82,$D46,1),"") -> 38 | F46: =IFERROR(IF($G$16=TRUE,INDEX(Data!$K$33:$K$82,$D46,1),INDEX(Data!$K$33:$K$82,$D46,1)/$E46),"") -> 11 | G46: =IFERROR(IF($G$16=TRUE,INDEX(Data!$L$33:$L$82,$D46,1),INDEX(Data!$L$33:$L$82,$D46,1)/(2*$E46)),"") -> 29 | H46: =IFERROR(IF($G$16=TRUE,INDEX(Data!$M$33:$M$82,$D46,1),INDEX(Data!$M$33:$M$82,$D46,1)/$E46),"") -> 27 | I46: =IFERROR(IF($G$16=TRUE,INDEX(Data!$N$33:$N$82,$D46,1),INDEX(Data!$N$33:$N$82,$D46,1)/$E46),"") -> 17 | J46: =IFERROR(IF($G$16=TRUE,INDEX(Data!$K$33:$K$82,$D46,1)+INDEX(Data!$L$33:$L$82,$D46,1)+INDEX(Data!$M$33:$M$82,$D46,1)+INDEX(Data!$N$33:$N$82,$D46,1),(INDEX(Data!$K$33:$K$82,$D46,1)+INDEX(Data!$L$33:$L$82,$D46,1)+INDEX(Data!$M$33:$M$82,$D46,1)+INDEX(Data!$N$33:$N$82,$D46,1))/(5*$E46)),"") -> 84 | K46: =IFERROR(INDEX(Data!$K$33:$K$82,$D46,1)/(5*$E46),"") -> 0.05789473684 | L46: =IFERROR(INDEX(Data!$L$33:$L$82,$D46,1)/(5*$E46),"") -> 0.1526315789 | M46: =IFERROR(INDEX(Data!$M$33:$M$82,$D46,1)/(5*$E46),"") -> 0.1421052632 | N46: =IFERROR(INDEX(Data!$N$33:$N$82,$D46,1)/(5*$E46),"") -> 0.08947368421 | O46: 0 | R46: 0 | U46: 0
B47: ='Report A'!$B48 -> 2014-07-17 | C47: ='Report A'!$C48 -> Thursday | D47: ='Report A'!$D48 -> 17 | E47: =IFERROR(INDEX(Data!$J$33:$J$82,$D47,1),"") -> 38 | F47: =IFERROR(IF($G$16=TRUE,INDEX(Data!$K$33:$K$82,$D47,1),INDEX(Data!$K$33:$K$82,$D47,1)/$E47),"") -> 8 | G47: =IFERROR(IF($G$16=TRUE,INDEX(Data!$L$33:$L$82,$D47,1),INDEX(Data!$L$33:$L$82,$D47,1)/(2*$E47)),"") -> 18 | H47: =IFERROR(IF($G$16=TRUE,INDEX(Data!$M$33:$M$82,$D47,1),INDEX(Data!$M$33:$M$82,$D47,1)/$E47),"") -> 32 | I47: =IFERROR(IF($G$16=TRUE,INDEX(Data!$N$33:$N$82,$D47,1),INDEX(Data!$N$33:$N$82,$D47,1)/$E47),"") -> 14 | J47: =IFERROR(IF($G$16=TRUE,INDEX(Data!$K$33:$K$82,$D47,1)+INDEX(Data!$L$33:$L$82,$D47,1)+INDEX(Data!$M$33:$M$82,$D47,1)+INDEX(Data!$N$33:$N$82,$D47,1),(INDEX(Data!$K$33:$K$82,$D47,1)+INDEX(Data!$L$33:$L$82,$D47,1)+INDEX(Data!$M$33:$M$82,$D47,1)+INDEX(Data!$N$33:$N$82,$D47,1))/(5*$E47)),"") -> 72 | K47: =IFERROR(INDEX(Data!$K$33:$K$82,$D47,1)/(5*$E47),"") -> 0.04210526316 | L47: =IFERROR(INDEX(Data!$L$33:$L$82,$D47,1)/(5*$E47),"") -> 0.09473684211 | M47: =IFERROR(INDEX(Data!$M$33:$M$82,$D47,1)/(5*$E47),"") -> 0.1684210526 | N47: =IFERROR(INDEX(Data!$N$33:$N$82,$D47,1)/(5*$E47),"") -> 0.07368421053 | O47: 0 | R47: 0 | U47: 0
B48: ='Report A'!$B49 -> 2014-07-18 | C48: ='Report A'!$C49 -> Friday | D48: ='Report A'!$D49 -> 18 | E48: =IFERROR(INDEX(Data!$J$33:$J$82,$D48,1),"") -> 38 | F48: =IFERROR(IF($G$16=TRUE,INDEX(Data!$K$33:$K$82,$D48,1),INDEX(Data!$K$33:$K$82,$D48,1)/$E48),"") -> 14 | G48: =IFERROR(IF($G$16=TRUE,INDEX(Data!$L$33:$L$82,$D48,1),INDEX(Data!$L$33:$L$82,$D48,1)/(2*$E48)),"") -> 31 | H48: =IFERROR(IF($G$16=TRUE,INDEX(Data!$M$33:$M$82,$D48,1),INDEX(Data!$M$33:$M$82,$D48,1)/$E48),"") -> 55 | I48: =IFERROR(IF($G$16=TRUE,INDEX(Data!$N$33:$N$82,$D48,1),INDEX(Data!$N$33:$N$82,$D48,1)/$E48),"") -> 14 | J48: =IFERROR(IF($G$16=TRUE,INDEX(Data!$K$33:$K$82,$D48,1)+INDEX(Data!$L$33:$L$82,$D48,1)+INDEX(Data!$M$33:$M$82,$D48,1)+INDEX(Data!$N$33:$N$82,$D48,1),(INDEX(Data!$K$33:$K$82,$D48,1)+INDEX(Data!$L$33:$L$82,$D48,1)+INDEX(Data!$M$33:$M$82,$D48,1)+INDEX(Data!$N$33:$N$82,$D48,1))/(5*$E48)),"") -> 114 | K48: =IFERROR(INDEX(Data!$K$33:$K$82,$D48,1)/(5*$E48),"") -> 0.07368421053 | L48: =IFERROR(INDEX(Data!$L$33:$L$82,$D48,1)/(5*$E48),"") -> 0.1631578947 | M48: =IFERROR(INDEX(Data!$M$33:$M$82,$D48,1)/(5*$E48),"") -> 0.2894736842 | N48: =IFERROR(INDEX(Data!$N$33:$N$82,$D48,1)/(5*$E48),"") -> 0.07368421053 | O48: 0 | R48: 0 | U48: 0
B49: ='Report A'!$B50 -> 2014-07-19 | C49: ='Report A'!$C50 -> Saturday | D49: ='Report A'!$D50 -> 19 | E49: =IFERROR(INDEX(Data!$J$33:$J$82,$D49,1),"") -> 38 | F49: =IFERROR(IF($G$16=TRUE,INDEX(Data!$K$33:$K$82,$D49,1),INDEX(Data!$K$33:$K$82,$D49,1)/$E49),"") -> 14 | G49: =IFERROR(IF($G$16=TRUE,INDEX(Data!$L$33:$L$82,$D49,1),INDEX(Data!$L$33:$L$82,$D49,1)/(2*$E49)),"") -> 29 | H49: =IFERROR(IF($G$16=TRUE,INDEX(Data!$M$33:$M$82,$D49,1),INDEX(Data!$M$33:$M$82,$D49,1)/$E49),"") -> 60 | I49: =IFERROR(IF($G$16=TRUE,INDEX(Data!$N$33:$N$82,$D49,1),INDEX(Data!$N$33:$N$82,$D49,1)/$E49),"") -> 24 | J49: =IFERROR(IF($G$16=TRUE,INDEX(Data!$K$33:$K$82,$D49,1)+INDEX(Data!$L$33:$L$82,$D49,1)+INDEX(Data!$M$33:$M$82,$D49,1)+INDEX(Data!$N$33:$N$82,$D49,1),(INDEX(Data!$K$33:$K$82,$D49,1)+INDEX(Data!$L$33:$L$82,$D49,1)+INDEX(Data!$M$33:$M$82,$D49,1)+INDEX(Data!$N$33:$N$82,$D49,1))/(5*$E49)),"") -> 127 | K49: =IFERROR(INDEX(Data!$K$33:$K$82,$D49,1)/(5*$E49),"") -> 0.07368421053 | L49: =IFERROR(INDEX(Data!$L$33:$L$82,$D49,1)/(5*$E49),"") -> 0.1526315789 | M49: =IFERROR(INDEX(Data!$M$33:$M$82,$D49,1)/(5*$E49),"") -> 0.3157894737 | N49: =IFERROR(INDEX(Data!$N$33:$N$82,$D49,1)/(5*$E49),"") -> 0.1263157895 | O49: 0 | R49: 0 | U49: 0
B50: ='Report A'!$B51 -> 2014-07-20 | C50: ='Report A'!$C51 -> Sunday | D50: ='Report A'!$D51 -> 20 | E50: =IFERROR(INDEX(Data!$J$33:$J$82,$D50,1),"") -> 38 | F50: =IFERROR(IF($G$16=TRUE,INDEX(Data!$K$33:$K$82,$D50,1),INDEX(Data!$K$33:$K$82,$D50,1)/$E50),"") -> 28 | G50: =IFERROR(IF($G$16=TRUE,INDEX(Data!$L$33:$L$82,$D50,1),INDEX(Data!$L$33:$L$82,$D50,1)/(2*$E50)),"") -> 23 | H50: =IFERROR(IF($G$16=TRUE,INDEX(Data!$M$33:$M$82,$D50,1),INDEX(Data!$M$33:$M$82,$D50,1)/$E50),"") -> 34 | I50: =IFERROR(IF($G$16=TRUE,INDEX(Data!$N$33:$N$82,$D50,1),INDEX(Data!$N$33:$N$82,$D50,1)/$E50),"") -> 17 | J50: =IFERROR(IF($G$16=TRUE,INDEX(Data!$K$33:$K$82,$D50,1)+INDEX(Data!$L$33:$L$82,$D50,1)+INDEX(Data!$M$33:$M$82,$D50,1)+INDEX(Data!$N$33:$N$82,$D50,1),(INDEX(Data!$K$33:$K$82,$D50,1)+INDEX(Data!$L$33:$L$82,$D50,1)+INDEX(Data!$M$33:$M$82,$D50,1)+INDEX(Data!$N$33:$N$82,$D50,1))/(5*$E50)),"") -> 102 | K50: =IFERROR(INDEX(Data!$K$33:$K$82,$D50,1)/(5*$E50),"") -> 0.1473684211 | L50: =IFERROR(INDEX(Data!$L$33:$L$82,$D50,1)/(5*$E50),"") -> 0.1210526316 | M50: =IFERROR(INDEX(Data!$M$33:$M$82,$D50,1)/(5*$E50),"") -> 0.1789473684 | N50: =IFERROR(INDEX(Data!$N$33:$N$82,$D50,1)/(5*$E50),"") -> 0.08947368421 | O50: 0 | R50: 0 | U50: 0
B51: ='Report A'!$B52 -> 2014-07-21 | C51: ='Report A'!$C52 -> Monday | D51: ='Report A'!$D52 -> 21 | E51: =IFERROR(INDEX(Data!$J$33:$J$82,$D51,1),"") -> 38 | F51: =IFERROR(IF($G$16=TRUE,INDEX(Data!$K$33:$K$82,$D51,1),INDEX(Data!$K$33:$K$82,$D51,1)/$E51),"") -> 16 | G51: =IFERROR(IF($G$16=TRUE,INDEX(Data!$L$33:$L$82,$D51,1),INDEX(Data!$L$33:$L$82,$D51,1)/(2*$E51)),"") -> 12 | H51: =IFERROR(IF($G$16=TRUE,INDEX(Data!$M$33:$M$82,$D51,1),INDEX(Data!$M$33:$M$82,$D51,1)/$E51),"") -> 23 | I51: =IFERROR(IF($G$16=TRUE,INDEX(Data!$N$33:$N$82,$D51,1),INDEX(Data!$N$33:$N$82,$D51,1)/$E51),"") -> 12 | J51: =IFERROR(IF($G$16=TRUE,INDEX(Data!$K$33:$K$82,$D51,1)+INDEX(Data!$L$33:$L$82,$D51,1)+INDEX(Data!$M$33:$M$82,$D51,1)+INDEX(Data!$N$33:$N$82,$D51,1),(INDEX(Data!$K$33:$K$82,$D51,1)+INDEX(Data!$L$33:$L$82,$D51,1)+INDEX(Data!$M$33:$M$82,$D51,1)+INDEX(Data!$N$33:$N$82,$D51,1))/(5*$E51)),"") -> 63 | K51: =IFERROR(INDEX(Data!$K$33:$K$82,$D51,1)/(5*$E51),"") -> 0.08421052632 | L51: =IFERROR(INDEX(Data!$L$33:$L$82,$D51,1)/(5*$E51),"") -> 0.06315789474 | M51: =IFERROR(INDEX(Data!$M$33:$M$82,$D51,1)/(5*$E51),"") -> 0.1210526316 | N51: =IFERROR(INDEX(Data!$N$33:$N$82,$D51,1)/(5*$E51),"") -> 0.06315789474 | O51: 0 | R51: 0 | U51: 0
B52: ='Report A'!$B53 -> 2014-07-22 | C52: ='Report A'!$C53 -> Tuesday | D52: ='Report A'!$D53 -> 22 | E52: =IFERROR(INDEX(Data!$J$33:$J$82,$D52,1),"") -> 38 | F52: =IFERROR(IF($G$16=TRUE,INDEX(Data!$K$33:$K$82,$D52,1),INDEX(Data!$K$33:$K$82,$D52,1)/$E52),"") -> 15 | G52: =IFERROR(IF($G$16=TRUE,INDEX(Data!$L$33:$L$82,$D52,1),INDEX(Data!$L$33:$L$82,$D52,1)/(2*$E52)),"") -> 15 | H52: =IFERROR(IF($G$16=TRUE,INDEX(Data!$M$33:$M$82,$D52,1),INDEX(Data!$M$33:$M$82,$D52,1)/$E52),"") -> 39 | I52: =IFERROR(IF($G$16=TRUE,INDEX(Data!$N$33:$N$82,$D52,1),INDEX(Data!$N$33:$N$82,$D52,1)/$E52),"") -> 13 | J52: =IFERROR(IF($G$16=TRUE,INDEX(Data!$K$33:$K$82,$D52,1)+INDEX(Data!$L$33:$L$82,$D52,1)+INDEX(Data!$M$33:$M$82,$D52,1)+INDEX(Data!$N$33:$N$82,$D52,1),(INDEX(Data!$K$33:$K$82,$D52,1)+INDEX(Data!$L$33:$L$82,$D52,1)+INDEX(Data!$M$33:$M$82,$D52,1)+INDEX(Data!$N$33:$N$82,$D52,1))/(5*$E52)),"") -> 82 | K52: =IFERROR(INDEX(Data!$K$33:$K$82,$D52,1)/(5*$E52),"") -> 0.07894736842 | L52: =IFERROR(INDEX(Data!$L$33:$L$82,$D52,1)/(5*$E52),"") -> 0.07894736842 | M52: =IFERROR(INDEX(Data!$M$33:$M$82,$D52,1)/(5*$E52),"") -> 0.2052631579 | N52: =IFERROR(INDEX(Data!$N$33:$N$82,$D52,1)/(5*$E52),"") -> 0.06842105263 | O52: 0 | R52: 0 | U52: 0
B53: ='Report A'!$B54 -> 2014-07-23 | C53: ='Report A'!$C54 -> Wednesday | D53: ='Report A'!$D54 -> 23 | E53: =IFERROR(INDEX(Data!$J$33:$J$82,$D53,1),"") -> 38 | F53: =IFERROR(IF($G$16=TRUE,INDEX(Data!$K$33:$K$82,$D53,1),INDEX(Data!$K$33:$K$82,$D53,1)/$E53),"") -> 16 | G53: =IFERROR(IF($G$16=TRUE,INDEX(Data!$L$33:$L$82,$D53,1),INDEX(Data!$L$33:$L$82,$D53,1)/(2*$E53)),"") -> 22 | H53: =IFERROR(IF($G$16=TRUE,INDEX(Data!$M$33:$M$82,$D53,1),INDEX(Data!$M$33:$M$82,$D53,1)/$E53),"") -> 28 | I53: =IFERROR(IF($G$16=TRUE,INDEX(Data!$N$33:$N$82,$D53,1),INDEX(Data!$N$33:$N$82,$D53,1)/$E53),"") -> 4 | J53: =IFERROR(IF($G$16=TRUE,INDEX(Data!$K$33:$K$82,$D53,1)+INDEX(Data!$L$33:$L$82,$D53,1)+INDEX(Data!$M$33:$M$82,$D53,1)+INDEX(Data!$N$33:$N$82,$D53,1),(INDEX(Data!$K$33:$K$82,$D53,1)+INDEX(Data!$L$33:$L$82,$D53,1)+INDEX(Data!$M$33:$M$82,$D53,1)+INDEX(Data!$N$33:$N$82,$D53,1))/(5*$E53)),"") -> 70 | K53: =IFERROR(INDEX(Data!$K$33:$K$82,$D53,1)/(5*$E53),"") -> 0.08421052632 | L53: =IFERROR(INDEX(Data!$L$33:$L$82,$D53,1)/(5*$E53),"") -> 0.1157894737 | M53: =IFERROR(INDEX(Data!$M$33:$M$82,$D53,1)/(5*$E53),"") -> 0.1473684211 | N53: =IFERROR(INDEX(Data!$N$33:$N$82,$D53,1)/(5*$E53),"") -> 0.02105263158 | O53: 0 | R53: 0 | U53: 0
B54: ='Report A'!$B55 -> 2014-07-24 | C54: ='Report A'!$C55 -> Thursday | D54: ='Report A'!$D55 -> 24 | E54: =IFERROR(INDEX(Data!$J$33:$J$82,$D54,1),"") -> 38 | F54: =IFERROR(IF($G$16=TRUE,INDEX(Data!$K$33:$K$82,$D54,1),INDEX(Data!$K$33:$K$82,$D54,1)/$E54),"") -> 17 | G54: =IFERROR(IF($G$16=TRUE,INDEX(Data!$L$33:$L$82,$D54,1),INDEX(Data!$L$33:$L$82,$D54,1)/(2*$E54)),"") -> 24 | H54: =IFERROR(IF($G$16=TRUE,INDEX(Data!$M$33:$M$82,$D54,1),INDEX(Data!$M$33:$M$82,$D54,1)/$E54),"") -> 45 | I54: =IFERROR(IF($G$16=TRUE,INDEX(Data!$N$33:$N$82,$D54,1),INDEX(Data!$N$33:$N$82,$D54,1)/$E54),"") -> 19 | J54: =IFERROR(IF($G$16=TRUE,INDEX(Data!$K$33:$K$82,$D54,1)+INDEX(Data!$L$33:$L$82,$D54,1)+INDEX(Data!$M$33:$M$82,$D54,1)+INDEX(Data!$N$33:$N$82,$D54,1),(INDEX(Data!$K$33:$K$82,$D54,1)+INDEX(Data!$L$33:$L$82,$D54,1)+INDEX(Data!$M$33:$M$82,$D54,1)+INDEX(Data!$N$33:$N$82,$D54,1))/(5*$E54)),"") -> 105 | K54: =IFERROR(INDEX(Data!$K$33:$K$82,$D54,1)/(5*$E54),"") -> 0.08947368421 | L54: =IFERROR(INDEX(Data!$L$33:$L$82,$D54,1)/(5*$E54),"") -> 0.1263157895 | M54: =IFERROR(INDEX(Data!$M$33:$M$82,$D54,1)/(5*$E54),"") -> 0.2368421053 | N54: =IFERROR(INDEX(Data!$N$33:$N$82,$D54,1)/(5*$E54),"") -> 0.1 | O54: 0 | R54: 0 | U54: 0
B55: ='Report A'!$B56 -> 2014-07-25 | C55: ='Report A'!$C56 -> Friday | D55: ='Report A'!$D56 -> 25 | E55: =IFERROR(INDEX(Data!$J$33:$J$82,$D55,1),"") -> 38 | F55: =IFERROR(IF($G$16=TRUE,INDEX(Data!$K$33:$K$82,$D55,1),INDEX(Data!$K$33:$K$82,$D55,1)/$E55),"") -> 25 | G55: =IFERROR(IF($G$16=TRUE,INDEX(Data!$L$33:$L$82,$D55,1),INDEX(Data!$L$33:$L$82,$D55,1)/(2*$E55)),"") -> 29 | H55: =IFERROR(IF($G$16=TRUE,INDEX(Data!$M$33:$M$82,$D55,1),INDEX(Data!$M$33:$M$82,$D55,1)/$E55),"") -> 65 | I55: =IFERROR(IF($G$16=TRUE,INDEX(Data!$N$33:$N$82,$D55,1),INDEX(Data!$N$33:$N$82,$D55,1)/$E55),"") -> 11 | J55: =IFERROR(IF($G$16=TRUE,INDEX(Data!$K$33:$K$82,$D55,1)+INDEX(Data!$L$33:$L$82,$D55,1)+INDEX(Data!$M$33:$M$82,$D55,1)+INDEX(Data!$N$33:$N$82,$D55,1),(INDEX(Data!$K$33:$K$82,$D55,1)+INDEX(Data!$L$33:$L$82,$D55,1)+INDEX(Data!$M$33:$M$82,$D55,1)+INDEX(Data!$N$33:$N$82,$D55,1))/(5*$E55)),"") -> 130 | K55: =IFERROR(INDEX(Data!$K$33:$K$82,$D55,1)/(5*$E55),"") -> 0.1315789474 | L55: =IFERROR(INDEX(Data!$L$33:$L$82,$D55,1)/(5*$E55),"") -> 0.1526315789 | M55: =IFERROR(INDEX(Data!$M$33:$M$82,$D55,1)/(5*$E55),"") -> 0.3421052632 | N55: =IFERROR(INDEX(Data!$N$33:$N$82,$D55,1)/(5*$E55),"") -> 0.05789473684 | O55: 0 | R55: 0 | U55: 0
B56: ='Report A'!$B57 -> 2014-07-26 | C56: ='Report A'!$C57 -> Saturday | D56: ='Report A'!$D57 -> 26 | E56: =IFERROR(INDEX(Data!$J$33:$J$82,$D56,1),"") -> 38 | F56: =IFERROR(IF($G$16=TRUE,INDEX(Data!$K$33:$K$82,$D56,1),INDEX(Data!$K$33:$K$82,$D56,1)/$E56),"") -> 29 | G56: =IFERROR(IF($G$16=TRUE,INDEX(Data!$L$33:$L$82,$D56,1),INDEX(Data!$L$33:$L$82,$D56,1)/(2*$E56)),"") -> 18 | H56: =IFERROR(IF($G$16=TRUE,INDEX(Data!$M$33:$M$82,$D56,1),INDEX(Data!$M$33:$M$82,$D56,1)/$E56),"") -> 62 | I56: =IFERROR(IF($G$16=TRUE,INDEX(Data!$N$33:$N$82,$D56,1),INDEX(Data!$N$33:$N$82,$D56,1)/$E56),"") -> 18 | J56: =IFERROR(IF($G$16=TRUE,INDEX(Data!$K$33:$K$82,$D56,1)+INDEX(Data!$L$33:$L$82,$D56,1)+INDEX(Data!$M$33:$M$82,$D56,1)+INDEX(Data!$N$33:$N$82,$D56,1),(INDEX(Data!$K$33:$K$82,$D56,1)+INDEX(Data!$L$33:$L$82,$D56,1)+INDEX(Data!$M$33:$M$82,$D56,1)+INDEX(Data!$N$33:$N$82,$D56,1))/(5*$E56)),"") -> 127 | K56: =IFERROR(INDEX(Data!$K$33:$K$82,$D56,1)/(5*$E56),"") -> 0.1526315789 | L56: =IFERROR(INDEX(Data!$L$33:$L$82,$D56,1)/(5*$E56),"") -> 0.09473684211 | M56: =IFERROR(INDEX(Data!$M$33:$M$82,$D56,1)/(5*$E56),"") -> 0.3263157895 | N56: =IFERROR(INDEX(Data!$N$33:$N$82,$D56,1)/(5*$E56),"") -> 0.09473684211 | O56: 0 | R56: 0 | U56: 0
B57: ='Report A'!$B58 -> 2014-07-27 | C57: ='Report A'!$C58 -> Sunday | D57: ='Report A'!$D58 -> 27 | E57: =IFERROR(INDEX(Data!$J$33:$J$82,$D57,1),"") -> 38 | F57: =IFERROR(IF($G$16=TRUE,INDEX(Data!$K$33:$K$82,$D57,1),INDEX(Data!$K$33:$K$82,$D57,1)/$E57),"") -> 28 | G57: =IFERROR(IF($G$16=TRUE,INDEX(Data!$L$33:$L$82,$D57,1),INDEX(Data!$L$33:$L$82,$D57,1)/(2*$E57)),"") -> 29 | H57: =IFERROR(IF($G$16=TRUE,INDEX(Data!$M$33:$M$82,$D57,1),INDEX(Data!$M$33:$M$82,$D57,1)/$E57),"") -> 63 | I57: =IFERROR(IF($G$16=TRUE,INDEX(Data!$N$33:$N$82,$D57,1),INDEX(Data!$N$33:$N$82,$D57,1)/$E57),"") -> 15 | J57: =IFERROR(IF($G$16=TRUE,INDEX(Data!$K$33:$K$82,$D57,1)+INDEX(Data!$L$33:$L$82,$D57,1)+INDEX(Data!$M$33:$M$82,$D57,1)+INDEX(Data!$N$33:$N$82,$D57,1),(INDEX(Data!$K$33:$K$82,$D57,1)+INDEX(Data!$L$33:$L$82,$D57,1)+INDEX(Data!$M$33:$M$82,$D57,1)+INDEX(Data!$N$33:$N$82,$D57,1))/(5*$E57)),"") -> 135 | K57: =IFERROR(INDEX(Data!$K$33:$K$82,$D57,1)/(5*$E57),"") -> 0.1473684211 | L57: =IFERROR(INDEX(Data!$L$33:$L$82,$D57,1)/(5*$E57),"") -> 0.1526315789 | M57: =IFERROR(INDEX(Data!$M$33:$M$82,$D57,1)/(5*$E57),"") -> 0.3315789474 | N57: =IFERROR(INDEX(Data!$N$33:$N$82,$D57,1)/(5*$E57),"") -> 0.07894736842 | O57: 0 | R57: 0 | U57: 0
B58: ='Report A'!$B59 -> 2014-07-28 | C58: ='Report A'!$C59 -> Monday | D58: ='Report A'!$D59 -> 28 | E58: =IFERROR(INDEX(Data!$J$33:$J$82,$D58,1),"") -> 38 | F58: =IFERROR(IF($G$16=TRUE,INDEX(Data!$K$33:$K$82,$D58,1),INDEX(Data!$K$33:$K$82,$D58,1)/$E58),"") -> 30 | G58: =IFERROR(IF($G$16=TRUE,INDEX(Data!$L$33:$L$82,$D58,1),INDEX(Data!$L$33:$L$82,$D58,1)/(2*$E58)),"") -> 41 | H58: =IFERROR(IF($G$16=TRUE,INDEX(Data!$M$33:$M$82,$D58,1),INDEX(Data!$M$33:$M$82,$D58,1)/$E58),"") -> 64 | I58: =IFERROR(IF($G$16=TRUE,INDEX(Data!$N$33:$N$82,$D58,1),INDEX(Data!$N$33:$N$82,$D58,1)/$E58),"") -> 22 | J58: =IFERROR(IF($G$16=TRUE,INDEX(Data!$K$33:$K$82,$D58,1)+INDEX(Data!$L$33:$L$82,$D58,1)+INDEX(Data!$M$33:$M$82,$D58,1)+INDEX(Data!$N$33:$N$82,$D58,1),(INDEX(Data!$K$33:$K$82,$D58,1)+INDEX(Data!$L$33:$L$82,$D58,1)+INDEX(Data!$M$33:$M$82,$D58,1)+INDEX(Data!$N$33:$N$82,$D58,1))/(5*$E58)),"") -> 157 | K58: =IFERROR(INDEX(Data!$K$33:$K$82,$D58,1)/(5*$E58),"") -> 0.1578947368 | L58: =IFERROR(INDEX(Data!$L$33:$L$82,$D58,1)/(5*$E58),"") -> 0.2157894737 | M58: =IFERROR(INDEX(Data!$M$33:$M$82,$D58,1)/(5*$E58),"") -> 0.3368421053 | N58: =IFERROR(INDEX(Data!$N$33:$N$82,$D58,1)/(5*$E58),"") -> 0.1157894737 | O58: 0 | R58: 0 | U58: 0
B59: ='Report A'!$B60 -> 2014-07-29 | C59: ='Report A'!$C60 -> Tuesday | D59: ='Report A'!$D60 -> 29 | E59: =IFERROR(INDEX(Data!$J$33:$J$82,$D59,1),"") -> 38 | F59: =IFERROR(IF($G$16=TRUE,INDEX(Data!$K$33:$K$82,$D59,1),INDEX(Data!$K$33:$K$82,$D59,1)/$E59),"") -> 33 | G59: =IFERROR(IF($G$16=TRUE,INDEX(Data!$L$33:$L$82,$D59,1),INDEX(Data!$L$33:$L$82,$D59,1)/(2*$E59)),"") -> 38 | H59: =IFERROR(IF($G$16=TRUE,INDEX(Data!$M$33:$M$82,$D59,1),INDEX(Data!$M$33:$M$82,$D59,1)/$E59),"") -> 45 | I59: =IFERROR(IF($G$16=TRUE,INDEX(Data!$N$33:$N$82,$D59,1),INDEX(Data!$N$33:$N$82,$D59,1)/$E59),"") -> 13 | J59: =IFERROR(IF($G$16=TRUE,INDEX(Data!$K$33:$K$82,$D59,1)+INDEX(Data!$L$33:$L$82,$D59,1)+INDEX(Data!$M$33:$M$82,$D59,1)+INDEX(Data!$N$33:$N$82,$D59,1),(INDEX(Data!$K$33:$K$82,$D59,1)+INDEX(Data!$L$33:$L$82,$D59,1)+INDEX(Data!$M$33:$M$82,$D59,1)+INDEX(Data!$N$33:$N$82,$D59,1))/(5*$E59)),"") -> 129 | K59: =IFERROR(INDEX(Data!$K$33:$K$82,$D59,1)/(5*$E59),"") -> 0.1736842105 | L59: =IFERROR(INDEX(Data!$L$33:$L$82,$D59,1)/(5*$E59),"") -> 0.2 | M59: =IFERROR(INDEX(Data!$M$33:$M$82,$D59,1)/(5*$E59),"") -> 0.2368421053 | N59: =IFERROR(INDEX(Data!$N$33:$N$82,$D59,1)/(5*$E59),"") -> 0.06842105263 | O59: 0 | R59: 0 | U59: 0
B60: ='Report A'!$B61 -> 2014-07-30 | C60: ='Report A'!$C61 -> Wednesday | D60: ='Report A'!$D61 -> 30 | E60: =IFERROR(INDEX(Data!$J$33:$J$82,$D60,1),"") -> 38 | F60: =IFERROR(IF($G$16=TRUE,INDEX(Data!$K$33:$K$82,$D60,1),INDEX(Data!$K$33:$K$82,$D60,1)/$E60),"") -> 30 | G60: =IFERROR(IF($G$16=TRUE,INDEX(Data!$L$33:$L$82,$D60,1),INDEX(Data!$L$33:$L$82,$D60,1)/(2*$E60)),"") -> 37 | H60: =IFERROR(IF($G$16=TRUE,INDEX(Data!$M$33:$M$82,$D60,1),INDEX(Data!$M$33:$M$82,$D60,1)/$E60),"") -> 45 | I60: =IFERROR(IF($G$16=TRUE,INDEX(Data!$N$33:$N$82,$D60,1),INDEX(Data!$N$33:$N$82,$D60,1)/$E60),"") -> 18 | J60: =IFERROR(IF($G$16=TRUE,INDEX(Data!$K$33:$K$82,$D60,1)+INDEX(Data!$L$33:$L$82,$D60,1)+INDEX(Data!$M$33:$M$82,$D60,1)+INDEX(Data!$N$33:$N$82,$D60,1),(INDEX(Data!$K$33:$K$82,$D60,1)+INDEX(Data!$L$33:$L$82,$D60,1)+INDEX(Data!$M$33:$M$82,$D60,1)+INDEX(Data!$N$33:$N$82,$D60,1))/(5*$E60)),"") -> 130 | K60: =IFERROR(INDEX(Data!$K$33:$K$82,$D60,1)/(5*$E60),"") -> 0.1578947368 | L60: =IFERROR(INDEX(Data!$L$33:$L$82,$D60,1)/(5*$E60),"") -> 0.1947368421 | M60: =IFERROR(INDEX(Data!$M$33:$M$82,$D60,1)/(5*$E60),"") -> 0.2368421053 | N60: =IFERROR(INDEX(Data!$N$33:$N$82,$D60,1)/(5*$E60),"") -> 0.09473684211 | O60: 0 | R60: 0 | U60: 0
B61: ='Report A'!$B62 -> 2014-07-31 | C61: ='Report A'!$C62 -> Thursday | D61: ='Report A'!$D62 -> 31 | E61: =IFERROR(INDEX(Data!$J$33:$J$82,$D61,1),"") -> 38 | F61: =IFERROR(IF($G$16=TRUE,INDEX(Data!$K$33:$K$82,$D61,1),INDEX(Data!$K$33:$K$82,$D61,1)/$E61),"") -> 25 | G61: =IFERROR(IF($G$16=TRUE,INDEX(Data!$L$33:$L$82,$D61,1),INDEX(Data!$L$33:$L$82,$D61,1)/(2*$E61)),"") -> 33 | H61: =IFERROR(IF($G$16=TRUE,INDEX(Data!$M$33:$M$82,$D61,1),INDEX(Data!$M$33:$M$82,$D61,1)/$E61),"") -> 50 | I61: =IFERROR(IF($G$16=TRUE,INDEX(Data!$N$33:$N$82,$D61,1),INDEX(Data!$N$33:$N$82,$D61,1)/$E61),"") -> 14 | J61: =IFERROR(IF($G$16=TRUE,INDEX(Data!$K$33:$K$82,$D61,1)+INDEX(Data!$L$33:$L$82,$D61,1)+INDEX(Data!$M$33:$M$82,$D61,1)+INDEX(Data!$N$33:$N$82,$D61,1),(INDEX(Data!$K$33:$K$82,$D61,1)+INDEX(Data!$L$33:$L$82,$D61,1)+INDEX(Data!$M$33:$M$82,$D61,1)+INDEX(Data!$N$33:$N$82,$D61,1))/(5*$E61)),"") -> 122 | K61: =IFERROR(INDEX(Data!$K$33:$K$82,$D61,1)/(5*$E61),"") -> 0.1315789474 | L61: =IFERROR(INDEX(Data!$L$33:$L$82,$D61,1)/(5*$E61),"") -> 0.1736842105 | M61: =IFERROR(INDEX(Data!$M$33:$M$82,$D61,1)/(5*$E61),"") -> 0.2631578947 | N61: =IFERROR(INDEX(Data!$N$33:$N$82,$D61,1)/(5*$E61),"") -> 0.07368421053 | O61: 0 | R61: 0 | U61: 0

Sheet Report C
C3: MONTHLY SALES REPORTING BY OUTLET
B6: SUBJECT | C6: REPORT C : PAX BY CATEGORY AND AVERAGE PAX PER ROOM
B8: OUTLET | C8: =Data!$C$8 -> SBA
B10: MONTH / YEAR | C10: =Data!$C$10 -> July 2014
B12: MENU
B14: DATE | C14: DAY | D14: ROW | E14: TOTAL PAX PER SESSION BY CATEGORY | J14: AVERAGE PAX PER ROOM BY ALL CATEGORY | O14: ="CHART : PAX BY "&$G$15&" ( CATEGORY ) AND AVERAGE PAX PER ROOM" -> CHART : PAX BY ALL ( CATEGORY ) AND AVERAGE PAX PER ROOM
E15: CHOOSE CATEGORY | G15: ALL
E16: NOON K | F16: HAPPY | G16: NORMAL | H16: MIDNIGHT | I16: ALL | J16: NOON K | K16: HAPPY | L16: NORMAL | M16: MIDNIGHT | N16: ALL
E17: ( pax ) | F17: ( pax ) | G17: ( pax ) | H17: ( pax ) | I17: ( pax ) | J17: ( pax ) | K17: ( pax ) | L17: ( pax ) | M17: ( pax ) | N17: ( pax )
B18: SUMMARY FOR MONTH | O18: LEGEND
B20: TOTAL PAX | E20: =SUM(E$31:E$61) -> 2092 | F20: =SUM(F$31:F$61) -> 3099 | G20: 5960 | H20: 2223 | I20: 13374 | J20: 109.4928473 | K20: 200.788598 | L20: 121.9115758 | M20: 165.1887338 | N20: 128.9910123
B21: AVERAGE PAX | E21: =IFERROR(SUM(E$31:E$61)/COUNTIF($D$31:$D$61,">0"),"") -> 67.48387097 | F21: =IFERROR(SUM(F$31:F$61)/COUNTIF($D$31:$D$61,">0"),"") -> 99.96774194 | G21: 192.2580645 | H21: 71.70967742 | I21: 431.4193548 | J21: 3.532027333 | K21: 6.477051549 | L21: 3.932631478 | M21: 5.328668834 | N21: 4.161000398
B22: HIGHEST PAX | E22: =IFERROR(IF(LARGE(E$31:E$61,1)>0,LARGE(E$31:E$61,1),"NIL"),"NIL") -> 152 | F22: 191 | G22: 334 | H22: 128 | I22: 652 | J22: 4.470588235 | K22: 72 | L22: 5.138461538 | M22: 9.444444444 | N22: 5.015384615
B23: LOWEST PAX | E23: =IFERROR(IF(LARGE(E$31:E$61,COUNTIF(E$31:E$61,">0"))<>E$22,LARGE(E$31:E$61,COUNTIF(E$31:E$61,">0")),"NIL"),"NIL") -> 24 | F23: 47 | G23: 66 | H23: 16 | I23: 231 | J23: 2.785714286 | K23: 2.9375 | L23: 2.617647059 | M23: 2.875 | N23: 3.421568627
B24: AVERAGE FOR | C24: MONDAY | E24: =IFERROR(SUMIF($C$31:$C$61,"Monday*",E$31:E$61)/COUNTIF($C$31:$C$61,"Monday*"),"") -> 68 | F24: =IFERROR(SUMIF($C$31:$C$61,"Monday*",F$31:F$61)/COUNTIF($C$31:$C$61,"Monday*"),"") -> 109.25 | G24: 207 | H24: 58 | I24: 442.25 | J24: 3.662202381 | K24: 4.446875765 | L24: 3.972143183 | M24: 4.221906566 | N24: 4.079791103
C25: TUESDAY | E25: =IFERROR(SUMIF($C$31:$C$61,"Tuesday*",E$31:E$61)/COUNTIF($C$31:$C$61,"Tuesday*"),"") -> 83.2 | F25: =IFERROR(SUMIF($C$31:$C$61,"Tuesday*",F$31:F$61)/COUNTIF($C$31:$C$61,"Tuesday*"),"") -> 93 | G25: 155.4 | H25: 65.8 | I25: 397.4 | J25: 3.778879552 | K25: 4.222191568 | L25: 3.834973166 | M25: 6.952758353 | N25: 4.217461225
C26: WEDNESDAY | E26: =IFERROR(SUMIF($C$31:$C$61,"Wednesday*",E$31:E$61)/COUNTIF($C$31:$C$61,"Wednesday*"),"") -> 56.4 | F26: =IFERROR(SUMIF($C$31:$C$61,"Wednesday*",F$31:F$61)/COUNTIF($C$31:$C$61,"Wednesday*"),"") -> 101.6 | G26: 139.8 | H26: 80.6 | I26: 378.4 | J26: 3.350617716 | K26: 4.246269767 | L26: 3.629689676 | M26: 6.269362745 | N26: 4.066886721
C27: THURSDAY | E27: =IFERROR(SUMIF($C$31:$C$61,"Thursday*",E$31:E$61)/COUNTIF($C$31:$C$61,"Thursday*"),"") -> 53.2 | F27: =IFERROR(SUMIF($C$31:$C$61,"Thursday*",F$31:F$61)/COUNTIF($C$31:$C$61,"Thursday*"),"") -> 96 | G27: 174.2 | H27: 93.8 | I27: 417.2 | J27: 3.62726738 | K27: 4.532142857 | L27: 3.777882908 | M27: 6.10968598 | N27: 4.256883615
C28: FRIDAY | E28: =IFERROR(SUMIF($C$31:$C$61,"Friday*",E$31:E$61)/COUNTIF($C$31:$C$61,"Friday*"),"") -> 61.25 | F28: =IFERROR(SUMIF($C$31:$C$61,"Friday*",F$31:F$61)/COUNTIF($C$31:$C$61,"Friday*"),"") -> 146.5 | G28: 287 | H28: 44.5 | I28: 539.25 | J28: 3.727394958 | K28: 5.685704354 | L28: 4.613415683 | M28: 3.504829545 | N28: 4.630628964
C29: SATURDAY | E29: =IFERROR(SUMIF($C$31:$C$61,"Saturday*",E$31:E$61)/COUNTIF($C$31:$C$61,"Saturday*"),"") -> 63 | F29: =IFERROR(SUMIF($C$31:$C$61,"Saturday*",F$31:F$61)/COUNTIF($C$31:$C$61,"Saturday*"),"") -> 73.75 | G29: 258.25 | H29: 78.5 | I29: 473.5 | J29: 3.019225506 | K29: 3.347950925 | L29: 4.383192995 | M29: 4.057159091 | N29: 3.900757263
C30: SUNDAY | E30: =IFERROR(SUMIF($C$31:$C$61,"Sunday*",E$31:E$61)/COUNTIF($C$31:$C$61,"Sunday*"),"") -> 89.75 | F30: =IFERROR(SUMIF($C$31:$C$61,"Sunday*",F$31:F$61)/COUNTIF($C$31:$C$61,"Sunday*"),"") -> 82 | G30: 151 | H30: 74.5 | I30: 397.25 | J30: 3.51843318 | K30: 20.46586322 | L30: 3.455959906 | M30: 5.348529412 | N30: 3.960036304
B31: ='Report A'!$B32 -> 2014-07-01 | C31: ='Report A'!$C32 -> Tuesday | D31: ='Report A'!$D32 -> 1 | E31: =IFERROR(IF($G$15="ALL",SUMIFS(INDIRECT("Data!$AI$"&$D31+32&":$AS$"&$D31+32),Data!$AI$30:$AS$30,E$16),SUMIFS(INDIRECT("Data!$AI$"&$D31+32&":$AS$"&$D31+32),Data!$AI$30:$AS$30,E$16,Data!$AI$31:$AS$31,$G$15)),"") -> 24 | F31: =IFERROR(IF($G$15="ALL",SUMIFS(INDIRECT("Data!$AI$"&$D31+32&":$AS$"&$D31+32),Data!$AI$30:$AS$30,F$16),SUMIFS(INDIRECT("Data!$AI$"&$D31+32&":$AS$"&$D31+32),Data!$AI$30:$AS$30,F$16,Data!$AI$31:$AS$31,$G$15)),"") -> 96 | G31: =IFERROR(IF($G$15="ALL",SUMIFS(INDIRECT("Data!$AI$"&$D31+32&":$AS$"&$D31+32),Data!$AI$30:$AS$30,G$16),SUMIFS(INDIRECT("Data!$AI$"&$D31+32&":$AS$"&$D31+32),Data!$AI$30:$AS$30,G$16,Data!$AI$31:$AS$31,$G$15)),"") -> 182 | H31: =IFERROR(IF($G$15="ALL",SUMIFS(INDIRECT("Data!$AI$"&$D31+32&":$AS$"&$D31+32),Data!$AI$30:$AS$30,H$16),SUMIFS(INDIRECT("Data!$AI$"&$D31+32&":$AS$"&$D31+32),Data!$AI$30:$AS$30,H$16,Data!$AI$31:$AS$31,$G$15)),"") -> 65 | I31: =IFERROR(SUM($E31:$H31),"") -> 367 | J31: =IFERROR((SUMIFS(INDIRECT("Data!$AI$"&$D31+32&":$AS$"&$D31+32),Data!$AI$30:$AS$30,J$16))/(INDEX(Data!$K$33:$K$82,$D31,1)),"") -> 3 | K31: =IFERROR((SUMIFS(INDIRECT("Data!$AI$"&$D31+32&":$AS$"&$D31+32),Data!$AI$30:$AS$30,K$16))/(INDEX(Data!$L$33:$L$82,$D31,1)),"") -> 5.052631579 | L31: =IFERROR((SUMIFS(INDIRECT("Data!$AI$"&$D31+32&":$AS$"&$D31+32),Data!$AI$30:$AS$30,L$16))/(INDEX(Data!$M$33:$M$82,$D31,1)),"") -> 4.23255814 | M31: =IFERROR((SUMIFS(INDIRECT("Data!$AI$"&$D31+32&":$AS$"&$D31+32),Data!$AI$30:$AS$30,M$16))/(INDEX(Data!$N$33:$N$82,$D31,1)),"") -> 5.909090909 | N31: =IFERROR((SUM(INDIRECT("Data!$AI$"&$D31+32&":$AS$"&$D31+32)))/(INDEX(Data!$K$33:$K$82,$D31,1)+INDEX(Data!$L$33:$L$82,$D31,1)+INDEX(Data!$M$33:$M$82,$D31,1)+INDEX(Data!$N$33:$N$82,$D31,1)),"") -> 4.530864198
B32: ='Report A'!$B33 -> 2014-07-02 | C32: ='Report A'!$C33 -> Wednesday | D32: ='Report A'!$D33 -> 2 | E32: =IFERROR(IF($G$15="ALL",SUMIFS(INDIRECT("Data!$AI$"&$D32+32&":$AS$"&$D32+32),Data!$AI$30:$AS$30,E$16),SUMIFS(INDIRECT("Data!$AI$"&$D32+32&":$AS$"&$D32+32),Data!$AI$30:$AS$30,E$16,Data!$AI$31:$AS$31,$G$15)),"") -> 53 | F32: =IFERROR(IF($G$15="ALL",SUMIFS(INDIRECT("Data!$AI$"&$D32+32&":$AS$"&$D32+32),Data!$AI$30:$AS$30,F$16),SUMIFS(INDIRECT("Data!$AI$"&$D32+32&":$AS$"&$D32+32),Data!$AI$30:$AS$30,F$16,Data!$AI$31:$AS$31,$G$15)),"") -> 79 | G32: =IFERROR(IF($G$15="ALL",SUMIFS(INDIRECT("Data!$AI$"&$D32+32&":$AS$"&$D32+32),Data!$AI$30:$AS$30,G$16),SUMIFS(INDIRECT("Data!$AI$"&$D32+32&":$AS$"&$D32+32),Data!$AI$30:$AS$30,G$16,Data!$AI$31:$AS$31,$G$15)),"") -> 134 | H32: =IFERROR(IF($G$15="ALL",SUMIFS(INDIRECT("Data!$AI$"&$D32+32&":$AS$"&$D32+32),Data!$AI$30:$AS$30,H$16),SUMIFS(INDIRECT("Data!$AI$"&$D32+32&":$AS$"&$D32+32),Data!$AI$30:$AS$30,H$16,Data!$AI$31:$AS$31,$G$15)),"") -> 93 | I32: =IFERROR(SUM($E32:$H32),"") -> 359 | J32: =IFERROR((SUMIFS(INDIRECT("Data!$AI$"&$D32+32&":$AS$"&$D32+32),Data!$AI$30:$AS$30,J$16))/(INDEX(Data!$K$33:$K$82,$D32,1)),"") -> 3.3125 | K32: =IFERROR((SUMIFS(INDIRECT("Data!$AI$"&$D32+32&":$AS$"&$D32+32),Data!$AI$30:$AS$30,K$16))/(INDEX(Data!$L$33:$L$82,$D32,1)),"") -> 4.647058824 | L32: =IFERROR((SUMIFS(INDIRECT("Data!$AI$"&$D32+32&":$AS$"&$D32+32),Data!$AI$30:$AS$30,L$16))/(INDEX(Data!$M$33:$M$82,$D32,1)),"") -> 3.11627907 | M32: =IFERROR((SUMIFS(INDIRECT("Data!$AI$"&$D32+32&":$AS$"&$D32+32),Data!$AI$30:$AS$30,M$16))/(INDEX(Data!$N$33:$N$82,$D32,1)),"") -> 5.8125 | N32: =IFERROR((SUM(INDIRECT("Data!$AI$"&$D32+32&":$AS$"&$D32+32)))/(INDEX(Data!$K$33:$K$82,$D32,1)+INDEX(Data!$L$33:$L$82,$D32,1)+INDEX(Data!$M$33:$M$82,$D32,1)+INDEX(Data!$N$33:$N$82,$D32,1)),"") -> 3.902173913
B33: ='Report A'!$B34 -> 2014-07-03 | C33: ='Report A'!$C34 -> Thursday | D33: ='Report A'!$D34 -> 3 | E33: =IFERROR(IF($G$15="ALL",SUMIFS(INDIRECT("Data!$AI$"&$D33+32&":$AS$"&$D33+32),Data!$AI$30:$AS$30,E$16),SUMIFS(INDIRECT("Data!$AI$"&$D33+32&":$AS$"&$D33+32),Data!$AI$30:$AS$30,E$16,Data!$AI$31:$AS$31,$G$15)),"") -> 39 | F33: =IFERROR(IF($G$15="ALL",SUMIFS(INDIRECT("Data!$AI$"&$D33+32&":$AS$"&$D33+32),Data!$AI$30:$AS$30,F$16),SUMIFS(INDIRECT("Data!$AI$"&$D33+32&":$AS$"&$D33+32),Data!$AI$30:$AS$30,F$16,Data!$AI$31:$AS$31,$G$15)),"") -> 76 | G33: =IFERROR(IF($G$15="ALL",SUMIFS(INDIRECT("Data!$AI$"&$D33+32&":$AS$"&$D33+32),Data!$AI$30:$AS$30,G$16),SUMIFS(INDIRECT("Data!$AI$"&$D33+32&":$AS$"&$D33+32),Data!$AI$30:$AS$30,G$16,Data!$AI$31:$AS$31,$G$15)),"") -> 223 | H33: =IFERROR(IF($G$15="ALL",SUMIFS(INDIRECT("Data!$AI$"&$D33+32&":$AS$"&$D33+32),Data!$AI$30:$AS$30,H$16),SUMIFS(INDIRECT("Data!$AI$"&$D33+32&":$AS$"&$D33+32),Data!$AI$30:$AS$30,H$16,Data!$AI$31:$AS$31,$G$15)),"") -> 128 | I33: 466 | J33: =IFERROR((SUMIFS(INDIRECT("Data!$AI$"&$D33+32&":$AS$"&$D33+32),Data!$AI$30:$AS$30,J$16))/(INDEX(Data!$K$33:$K$82,$D33,1)),"") -> 3.25 | K33: =IFERROR((SUMIFS(INDIRECT("Data!$AI$"&$D33+32&":$AS$"&$D33+32),Data!$AI$30:$AS$30,K$16))/(INDEX(Data!$L$33:$L$82,$D33,1)),"") -> 4.75 | L33: =IFERROR((SUMIFS(INDIRECT("Data!$AI$"&$D33+32&":$AS$"&$D33+32),Data!$AI$30:$AS$30,L$16))/(INDEX(Data!$M$33:$M$82,$D33,1)),"") -> 3.912280702 | M33: =IFERROR((SUMIFS(INDIRECT("Data!$AI$"&$D33+32&":$AS$"&$D33+32),Data!$AI$30:$AS$30,M$16))/(INDEX(Data!$N$33:$N$82,$D33,1)),"") -> 9.142857143 | N33: =IFERROR((SUM(INDIRECT("Data!$AI$"&$D33+32&":$AS$"&$D33+32)))/(INDEX(Data!$K$33:$K$82,$D33,1)+INDEX(Data!$L$33:$L$82,$D33,1)+INDEX(Data!$M$33:$M$82,$D33,1)+INDEX(Data!$N$33:$N$82,$D33,1)),"") -> 4.707070707
B34: ='Report A'!$B35 -> 2014-07-04 | C34: ='Report A'!$C35 -> Friday | D34: ='Report A'!$D35 -> 4 | E34: =IFERROR(IF($G$15="ALL",SUMIFS(INDIRECT("Data!$AI$"&$D34+32&":$AS$"&$D34+32),Data!$AI$30:$AS$30,E$16),SUMIFS(INDIRECT("Data!$AI$"&$D34+32&":$AS$"&$D34+32),Data!$AI$30:$AS$30,E$16,Data!$AI$31:$AS$31,$G$15)),"") -> 37 | F34: =IFERROR(IF($G$15="ALL",SUMIFS(INDIRECT("Data!$AI$"&$D34+32&":$AS$"&$D34+32),Data!$AI$30:$AS$30,F$16),SUMIFS(INDIRECT("Data!$AI$"&$D34+32&":$AS$"&$D34+32),Data!$AI$30:$AS$30,F$16,Data!$AI$31:$AS$31,$G$15)),"") -> 107 | G34: =IFERROR(IF($G$15="ALL",SUMIFS(INDIRECT("Data!$AI$"&$D34+32&":$AS$"&$D34+32),Data!$AI$30:$AS$30,G$16),SUMIFS(INDIRECT("Data!$AI$"&$D34+32&":$AS$"&$D34+32),Data!$AI$30:$AS$30,G$16,Data!$AI$31:$AS$31,$G$15)),"") -> 333 | H34: =IFERROR(IF($G$15="ALL",SUMIFS(INDIRECT("Data!$AI$"&$D34+32&":$AS$"&$D34+32),Data!$AI$30:$AS$30,H$16),SUMIFS(INDIRECT("Data!$AI$"&$D34+32&":$AS$"&$D34+32),Data!$AI$30:$AS$30,H$16,Data!$AI$31:$AS$31,$G$15)),"") -> 39 | I34: 516 | J34: =IFERROR((SUMIFS(INDIRECT("Data!$AI$"&$D34+32&":$AS$"&$D34+32),Data!$AI$30:$AS$30,J$16))/(INDEX(Data!$K$33:$K$82,$D34,1)),"") -> 3.7 | K34: =IFERROR((SUMIFS(INDIRECT("Data!$AI$"&$D34+32&":$AS$"&$D34+32),Data!$AI$30:$AS$30,K$16))/(INDEX(Data!$L$33:$L$82,$D34,1)),"") -> 5.35 | L34: =IFERROR((SUMIFS(INDIRECT("Data!$AI$"&$D34+32&":$AS$"&$D34+32),Data!$AI$30:$AS$30,L$16))/(INDEX(Data!$M$33:$M$82,$D34,1)),"") -> 5.045454545 | M34: =IFERROR((SUMIFS(INDIRECT("Data!$AI$"&$D34+32&":$AS$"&$D34+32),Data!$AI$30:$AS$30,M$16))/(INDEX(Data!$N$33:$N$82,$D34,1)),"") -> 3.9 | N34: =IFERROR((SUM(INDIRECT("Data!$AI$"&$D34+32&":$AS$"&$D34+32)))/(INDEX(Data!$K$33:$K$82,$D34,1)+INDEX(Data!$L$33:$L$82,$D34,1)+INDEX(Data!$M$33:$M$82,$D34,1)+INDEX(Data!$N$33:$N$82,$D34,1)),"") -> 4.867924528
B35: ='Report A'!$B36 -> 2014-07-05 | C35: ='Report A'!$C36 -> Saturday | D35: ='Report A'!$D36 -> 5 | E35: =IFERROR(IF($G$15="ALL",SUMIFS(INDIRECT("Data!$AI$"&$D35+32&":$AS$"&$D35+32),Data!$AI$30:$AS$30,E$16),SUMIFS(INDIRECT("Data!$AI$"&$D35+32&":$AS$"&$D35+32),Data!$AI$30:$AS$30,E$16,Data!$AI$31:$AS$31,$G$15)),"") -> 66 | F35: =IFERROR(IF($G$15="ALL",SUMIFS(INDIRECT("Data!$AI$"&$D35+32&":$AS$"&$D35+32),Data!$AI$30:$AS$30,F$16),SUMIFS(INDIRECT("Data!$AI$"&$D35+32&":$AS$"&$D35+32),Data!$AI$30:$AS$30,F$16,Data!$AI$31:$AS$31,$G$15)),"") -> 70 | G35: =IFERROR(IF($G$15="ALL",SUMIFS(INDIRECT("Data!$AI$"&$D35+32&":$AS$"&$D35+32),Data!$AI$30:$AS$30,G$16),SUMIFS(INDIRECT("Data!$AI$"&$D35+32&":$AS$"&$D35+32),Data!$AI$30:$AS$30,G$16,Data!$AI$31:$AS$31,$G$15)),"") -> 248 | H35: =IFERROR(IF($G$15="ALL",SUMIFS(INDIRECT("Data!$AI$"&$D35+32&":$AS$"&$D35+32),Data!$AI$30:$AS$30,H$16),SUMIFS(INDIRECT("Data!$AI$"&$D35+32&":$AS$"&$D35+32),Data!$AI$30:$AS$30,H$16,Data!$AI$31:$AS$31,$G$15)),"") -> 106 | I35: 490 | J35: =IFERROR((SUMIFS(INDIRECT("Data!$AI$"&$D35+32&":$AS$"&$D35+32),Data!$AI$30:$AS$30,J$16))/(INDEX(Data!$K$33:$K$82,$D35,1)),"") -> 3 | K35: =IFERROR((SUMIFS(INDIRECT("Data!$AI$"&$D35+32&":$AS$"&$D35+32),Data!$AI$30:$AS$30,K$16))/(INDEX(Data!$L$33:$L$82,$D35,1)),"") -> 3.684210526 | L35: =IFERROR((SUMIFS(INDIRECT("Data!$AI$"&$D35+32&":$AS$"&$D35+32),Data!$AI$30:$AS$30,L$16))/(INDEX(Data!$M$33:$M$82,$D35,1)),"") -> 4.862745098 | M35: =IFERROR((SUMIFS(INDIRECT("Data!$AI$"&$D35+32&":$AS$"&$D35+32),Data!$AI$30:$AS$30,M$16))/(INDEX(Data!$N$33:$N$82,$D35,1)),"") -> 4.24 | N35: =IFERROR((SUM(INDIRECT("Data!$AI$"&$D35+32&":$AS$"&$D35+32)))/(INDEX(Data!$K$33:$K$82,$D35,1)+INDEX(Data!$L$33:$L$82,$D35,1)+INDEX(Data!$M$33:$M$82,$D35,1)+INDEX(Data!$N$33:$N$82,$D35,1)),"") -> 4.188034188
B36: ='Report A'!$B37 -> 2014-07-06 | C36: ='Report A'!$C37 -> Sunday | D36: ='Report A'!$D37 -> 6 | E36: =IFERROR(IF($G$15="ALL",SUMIFS(INDIRECT("Data!$AI$"&$D36+32&":$AS$"&$D36+32),Data!$AI$30:$AS$30,E$16),SUMIFS(INDIRECT("Data!$AI$"&$D36+32&":$AS$"&$D36+32),Data!$AI$30:$AS$30,E$16,Data!$AI$31:$AS$31,$G$15)),"") -> 113 | F36: =IFERROR(IF($G$15="ALL",SUMIFS(INDIRECT("Data!$AI$"&$D36+32&":$AS$"&$D36+32),Data!$AI$30:$AS$30,F$16),SUMIFS(INDIRECT("Data!$AI$"&$D36+32&":$AS$"&$D36+32),Data!$AI$30:$AS$30,F$16,Data!$AI$31:$AS$31,$G$15)),"") -> 72 | G36: =IFERROR(IF($G$15="ALL",SUMIFS(INDIRECT("Data!$AI$"&$D36+32&":$AS$"&$D36+32),Data!$AI$30:$AS$30,G$16),SUMIFS(INDIRECT("Data!$AI$"&$D36+32&":$AS$"&$D36+32),Data!$AI$30:$AS$30,G$16,Data!$AI$31:$AS$31,$G$15)),"") -> 146 | H36: =IFERROR(IF($G$15="ALL",SUMIFS(INDIRECT("Data!$AI$"&$D36+32&":$AS$"&$D36+32),Data!$AI$30:$AS$30,H$16),SUMIFS(INDIRECT("Data!$AI$"&$D36+32&":$AS$"&$D36+32),Data!$AI$30:$AS$30,H$16,Data!$AI$31:$AS$31,$G$15)),"") -> 71 | I36: 402 | J36: =IFERROR((SUMIFS(INDIRECT("Data!$AI$"&$D36+32&":$AS$"&$D36+32),Data!$AI$30:$AS$30,J$16))/(INDEX(Data!$K$33:$K$82,$D36,1)),"") -> 3.64516129 | K36: =IFERROR((SUMIFS(INDIRECT("Data!$AI$"&$D36+32&":$AS$"&$D36+32),Data!$AI$30:$AS$30,K$16))/(INDEX(Data!$L$33:$L$82,$D36,1)),"") -> 72 | L36: =IFERROR((SUMIFS(INDIRECT("Data!$AI$"&$D36+32&":$AS$"&$D36+32),Data!$AI$30:$AS$30,L$16))/(INDEX(Data!$M$33:$M$82,$D36,1)),"") -> 3.842105263 | M36: =IFERROR((SUMIFS(INDIRECT("Data!$AI$"&$D36+32&":$AS$"&$D36+32),Data!$AI$30:$AS$30,M$16))/(INDEX(Data!$N$33:$N$82,$D36,1)),"") -> 5.916666667 | N36: =IFERROR((SUM(INDIRECT("Data!$AI$"&$D36+32&":$AS$"&$D36+32)))/(INDEX(Data!$K$33:$K$82,$D36,1)+INDEX(Data!$L$33:$L$82,$D36,1)+INDEX(Data!$M$33:$M$82,$D36,1)+INDEX(Data!$N$33:$N$82,$D36,1)),"") -> 4.902439024
B37: ='Report A'!$B38 -> 2014-07-07 | C37: ='Report A'!$C38 -> Monday | D37: ='Report A'!$D38 -> 7 | E37: =IFERROR(IF($G$15="ALL",SUMIFS(INDIRECT("Data!$AI$"&$D37+32&":$AS$"&$D37+32),Data!$AI$30:$AS$30,E$16),SUMIFS(INDIRECT("Data!$AI$"&$D37+32&":$AS$"&$D37+32),Data!$AI$30:$AS$30,E$16,Data!$AI$31:$AS$31,$G$15)),"") -> 36 | F37: =IFERROR(IF($G$15="ALL",SUMIFS(INDIRECT("Data!$AI$"&$D37+32&":$AS$"&$D37+32),Data!$AI$30:$AS$30,F$16),SUMIFS(INDIRECT("Data!$AI$"&$D37+32&":$AS$"&$D37+32),Data!$AI$30:$AS$30,F$16,Data!$AI$31:$AS$31,$G$15)),"") -> 125 | G37: =IFERROR(IF($G$15="ALL",SUMIFS(INDIRECT("Data!$AI$"&$D37+32&":$AS$"&$D37+32),Data!$AI$30:$AS$30,G$16),SUMIFS(INDIRECT("Data!$AI$"&$D37+32&":$AS$"&$D37+32),Data!$AI$30:$AS$30,G$16,Data!$AI$31:$AS$31,$G$15)),"") -> 185 | H37: =IFERROR(IF($G$15="ALL",SUMIFS(INDIRECT("Data!$AI$"&$D37+32&":$AS$"&$D37+32),Data!$AI$30:$AS$30,H$16),SUMIFS(INDIRECT("Data!$AI$"&$D37+32&":$AS$"&$D37+32),Data!$AI$30:$AS$30,H$16,Data!$AI$31:$AS$31,$G$15)),"") -> 46 | I37: 392 | J37: =IFERROR((SUMIFS(INDIRECT("Data!$AI$"&$D37+32&":$AS$"&$D37+32),Data!$AI$30:$AS$30,J$16))/(INDEX(Data!$K$33:$K$82,$D37,1)),"") -> 3 | K37: =IFERROR((SUMIFS(INDIRECT("Data!$AI$"&$D37+32&":$AS$"&$D37+32),Data!$AI$30:$AS$30,K$16))/(INDEX(Data!$L$33:$L$82,$D37,1)),"") -> 5.434782609 | L37: =IFERROR((SUMIFS(INDIRECT("Data!$AI$"&$D37+32&":$AS$"&$D37+32),Data!$AI$30:$AS$30,L$16))/(INDEX(Data!$M$33:$M$82,$D37,1)),"") -> 3.936170213 | M37: =IFERROR((SUMIFS(INDIRECT("Data!$AI$"&$D37+32&":$AS$"&$D37+32),Data!$AI$30:$AS$30,M$16))/(INDEX(Data!$N$33:$N$82,$D37,1)),"") -> 5.111111111 | N37: =IFERROR((SUM(INDIRECT("Data!$AI$"&$D37+32&":$AS$"&$D37+32)))/(INDEX(Data!$K$33:$K$82,$D37,1)+INDEX(Data!$L$33:$L$82,$D37,1)+INDEX(Data!$M$33:$M$82,$D37,1)+INDEX(Data!$N$33:$N$82,$D37,1)),"") -> 4.307692308
B38: ='Report A'!$B39 -> 2014-07-08 | C38: ='Report A'!$C39 -> Tuesday | D38: ='Report A'!$D39 -> 8 | E38: =IFERROR(IF($G$15="ALL",SUMIFS(INDIRECT("Data!$AI$"&$D38+32&":$AS$"&$D38+32),Data!$AI$30:$AS$30,E$16),SUMIFS(INDIRECT("Data!$AI$"&$D38+32&":$AS$"&$D38+32),Data!$AI$30:$AS$30,E$16,Data!$AI$31:$AS$31,$G$15)),"") -> 47 | F38: =IFERROR(IF($G$15="ALL",SUMIFS(INDIRECT("Data!$AI$"&$D38+32&":$AS$"&$D38+32),Data!$AI$30:$AS$30,F$16),SUMIFS(INDIRECT("Data!$AI$"&$D38+32&":$AS$"&$D38+32),Data!$AI$30:$AS$30,F$16,Data!$AI$31:$AS$31,$G$15)),"") -> 47 | G38: =IFERROR(IF($G$15="ALL",SUMIFS(INDIRECT("Data!$AI$"&$D38+32&":$AS$"&$D38+32),Data!$AI$30:$AS$30,G$16),SUMIFS(INDIRECT("Data!$AI$"&$D38+32&":$AS$"&$D38+32),Data!$AI$30:$AS$30,G$16,Data!$AI$31:$AS$31,$G$15)),"") -> 165 | H38: =IFERROR(IF($G$15="ALL",SUMIFS(INDIRECT("Data!$AI$"&$D38+32&":$AS$"&$D38+32),Data!$AI$30:$AS$30,H$16),SUMIFS(INDIRECT("Data!$AI$"&$D38+32&":$AS$"&$D38+32),Data!$AI$30:$AS$30,H$16,Data!$AI$31:$AS$31,$G$15)),"") -> 22 | I38: 281 | J38: =IFERROR((SUMIFS(INDIRECT("Data!$AI$"&$D38+32&":$AS$"&$D38+32),Data!$AI$30:$AS$30,J$16))/(INDEX(Data!$K$33:$K$82,$D38,1)),"") -> 3.357142857 | K38: =IFERROR((SUMIFS(INDIRECT("Data!$AI$"&$D38+32&":$AS$"&$D38+32),Data!$AI$30:$AS$30,K$16))/(INDEX(Data!$L$33:$L$82,$D38,1)),"") -> 2.9375 | L38: =IFERROR((SUMIFS(INDIRECT("Data!$AI$"&$D38+32&":$AS$"&$D38+32),Data!$AI$30:$AS$30,L$16))/(INDEX(Data!$M$33:$M$82,$D38,1)),"") -> 3.75 | M38: =IFERROR((SUMIFS(INDIRECT("Data!$AI$"&$D38+32&":$AS$"&$D38+32),Data!$AI$30:$AS$30,M$16))/(INDEX(Data!$N$33:$N$82,$D38,1)),"") -> 7.333333333 | N38: =IFERROR((SUM(INDIRECT("Data!$AI$"&$D38+32&":$AS$"&$D38+32)))/(INDEX(Data!$K$33:$K$82,$D38,1)+INDEX(Data!$L$33:$L$82,$D38,1)+INDEX(Data!$M$33:$M$82,$D38,1)+INDEX(Data!$N$33:$N$82,$D38,1)),"") -> 3.649350649
B39: ='Report A'!$B40 -> 2014-07-09 | C39: ='Report A'!$C40 -> Wednesday | D39: ='Report A'!$D40 -> 9 | E39: =IFERROR(IF($G$15="ALL",SUMIFS(INDIRECT("Data!$AI$"&$D39+32&":$AS$"&$D39+32),Data!$AI$30:$AS$30,E$16),SUMIFS(INDIRECT("Data!$AI$"&$D39+32&":$AS$"&$D39+32),Data!$AI$30:$AS$30,E$16,Data!$AI$31:$AS$31,$G$15)),"") -> 41 | F39: =IFERROR(IF($G$15="ALL",SUMIFS(INDIRECT("Data!$AI$"&$D39+32&":$AS$"&$D39+32),Data!$AI$30:$AS$30,F$16),SUMIFS(INDIRECT("Data!$AI$"&$D39+32&":$AS$"&$D39+32),Data!$AI$30:$AS$30,F$16,Data!$AI$31:$AS$31,$G$15)),"") -> 58 | G39: =IFERROR(IF($G$15="ALL",SUMIFS(INDIRECT("Data!$AI$"&$D39+32&":$AS$"&$D39+32),Data!$AI$30:$AS$30,G$16),SUMIFS(INDIRECT("Data!$AI$"&$D39+32&":$AS$"&$D39+32),Data!$AI$30:$AS$30,G$16,Data!$AI$31:$AS$31,$G$15)),"") -> 166 | H39: =IFERROR(IF($G$15="ALL",SUMIFS(INDIRECT("Data!$AI$"&$D39+32&":$AS$"&$D39+32),Data!$AI$30:$AS$30,H$16),SUMIFS(INDIRECT("Data!$AI$"&$D39+32&":$AS$"&$D39+32),Data!$AI$30:$AS$30,H$16,Data!$AI$31:$AS$31,$G$15)),"") -> 70 | I39: 335 | J39: =IFERROR((SUMIFS(INDIRECT("Data!$AI$"&$D39+32&":$AS$"&$D39+32),Data!$AI$30:$AS$30,J$16))/(INDEX(Data!$K$33:$K$82,$D39,1)),"") -> 3.153846154 | K39: =IFERROR((SUMIFS(INDIRECT("Data!$AI$"&$D39+32&":$AS$"&$D39+32),Data!$AI$30:$AS$30,K$16))/(INDEX(Data!$L$33:$L$82,$D39,1)),"") -> 3.625 | L39: =IFERROR((SUMIFS(INDIRECT("Data!$AI$"&$D39+32&":$AS$"&$D39+32),Data!$AI$30:$AS$30,L$16))/(INDEX(Data!$M$33:$M$82,$D39,1)),"") -> 3.32 | M39: =IFERROR((SUMIFS(INDIRECT("Data!$AI$"&$D39+32&":$AS$"&$D39+32),Data!$AI$30:$AS$30,M$16))/(INDEX(Data!$N$33:$N$82,$D39,1)),"") -> 8.75 | N39: =IFERROR((SUM(INDIRECT("Data!$AI$"&$D39+32&":$AS$"&$D39+32)))/(INDEX(Data!$K$33:$K$82,$D39,1)+INDEX(Data!$L$33:$L$82,$D39,1)+INDEX(Data!$M$33:$M$82,$D39,1)+INDEX(Data!$N$33:$N$82,$D39,1)),"") -> 3.850574713
B40: ='Report A'!$B41 -> 2014-07-10 | C40: ='Report A'!$C41 -> Thursday | D40: ='Report A'!$D41 -> 10 | E40: =IFERROR(IF($G$15="ALL",SUMIFS(INDIRECT("Data!$AI$"&$D40+32&":$AS$"&$D40+32),Data!$AI$30:$AS$30,E$16),SUMIFS(INDIRECT("Data!$AI$"&$D40+32&":$AS$"&$D40+32),Data!$AI$30:$AS$30,E$16,Data!$AI$31:$AS$31,$G$15)),"") -> 39 | F40: =IFERROR(IF($G$15="ALL",SUMIFS(INDIRECT("Data!$AI$"&$D40+32&":$AS$"&$D40+32),Data!$AI$30:$AS$30,F$16),SUMIFS(INDIRECT("Data!$AI$"&$D40+32&":$AS$"&$D40+32),Data!$AI$30:$AS$30,F$16,Data!$AI$31:$AS$31,$G$15)),"") -> 60 | G40: =IFERROR(IF($G$15="ALL",SUMIFS(INDIRECT("Data!$AI$"&$D40+32&":$AS$"&$D40+32),Data!$AI$30:$AS$30,G$16),SUMIFS(INDIRECT("Data!$AI$"&$D40+32&":$AS$"&$D40+32),Data!$AI$30:$AS$30,G$16,Data!$AI$31:$AS$31,$G$15)),"") -> 131 | H40: =IFERROR(IF($G$15="ALL",SUMIFS(INDIRECT("Data!$AI$"&$D40+32&":$AS$"&$D40+32),Data!$AI$30:$AS$30,H$16),SUMIFS(INDIRECT("Data!$AI$"&$D40+32&":$AS$"&$D40+32),Data!$AI$30:$AS$30,H$16,Data!$AI$31:$AS$31,$G$15)),"") -> 91 | I40: 321 | J40: =IFERROR((SUMIFS(INDIRECT("Data!$AI$"&$D40+32&":$AS$"&$D40+32),Data!$AI$30:$AS$30,J$16))/(INDEX(Data!$K$33:$K$82,$D40,1)),"") -> 3.545454545 | K40: =IFERROR((SUMIFS(INDIRECT("Data!$AI$"&$D40+32&":$AS$"&$D40+32),Data!$AI$30:$AS$30,K$16))/(INDEX(Data!$L$33:$L$82,$D40,1)),"") -> 4.285714286 | L40: =IFERROR((SUMIFS(INDIRECT("Data!$AI$"&$D40+32&":$AS$"&$D40+32),Data!$AI$30:$AS$30,L$16))/(INDEX(Data!$M$33:$M$82,$D40,1)),"") -> 2.977272727 | M40: =IFERROR((SUMIFS(INDIRECT("Data!$AI$"&$D40+32&":$AS$"&$D40+32),Data!$AI$30:$AS$30,M$16))/(INDEX(Data!$N$33:$N$82,$D40,1)),"") -> 5.352941176 | N40: =IFERROR((SUM(INDIRECT("Data!$AI$"&$D40+32&":$AS$"&$D40+32)))/(INDEX(Data!$K$33:$K$82,$D40,1)+INDEX(Data!$L$33:$L$82,$D40,1)+INDEX(Data!$M$33:$M$82,$D40,1)+INDEX(Data!$N$33:$N$82,$D40,1)),"") -> 3.73255814
B41: ='Report A'!$B42 -> 2014-07-11 | C41: ='Report A'!$C42 -> Friday | D41: ='Report A'!$D42 -> 11 | E41: =IFERROR(IF($G$15="ALL",SUMIFS(INDIRECT("Data!$AI$"&$D41+32&":$AS$"&$D41+32),Data!$AI$30:$AS$30,E$16),SUMIFS(INDIRECT("Data!$AI$"&$D41+32&":$AS$"&$D41+32),Data!$AI$30:$AS$30,E$16,Data!$AI$31:$AS$31,$G$15)),"") -> 55 | F41: =IFERROR(IF($G$15="ALL",SUMIFS(INDIRECT("Data!$AI$"&$D41+32&":$AS$"&$D41+32),Data!$AI$30:$AS$30,F$16),SUMIFS(INDIRECT("Data!$AI$"&$D41+32&":$AS$"&$D41+32),Data!$AI$30:$AS$30,F$16,Data!$AI$31:$AS$31,$G$15)),"") -> 99 | G41: =IFERROR(IF($G$15="ALL",SUMIFS(INDIRECT("Data!$AI$"&$D41+32&":$AS$"&$D41+32),Data!$AI$30:$AS$30,G$16),SUMIFS(INDIRECT("Data!$AI$"&$D41+32&":$AS$"&$D41+32),Data!$AI$30:$AS$30,G$16,Data!$AI$31:$AS$31,$G$15)),"") -> 266 | H41: =IFERROR(IF($G$15="ALL",SUMIFS(INDIRECT("Data!$AI$"&$D41+32&":$AS$"&$D41+32),Data!$AI$30:$AS$30,H$16),SUMIFS(INDIRECT("Data!$AI$"&$D41+32&":$AS$"&$D41+32),Data!$AI$30:$AS$30,H$16,Data!$AI$31:$AS$31,$G$15)),"") -> 55 | I41: 475 | J41: =IFERROR((SUMIFS(INDIRECT("Data!$AI$"&$D41+32&":$AS$"&$D41+32),Data!$AI$30:$AS$30,J$16))/(INDEX(Data!$K$33:$K$82,$D41,1)),"") -> 3.235294118 | K41: =IFERROR((SUMIFS(INDIRECT("Data!$AI$"&$D41+32&":$AS$"&$D41+32),Data!$AI$30:$AS$30,K$16))/(INDEX(Data!$L$33:$L$82,$D41,1)),"") -> 4.714285714 | L41: =IFERROR((SUMIFS(INDIRECT("Data!$AI$"&$D41+32&":$AS$"&$D41+32),Data!$AI$30:$AS$30,L$16))/(INDEX(Data!$M$33:$M$82,$D41,1)),"") -> 4.360655738 | M41: =IFERROR((SUMIFS(INDIRECT("Data!$AI$"&$D41+32&":$AS$"&$D41+32),Data!$AI$30:$AS$30,M$16))/(INDEX(Data!$N$33:$N$82,$D41,1)),"") -> 3.4375 | N41: =IFERROR((SUM(INDIRECT("Data!$AI$"&$D41+32&":$AS$"&$D41+32)))/(INDEX(Data!$K$33:$K$82,$D41,1)+INDEX(Data!$L$33:$L$82,$D41,1)+INDEX(Data!$M$33:$M$82,$D41,1)+INDEX(Data!$N$33:$N$82,$D41,1)),"") -> 4.130434783
B42: ='Report A'!$B43 -> 2014-07-12 | C42: ='Report A'!$C43 -> Saturday | D42: ='Report A'!$D43 -> 12 | E42: =IFERROR(IF($G$15="ALL",SUMIFS(INDIRECT("Data!$AI$"&$D42+32&":$AS$"&$D42+32),Data!$AI$30:$AS$30,E$16),SUMIFS(INDIRECT("Data!$AI$"&$D42+32&":$AS$"&$D42+32),Data!$AI$30:$AS$30,E$16,Data!$AI$31:$AS$31,$G$15)),"") -> 58 | F42: =IFERROR(IF($G$15="ALL",SUMIFS(INDIRECT("Data!$AI$"&$D42+32&":$AS$"&$D42+32),Data!$AI$30:$AS$30,F$16),SUMIFS(INDIRECT("Data!$AI$"&$D42+32&":$AS$"&$D42+32),Data!$AI$30:$AS$30,F$16,Data!$AI$31:$AS$31,$G$15)),"") -> 72 | G42: =IFERROR(IF($G$15="ALL",SUMIFS(INDIRECT("Data!$AI$"&$D42+32&":$AS$"&$D42+32),Data!$AI$30:$AS$30,G$16),SUMIFS(INDIRECT("Data!$AI$"&$D42+32&":$AS$"&$D42+32),Data!$AI$30:$AS$30,G$16,Data!$AI$31:$AS$31,$G$15)),"") -> 260 | H42: =IFERROR(IF($G$15="ALL",SUMIFS(INDIRECT("Data!$AI$"&$D42+32&":$AS$"&$D42+32),Data!$AI$30:$AS$30,H$16),SUMIFS(INDIRECT("Data!$AI$"&$D42+32&":$AS$"&$D42+32),Data!$AI$30:$AS$30,H$16,Data!$AI$31:$AS$31,$G$15)),"") -> 48 | I42: 438 | J42: =IFERROR((SUMIFS(INDIRECT("Data!$AI$"&$D42+32&":$AS$"&$D42+32),Data!$AI$30:$AS$30,J$16))/(INDEX(Data!$K$33:$K$82,$D42,1)),"") -> 3.222222222 | K42: =IFERROR((SUMIFS(INDIRECT("Data!$AI$"&$D42+32&":$AS$"&$D42+32),Data!$AI$30:$AS$30,K$16))/(INDEX(Data!$L$33:$L$82,$D42,1)),"") -> 3.272727273 | L42: =IFERROR((SUMIFS(INDIRECT("Data!$AI$"&$D42+32&":$AS$"&$D42+32),Data!$AI$30:$AS$30,L$16))/(INDEX(Data!$M$33:$M$82,$D42,1)),"") -> 4.0625 | M42: =IFERROR((SUMIFS(INDIRECT("Data!$AI$"&$D42+32&":$AS$"&$D42+32),Data!$AI$30:$AS$30,M$16))/(INDEX(Data!$N$33:$N$82,$D42,1)),"") -> 4.363636364 | N42: =IFERROR((SUM(INDIRECT("Data!$AI$"&$D42+32&":$AS$"&$D42+32)))/(INDEX(Data!$K$33:$K$82,$D42,1)+INDEX(Data!$L$33:$L$82,$D42,1)+INDEX(Data!$M$33:$M$82,$D42,1)+INDEX(Data!$N$33:$N$82,$D42,1)),"") -> 3.808695652
B43: ='Report A'!$B44 -> 2014-07-13 | C43: ='Report A'!$C44 -> Sunday | D43: ='Report A'!$D44 -> 13 | E43: =IFERROR(IF($G$15="ALL",SUMIFS(INDIRECT("Data!$AI$"&$D43+32&":$AS$"&$D43+32),Data!$AI$30:$AS$30,E$16),SUMIFS(INDIRECT("Data!$AI$"&$D43+32&":$AS$"&$D43+32),Data!$AI$30:$AS$30,E$16,Data!$AI$31:$AS$31,$G$15)),"") -> 46 | F43: =IFERROR(IF($G$15="ALL",SUMIFS(INDIRECT("Data!$AI$"&$D43+32&":$AS$"&$D43+32),Data!$AI$30:$AS$30,F$16),SUMIFS(INDIRECT("Data!$AI$"&$D43+32&":$AS$"&$D43+32),Data!$AI$30:$AS$30,F$16,Data!$AI$31:$AS$31,$G$15)),"") -> 84 | G43: =IFERROR(IF($G$15="ALL",SUMIFS(INDIRECT("Data!$AI$"&$D43+32&":$AS$"&$D43+32),Data!$AI$30:$AS$30,G$16),SUMIFS(INDIRECT("Data!$AI$"&$D43+32&":$AS$"&$D43+32),Data!$AI$30:$AS$30,G$16,Data!$AI$31:$AS$31,$G$15)),"") -> 98 | H43: =IFERROR(IF($G$15="ALL",SUMIFS(INDIRECT("Data!$AI$"&$D43+32&":$AS$"&$D43+32),Data!$AI$30:$AS$30,H$16),SUMIFS(INDIRECT("Data!$AI$"&$D43+32&":$AS$"&$D43+32),Data!$AI$30:$AS$30,H$16,Data!$AI$31:$AS$31,$G$15)),"") -> 63 | I43: 291 | J43: =IFERROR((SUMIFS(INDIRECT("Data!$AI$"&$D43+32&":$AS$"&$D43+32),Data!$AI$30:$AS$30,J$16))/(INDEX(Data!$K$33:$K$82,$D43,1)),"") -> 3.285714286 | K43: =IFERROR((SUMIFS(INDIRECT("Data!$AI$"&$D43+32&":$AS$"&$D43+32),Data!$AI$30:$AS$30,K$16))/(INDEX(Data!$L$33:$L$82,$D43,1)),"") -> 3.230769231 | L43: =IFERROR((SUMIFS(INDIRECT("Data!$AI$"&$D43+32&":$AS$"&$D43+32),Data!$AI$30:$AS$30,L$16))/(INDEX(Data!$M$33:$M$82,$D43,1)),"") -> 3.0625 | M43: =IFERROR((SUMIFS(INDIRECT("Data!$AI$"&$D43+32&":$AS$"&$D43+32),Data!$AI$30:$AS$30,M$16))/(INDEX(Data!$N$33:$N$82,$D43,1)),"") -> 5.25 | N43: =IFERROR((SUM(INDIRECT("Data!$AI$"&$D43+32&":$AS$"&$D43+32)))/(INDEX(Data!$K$33:$K$82,$D43,1)+INDEX(Data!$L$33:$L$82,$D43,1)+INDEX(Data!$M$33:$M$82,$D43,1)+INDEX(Data!$N$33:$N$82,$D43,1)),"") -> 3.464285714
B44: ='Report A'!$B45 -> 2014-07-14 | C44: ='Report A'!$C45 -> Monday | D44: ='Report A'!$D45 -> 14 | E44: =IFERROR(IF($G$15="ALL",SUMIFS(INDIRECT("Data!$AI$"&$D44+32&":$AS$"&$D44+32),Data!$AI$30:$AS$30,E$16),SUMIFS(INDIRECT("Data!$AI$"&$D44+32&":$AS$"&$D44+32),Data!$AI$30:$AS$30,E$16,Data!$AI$31:$AS$31,$G$15)),"") -> 61 | F44: =IFERROR(IF($G$15="ALL",SUMIFS(INDIRECT("Data!$AI$"&$D44+32&":$AS$"&$D44+32),Data!$AI$30:$AS$30,F$16),SUMIFS(INDIRECT("Data!$AI$"&$D44+32&":$AS$"&$D44+32),Data!$AI$30:$AS$30,F$16,Data!$AI$31:$AS$31,$G$15)),"") -> 136 | G44: =IFERROR(IF($G$15="ALL",SUMIFS(INDIRECT("Data!$AI$"&$D44+32&":$AS$"&$D44+32),Data!$AI$30:$AS$30,G$16),SUMIFS(INDIRECT("Data!$AI$"&$D44+32&":$AS$"&$D44+32),Data!$AI$30:$AS$30,G$16,Data!$AI$31:$AS$31,$G$15)),"") -> 271 | H44: =IFERROR(IF($G$15="ALL",SUMIFS(INDIRECT("Data!$AI$"&$D44+32&":$AS$"&$D44+32),Data!$AI$30:$AS$30,H$16),SUMIFS(INDIRECT("Data!$AI$"&$D44+32&":$AS$"&$D44+32),Data!$AI$30:$AS$30,H$16,Data!$AI$31:$AS$31,$G$15)),"") -> 46 | I44: 514 | J44: =IFERROR((SUMIFS(INDIRECT("Data!$AI$"&$D44+32&":$AS$"&$D44+32),Data!$AI$30:$AS$30,J$16))/(INDEX(Data!$K$33:$K$82,$D44,1)),"") -> 4.357142857 | K44: =IFERROR((SUMIFS(INDIRECT("Data!$AI$"&$D44+32&":$AS$"&$D44+32),Data!$AI$30:$AS$30,K$16))/(INDEX(Data!$L$33:$L$82,$D44,1)),"") -> 5.230769231 | L44: =IFERROR((SUMIFS(INDIRECT("Data!$AI$"&$D44+32&":$AS$"&$D44+32),Data!$AI$30:$AS$30,L$16))/(INDEX(Data!$M$33:$M$82,$D44,1)),"") -> 4.301587302 | M44: =IFERROR((SUMIFS(INDIRECT("Data!$AI$"&$D44+32&":$AS$"&$D44+32),Data!$AI$30:$AS$30,M$16))/(INDEX(Data!$N$33:$N$82,$D44,1)),"") -> 2.875 | N44: =IFERROR((SUM(INDIRECT("Data!$AI$"&$D44+32&":$AS$"&$D44+32)))/(INDEX(Data!$K$33:$K$82,$D44,1)+INDEX(Data!$L$33:$L$82,$D44,1)+INDEX(Data!$M$33:$M$82,$D44,1)+INDEX(Data!$N$33:$N$82,$D44,1)),"") -> 4.319327731
B45: ='Report A'!$B46 -> 2014-07-15 | C45: ='Report A'!$C46 -> Tuesday | D45: ='Report A'!$D46 -> 15 | E45: =IFERROR(IF($G$15="ALL",SUMIFS(INDIRECT("Data!$AI$"&$D45+32&":$AS$"&$D45+32),Data!$AI$30:$AS$30,E$16),SUMIFS(INDIRECT("Data!$AI$"&$D45+32&":$AS$"&$D45+32),Data!$AI$30:$AS$30,E$16,Data!$AI$31:$AS$31,$G$15)),"") -> 152 | F45: =IFERROR(IF($G$15="ALL",SUMIFS(INDIRECT("Data!$AI$"&$D45+32&":$AS$"&$D45+32),Data!$AI$30:$AS$30,F$16),SUMIFS(INDIRECT("Data!$AI$"&$D45+32&":$AS$"&$D45+32),Data!$AI$30:$AS$30,F$16,Data!$AI$31:$AS$31,$G$15)),"") -> 103 | G45: =IFERROR(IF($G$15="ALL",SUMIFS(INDIRECT("Data!$AI$"&$D45+32&":$AS$"&$D45+32),Data!$AI$30:$AS$30,G$16),SUMIFS(INDIRECT("Data!$AI$"&$D45+32&":$AS$"&$D45+32),Data!$AI$30:$AS$30,G$16,Data!$AI$31:$AS$31,$G$15)),"") -> 103 | H45: =IFERROR(IF($G$15="ALL",SUMIFS(INDIRECT("Data!$AI$"&$D45+32&":$AS$"&$D45+32),Data!$AI$30:$AS$30,H$16),SUMIFS(INDIRECT("Data!$AI$"&$D45+32&":$AS$"&$D45+32),Data!$AI$30:$AS$30,H$16,Data!$AI$31:$AS$31,$G$15)),"") -> 85 | I45: 443 | J45: =IFERROR((SUMIFS(INDIRECT("Data!$AI$"&$D45+32&":$AS$"&$D45+32),Data!$AI$30:$AS$30,J$16))/(INDEX(Data!$K$33:$K$82,$D45,1)),"") -> 4.470588235 | K45: =IFERROR((SUMIFS(INDIRECT("Data!$AI$"&$D45+32&":$AS$"&$D45+32),Data!$AI$30:$AS$30,K$16))/(INDEX(Data!$L$33:$L$82,$D45,1)),"") -> 3.322580645 | L45: =IFERROR((SUMIFS(INDIRECT("Data!$AI$"&$D45+32&":$AS$"&$D45+32),Data!$AI$30:$AS$30,L$16))/(INDEX(Data!$M$33:$M$82,$D45,1)),"") -> 3.433333333 | M45: =IFERROR((SUMIFS(INDIRECT("Data!$AI$"&$D45+32&":$AS$"&$D45+32),Data!$AI$30:$AS$30,M$16))/(INDEX(Data!$N$33:$N$82,$D45,1)),"") -> 9.444444444 | N45: =IFERROR((SUM(INDIRECT("Data!$AI$"&$D45+32&":$AS$"&$D45+32)))/(INDEX(Data!$K$33:$K$82,$D45,1)+INDEX(Data!$L$33:$L$82,$D45,1)+INDEX(Data!$M$33:$M$82,$D45,1)+INDEX(Data!$N$33:$N$82,$D45,1)),"") -> 4.259615385
B46: ='Report A'!$B47 -> 2014-07-16 | C46: ='Report A'!$C47 -> Wednesday | D46: ='Report A'!$D47 -> 16 | E46: =IFERROR(IF($G$15="ALL",SUMIFS(INDIRECT("Data!$AI$"&$D46+32&":$AS$"&$D46+32),Data!$AI$30:$AS$30,E$16),SUMIFS(INDIRECT("Data!$AI$"&$D46+32&":$AS$"&$D46+32),Data!$AI$30:$AS$30,E$16,Data!$AI$31:$AS$31,$G$15)),"") -> 45 | F46: =IFERROR(IF($G$15="ALL",SUMIFS(INDIRECT("Data!$AI$"&$D46+32&":$AS$"&$D46+32),Data!$AI$30:$AS$30,F$16),SUMIFS(INDIRECT("Data!$AI$"&$D46+32&":$AS$"&$D46+32),Data!$AI$30:$AS$30,F$16,Data!$AI$31:$AS$31,$G$15)),"") -> 114 | G46: =IFERROR(IF($G$15="ALL",SUMIFS(INDIRECT("Data!$AI$"&$D46+32&":$AS$"&$D46+32),Data!$AI$30:$AS$30,G$16),SUMIFS(INDIRECT("Data!$AI$"&$D46+32&":$AS$"&$D46+32),Data!$AI$30:$AS$30,G$16,Data!$AI$31:$AS$31,$G$15)),"") -> 101 | H46: =IFERROR(IF($G$15="ALL",SUMIFS(INDIRECT("Data!$AI$"&$D46+32&":$AS$"&$D46+32),Data!$AI$30:$AS$30,H$16),SUMIFS(INDIRECT("Data!$AI$"&$D46+32&":$AS$"&$D46+32),Data!$AI$30:$AS$30,H$16,Data!$AI$31:$AS$31,$G$15)),"") -> 104 | I46: 364 | J46: =IFERROR((SUMIFS(INDIRECT("Data!$AI$"&$D46+32&":$AS$"&$D46+32),Data!$AI$30:$AS$30,J$16))/(INDEX(Data!$K$33:$K$82,$D46,1)),"") -> 4.090909091 | K46: =IFERROR((SUMIFS(INDIRECT("Data!$AI$"&$D46+32&":$AS$"&$D46+32),Data!$AI$30:$AS$30,K$16))/(INDEX(Data!$L$33:$L$82,$D46,1)),"") -> 3.931034483 | L46: =IFERROR((SUMIFS(INDIRECT("Data!$AI$"&$D46+32&":$AS$"&$D46+32),Data!$AI$30:$AS$30,L$16))/(INDEX(Data!$M$33:$M$82,$D46,1)),"") -> 3.740740741 | M46: =IFERROR((SUMIFS(INDIRECT("Data!$AI$"&$D46+32&":$AS$"&$D46+32),Data!$AI$30:$AS$30,M$16))/(INDEX(Data!$N$33:$N$82,$D46,1)),"") -> 6.117647059 | N46: =IFERROR((SUM(INDIRECT("Data!$AI$"&$D46+32&":$AS$"&$D46+32)))/(INDEX(Data!$K$33:$K$82,$D46,1)+INDEX(Data!$L$33:$L$82,$D46,1)+INDEX(Data!$M$33:$M$82,$D46,1)+INDEX(Data!$N$33:$N$82,$D46,1)),"") -> 4.333333333
B47: ='Report A'!$B48 -> 2014-07-17 | C47: ='Report A'!$C48 -> Thursday | D47: ='Report A'!$D48 -> 17 | E47: =IFERROR(IF($G$15="ALL",SUMIFS(INDIRECT("Data!$AI$"&$D47+32&":$AS$"&$D47+32),Data!$AI$30:$AS$30,E$16),SUMIFS(INDIRECT("Data!$AI$"&$D47+32&":$AS$"&$D47+32),Data!$AI$30:$AS$30,E$16,Data!$AI$31:$AS$31,$G$15)),"") -> 31 | F47: =IFERROR(IF($G$15="ALL",SUMIFS(INDIRECT("Data!$AI$"&$D47+32&":$AS$"&$D47+32),Data!$AI$30:$AS$30,F$16),SUMIFS(INDIRECT("Data!$AI$"&$D47+32&":$AS$"&$D47+32),Data!$AI$30:$AS$30,F$16,Data!$AI$31:$AS$31,$G$15)),"") -> 75 | G47: =IFERROR(IF($G$15="ALL",SUMIFS(INDIRECT("Data!$AI$"&$D47+32&":$AS$"&$D47+32),Data!$AI$30:$AS$30,G$16),SUMIFS(INDIRECT("Data!$AI$"&$D47+32&":$AS$"&$D47+32),Data!$AI$30:$AS$30,G$16,Data!$AI$31:$AS$31,$G$15)),"") -> 111 | H47: =IFERROR(IF($G$15="ALL",SUMIFS(INDIRECT("Data!$AI$"&$D47+32&":$AS$"&$D47+32),Data!$AI$30:$AS$30,H$16),SUMIFS(INDIRECT("Data!$AI$"&$D47+32&":$AS$"&$D47+32),Data!$AI$30:$AS$30,H$16,Data!$AI$31:$AS$31,$G$15)),"") -> 62 | I47: 279 | J47: =IFERROR((SUMIFS(INDIRECT("Data!$AI$"&$D47+32&":$AS$"&$D47+32),Data!$AI$30:$AS$30,J$16))/(INDEX(Data!$K$33:$K$82,$D47,1)),"") -> 3.875 | K47: =IFERROR((SUMIFS(INDIRECT("Data!$AI$"&$D47+32&":$AS$"&$D47+32),Data!$AI$30:$AS$30,K$16))/(INDEX(Data!$L$33:$L$82,$D47,1)),"") -> 4.166666667 | L47: =IFERROR((SUMIFS(INDIRECT("Data!$AI$"&$D47+32&":$AS$"&$D47+32),Data!$AI$30:$AS$30,L$16))/(INDEX(Data!$M$33:$M$82,$D47,1)),"") -> 3.46875 | M47: =IFERROR((SUMIFS(INDIRECT("Data!$AI$"&$D47+32&":$AS$"&$D47+32),Data!$AI$30:$AS$30,M$16))/(INDEX(Data!$N$33:$N$82,$D47,1)),"") -> 4.428571429 | N47: =IFERROR((SUM(INDIRECT("Data!$AI$"&$D47+32&":$AS$"&$D47+32)))/(INDEX(Data!$K$33:$K$82,$D47,1)+INDEX(Data!$L$33:$L$82,$D47,1)+INDEX(Data!$M$33:$M$82,$D47,1)+INDEX(Data!$N$33:$N$82,$D47,1)),"") -> 3.875
B48: ='Report A'!$B49 -> 2014-07-18 | C48: ='Report A'!$C49 -> Friday | D48: ='Report A'!$D49 -> 18 | E48: =IFERROR(IF($G$15="ALL",SUMIFS(INDIRECT("Data!$AI$"&$D48+32&":$AS$"&$D48+32),Data!$AI$30:$AS$30,E$16),SUMIFS(INDIRECT("Data!$AI$"&$D48+32&":$AS$"&$D48+32),Data!$AI$30:$AS$30,E$16,Data!$AI$31:$AS$31,$G$15)),"") -> 59 | F48: =IFERROR(IF($G$15="ALL",SUMIFS(INDIRECT("Data!$AI$"&$D48+32&":$AS$"&$D48+32),Data!$AI$30:$AS$30,F$16),SUMIFS(INDIRECT("Data!$AI$"&$D48+32&":$AS$"&$D48+32),Data!$AI$30:$AS$30,F$16,Data!$AI$31:$AS$31,$G$15)),"") -> 191 | G48: =IFERROR(IF($G$15="ALL",SUMIFS(INDIRECT("Data!$AI$"&$D48+32&":$AS$"&$D48+32),Data!$AI$30:$AS$30,G$16),SUMIFS(INDIRECT("Data!$AI$"&$D48+32&":$AS$"&$D48+32),Data!$AI$30:$AS$30,G$16,Data!$AI$31:$AS$31,$G$15)),"") -> 215 | H48: =IFERROR(IF($G$15="ALL",SUMIFS(INDIRECT("Data!$AI$"&$D48+32&":$AS$"&$D48+32),Data!$AI$30:$AS$30,H$16),SUMIFS(INDIRECT("Data!$AI$"&$D48+32&":$AS$"&$D48+32),Data!$AI$30:$AS$30,H$16,Data!$AI$31:$AS$31,$G$15)),"") -> 49 | I48: 514 | J48: =IFERROR((SUMIFS(INDIRECT("Data!$AI$"&$D48+32&":$AS$"&$D48+32),Data!$AI$30:$AS$30,J$16))/(INDEX(Data!$K$33:$K$82,$D48,1)),"") -> 4.214285714 | K48: =IFERROR((SUMIFS(INDIRECT("Data!$AI$"&$D48+32&":$AS$"&$D48+32),Data!$AI$30:$AS$30,K$16))/(INDEX(Data!$L$33:$L$82,$D48,1)),"") -> 6.161290323 | L48: =IFERROR((SUMIFS(INDIRECT("Data!$AI$"&$D48+32&":$AS$"&$D48+32),Data!$AI$30:$AS$30,L$16))/(INDEX(Data!$M$33:$M$82,$D48,1)),"") -> 3.909090909 | M48: =IFERROR((SUMIFS(INDIRECT("Data!$AI$"&$D48+32&":$AS$"&$D48+32),Data!$AI$30:$AS$30,M$16))/(INDEX(Data!$N$33:$N$82,$D48,1)),"") -> 3.5 | N48: =IFERROR((SUM(INDIRECT("Data!$AI$"&$D48+32&":$AS$"&$D48+32)))/(INDEX(Data!$K$33:$K$82,$D48,1)+INDEX(Data!$L$33:$L$82,$D48,1)+INDEX(Data!$M$33:$M$82,$D48,1)+INDEX(Data!$N$33:$N$82,$D48,1)),"") -> 4.50877193
B49: ='Report A'!$B50 -> 2014-07-19 | C49: ='Report A'!$C50 -> Saturday | D49: ='Report A'!$D50 -> 19 | E49: =IFERROR(IF($G$15="ALL",SUMIFS(INDIRECT("Data!$AI$"&$D49+32&":$AS$"&$D49+32),Data!$AI$30:$AS$30,E$16),SUMIFS(INDIRECT("Data!$AI$"&$D49+32&":$AS$"&$D49+32),Data!$AI$30:$AS$30,E$16,Data!$AI$31:$AS$31,$G$15)),"") -> 39 | F49: =IFERROR(IF($G$15="ALL",SUMIFS(INDIRECT("Data!$AI$"&$D49+32&":$AS$"&$D49+32),Data!$AI$30:$AS$30,F$16),SUMIFS(INDIRECT("Data!$AI$"&$D49+32&":$AS$"&$D49+32),Data!$AI$30:$AS$30,F$16,Data!$AI$31:$AS$31,$G$15)),"") -> 98 | G49: =IFERROR(IF($G$15="ALL",SUMIFS(INDIRECT("Data!$AI$"&$D49+32&":$AS$"&$D49+32),Data!$AI$30:$AS$30,G$16),SUMIFS(INDIRECT("Data!$AI$"&$D49+32&":$AS$"&$D49+32),Data!$AI$30:$AS$30,G$16,Data!$AI$31:$AS$31,$G$15)),"") -> 260 | H49: =IFERROR(IF($G$15="ALL",SUMIFS(INDIRECT("Data!$AI$"&$D49+32&":$AS$"&$D49+32),Data!$AI$30:$AS$30,H$16),SUMIFS(INDIRECT("Data!$AI$"&$D49+32&":$AS$"&$D49+32),Data!$AI$30:$AS$30,H$16,Data!$AI$31:$AS$31,$G$15)),"") -> 91 | I49: 488 | J49: =IFERROR((SUMIFS(INDIRECT("Data!$AI$"&$D49+32&":$AS$"&$D49+32),Data!$AI$30:$AS$30,J$16))/(INDEX(Data!$K$33:$K$82,$D49,1)),"") -> 2.785714286 | K49: =IFERROR((SUMIFS(INDIRECT("Data!$AI$"&$D49+32&":$AS$"&$D49+32),Data!$AI$30:$AS$30,K$16))/(INDEX(Data!$L$33:$L$82,$D49,1)),"") -> 3.379310345 | L49: =IFERROR((SUMIFS(INDIRECT("Data!$AI$"&$D49+32&":$AS$"&$D49+32),Data!$AI$30:$AS$30,L$16))/(INDEX(Data!$M$33:$M$82,$D49,1)),"") -> 4.333333333 | M49: =IFERROR((SUMIFS(INDIRECT("Data!$AI$"&$D49+32&":$AS$"&$D49+32),Data!$AI$30:$AS$30,M$16))/(INDEX(Data!$N$33:$N$82,$D49,1)),"") -> 3.791666667 | N49: =IFERROR((SUM(INDIRECT("Data!$AI$"&$D49+32&":$AS$"&$D49+32)))/(INDEX(Data!$K$33:$K$82,$D49,1)+INDEX(Data!$L$33:$L$82,$D49,1)+INDEX(Data!$M$33:$M$82,$D49,1)+INDEX(Data!$N$33:$N$82,$D49,1)),"") -> 3.842519685
B50: ='Report A'!$B51 -> 2014-07-20 | C50: ='Report A'!$C51 -> Sunday | D50: ='Report A'!$D51 -> 20 | E50: =IFERROR(IF($G$15="ALL",SUMIFS(INDIRECT("Data!$AI$"&$D50+32&":$AS$"&$D50+32),Data!$AI$30:$AS$30,E$16),SUMIFS(INDIRECT("Data!$AI$"&$D50+32&":$AS$"&$D50+32),Data!$AI$30:$AS$30,E$16,Data!$AI$31:$AS$31,$G$15)),"") -> 92 | F50: =IFERROR(IF($G$15="ALL",SUMIFS(INDIRECT("Data!$AI$"&$D50+32&":$AS$"&$D50+32),Data!$AI$30:$AS$30,F$16),SUMIFS(INDIRECT("Data!$AI$"&$D50+32&":$AS$"&$D50+32),Data!$AI$30:$AS$30,F$16,Data!$AI$31:$AS$31,$G$15)),"") -> 78 | G50: =IFERROR(IF($G$15="ALL",SUMIFS(INDIRECT("Data!$AI$"&$D50+32&":$AS$"&$D50+32),Data!$AI$30:$AS$30,G$16),SUMIFS(INDIRECT("Data!$AI$"&$D50+32&":$AS$"&$D50+32),Data!$AI$30:$AS$30,G$16,Data!$AI$31:$AS$31,$G$15)),"") -> 89 | H50: =IFERROR(IF($G$15="ALL",SUMIFS(INDIRECT("Data!$AI$"&$D50+32&":$AS$"&$D50+32),Data!$AI$30:$AS$30,H$16),SUMIFS(INDIRECT("Data!$AI$"&$D50+32&":$AS$"&$D50+32),Data!$AI$30:$AS$30,H$16,Data!$AI$31:$AS$31,$G$15)),"") -> 90 | I50: 349 | J50: =IFERROR((SUMIFS(INDIRECT("Data!$AI$"&$D50+32&":$AS$"&$D50+32),Data!$AI$30:$AS$30,J$16))/(INDEX(Data!$K$33:$K$82,$D50,1)),"") -> 3.285714286 | K50: =IFERROR((SUMIFS(INDIRECT("Data!$AI$"&$D50+32&":$AS$"&$D50+32),Data!$AI$30:$AS$30,K$16))/(INDEX(Data!$L$33:$L$82,$D50,1)),"") -> 3.391304348 | L50: =IFERROR((SUMIFS(INDIRECT("Data!$AI$"&$D50+32&":$AS$"&$D50+32),Data!$AI$30:$AS$30,L$16))/(INDEX(Data!$M$33:$M$82,$D50,1)),"") -> 2.617647059 | M50: =IFERROR((SUMIFS(INDIRECT("Data!$AI$"&$D50+32&":$AS$"&$D50+32),Data!$AI$30:$AS$30,M$16))/(INDEX(Data!$N$33:$N$82,$D50,1)),"") -> 5.294117647 | N50: =IFERROR((SUM(INDIRECT("Data!$AI$"&$D50+32&":$AS$"&$D50+32)))/(INDEX(Data!$K$33:$K$82,$D50,1)+INDEX(Data!$L$33:$L$82,$D50,1)+INDEX(Data!$M$33:$M$82,$D50,1)+INDEX(Data!$N$33:$N$82,$D50,1)),"") -> 3.421568627
B51: ='Report A'!$B52 -> 2014-07-21 | C51: ='Report A'!$C52 -> Monday | D51: ='Report A'!$D52 -> 21 | E51: =IFERROR(IF($G$15="ALL",SUMIFS(INDIRECT("Data!$AI$"&$D51+32&":$AS$"&$D51+32),Data!$AI$30:$AS$30,E$16),SUMIFS(INDIRECT("Data!$AI$"&$D51+32&":$AS$"&$D51+32),Data!$AI$30:$AS$30,E$16,Data!$AI$31:$AS$31,$G$15)),"") -> 50 | F51: =IFERROR(IF($G$15="ALL",SUMIFS(INDIRECT("Data!$AI$"&$D51+32&":$AS$"&$D51+32),Data!$AI$30:$AS$30,F$16),SUMIFS(INDIRECT("Data!$AI$"&$D51+32&":$AS$"&$D51+32),Data!$AI$30:$AS$30,F$16,Data!$AI$31:$AS$31,$G$15)),"") -> 48 | G51: =IFERROR(IF($G$15="ALL",SUMIFS(INDIRECT("Data!$AI$"&$D51+32&":$AS$"&$D51+32),Data!$AI$30:$AS$30,G$16),SUMIFS(INDIRECT("Data!$AI$"&$D51+32&":$AS$"&$D51+32),Data!$AI$30:$AS$30,G$16,Data!$AI$31:$AS$31,$G$15)),"") -> 66 | H51: =IFERROR(IF($G$15="ALL",SUMIFS(INDIRECT("Data!$AI$"&$D51+32&":$AS$"&$D51+32),Data!$AI$30:$AS$30,H$16),SUMIFS(INDIRECT("Data!$AI$"&$D51+32&":$AS$"&$D51+32),Data!$AI$30:$AS$30,H$16,Data!$AI$31:$AS$31,$G$15)),"") -> 67 | I51: 231 | J51: =IFERROR((SUMIFS(INDIRECT("Data!$AI$"&$D51+32&":$AS$"&$D51+32),Data!$AI$30:$AS$30,J$16))/(INDEX(Data!$K$33:$K$82,$D51,1)),"") -> 3.125 | K51: =IFERROR((SUMIFS(INDIRECT("Data!$AI$"&$D51+32&":$AS$"&$D51+32),Data!$AI$30:$AS$30,K$16))/(INDEX(Data!$L$33:$L$82,$D51,1)),"") -> 4 | L51: =IFERROR((SUMIFS(INDIRECT("Data!$AI$"&$D51+32&":$AS$"&$D51+32),Data!$AI$30:$AS$30,L$16))/(INDEX(Data!$M$33:$M$82,$D51,1)),"") -> 2.869565217 | M51: =IFERROR((SUMIFS(INDIRECT("Data!$AI$"&$D51+32&":$AS$"&$D51+32),Data!$AI$30:$AS$30,M$16))/(INDEX(Data!$N$33:$N$82,$D51,1)),"") -> 5.583333333 | N51: =IFERROR((SUM(INDIRECT("Data!$AI$"&$D51+32&":$AS$"&$D51+32)))/(INDEX(Data!$K$33:$K$82,$D51,1)+INDEX(Data!$L$33:$L$82,$D51,1)+INDEX(Data!$M$33:$M$82,$D51,1)+INDEX(Data!$N$33:$N$82,$D51,1)),"") -> 3.666666667
B52: ='Report A'!$B53 -> 2014-07-22 | C52: ='Report A'!$C53 -> Tuesday | D52: ='Report A'!$D53 -> 22 | E52: =IFERROR(IF($G$15="ALL",SUMIFS(INDIRECT("Data!$AI$"&$D52+32&":$AS$"&$D52+32),Data!$AI$30:$AS$30,E$16),SUMIFS(INDIRECT("Data!$AI$"&$D52+32&":$AS$"&$D52+32),Data!$AI$30:$AS$30,E$16,Data!$AI$31:$AS$31,$G$15)),"") -> 61 | F52: =IFERROR(IF($G$15="ALL",SUMIFS(INDIRECT("Data!$AI$"&$D52+32&":$AS$"&$D52+32),Data!$AI$30:$AS$30,F$16),SUMIFS(INDIRECT("Data!$AI$"&$D52+32&":$AS$"&$D52+32),Data!$AI$30:$AS$30,F$16,Data!$AI$31:$AS$31,$G$15)),"") -> 100 | G52: =IFERROR(IF($G$15="ALL",SUMIFS(INDIRECT("Data!$AI$"&$D52+32&":$AS$"&$D52+32),Data!$AI$30:$AS$30,G$16),SUMIFS(INDIRECT("Data!$AI$"&$D52+32&":$AS$"&$D52+32),Data!$AI$30:$AS$30,G$16,Data!$AI$31:$AS$31,$G$15)),"") -> 144 | H52: =IFERROR(IF($G$15="ALL",SUMIFS(INDIRECT("Data!$AI$"&$D52+32&":$AS$"&$D52+32),Data!$AI$30:$AS$30,H$16),SUMIFS(INDIRECT("Data!$AI$"&$D52+32&":$AS$"&$D52+32),Data!$AI$30:$AS$30,H$16,Data!$AI$31:$AS$31,$G$15)),"") -> 78 | I52: 383 | J52: =IFERROR((SUMIFS(INDIRECT("Data!$AI$"&$D52+32&":$AS$"&$D52+32),Data!$AI$30:$AS$30,J$16))/(INDEX(Data!$K$33:$K$82,$D52,1)),"") -> 4.066666667 | K52: =IFERROR((SUMIFS(INDIRECT("Data!$AI$"&$D52+32&":$AS$"&$D52+32),Data!$AI$30:$AS$30,K$16))/(INDEX(Data!$L$33:$L$82,$D52,1)),"") -> 6.666666667 | L52: =IFERROR((SUMIFS(INDIRECT("Data!$AI$"&$D52+32&":$AS$"&$D52+32),Data!$AI$30:$AS$30,L$16))/(INDEX(Data!$M$33:$M$82,$D52,1)),"") -> 3.692307692 | M52: =IFERROR((SUMIFS(INDIRECT("Data!$AI$"&$D52+32&":$AS$"&$D52+32),Data!$AI$30:$AS$30,M$16))/(INDEX(Data!$N$33:$N$82,$D52,1)),"") -> 6 | N52: =IFERROR((SUM(INDIRECT("Data!$AI$"&$D52+32&":$AS$"&$D52+32)))/(INDEX(Data!$K$33:$K$82,$D52,1)+INDEX(Data!$L$33:$L$82,$D52,1)+INDEX(Data!$M$33:$M$82,$D52,1)+INDEX(Data!$N$33:$N$82,$D52,1)),"") -> 4.670731707
B53: ='Report A'!$B54 -> 2014-07-23 | C53: ='Report A'!$C54 -> Wednesday | D53: ='Report A'!$D54 -> 23 | E53: =IFERROR(IF($G$15="ALL",SUMIFS(INDIRECT("Data!$AI$"&$D53+32&":$AS$"&$D53+32),Data!$AI$30:$AS$30,E$16),SUMIFS(INDIRECT("Data!$AI$"&$D53+32&":$AS$"&$D53+32),Data!$AI$30:$AS$30,E$16,Data!$AI$31:$AS$31,$G$15)),"") -> 49 | F53: =IFERROR(IF($G$15="ALL",SUMIFS(INDIRECT("Data!$AI$"&$D53+32&":$AS$"&$D53+32),Data!$AI$30:$AS$30,F$16),SUMIFS(INDIRECT("Data!$AI$"&$D53+32&":$AS$"&$D53+32),Data!$AI$30:$AS$30,F$16,Data!$AI$31:$AS$31,$G$15)),"") -> 113 | G53: =IFERROR(IF($G$15="ALL",SUMIFS(INDIRECT("Data!$AI$"&$D53+32&":$AS$"&$D53+32),Data!$AI$30:$AS$30,G$16),SUMIFS(INDIRECT("Data!$AI$"&$D53+32&":$AS$"&$D53+32),Data!$AI$30:$AS$30,G$16,Data!$AI$31:$AS$31,$G$15)),"") -> 100 | H53: =IFERROR(IF($G$15="ALL",SUMIFS(INDIRECT("Data!$AI$"&$D53+32&":$AS$"&$D53+32),Data!$AI$30:$AS$30,H$16),SUMIFS(INDIRECT("Data!$AI$"&$D53+32&":$AS$"&$D53+32),Data!$AI$30:$AS$30,H$16,Data!$AI$31:$AS$31,$G$15)),"") -> 16 | I53: 278 | J53: =IFERROR((SUMIFS(INDIRECT("Data!$AI$"&$D53+32&":$AS$"&$D53+32),Data!$AI$30:$AS$30,J$16))/(INDEX(Data!$K$33:$K$82,$D53,1)),"") -> 3.0625 | K53: =IFERROR((SUMIFS(INDIRECT("Data!$AI$"&$D53+32&":$AS$"&$D53+32),Data!$AI$30:$AS$30,K$16))/(INDEX(Data!$L$33:$L$82,$D53,1)),"") -> 5.136363636 | L53: =IFERROR((SUMIFS(INDIRECT("Data!$AI$"&$D53+32&":$AS$"&$D53+32),Data!$AI$30:$AS$30,L$16))/(INDEX(Data!$M$33:$M$82,$D53,1)),"") -> 3.571428571 | M53: =IFERROR((SUMIFS(INDIRECT("Data!$AI$"&$D53+32&":$AS$"&$D53+32),Data!$AI$30:$AS$30,M$16))/(INDEX(Data!$N$33:$N$82,$D53,1)),"") -> 4 | N53: =IFERROR((SUM(INDIRECT("Data!$AI$"&$D53+32&":$AS$"&$D53+32)))/(INDEX(Data!$K$33:$K$82,$D53,1)+INDEX(Data!$L$33:$L$82,$D53,1)+INDEX(Data!$M$33:$M$82,$D53,1)+INDEX(Data!$N$33:$N$82,$D53,1)),"") -> 3.971428571
B54: ='Report A'!$B55 -> 2014-07-24 | C54: ='Report A'!$C55 -> Thursday | D54: ='Report A'!$D55 -> 24 | E54: =IFERROR(IF($G$15="ALL",SUMIFS(INDIRECT("Data!$AI$"&$D54+32&":$AS$"&$D54+32),Data!$AI$30:$AS$30,E$16),SUMIFS(INDIRECT("Data!$AI$"&$D54+32&":$AS$"&$D54+32),Data!$AI$30:$AS$30,E$16,Data!$AI$31:$AS$31,$G$15)),"") -> 63 | F54: =IFERROR(IF($G$15="ALL",SUMIFS(INDIRECT("Data!$AI$"&$D54+32&":$AS$"&$D54+32),Data!$AI$30:$AS$30,F$16),SUMIFS(INDIRECT("Data!$AI$"&$D54+32&":$AS$"&$D54+32),Data!$AI$30:$AS$30,F$16,Data!$AI$31:$AS$31,$G$15)),"") -> 115 | G54: =IFERROR(IF($G$15="ALL",SUMIFS(INDIRECT("Data!$AI$"&$D54+32&":$AS$"&$D54+32),Data!$AI$30:$AS$30,G$16),SUMIFS(INDIRECT("Data!$AI$"&$D54+32&":$AS$"&$D54+32),Data!$AI$30:$AS$30,G$16,Data!$AI$31:$AS$31,$G$15)),"") -> 185 | H54: =IFERROR(IF($G$15="ALL",SUMIFS(INDIRECT("Data!$AI$"&$D54+32&":$AS$"&$D54+32),Data!$AI$30:$AS$30,H$16),SUMIFS(INDIRECT("Data!$AI$"&$D54+32&":$AS$"&$D54+32),Data!$AI$30:$AS$30,H$16,Data!$AI$31:$AS$31,$G$15)),"") -> 96 | I54: 459 | J54: =IFERROR((SUMIFS(INDIRECT("Data!$AI$"&$D54+32&":$AS$"&$D54+32),Data!$AI$30:$AS$30,J$16))/(INDEX(Data!$K$33:$K$82,$D54,1)),"") -> 3.705882353 | K54: =IFERROR((SUMIFS(INDIRECT("Data!$AI$"&$D54+32&":$AS$"&$D54+32),Data!$AI$30:$AS$30,K$16))/(INDEX(Data!$L$33:$L$82,$D54,1)),"") -> 4.791666667 | L54: =IFERROR((SUMIFS(INDIRECT("Data!$AI$"&$D54+32&":$AS$"&$D54+32),Data!$AI$30:$AS$30,L$16))/(INDEX(Data!$M$33:$M$82,$D54,1)),"") -> 4.111111111 | M54: =IFERROR((SUMIFS(INDIRECT("Data!$AI$"&$D54+32&":$AS$"&$D54+32),Data!$AI$30:$AS$30,M$16))/(INDEX(Data!$N$33:$N$82,$D54,1)),"") -> 5.052631579 | N54: =IFERROR((SUM(INDIRECT("Data!$AI$"&$D54+32&":$AS$"&$D54+32)))/(INDEX(Data!$K$33:$K$82,$D54,1)+INDEX(Data!$L$33:$L$82,$D54,1)+INDEX(Data!$M$33:$M$82,$D54,1)+INDEX(Data!$N$33:$N$82,$D54,1)),"") -> 4.371428571
B55: ='Report A'!$B56 -> 2014-07-25 | C55: ='Report A'!$C56 -> Friday | D55: ='Report A'!$D56 -> 25 | E55: =IFERROR(IF($G$15="ALL",SUMIFS(INDIRECT("Data!$AI$"&$D55+32&":$AS$"&$D55+32),Data!$AI$30:$AS$30,E$16),SUMIFS(INDIRECT("Data!$AI$"&$D55+32&":$AS$"&$D55+32),Data!$AI$30:$AS$30,E$16,Data!$AI$31:$AS$31,$G$15)),"") -> 94 | F55: =IFERROR(IF($G$15="ALL",SUMIFS(INDIRECT("Data!$AI$"&$D55+32&":$AS$"&$D55+32),Data!$AI$30:$AS$30,F$16),SUMIFS(INDIRECT("Data!$AI$"&$D55+32&":$AS$"&$D55+32),Data!$AI$30:$AS$30,F$16,Data!$AI$31:$AS$31,$G$15)),"") -> 189 | G55: =IFERROR(IF($G$15="ALL",SUMIFS(INDIRECT("Data!$AI$"&$D55+32&":$AS$"&$D55+32),Data!$AI$30:$AS$30,G$16),SUMIFS(INDIRECT("Data!$AI$"&$D55+32&":$AS$"&$D55+32),Data!$AI$30:$AS$30,G$16,Data!$AI$31:$AS$31,$G$15)),"") -> 334 | H55: =IFERROR(IF($G$15="ALL",SUMIFS(INDIRECT("Data!$AI$"&$D55+32&":$AS$"&$D55+32),Data!$AI$30:$AS$30,H$16),SUMIFS(INDIRECT("Data!$AI$"&$D55+32&":$AS$"&$D55+32),Data!$AI$30:$AS$30,H$16,Data!$AI$31:$AS$31,$G$15)),"") -> 35 | I55: 652 | J55: =IFERROR((SUMIFS(INDIRECT("Data!$AI$"&$D55+32&":$AS$"&$D55+32),Data!$AI$30:$AS$30,J$16))/(INDEX(Data!$K$33:$K$82,$D55,1)),"") -> 3.76 | K55: =IFERROR((SUMIFS(INDIRECT("Data!$AI$"&$D55+32&":$AS$"&$D55+32),Data!$AI$30:$AS$30,K$16))/(INDEX(Data!$L$33:$L$82,$D55,1)),"") -> 6.517241379 | L55: =IFERROR((SUMIFS(INDIRECT("Data!$AI$"&$D55+32&":$AS$"&$D55+32),Data!$AI$30:$AS$30,L$16))/(INDEX(Data!$M$33:$M$82,$D55,1)),"") -> 5.138461538 | M55: =IFERROR((SUMIFS(INDIRECT("Data!$AI$"&$D55+32&":$AS$"&$D55+32),Data!$AI$30:$AS$30,M$16))/(INDEX(Data!$N$33:$N$82,$D55,1)),"") -> 3.181818182 | N55: =IFERROR((SUM(INDIRECT("Data!$AI$"&$D55+32&":$AS$"&$D55+32)))/(INDEX(Data!$K$33:$K$82,$D55,1)+INDEX(Data!$L$33:$L$82,$D55,1)+INDEX(Data!$M$33:$M$82,$D55,1)+INDEX(Data!$N$33:$N$82,$D55,1)),"") -> 5.015384615
B56: ='Report A'!$B57 -> 2014-07-26 | C56: ='Report A'!$C57 -> Saturday | D56: ='Report A'!$D57 -> 26 | E56: =IFERROR(IF($G$15="ALL",SUMIFS(INDIRECT("Data!$AI$"&$D56+32&":$AS$"&$D56+32),Data!$AI$30:$AS$30,E$16),SUMIFS(INDIRECT("Data!$AI$"&$D56+32&":$AS$"&$D56+32),Data!$AI$30:$AS$30,E$16,Data!$AI$31:$AS$31,$G$15)),"") -> 89 | F56: =IFERROR(IF($G$15="ALL",SUMIFS(INDIRECT("Data!$AI$"&$D56+32&":$AS$"&$D56+32),Data!$AI$30:$AS$30,F$16),SUMIFS(INDIRECT("Data!$AI$"&$D56+32&":$AS$"&$D56+32),Data!$AI$30:$AS$30,F$16,Data!$AI$31:$AS$31,$G$15)),"") -> 55 | G56: =IFERROR(IF($G$15="ALL",SUMIFS(INDIRECT("Data!$AI$"&$D56+32&":$AS$"&$D56+32),Data!$AI$30:$AS$30,G$16),SUMIFS(INDIRECT("Data!$AI$"&$D56+32&":$AS$"&$D56+32),Data!$AI$30:$AS$30,G$16,Data!$AI$31:$AS$31,$G$15)),"") -> 265 | H56: =IFERROR(IF($G$15="ALL",SUMIFS(INDIRECT("Data!$AI$"&$D56+32&":$AS$"&$D56+32),Data!$AI$30:$AS$30,H$16),SUMIFS(INDIRECT("Data!$AI$"&$D56+32&":$AS$"&$D56+32),Data!$AI$30:$AS$30,H$16,Data!$AI$31:$AS$31,$G$15)),"") -> 69 | I56: 478 | J56: =IFERROR((SUMIFS(INDIRECT("Data!$AI$"&$D56+32&":$AS$"&$D56+32),Data!$AI$30:$AS$30,J$16))/(INDEX(Data!$K$33:$K$82,$D56,1)),"") -> 3.068965517 | K56: =IFERROR((SUMIFS(INDIRECT("Data!$AI$"&$D56+32&":$AS$"&$D56+32),Data!$AI$30:$AS$30,K$16))/(INDEX(Data!$L$33:$L$82,$D56,1)),"") -> 3.055555556 | L56: =IFERROR((SUMIFS(INDIRECT("Data!$AI$"&$D56+32&":$AS$"&$D56+32),Data!$AI$30:$AS$30,L$16))/(INDEX(Data!$M$33:$M$82,$D56,1)),"") -> 4.274193548 | M56: =IFERROR((SUMIFS(INDIRECT("Data!$AI$"&$D56+32&":$AS$"&$D56+32),Data!$AI$30:$AS$30,M$16))/(INDEX(Data!$N$33:$N$82,$D56,1)),"") -> 3.833333333 | N56: =IFERROR((SUM(INDIRECT("Data!$AI$"&$D56+32&":$AS$"&$D56+32)))/(INDEX(Data!$K$33:$K$82,$D56,1)+INDEX(Data!$L$33:$L$82,$D56,1)+INDEX(Data!$M$33:$M$82,$D56,1)+INDEX(Data!$N$33:$N$82,$D56,1)),"") -> 3.763779528
B57: ='Report A'!$B58 -> 2014-07-27 | C57: ='Report A'!$C58 -> Sunday | D57: ='Report A'!$D58 -> 27 | E57: =IFERROR(IF($G$15="ALL",SUMIFS(INDIRECT("Data!$AI$"&$D57+32&":$AS$"&$D57+32),Data!$AI$30:$AS$30,E$16),SUMIFS(INDIRECT("Data!$AI$"&$D57+32&":$AS$"&$D57+32),Data!$AI$30:$AS$30,E$16,Data!$AI$31:$AS$31,$G$15)),"") -> 108 | F57: =IFERROR(IF($G$15="ALL",SUMIFS(INDIRECT("Data!$AI$"&$D57+32&":$AS$"&$D57+32),Data!$AI$30:$AS$30,F$16),SUMIFS(INDIRECT("Data!$AI$"&$D57+32&":$AS$"&$D57+32),Data!$AI$30:$AS$30,F$16,Data!$AI$31:$AS$31,$G$15)),"") -> 94 | G57: =IFERROR(IF($G$15="ALL",SUMIFS(INDIRECT("Data!$AI$"&$D57+32&":$AS$"&$D57+32),Data!$AI$30:$AS$30,G$16),SUMIFS(INDIRECT("Data!$AI$"&$D57+32&":$AS$"&$D57+32),Data!$AI$30:$AS$30,G$16,Data!$AI$31:$AS$31,$G$15)),"") -> 271 | H57: =IFERROR(IF($G$15="ALL",SUMIFS(INDIRECT("Data!$AI$"&$D57+32&":$AS$"&$D57+32),Data!$AI$30:$AS$30,H$16),SUMIFS(INDIRECT("Data!$AI$"&$D57+32&":$AS$"&$D57+32),Data!$AI$30:$AS$30,H$16,Data!$AI$31:$AS$31,$G$15)),"") -> 74 | I57: 547 | J57: =IFERROR((SUMIFS(INDIRECT("Data!$AI$"&$D57+32&":$AS$"&$D57+32),Data!$AI$30:$AS$30,J$16))/(INDEX(Data!$K$33:$K$82,$D57,1)),"") -> 3.857142857 | K57: =IFERROR((SUMIFS(INDIRECT("Data!$AI$"&$D57+32&":$AS$"&$D57+32),Data!$AI$30:$AS$30,K$16))/(INDEX(Data!$L$33:$L$82,$D57,1)),"") -> 3.24137931 | L57: =IFERROR((SUMIFS(INDIRECT("Data!$AI$"&$D57+32&":$AS$"&$D57+32),Data!$AI$30:$AS$30,L$16))/(INDEX(Data!$M$33:$M$82,$D57,1)),"") -> 4.301587302 | M57: =IFERROR((SUMIFS(INDIRECT("Data!$AI$"&$D57+32&":$AS$"&$D57+32),Data!$AI$30:$AS$30,M$16))/(INDEX(Data!$N$33:$N$82,$D57,1)),"") -> 4.933333333 | N57: =IFERROR((SUM(INDIRECT("Data!$AI$"&$D57+32&":$AS$"&$D57+32)))/(INDEX(Data!$K$33:$K$82,$D57,1)+INDEX(Data!$L$33:$L$82,$D57,1)+INDEX(Data!$M$33:$M$82,$D57,1)+INDEX(Data!$N$33:$N$82,$D57,1)),"") -> 4.051851852
B58: ='Report A'!$B59 -> 2014-07-28 | C58: ='Report A'!$C59 -> Monday | D58: ='Report A'!$D59 -> 28 | E58: =IFERROR(IF($G$15="ALL",SUMIFS(INDIRECT("Data!$AI$"&$D58+32&":$AS$"&$D58+32),Data!$AI$30:$AS$30,E$16),SUMIFS(INDIRECT("Data!$AI$"&$D58+32&":$AS$"&$D58+32),Data!$AI$30:$AS$30,E$16,Data!$AI$31:$AS$31,$G$15)),"") -> 125 | F58: =IFERROR(IF($G$15="ALL",SUMIFS(INDIRECT("Data!$AI$"&$D58+32&":$AS$"&$D58+32),Data!$AI$30:$AS$30,F$16),SUMIFS(INDIRECT("Data!$AI$"&$D58+32&":$AS$"&$D58+32),Data!$AI$30:$AS$30,F$16,Data!$AI$31:$AS$31,$G$15)),"") -> 128 | G58: =IFERROR(IF($G$15="ALL",SUMIFS(INDIRECT("Data!$AI$"&$D58+32&":$AS$"&$D58+32),Data!$AI$30:$AS$30,G$16),SUMIFS(INDIRECT("Data!$AI$"&$D58+32&":$AS$"&$D58+32),Data!$AI$30:$AS$30,G$16,Data!$AI$31:$AS$31,$G$15)),"") -> 306 | H58: =IFERROR(IF($G$15="ALL",SUMIFS(INDIRECT("Data!$AI$"&$D58+32&":$AS$"&$D58+32),Data!$AI$30:$AS$30,H$16),SUMIFS(INDIRECT("Data!$AI$"&$D58+32&":$AS$"&$D58+32),Data!$AI$30:$AS$30,H$16,Data!$AI$31:$AS$31,$G$15)),"") -> 73 | I58: 632 | J58: =IFERROR((SUMIFS(INDIRECT("Data!$AI$"&$D58+32&":$AS$"&$D58+32),Data!$AI$30:$AS$30,J$16))/(INDEX(Data!$K$33:$K$82,$D58,1)),"") -> 4.166666667 | K58: =IFERROR((SUMIFS(INDIRECT("Data!$AI$"&$D58+32&":$AS$"&$D58+32),Data!$AI$30:$AS$30,K$16))/(INDEX(Data!$L$33:$L$82,$D58,1)),"") -> 3.12195122 | L58: =IFERROR((SUMIFS(INDIRECT("Data!$AI$"&$D58+32&":$AS$"&$D58+32),Data!$AI$30:$AS$30,L$16))/(INDEX(Data!$M$33:$M$82,$D58,1)),"") -> 4.78125 | M58: =IFERROR((SUMIFS(INDIRECT("Data!$AI$"&$D58+32&":$AS$"&$D58+32),Data!$AI$30:$AS$30,M$16))/(INDEX(Data!$N$33:$N$82,$D58,1)),"") -> 3.318181818 | N58: =IFERROR((SUM(INDIRECT("Data!$AI$"&$D58+32&":$AS$"&$D58+32)))/(INDEX(Data!$K$33:$K$82,$D58,1)+INDEX(Data!$L$33:$L$82,$D58,1)+INDEX(Data!$M$33:$M$82,$D58,1)+INDEX(Data!$N$33:$N$82,$D58,1)),"") -> 4.025477707
B59: ='Report A'!$B60 -> 2014-07-29 | C59: ='Report A'!$C60 -> Tuesday | D59: ='Report A'!$D60 -> 29 | E59: =IFERROR(IF($G$15="ALL",SUMIFS(INDIRECT("Data!$AI$"&$D59+32&":$AS$"&$D59+32),Data!$AI$30:$AS$30,E$16),SUMIFS(INDIRECT("Data!$AI$"&$D59+32&":$AS$"&$D59+32),Data!$AI$30:$AS$30,E$16,Data!$AI$31:$AS$31,$G$15)),"") -> 132 | F59: =IFERROR(IF($G$15="ALL",SUMIFS(INDIRECT("Data!$AI$"&$D59+32&":$AS$"&$D59+32),Data!$AI$30:$AS$30,F$16),SUMIFS(INDIRECT("Data!$AI$"&$D59+32&":$AS$"&$D59+32),Data!$AI$30:$AS$30,F$16,Data!$AI$31:$AS$31,$G$15)),"") -> 119 | G59: =IFERROR(IF($G$15="ALL",SUMIFS(INDIRECT("Data!$AI$"&$D59+32&":$AS$"&$D59+32),Data!$AI$30:$AS$30,G$16),SUMIFS(INDIRECT("Data!$AI$"&$D59+32&":$AS$"&$D59+32),Data!$AI$30:$AS$30,G$16,Data!$AI$31:$AS$31,$G$15)),"") -> 183 | H59: =IFERROR(IF($G$15="ALL",SUMIFS(INDIRECT("Data!$AI$"&$D59+32&":$AS$"&$D59+32),Data!$AI$30:$AS$30,H$16),SUMIFS(INDIRECT("Data!$AI$"&$D59+32&":$AS$"&$D59+32),Data!$AI$30:$AS$30,H$16,Data!$AI$31:$AS$31,$G$15)),"") -> 79 | I59: 513 | J59: =IFERROR((SUMIFS(INDIRECT("Data!$AI$"&$D59+32&":$AS$"&$D59+32),Data!$AI$30:$AS$30,J$16))/(INDEX(Data!$K$33:$K$82,$D59,1)),"") -> 4 | K59: =IFERROR((SUMIFS(INDIRECT("Data!$AI$"&$D59+32&":$AS$"&$D59+32),Data!$AI$30:$AS$30,K$16))/(INDEX(Data!$L$33:$L$82,$D59,1)),"") -> 3.131578947 | L59: =IFERROR((SUMIFS(INDIRECT("Data!$AI$"&$D59+32&":$AS$"&$D59+32),Data!$AI$30:$AS$30,L$16))/(INDEX(Data!$M$33:$M$82,$D59,1)),"") -> 4.066666667 | M59: =IFERROR((SUMIFS(INDIRECT("Data!$AI$"&$D59+32&":$AS$"&$D59+32),Data!$AI$30:$AS$30,M$16))/(INDEX(Data!$N$33:$N$82,$D59,1)),"") -> 6.076923077 | N59: =IFERROR((SUM(INDIRECT("Data!$AI$"&$D59+32&":$AS$"&$D59+32)))/(INDEX(Data!$K$33:$K$82,$D59,1)+INDEX(Data!$L$33:$L$82,$D59,1)+INDEX(Data!$M$33:$M$82,$D59,1)+INDEX(Data!$N$33:$N$82,$D59,1)),"") -> 3.976744186
B60: ='Report A'!$B61 -> 2014-07-30 | C60: ='Report A'!$C61 -> Wednesday | D60: ='Report A'!$D61 -> 30 | E60: =IFERROR(IF($G$15="ALL",SUMIFS(INDIRECT("Data!$AI$"&$D60+32&":$AS$"&$D60+32),Data!$AI$30:$AS$30,E$16),SUMIFS(INDIRECT("Data!$AI$"&$D60+32&":$AS$"&$D60+32),Data!$AI$30:$AS$30,E$16,Data!$AI$31:$AS$31,$G$15)),"") -> 94 | F60: =IFERROR(IF($G$15="ALL",SUMIFS(INDIRECT("Data!$AI$"&$D60+32&":$AS$"&$D60+32),Data!$AI$30:$AS$30,F$16),SUMIFS(INDIRECT("Data!$AI$"&$D60+32&":$AS$"&$D60+32),Data!$AI$30:$AS$30,F$16,Data!$AI$31:$AS$31,$G$15)),"") -> 144 | G60: =IFERROR(IF($G$15="ALL",SUMIFS(INDIRECT("Data!$AI$"&$D60+32&":$AS$"&$D60+32),Data!$AI$30:$AS$30,G$16),SUMIFS(INDIRECT("Data!$AI$"&$D60+32&":$AS$"&$D60+32),Data!$AI$30:$AS$30,G$16,Data!$AI$31:$AS$31,$G$15)),"") -> 198 | H60: =IFERROR(IF($G$15="ALL",SUMIFS(INDIRECT("Data!$AI$"&$D60+32&":$AS$"&$D60+32),Data!$AI$30:$AS$30,H$16),SUMIFS(INDIRECT("Data!$AI$"&$D60+32&":$AS$"&$D60+32),Data!$AI$30:$AS$30,H$16,Data!$AI$31:$AS$31,$G$15)),"") -> 120 | I60: 556 | J60: =IFERROR((SUMIFS(INDIRECT("Data!$AI$"&$D60+32&":$AS$"&$D60+32),Data!$AI$30:$AS$30,J$16))/(INDEX(Data!$K$33:$K$82,$D60,1)),"") -> 3.133333333 | K60: =IFERROR((SUMIFS(INDIRECT("Data!$AI$"&$D60+32&":$AS$"&$D60+32),Data!$AI$30:$AS$30,K$16))/(INDEX(Data!$L$33:$L$82,$D60,1)),"") -> 3.891891892 | L60: =IFERROR((SUMIFS(INDIRECT("Data!$AI$"&$D60+32&":$AS$"&$D60+32),Data!$AI$30:$AS$30,L$16))/(INDEX(Data!$M$33:$M$82,$D60,1)),"") -> 4.4 | M60: =IFERROR((SUMIFS(INDIRECT("Data!$AI$"&$D60+32&":$AS$"&$D60+32),Data!$AI$30:$AS$30,M$16))/(INDEX(Data!$N$33:$N$82,$D60,1)),"") -> 6.666666667 | N60: =IFERROR((SUM(INDIRECT("Data!$AI$"&$D60+32&":$AS$"&$D60+32)))/(INDEX(Data!$K$33:$K$82,$D60,1)+INDEX(Data!$L$33:$L$82,$D60,1)+INDEX(Data!$M$33:$M$82,$D60,1)+INDEX(Data!$N$33:$N$82,$D60,1)),"") -> 4.276923077
B61: ='Report A'!$B62 -> 2014-07-31 | C61: ='Report A'!$C62 -> Thursday | D61: ='Report A'!$D62 -> 31 | E61: =IFERROR(IF($G$15="ALL",SUMIFS(INDIRECT("Data!$AI$"&$D61+32&":$AS$"&$D61+32),Data!$AI$30:$AS$30,E$16),SUMIFS(INDIRECT("Data!$AI$"&$D61+32&":$AS$"&$D61+32),Data!$AI$30:$AS$30,E$16,Data!$AI$31:$AS$31,$G$15)),"") -> 94 | F61: =IFERROR(IF($G$15="ALL",SUMIFS(INDIRECT("Data!$AI$"&$D61+32&":$AS$"&$D61+32),Data!$AI$30:$AS$30,F$16),SUMIFS(INDIRECT("Data!$AI$"&$D61+32&":$AS$"&$D61+32),Data!$AI$30:$AS$30,F$16,Data!$AI$31:$AS$31,$G$15)),"") -> 154 | G61: =IFERROR(IF($G$15="ALL",SUMIFS(INDIRECT("Data!$AI$"&$D61+32&":$AS$"&$D61+32),Data!$AI$30:$AS$30,G$16),SUMIFS(INDIRECT("Data!$AI$"&$D61+32&":$AS$"&$D61+32),Data!$AI$30:$AS$30,G$16,Data!$AI$31:$AS$31,$G$15)),"") -> 221 | H61: =IFERROR(IF($G$15="ALL",SUMIFS(INDIRECT("Data!$AI$"&$D61+32&":$AS$"&$D61+32),Data!$AI$30:$AS$30,H$16),SUMIFS(INDIRECT("Data!$AI$"&$D61+32&":$AS$"&$D61+32),Data!$AI$30:$AS$30,H$16,Data!$AI$31:$AS$31,$G$15)),"") -> 92 | I61: 561 | J61: =IFERROR((SUMIFS(INDIRECT("Data!$AI$"&$D61+32&":$AS$"&$D61+32),Data!$AI$30:$AS$30,J$16))/(INDEX(Data!$K$33:$K$82,$D61,1)),"") -> 3.76 | K61: =IFERROR((SUMIFS(INDIRECT("Data!$AI$"&$D61+32&":$AS$"&$D61+32),Data!$AI$30:$AS$30,K$16))/(INDEX(Data!$L$33:$L$82,$D61,1)),"") -> 4.666666667 | L61: =IFERROR((SUMIFS(INDIRECT("Data!$AI$"&$D61+32&":$AS$"&$D61+32),Data!$AI$30:$AS$30,L$16))/(INDEX(Data!$M$33:$M$82,$D61,1)),"") -> 4.42 | M61: =IFERROR((SUMIFS(INDIRECT("Data!$AI$"&$D61+32&":$AS$"&$D61+32),Data!$AI$30:$AS$30,M$16))/(INDEX(Data!$N$33:$N$82,$D61,1)),"") -> 6.571428571 | N61: =IFERROR((SUM(INDIRECT("Data!$AI$"&$D61+32&":$AS$"&$D61+32)))/(INDEX(Data!$K$33:$K$82,$D61,1)+INDEX(Data!$L$33:$L$82,$D61,1)+INDEX(Data!$M$33:$M$82,$D61,1)+INDEX(Data!$N$33:$N$82,$D61,1)),"") -> 4.598360656

Sheet Report D
C3: MONTHLY SALES REPORTING BY OUTLET
B6: SUBJECT | C6: REPORT D : AVERAGE SALES PER ROOM AND AVERAGE SALES PER PAX
B8: OUTLET | C8: =Data!$C$8 -> SBA
B10: MONTH / YEAR | C10: =Data!$C$10 -> July 2014
B12: MENU
B14: DATE | C14: DAY | D14: ROW | E14: AVERAGE SALES PER ROOM | H14: AVERAGE SALES PER PAX | K14: CHART : AVERAGE SALES PER ROOM AND AVERAGE SALES PER PAX
E15: A.M. | F15: P.M. | G15: TOTAL | H15: A.M. | I15: P.M. | J15: TOTAL
E17: ( RM ) | F17: ( RM ) | G17: ( RM ) | H17: ( RM ) | I17: ( RM ) | J17: ( RM )
B18: SUMMARY FOR MONTH | K18: LEGEND
B19: AVERAGE SALES | E19: =IFERROR(SUM(E$29:E$59)/COUNTIF($D$29:$D$59,">0"),"") -> 71.47523221 | F19: =IFERROR(SUM(F$29:F$59)/COUNTIF($D$29:$D$59,">0"),"") -> 117.5023954 | G19: 99.35335133 | H19: 18.20189352 | I19: 27.40831155 | J19: 23.85108894
B20: HIGHEST SALES | E20: =IFERROR(IF(LARGE(E$29:E$59,1)>0,LARGE(E$29:E$59,1),"NIL"),"NIL") -> 142.71875 | F20: =IFERROR(IF(LARGE(F$29:F$59,1)>0,LARGE(F$29:F$59,1),"NIL"),"NIL") -> 183.3013158 | G20: 150.7188679 | H20: 29.20615385 | I20: 38.88785311 | J20: 34.91673469
B21: LOWEST SALES | E21: =IFERROR(IF(LARGE(E$29:E$59,COUNTIF(E$29:E$59,">0"))<>E$20,LARGE(E$29:E$59,COUNTIF(E$29:E$59,">0")),"NIL"),"NIL") -> 42.26071429 | F21: 56.72131148 | G21: 58.4627907 | H21: 10.0184 | I21: 15.58558559 | J21: 15.66292835
B22: AVERAGE FOR | C22: MONDAY | E22: =IFERROR(SUMIF($C$29:$C$59,"Monday*",E$29:E$59)/COUNTIF($C$29:$C$59,"Monday*"),"") -> 68.9378169 | F22: =IFERROR(SUMIF($C$29:$C$59,"Monday*",F$29:F$59)/COUNTIF($C$29:$C$59,"Monday*"),"") -> 111.9105556 | G22: 94.72613816 | H22: 16.91017 | I22: 27.25617419 | J22: 23.1191111
C23: TUESDAY | E23: =IFERROR(SUMIF($C$29:$C$59,"Tuesday*",E$29:E$59)/COUNTIF($C$29:$C$59,"Tuesday*"),"") -> 69.29469387 | F23: =IFERROR(SUMIF($C$29:$C$59,"Tuesday*",F$29:F$59)/COUNTIF($C$29:$C$59,"Tuesday*"),"") -> 106.2696091 | G23: 90.72069252 | H23: 17.64595721 | I23: 23.86909606 | J23: 21.50792878
C24: WEDNESDAY | E24: =IFERROR(SUMIF($C$29:$C$59,"Wednesday*",E$29:E$59)/COUNTIF($C$29:$C$59,"Wednesday*"),"") -> 48.05620088 | F24: =IFERROR(SUMIF($C$29:$C$59,"Wednesday*",F$29:F$59)/COUNTIF($C$29:$C$59,"Wednesday*"),"") -> 101.9301243 | G24: 77.02601203 | H24: 12.62902942 | I24: 24.06138974 | J24: 18.94729082
C25: THURSDAY | E25: =IFERROR(SUMIF($C$29:$C$59,"Thursday*",E$29:E$59)/COUNTIF($C$29:$C$59,"Thursday*"),"") -> 62.2218006 | F25: =IFERROR(SUMIF($C$29:$C$59,"Thursday*",F$29:F$59)/COUNTIF($C$29:$C$59,"Thursday*"),"") -> 100.1422531 | G25: 85.17208229 | H25: 15.02136013 | I25: 22.96302139 | J25: 19.88835139
C26: FRIDAY | E26: =IFERROR(SUMIF($C$29:$C$59,"Friday*",E$29:E$59)/COUNTIF($C$29:$C$59,"Friday*"),"") -> 74.90917154 | F26: =IFERROR(SUMIF($C$29:$C$59,"Friday*",F$29:F$59)/COUNTIF($C$29:$C$59,"Friday*"),"") -> 155.2891788 | G26: 127.316003 | H26: 15.56097262 | I26: 34.88680409 | J26: 27.44427755
C27: SATURDAY | E27: =IFERROR(SUMIF($C$29:$C$59,"Saturday*",E$29:E$59)/COUNTIF($C$29:$C$59,"Saturday*"),"") -> 86.17517686 | F27: =IFERROR(SUMIF($C$29:$C$59,"Saturday*",F$29:F$59)/COUNTIF($C$29:$C$59,"Saturday*"),"") -> 151.3306852 | G27: 128.3279879 | H27: 26.90092057 | I27: 35.24541833 | J27: 32.85152617
C28: SUNDAY | E28: =IFERROR(SUMIF($C$29:$C$59,"Sunday*",E$29:E$59)/COUNTIF($C$29:$C$59,"Sunday*"),"") -> 99.44501516 | F28: =IFERROR(SUMIF($C$29:$C$59,"Sunday*",F$29:F$59)/COUNTIF($C$29:$C$59,"Sunday*"),"") -> 106.6856614 | G28: 103.4698603 | H28: 25.07217816 | I28: 26.40913391 | J28: 26.00156076
B29: ='Report A'!$B32 -> 2014-07-01 | C29: ='Report A'!$C32 -> Tuesday | D29: ='Report A'!$D32 -> 1 | E29: =IFERROR('Report A'!$H32/(INDEX(Data!$K$33:$K$82,$D29,1)+INDEX(Data!$L$33:$L$82,$D29,1)),"") -> 60.01111111 | F29: =IFERROR('Report A'!$I32/(INDEX(Data!$M$33:$M$82,$D29,1)+INDEX(Data!$N$33:$N$82,$D29,1)),"") -> 127.9777778 | G29: =IFERROR('Report A'!$J32/(INDEX(Data!$K$33:$K$82,$D29,1)+INDEX(Data!$L$33:$L$82,$D29,1)+INDEX(Data!$M$33:$M$82,$D29,1)+INDEX(Data!$N$33:$N$82,$D29,1)),"") -> 105.3222222 | H29: =IFERROR('Report A'!$H32/(SUM(INDIRECT("Data!$AI$"&$D29+32&":$AN$"&$D29+32))),"") -> 13.5025 | I29: =IFERROR('Report A'!$I32/(SUM(INDIRECT("Data!$AO$"&$D29+32&":$AS$"&$D29+32))),"") -> 27.97894737 | J29: =IFERROR('Report A'!$J32/(SUM(INDIRECT("Data!$AI$"&$D29+32&":$AS$"&$D29+32))),"") -> 23.24550409
B30: ='Report A'!$B33 -> 2014-07-02 | C30: ='Report A'!$C33 -> Wednesday | D30: ='Report A'!$D33 -> 2 | E30: =IFERROR('Report A'!$H33/(INDEX(Data!$K$33:$K$82,$D30,1)+INDEX(Data!$L$33:$L$82,$D30,1)),"") -> 44.13030303 | F30: =IFERROR('Report A'!$I33/(INDEX(Data!$M$33:$M$82,$D30,1)+INDEX(Data!$N$33:$N$82,$D30,1)),"") -> 96.18813559 | G30: =IFERROR('Report A'!$J33/(INDEX(Data!$K$33:$K$82,$D30,1)+INDEX(Data!$L$33:$L$82,$D30,1)+INDEX(Data!$M$33:$M$82,$D30,1)+INDEX(Data!$N$33:$N$82,$D30,1)),"") -> 77.51521739 | H30: =IFERROR('Report A'!$H33/(SUM(INDIRECT("Data!$AI$"&$D30+32&":$AN$"&$D30+32))),"") -> 11.03257576 | I30: =IFERROR('Report A'!$I33/(SUM(INDIRECT("Data!$AO$"&$D30+32&":$AS$"&$D30+32))),"") -> 25.00044053 | J30: =IFERROR('Report A'!$J33/(SUM(INDIRECT("Data!$AI$"&$D30+32&":$AS$"&$D30+32))),"") -> 19.86462396
B31: ='Report A'!$B34 -> 2014-07-03 | C31: ='Report A'!$C34 -> Thursday | D31: ='Report A'!$D34 -> 3 | E31: =IFERROR('Report A'!$H34/(INDEX(Data!$K$33:$K$82,$D31,1)+INDEX(Data!$L$33:$L$82,$D31,1)),"") -> 76.625 | F31: =IFERROR('Report A'!$I34/(INDEX(Data!$M$33:$M$82,$D31,1)+INDEX(Data!$N$33:$N$82,$D31,1)),"") -> 110.3098592 | G31: =IFERROR('Report A'!$J34/(INDEX(Data!$K$33:$K$82,$D31,1)+INDEX(Data!$L$33:$L$82,$D31,1)+INDEX(Data!$M$33:$M$82,$D31,1)+INDEX(Data!$N$33:$N$82,$D31,1)),"") -> 100.7828283 | H31: =IFERROR('Report A'!$H34/(SUM(INDIRECT("Data!$AI$"&$D31+32&":$AN$"&$D31+32))),"") -> 18.65652174 | I31: =IFERROR('Report A'!$I34/(SUM(INDIRECT("Data!$AO$"&$D31+32&":$AS$"&$D31+32))),"") -> 22.31339031 | J31: =IFERROR('Report A'!$J34/(SUM(INDIRECT("Data!$AI$"&$D31+32&":$AS$"&$D31+32))),"") -> 21.41094421
B32: ='Report A'!$B35 -> 2014-07-04 | C32: ='Report A'!$C35 -> Friday | D32: ='Report A'!$D35 -> 4 | E32: =IFERROR('Report A'!$H35/(INDEX(Data!$K$33:$K$82,$D32,1)+INDEX(Data!$L$33:$L$82,$D32,1)),"") -> 68.17666667 | F32: =IFERROR('Report A'!$I35/(INDEX(Data!$M$33:$M$82,$D32,1)+INDEX(Data!$N$33:$N$82,$D32,1)),"") -> 183.3013158 | G32: =IFERROR('Report A'!$J35/(INDEX(Data!$K$33:$K$82,$D32,1)+INDEX(Data!$L$33:$L$82,$D32,1)+INDEX(Data!$M$33:$M$82,$D32,1)+INDEX(Data!$N$33:$N$82,$D32,1)),"") -> 150.7188679 | H32: =IFERROR('Report A'!$H35/(SUM(INDIRECT("Data!$AI$"&$D32+32&":$AN$"&$D32+32))),"") -> 14.20347222 | I32: =IFERROR('Report A'!$I35/(SUM(INDIRECT("Data!$AO$"&$D32+32&":$AS$"&$D32+32))),"") -> 37.44865591 | J32: =IFERROR('Report A'!$J35/(SUM(INDIRECT("Data!$AI$"&$D32+32&":$AS$"&$D32+32))),"") -> 30.96162791
B33: ='Report A'!$B36 -> 2014-07-05 | C33: ='Report A'!$C36 -> Saturday | D33: ='Report A'!$D36 -> 5 | E33: =IFERROR('Report A'!$H36/(INDEX(Data!$K$33:$K$82,$D33,1)+INDEX(Data!$L$33:$L$82,$D33,1)),"") -> 81.53414634 | F33: =IFERROR('Report A'!$I36/(INDEX(Data!$M$33:$M$82,$D33,1)+INDEX(Data!$N$33:$N$82,$D33,1)),"") -> 181.1355263 | G33: =IFERROR('Report A'!$J36/(INDEX(Data!$K$33:$K$82,$D33,1)+INDEX(Data!$L$33:$L$82,$D33,1)+INDEX(Data!$M$33:$M$82,$D33,1)+INDEX(Data!$N$33:$N$82,$D33,1)),"") -> 146.2324786 | H33: =IFERROR('Report A'!$H36/(SUM(INDIRECT("Data!$AI$"&$D33+32&":$AN$"&$D33+32))),"") -> 24.58014706 | I33: =IFERROR('Report A'!$I36/(SUM(INDIRECT("Data!$AO$"&$D33+32&":$AS$"&$D33+32))),"") -> 38.88785311 | J33: =IFERROR('Report A'!$J36/(SUM(INDIRECT("Data!$AI$"&$D33+32&":$AS$"&$D33+32))),"") -> 34.91673469
B34: ='Report A'!$B37 -> 2014-07-06 | C34: ='Report A'!$C37 -> Sunday | D34: ='Report A'!$D37 -> 6 | E34: =IFERROR('Report A'!$H37/(INDEX(Data!$K$33:$K$82,$D34,1)+INDEX(Data!$L$33:$L$82,$D34,1)),"") -> 142.71875 | F34: =IFERROR('Report A'!$I37/(INDEX(Data!$M$33:$M$82,$D34,1)+INDEX(Data!$N$33:$N$82,$D34,1)),"") -> 114.516 | G34: =IFERROR('Report A'!$J37/(INDEX(Data!$K$33:$K$82,$D34,1)+INDEX(Data!$L$33:$L$82,$D34,1)+INDEX(Data!$M$33:$M$82,$D34,1)+INDEX(Data!$N$33:$N$82,$D34,1)),"") -> 125.5219512 | H34: =IFERROR('Report A'!$H37/(SUM(INDIRECT("Data!$AI$"&$D34+32&":$AN$"&$D34+32))),"") -> 24.68648649 | I34: =IFERROR('Report A'!$I37/(SUM(INDIRECT("Data!$AO$"&$D34+32&":$AS$"&$D34+32))),"") -> 26.38617512 | J34: =IFERROR('Report A'!$J37/(SUM(INDIRECT("Data!$AI$"&$D34+32&":$AS$"&$D34+32))),"") -> 25.6039801
B35: ='Report A'!$B38 -> 2014-07-07 | C35: ='Report A'!$C38 -> Monday | D35: ='Report A'!$D38 -> 7 | E35: =IFERROR('Report A'!$H38/(INDEX(Data!$K$33:$K$82,$D35,1)+INDEX(Data!$L$33:$L$82,$D35,1)),"") -> 61.77428571 | F35: =IFERROR('Report A'!$I38/(INDEX(Data!$M$33:$M$82,$D35,1)+INDEX(Data!$N$33:$N$82,$D35,1)),"") -> 83.11785714 | G35: =IFERROR('Report A'!$J38/(INDEX(Data!$K$33:$K$82,$D35,1)+INDEX(Data!$L$33:$L$82,$D35,1)+INDEX(Data!$M$33:$M$82,$D35,1)+INDEX(Data!$N$33:$N$82,$D35,1)),"") -> 74.90879121 | H35: =IFERROR('Report A'!$H38/(SUM(INDIRECT("Data!$AI$"&$D35+32&":$AN$"&$D35+32))),"") -> 13.42919255 | I35: =IFERROR('Report A'!$I38/(SUM(INDIRECT("Data!$AO$"&$D35+32&":$AS$"&$D35+32))),"") -> 20.14978355 | J35: =IFERROR('Report A'!$J38/(SUM(INDIRECT("Data!$AI$"&$D35+32&":$AS$"&$D35+32))),"") -> 17.38954082
B36: ='Report A'!$B39 -> 2014-07-08 | C36: ='Report A'!$C39 -> Tuesday | D36: ='Report A'!$D39 -> 8 | E36: =IFERROR('Report A'!$H39/(INDEX(Data!$K$33:$K$82,$D36,1)+INDEX(Data!$L$33:$L$82,$D36,1)),"") -> 52.81 | F36: =IFERROR('Report A'!$I39/(INDEX(Data!$M$33:$M$82,$D36,1)+INDEX(Data!$N$33:$N$82,$D36,1)),"") -> 75.46595745 | G36: =IFERROR('Report A'!$J39/(INDEX(Data!$K$33:$K$82,$D36,1)+INDEX(Data!$L$33:$L$82,$D36,1)+INDEX(Data!$M$33:$M$82,$D36,1)+INDEX(Data!$N$33:$N$82,$D36,1)),"") -> 66.63896104 | H36: =IFERROR('Report A'!$H39/(SUM(INDIRECT("Data!$AI$"&$D36+32&":$AN$"&$D36+32))),"") -> 16.85425532 | I36: =IFERROR('Report A'!$I39/(SUM(INDIRECT("Data!$AO$"&$D36+32&":$AS$"&$D36+32))),"") -> 18.96737968 | J36: =IFERROR('Report A'!$J39/(SUM(INDIRECT("Data!$AI$"&$D36+32&":$AS$"&$D36+32))),"") -> 18.26049822
B37: ='Report A'!$B40 -> 2014-07-09 | C37: ='Report A'!$C40 -> Wednesday | D37: ='Report A'!$D40 -> 9 | E37: =IFERROR('Report A'!$H40/(INDEX(Data!$K$33:$K$82,$D37,1)+INDEX(Data!$L$33:$L$82,$D37,1)),"") -> 55.39655172 | F37: =IFERROR('Report A'!$I40/(INDEX(Data!$M$33:$M$82,$D37,1)+INDEX(Data!$N$33:$N$82,$D37,1)),"") -> 80.63448276 | G37: =IFERROR('Report A'!$J40/(INDEX(Data!$K$33:$K$82,$D37,1)+INDEX(Data!$L$33:$L$82,$D37,1)+INDEX(Data!$M$33:$M$82,$D37,1)+INDEX(Data!$N$33:$N$82,$D37,1)),"") -> 72.22183908 | H37: =IFERROR('Report A'!$H40/(SUM(INDIRECT("Data!$AI$"&$D37+32&":$AN$"&$D37+32))),"") -> 16.22727273 | I37: =IFERROR('Report A'!$I40/(SUM(INDIRECT("Data!$AO$"&$D37+32&":$AS$"&$D37+32))),"") -> 19.81694915 | J37: =IFERROR('Report A'!$J40/(SUM(INDIRECT("Data!$AI$"&$D37+32&":$AS$"&$D37+32))),"") -> 18.7561194
B38: ='Report A'!$B41 -> 2014-07-10 | C38: ='Report A'!$C41 -> Thursday | D38: ='Report A'!$D41 -> 10 | E38: =IFERROR('Report A'!$H41/(INDEX(Data!$K$33:$K$82,$D38,1)+INDEX(Data!$L$33:$L$82,$D38,1)),"") -> 62.712 | F38: =IFERROR('Report A'!$I41/(INDEX(Data!$M$33:$M$82,$D38,1)+INDEX(Data!$N$33:$N$82,$D38,1)),"") -> 56.72131148 | G38: =IFERROR('Report A'!$J41/(INDEX(Data!$K$33:$K$82,$D38,1)+INDEX(Data!$L$33:$L$82,$D38,1)+INDEX(Data!$M$33:$M$82,$D38,1)+INDEX(Data!$N$33:$N$82,$D38,1)),"") -> 58.4627907 | H38: =IFERROR('Report A'!$H41/(SUM(INDIRECT("Data!$AI$"&$D38+32&":$AN$"&$D38+32))),"") -> 15.83636364 | I38: =IFERROR('Report A'!$I41/(SUM(INDIRECT("Data!$AO$"&$D38+32&":$AS$"&$D38+32))),"") -> 15.58558559 | J38: =IFERROR('Report A'!$J41/(SUM(INDIRECT("Data!$AI$"&$D38+32&":$AS$"&$D38+32))),"") -> 15.66292835
B39: ='Report A'!$B42 -> 2014-07-11 | C39: ='Report A'!$C42 -> Friday | D39: ='Report A'!$D42 -> 11 | E39: =IFERROR('Report A'!$H42/(INDEX(Data!$K$33:$K$82,$D39,1)+INDEX(Data!$L$33:$L$82,$D39,1)),"") -> 80.02631579 | F39: =IFERROR('Report A'!$I42/(INDEX(Data!$M$33:$M$82,$D39,1)+INDEX(Data!$N$33:$N$82,$D39,1)),"") -> 137.3142857 | G39: =IFERROR('Report A'!$J42/(INDEX(Data!$K$33:$K$82,$D39,1)+INDEX(Data!$L$33:$L$82,$D39,1)+INDEX(Data!$M$33:$M$82,$D39,1)+INDEX(Data!$N$33:$N$82,$D39,1)),"") -> 118.3843478 | H39: =IFERROR('Report A'!$H42/(SUM(INDIRECT("Data!$AI$"&$D39+32&":$AN$"&$D39+32))),"") -> 19.74675325 | I39: =IFERROR('Report A'!$I42/(SUM(INDIRECT("Data!$AO$"&$D39+32&":$AS$"&$D39+32))),"") -> 32.93831776 | J39: =IFERROR('Report A'!$J42/(SUM(INDIRECT("Data!$AI$"&$D39+32&":$AS$"&$D39+32))),"") -> 28.66147368
B40: ='Report A'!$B43 -> 2014-07-12 | C40: ='Report A'!$C43 -> Saturday | D40: ='Report A'!$D43 -> 12 | E40: =IFERROR('Report A'!$H43/(INDEX(Data!$K$33:$K$82,$D40,1)+INDEX(Data!$L$33:$L$82,$D40,1)),"") -> 94.92 | F40: =IFERROR('Report A'!$I43/(INDEX(Data!$M$33:$M$82,$D40,1)+INDEX(Data!$N$33:$N$82,$D40,1)),"") -> 130.7173333 | G40: =IFERROR('Report A'!$J43/(INDEX(Data!$K$33:$K$82,$D40,1)+INDEX(Data!$L$33:$L$82,$D40,1)+INDEX(Data!$M$33:$M$82,$D40,1)+INDEX(Data!$N$33:$N$82,$D40,1)),"") -> 118.266087 | H40: =IFERROR('Report A'!$H43/(SUM(INDIRECT("Data!$AI$"&$D40+32&":$AN$"&$D40+32))),"") -> 29.20615385 | I40: =IFERROR('Report A'!$I43/(SUM(INDIRECT("Data!$AO$"&$D40+32&":$AS$"&$D40+32))),"") -> 31.83051948 | J40: =IFERROR('Report A'!$J43/(SUM(INDIRECT("Data!$AI$"&$D40+32&":$AS$"&$D40+32))),"") -> 31.05159817
B41: ='Report A'!$B44 -> 2014-07-13 | C41: ='Report A'!$C44 -> Sunday | D41: ='Report A'!$D44 -> 13 | E41: =IFERROR('Report A'!$H44/(INDEX(Data!$K$33:$K$82,$D41,1)+INDEX(Data!$L$33:$L$82,$D41,1)),"") -> 85.19 | F41: =IFERROR('Report A'!$I44/(INDEX(Data!$M$33:$M$82,$D41,1)+INDEX(Data!$N$33:$N$82,$D41,1)),"") -> 90.63863636 | G41: =IFERROR('Report A'!$J44/(INDEX(Data!$K$33:$K$82,$D41,1)+INDEX(Data!$L$33:$L$82,$D41,1)+INDEX(Data!$M$33:$M$82,$D41,1)+INDEX(Data!$N$33:$N$82,$D41,1)),"") -> 88.04404762 | H41: =IFERROR('Report A'!$H44/(SUM(INDIRECT("Data!$AI$"&$D41+32&":$AN$"&$D41+32))),"") -> 26.21230769 | I41: =IFERROR('Report A'!$I44/(SUM(INDIRECT("Data!$AO$"&$D41+32&":$AS$"&$D41+32))),"") -> 24.77080745 | J41: =IFERROR('Report A'!$J44/(SUM(INDIRECT("Data!$AI$"&$D41+32&":$AS$"&$D41+32))),"") -> 25.41477663
B42: ='Report A'!$B45 -> 2014-07-14 | C42: ='Report A'!$C45 -> Monday | D42: ='Report A'!$D45 -> 14 | E42: =IFERROR('Report A'!$H45/(INDEX(Data!$K$33:$K$82,$D42,1)+INDEX(Data!$L$33:$L$82,$D42,1)),"") -> 78.005 | F42: =IFERROR('Report A'!$I45/(INDEX(Data!$M$33:$M$82,$D42,1)+INDEX(Data!$N$33:$N$82,$D42,1)),"") -> 140.2924051 | G42: =IFERROR('Report A'!$J45/(INDEX(Data!$K$33:$K$82,$D42,1)+INDEX(Data!$L$33:$L$82,$D42,1)+INDEX(Data!$M$33:$M$82,$D42,1)+INDEX(Data!$N$33:$N$82,$D42,1)),"") -> 119.3554622 | H42: =IFERROR('Report A'!$H45/(SUM(INDIRECT("Data!$AI$"&$D42+32&":$AN$"&$D42+32))),"") -> 15.83857868 | I42: =IFERROR('Report A'!$I45/(SUM(INDIRECT("Data!$AO$"&$D42+32&":$AS$"&$D42+32))),"") -> 34.96246057 | J42: =IFERROR('Report A'!$J45/(SUM(INDIRECT("Data!$AI$"&$D42+32&":$AS$"&$D42+32))),"") -> 27.63287938
B43: ='Report A'!$B46 -> 2014-07-15 | C43: ='Report A'!$C46 -> Tuesday | D43: ='Report A'!$D46 -> 15 | E43: =IFERROR('Report A'!$H46/(INDEX(Data!$K$33:$K$82,$D43,1)+INDEX(Data!$L$33:$L$82,$D43,1)),"") -> 82.41846154 | F43: =IFERROR('Report A'!$I46/(INDEX(Data!$M$33:$M$82,$D43,1)+INDEX(Data!$N$33:$N$82,$D43,1)),"") -> 107.8153846 | G43: =IFERROR('Report A'!$J46/(INDEX(Data!$K$33:$K$82,$D43,1)+INDEX(Data!$L$33:$L$82,$D43,1)+INDEX(Data!$M$33:$M$82,$D43,1)+INDEX(Data!$N$33:$N$82,$D43,1)),"") -> 91.94230769 | H43: =IFERROR('Report A'!$H46/(SUM(INDIRECT("Data!$AI$"&$D43+32&":$AN$"&$D43+32))),"") -> 21.00862745 | I43: =IFERROR('Report A'!$I46/(SUM(INDIRECT("Data!$AO$"&$D43+32&":$AS$"&$D43+32))),"") -> 22.36595745 | J43: =IFERROR('Report A'!$J46/(SUM(INDIRECT("Data!$AI$"&$D43+32&":$AS$"&$D43+32))),"") -> 21.58465011
B44: ='Report A'!$B47 -> 2014-07-16 | C44: ='Report A'!$C47 -> Wednesday | D44: ='Report A'!$D47 -> 16 | E44: =IFERROR('Report A'!$H47/(INDEX(Data!$K$33:$K$82,$D44,1)+INDEX(Data!$L$33:$L$82,$D44,1)),"") -> 42.6025 | F44: =IFERROR('Report A'!$I47/(INDEX(Data!$M$33:$M$82,$D44,1)+INDEX(Data!$N$33:$N$82,$D44,1)),"") -> 114.5931818 | G44: =IFERROR('Report A'!$J47/(INDEX(Data!$K$33:$K$82,$D44,1)+INDEX(Data!$L$33:$L$82,$D44,1)+INDEX(Data!$M$33:$M$82,$D44,1)+INDEX(Data!$N$33:$N$82,$D44,1)),"") -> 80.31190476 | H44: =IFERROR('Report A'!$H47/(SUM(INDIRECT("Data!$AI$"&$D44+32&":$AN$"&$D44+32))),"") -> 10.71761006 | I44: =IFERROR('Report A'!$I47/(SUM(INDIRECT("Data!$AO$"&$D44+32&":$AS$"&$D44+32))),"") -> 24.59560976 | J44: =IFERROR('Report A'!$J47/(SUM(INDIRECT("Data!$AI$"&$D44+32&":$AS$"&$D44+32))),"") -> 18.53351648
B45: ='Report A'!$B48 -> 2014-07-17 | C45: ='Report A'!$C48 -> Thursday | D45: ='Report A'!$D48 -> 17 | E45: =IFERROR('Report A'!$H48/(INDEX(Data!$K$33:$K$82,$D45,1)+INDEX(Data!$L$33:$L$82,$D45,1)),"") -> 54.97692308 | F45: =IFERROR('Report A'!$I48/(INDEX(Data!$M$33:$M$82,$D45,1)+INDEX(Data!$N$33:$N$82,$D45,1)),"") -> 100.4847826 | G45: =IFERROR('Report A'!$J48/(INDEX(Data!$K$33:$K$82,$D45,1)+INDEX(Data!$L$33:$L$82,$D45,1)+INDEX(Data!$M$33:$M$82,$D45,1)+INDEX(Data!$N$33:$N$82,$D45,1)),"") -> 84.05138889 | H45: =IFERROR('Report A'!$H48/(SUM(INDIRECT("Data!$AI$"&$D45+32&":$AN$"&$D45+32))),"") -> 13.48490566 | I45: =IFERROR('Report A'!$I48/(SUM(INDIRECT("Data!$AO$"&$D45+32&":$AS$"&$D45+32))),"") -> 26.71849711 | J45: =IFERROR('Report A'!$J48/(SUM(INDIRECT("Data!$AI$"&$D45+32&":$AS$"&$D45+32))),"") -> 21.690681
B46: ='Report A'!$B49 -> 2014-07-18 | C46: ='Report A'!$C49 -> Friday | D46: ='Report A'!$D49 -> 18 | E46: =IFERROR('Report A'!$H49/(INDEX(Data!$K$33:$K$82,$D46,1)+INDEX(Data!$L$33:$L$82,$D46,1)),"") -> 55.65777778 | F46: =IFERROR('Report A'!$I49/(INDEX(Data!$M$33:$M$82,$D46,1)+INDEX(Data!$N$33:$N$82,$D46,1)),"") -> 131.0463768 | G46: =IFERROR('Report A'!$J49/(INDEX(Data!$K$33:$K$82,$D46,1)+INDEX(Data!$L$33:$L$82,$D46,1)+INDEX(Data!$M$33:$M$82,$D46,1)+INDEX(Data!$N$33:$N$82,$D46,1)),"") -> 101.2877193 | H46: =IFERROR('Report A'!$H49/(SUM(INDIRECT("Data!$AI$"&$D46+32&":$AN$"&$D46+32))),"") -> 10.0184 | I46: =IFERROR('Report A'!$I49/(SUM(INDIRECT("Data!$AO$"&$D46+32&":$AS$"&$D46+32))),"") -> 34.25075758 | J46: =IFERROR('Report A'!$J49/(SUM(INDIRECT("Data!$AI$"&$D46+32&":$AS$"&$D46+32))),"") -> 22.46459144
B47: ='Report A'!$B50 -> 2014-07-19 | C47: ='Report A'!$C50 -> Saturday | D47: ='Report A'!$D50 -> 19 | E47: =IFERROR('Report A'!$H50/(INDEX(Data!$K$33:$K$82,$D47,1)+INDEX(Data!$L$33:$L$82,$D47,1)),"") -> 87.57209302 | F47: =IFERROR('Report A'!$I50/(INDEX(Data!$M$33:$M$82,$D47,1)+INDEX(Data!$N$33:$N$82,$D47,1)),"") -> 141.102381 | G47: =IFERROR('Report A'!$J50/(INDEX(Data!$K$33:$K$82,$D47,1)+INDEX(Data!$L$33:$L$82,$D47,1)+INDEX(Data!$M$33:$M$82,$D47,1)+INDEX(Data!$N$33:$N$82,$D47,1)),"") -> 122.9779528 | H47: =IFERROR('Report A'!$H50/(SUM(INDIRECT("Data!$AI$"&$D47+32&":$AN$"&$D47+32))),"") -> 27.48613139 | I47: =IFERROR('Report A'!$I50/(SUM(INDIRECT("Data!$AO$"&$D47+32&":$AS$"&$D47+32))),"") -> 33.76809117 | J47: =IFERROR('Report A'!$J50/(SUM(INDIRECT("Data!$AI$"&$D47+32&":$AS$"&$D47+32))),"") -> 32.0045082
B48: ='Report A'!$B51 -> 2014-07-20 | C48: ='Report A'!$C51 -> Sunday | D48: ='Report A'!$D51 -> 20 | E48: =IFERROR('Report A'!$H51/(INDEX(Data!$K$33:$K$82,$D48,1)+INDEX(Data!$L$33:$L$82,$D48,1)),"") -> 81.69411765 | F48: =IFERROR('Report A'!$I51/(INDEX(Data!$M$33:$M$82,$D48,1)+INDEX(Data!$N$33:$N$82,$D48,1)),"") -> 74.47647059 | G48: =IFERROR('Report A'!$J51/(INDEX(Data!$K$33:$K$82,$D48,1)+INDEX(Data!$L$33:$L$82,$D48,1)+INDEX(Data!$M$33:$M$82,$D48,1)+INDEX(Data!$N$33:$N$82,$D48,1)),"") -> 78.08529412 | H48: =IFERROR('Report A'!$H51/(SUM(INDIRECT("Data!$AI$"&$D48+32&":$AN$"&$D48+32))),"") -> 24.50823529 | I48: =IFERROR('Report A'!$I51/(SUM(INDIRECT("Data!$AO$"&$D48+32&":$AS$"&$D48+32))),"") -> 21.21955307 | J48: =IFERROR('Report A'!$J51/(SUM(INDIRECT("Data!$AI$"&$D48+32&":$AS$"&$D48+32))),"") -> 22.82148997
B49: ='Report A'!$B52 -> 2014-07-21 | C49: ='Report A'!$C52 -> Monday | D49: ='Report A'!$D52 -> 21 | E49: =IFERROR('Report A'!$H52/(INDEX(Data!$K$33:$K$82,$D49,1)+INDEX(Data!$L$33:$L$82,$D49,1)),"") -> 42.26071429 | F49: =IFERROR('Report A'!$I52/(INDEX(Data!$M$33:$M$82,$D49,1)+INDEX(Data!$N$33:$N$82,$D49,1)),"") -> 83.63428571 | G49: =IFERROR('Report A'!$J52/(INDEX(Data!$K$33:$K$82,$D49,1)+INDEX(Data!$L$33:$L$82,$D49,1)+INDEX(Data!$M$33:$M$82,$D49,1)+INDEX(Data!$N$33:$N$82,$D49,1)),"") -> 65.24603175 | H49: =IFERROR('Report A'!$H52/(SUM(INDIRECT("Data!$AI$"&$D49+32&":$AN$"&$D49+32))),"") -> 12.0744898 | I49: =IFERROR('Report A'!$I52/(SUM(INDIRECT("Data!$AO$"&$D49+32&":$AS$"&$D49+32))),"") -> 22.00902256 | J49: =IFERROR('Report A'!$J52/(SUM(INDIRECT("Data!$AI$"&$D49+32&":$AS$"&$D49+32))),"") -> 17.79437229
B50: ='Report A'!$B53 -> 2014-07-22 | C50: ='Report A'!$C53 -> Tuesday | D50: ='Report A'!$D53 -> 22 | E50: =IFERROR('Report A'!$H53/(INDEX(Data!$K$33:$K$82,$D50,1)+INDEX(Data!$L$33:$L$82,$D50,1)),"") -> 61.27333333 | F50: =IFERROR('Report A'!$I53/(INDEX(Data!$M$33:$M$82,$D50,1)+INDEX(Data!$N$33:$N$82,$D50,1)),"") -> 101.9596154 | G50: =IFERROR('Report A'!$J53/(INDEX(Data!$K$33:$K$82,$D50,1)+INDEX(Data!$L$33:$L$82,$D50,1)+INDEX(Data!$M$33:$M$82,$D50,1)+INDEX(Data!$N$33:$N$82,$D50,1)),"") -> 87.07439024 | H50: =IFERROR('Report A'!$H53/(SUM(INDIRECT("Data!$AI$"&$D50+32&":$AN$"&$D50+32))),"") -> 11.4173913 | I50: =IFERROR('Report A'!$I53/(SUM(INDIRECT("Data!$AO$"&$D50+32&":$AS$"&$D50+32))),"") -> 23.88243243 | J50: =IFERROR('Report A'!$J53/(SUM(INDIRECT("Data!$AI$"&$D50+32&":$AS$"&$D50+32))),"") -> 18.64255875
B51: ='Report A'!$B54 -> 2014-07-23 | C51: ='Report A'!$C54 -> Wednesday | D51: ='Report A'!$D54 -> 23 | E51: =IFERROR('Report A'!$H54/(INDEX(Data!$K$33:$K$82,$D51,1)+INDEX(Data!$L$33:$L$82,$D51,1)),"") -> 52.47105263 | F51: =IFERROR('Report A'!$I54/(INDEX(Data!$M$33:$M$82,$D51,1)+INDEX(Data!$N$33:$N$82,$D51,1)),"") -> 98.50625 | G51: =IFERROR('Report A'!$J54/(INDEX(Data!$K$33:$K$82,$D51,1)+INDEX(Data!$L$33:$L$82,$D51,1)+INDEX(Data!$M$33:$M$82,$D51,1)+INDEX(Data!$N$33:$N$82,$D51,1)),"") -> 73.51571429 | H51: =IFERROR('Report A'!$H54/(SUM(INDIRECT("Data!$AI$"&$D51+32&":$AN$"&$D51+32))),"") -> 12.30802469 | I51: =IFERROR('Report A'!$I54/(SUM(INDIRECT("Data!$AO$"&$D51+32&":$AS$"&$D51+32))),"") -> 27.17413793 | J51: =IFERROR('Report A'!$J54/(SUM(INDIRECT("Data!$AI$"&$D51+32&":$AS$"&$D51+32))),"") -> 18.51115108
B52: ='Report A'!$B55 -> 2014-07-24 | C52: ='Report A'!$C55 -> Thursday | D52: ='Report A'!$D55 -> 24 | E52: =IFERROR('Report A'!$H55/(INDEX(Data!$K$33:$K$82,$D52,1)+INDEX(Data!$L$33:$L$82,$D52,1)),"") -> 52.62439024 | F52: =IFERROR('Report A'!$I55/(INDEX(Data!$M$33:$M$82,$D52,1)+INDEX(Data!$N$33:$N$82,$D52,1)),"") -> 108.03125 | G52: =IFERROR('Report A'!$J55/(INDEX(Data!$K$33:$K$82,$D52,1)+INDEX(Data!$L$33:$L$82,$D52,1)+INDEX(Data!$M$33:$M$82,$D52,1)+INDEX(Data!$N$33:$N$82,$D52,1)),"") -> 86.39619048 | H52: =IFERROR('Report A'!$H55/(SUM(INDIRECT("Data!$AI$"&$D52+32&":$AN$"&$D52+32))),"") -> 12.12134831 | I52: =IFERROR('Report A'!$I55/(SUM(INDIRECT("Data!$AO$"&$D52+32&":$AS$"&$D52+32))),"") -> 24.60498221 | J52: =IFERROR('Report A'!$J55/(SUM(INDIRECT("Data!$AI$"&$D52+32&":$AS$"&$D52+32))),"") -> 19.76383442
B53: ='Report A'!$B56 -> 2014-07-25 | C53: ='Report A'!$C56 -> Friday | D53: ='Report A'!$D56 -> 25 | E53: =IFERROR('Report A'!$H56/(INDEX(Data!$K$33:$K$82,$D53,1)+INDEX(Data!$L$33:$L$82,$D53,1)),"") -> 95.77592593 | F53: =IFERROR('Report A'!$I56/(INDEX(Data!$M$33:$M$82,$D53,1)+INDEX(Data!$N$33:$N$82,$D53,1)),"") -> 169.4947368 | G53: =IFERROR('Report A'!$J56/(INDEX(Data!$K$33:$K$82,$D53,1)+INDEX(Data!$L$33:$L$82,$D53,1)+INDEX(Data!$M$33:$M$82,$D53,1)+INDEX(Data!$N$33:$N$82,$D53,1)),"") -> 138.8730769 | H53: =IFERROR('Report A'!$H56/(SUM(INDIRECT("Data!$AI$"&$D53+32&":$AN$"&$D53+32))),"") -> 18.27526502 | I53: =IFERROR('Report A'!$I56/(SUM(INDIRECT("Data!$AO$"&$D53+32&":$AS$"&$D53+32))),"") -> 34.90948509 | J53: =IFERROR('Report A'!$J56/(SUM(INDIRECT("Data!$AI$"&$D53+32&":$AS$"&$D53+32))),"") -> 27.68941718
B54: ='Report A'!$B57 -> 2014-07-26 | C54: ='Report A'!$C57 -> Saturday | D54: ='Report A'!$D57 -> 26 | E54: =IFERROR('Report A'!$H57/(INDEX(Data!$K$33:$K$82,$D54,1)+INDEX(Data!$L$33:$L$82,$D54,1)),"") -> 80.67446809 | F54: =IFERROR('Report A'!$I57/(INDEX(Data!$M$33:$M$82,$D54,1)+INDEX(Data!$N$33:$N$82,$D54,1)),"") -> 152.3675 | G54: =IFERROR('Report A'!$J57/(INDEX(Data!$K$33:$K$82,$D54,1)+INDEX(Data!$L$33:$L$82,$D54,1)+INDEX(Data!$M$33:$M$82,$D54,1)+INDEX(Data!$N$33:$N$82,$D54,1)),"") -> 125.8354331 | H54: =IFERROR('Report A'!$H57/(SUM(INDIRECT("Data!$AI$"&$D54+32&":$AN$"&$D54+32))),"") -> 26.33125 | I54: =IFERROR('Report A'!$I57/(SUM(INDIRECT("Data!$AO$"&$D54+32&":$AS$"&$D54+32))),"") -> 36.49520958 | J54: =IFERROR('Report A'!$J57/(SUM(INDIRECT("Data!$AI$"&$D54+32&":$AS$"&$D54+32))),"") -> 33.4332636
B55: ='Report A'!$B58 -> 2014-07-27 | C55: ='Report A'!$C58 -> Sunday | D55: ='Report A'!$D58 -> 27 | E55: =IFERROR('Report A'!$H58/(INDEX(Data!$K$33:$K$82,$D55,1)+INDEX(Data!$L$33:$L$82,$D55,1)),"") -> 88.17719298 | F55: =IFERROR('Report A'!$I58/(INDEX(Data!$M$33:$M$82,$D55,1)+INDEX(Data!$N$33:$N$82,$D55,1)),"") -> 147.1115385 | G55: =IFERROR('Report A'!$J58/(INDEX(Data!$K$33:$K$82,$D55,1)+INDEX(Data!$L$33:$L$82,$D55,1)+INDEX(Data!$M$33:$M$82,$D55,1)+INDEX(Data!$N$33:$N$82,$D55,1)),"") -> 122.2281481 | H55: =IFERROR('Report A'!$H58/(SUM(INDIRECT("Data!$AI$"&$D55+32&":$AN$"&$D55+32))),"") -> 24.88168317 | I55: =IFERROR('Report A'!$I58/(SUM(INDIRECT("Data!$AO$"&$D55+32&":$AS$"&$D55+32))),"") -> 33.26 | J55: =IFERROR('Report A'!$J58/(SUM(INDIRECT("Data!$AI$"&$D55+32&":$AS$"&$D55+32))),"") -> 30.16599634
B56: ='Report A'!$B59 -> 2014-07-28 | C56: ='Report A'!$C59 -> Monday | D56: ='Report A'!$D59 -> 28 | E56: =IFERROR('Report A'!$H59/(INDEX(Data!$K$33:$K$82,$D56,1)+INDEX(Data!$L$33:$L$82,$D56,1)),"") -> 93.71126761 | F56: =IFERROR('Report A'!$I59/(INDEX(Data!$M$33:$M$82,$D56,1)+INDEX(Data!$N$33:$N$82,$D56,1)),"") -> 140.5976744 | G56: =IFERROR('Report A'!$J59/(INDEX(Data!$K$33:$K$82,$D56,1)+INDEX(Data!$L$33:$L$82,$D56,1)+INDEX(Data!$M$33:$M$82,$D56,1)+INDEX(Data!$N$33:$N$82,$D56,1)),"") -> 119.3942675 | H56: =IFERROR('Report A'!$H59/(SUM(INDIRECT("Data!$AI$"&$D56+32&":$AN$"&$D56+32))),"") -> 26.29841897 | I56: =IFERROR('Report A'!$I59/(SUM(INDIRECT("Data!$AO$"&$D56+32&":$AS$"&$D56+32))),"") -> 31.90343008 | J56: =IFERROR('Report A'!$J59/(SUM(INDIRECT("Data!$AI$"&$D56+32&":$AS$"&$D56+32))),"") -> 29.6596519
B57: ='Report A'!$B60 -> 2014-07-29 | C57: ='Report A'!$C60 -> Tuesday | D57: ='Report A'!$D60 -> 29 | E57: =IFERROR('Report A'!$H60/(INDEX(Data!$K$33:$K$82,$D57,1)+INDEX(Data!$L$33:$L$82,$D57,1)),"") -> 89.96056338 | F57: =IFERROR('Report A'!$I60/(INDEX(Data!$M$33:$M$82,$D57,1)+INDEX(Data!$N$33:$N$82,$D57,1)),"") -> 118.1293103 | G57: =IFERROR('Report A'!$J60/(INDEX(Data!$K$33:$K$82,$D57,1)+INDEX(Data!$L$33:$L$82,$D57,1)+INDEX(Data!$M$33:$M$82,$D57,1)+INDEX(Data!$N$33:$N$82,$D57,1)),"") -> 102.6255814 | H57: =IFERROR('Report A'!$H60/(SUM(INDIRECT("Data!$AI$"&$D57+32&":$AN$"&$D57+32))),"") -> 25.44701195 | I57: =IFERROR('Report A'!$I60/(SUM(INDIRECT("Data!$AO$"&$D57+32&":$AS$"&$D57+32))),"") -> 26.15076336 | J57: =IFERROR('Report A'!$J60/(SUM(INDIRECT("Data!$AI$"&$D57+32&":$AS$"&$D57+32))),"") -> 25.80643275
B58: ='Report A'!$B61 -> 2014-07-30 | C58: ='Report A'!$C61 -> Wednesday | D58: ='Report A'!$D61 -> 30 | E58: =IFERROR('Report A'!$H61/(INDEX(Data!$K$33:$K$82,$D58,1)+INDEX(Data!$L$33:$L$82,$D58,1)),"") -> 45.68059701 | F58: =IFERROR('Report A'!$I61/(INDEX(Data!$M$33:$M$82,$D58,1)+INDEX(Data!$N$33:$N$82,$D58,1)),"") -> 119.7285714 | G58: =IFERROR('Report A'!$J61/(INDEX(Data!$K$33:$K$82,$D58,1)+INDEX(Data!$L$33:$L$82,$D58,1)+INDEX(Data!$M$33:$M$82,$D58,1)+INDEX(Data!$N$33:$N$82,$D58,1)),"") -> 81.56538462 | H58: =IFERROR('Report A'!$H61/(SUM(INDIRECT("Data!$AI$"&$D58+32&":$AN$"&$D58+32))),"") -> 12.85966387 | I58: =IFERROR('Report A'!$I61/(SUM(INDIRECT("Data!$AO$"&$D58+32&":$AS$"&$D58+32))),"") -> 23.71981132 | J58: =IFERROR('Report A'!$J61/(SUM(INDIRECT("Data!$AI$"&$D58+32&":$AS$"&$D58+32))),"") -> 19.07104317
B59: ='Report A'!$B62 -> 2014-07-31 | C59: ='Report A'!$C62 -> Thursday | D59: ='Report A'!$D62 -> 31 | E59: =IFERROR('Report A'!$H62/(INDEX(Data!$K$33:$K$82,$D59,1)+INDEX(Data!$L$33:$L$82,$D59,1)),"") -> 64.17068966 | F59: =IFERROR('Report A'!$I62/(INDEX(Data!$M$33:$M$82,$D59,1)+INDEX(Data!$N$33:$N$82,$D59,1)),"") -> 125.1640625 | G59: =IFERROR('Report A'!$J62/(INDEX(Data!$K$33:$K$82,$D59,1)+INDEX(Data!$L$33:$L$82,$D59,1)+INDEX(Data!$M$33:$M$82,$D59,1)+INDEX(Data!$N$33:$N$82,$D59,1)),"") -> 96.16721311 | H59: =IFERROR('Report A'!$H62/(SUM(INDIRECT("Data!$AI$"&$D59+32&":$AN$"&$D59+32))),"") -> 15.00766129 | I59: =IFERROR('Report A'!$I62/(SUM(INDIRECT("Data!$AO$"&$D59+32&":$AS$"&$D59+32))),"") -> 25.59265176 | J59: =IFERROR('Report A'!$J62/(SUM(INDIRECT("Data!$AI$"&$D59+32&":$AS$"&$D59+32))),"") -> 20.91336898

Sheet Report E
C3: MONTHLY SALES REPORTING BY OUTLET
B6: SUBJECT | C6: REPORT E : PERFORMANCE OF PROMOTIONAL SALES
B8: OUTLET | C8: =Data!$C$8 -> SBA
B10: MONTH / YEAR | C10: =Data!$C$10 -> July 2014
B12: MENU
B14: DATE | C14: DAY | D14: ROW | E14: TYPE 01 | F14: TYPE 02 | G14: TYPE 03 | H14: TYPE 04 | I14: TYPE 05 | J14: TYPE 06 | K14: TYPE 07 | L14: TYPE 08 | M14: TYPE 09 | N14: TYPE 10 | O14: LIST 01 | P14: LIST 02 | Q14: LIST 03 | R14: LIST 04 | S14: LIST 05 | T14: LIST 06 | U14: LIST 07 | V14: LIST 08 | W14: LIST 09 | X14: CHOOSE PROMOTION | AC14: ="CHART : PERFORMANCE OF "&$Z$14 -> CHART : PERFORMANCE OF
O15: TYPE 01 | P15: TYPE 03 | Q15: TYPE 05 | R15: TYPE 07 | S15: TYPE 09 | T15: LIST 01 | U15: LIST 03 | V15: LIST 05 | W15: LIST 07
O16: TYPE 02 | P16: TYPE 04 | Q16: TYPE 06 | R16: TYPE 08 | S16: TYPE 10 | T16: LIST 02 | U16: LIST 04 | V16: LIST 06 | W16: LIST 08 | X16: NOON K | Y16: HAPPY | Z16: NORMAL | AA16: MIDNIGHT | AB16: ALL
E17: AT | F17: AY | G17: BD | H17: BI | I17: BN | J17: BS | K17: BX | L17: CC | M17: CH | N17: CM | X17: ( item ) | Y17: ( item ) | Z17: ( item ) | AA17: ( item ) | AB17: ( item )
B18: SUMMARY FOR MONTH | AC18: LEGEND
B19: TOTAL SALES | X19: =SUM(X$30:X$60) -> 0 | Y19: =SUM(Y$30:Y$60) -> 0 | Z19: 0 | AA19: 0 | AB19: 0
B20: AVERAGE SALES | X20: =IFERROR(SUM(X$30:X$60)/COUNTIF($D$30:$D$60,">0"),"") -> 0 | Y20: =IFERROR(SUM(Y$30:Y$60)/COUNTIF($D$30:$D$60,">0"),"") -> 0 | Z20: 0 | AA20: 0 | AB20: 0
B21: HIGHEST SALES | X21: =IFERROR(IF(LARGE(X$30:X$60,1)>0,LARGE(X$30:X$60,1),"NIL"),"NIL") -> NIL | Y21: =IFERROR(IF(LARGE(Y$30:Y$60,1)>0,LARGE(Y$30:Y$60,1),"NIL"),"NIL") -> NIL | Z21: NIL | AA21: NIL | AB21: NIL
B22: LOWEST SALES | X22: =IFERROR(IF(LARGE(X$30:X$60,COUNTIF(X$30:X$60,">0"))<>X$21,LARGE(X$30:X$60,COUNTIF(X$30:X$60,">0")),"NIL"),"NIL") -> NIL | Y22: =IFERROR(IF(LARGE(Y$30:Y$60,COUNTIF(Y$30:Y$60,">0"))<>Y$21,LARGE(Y$30:Y$60,COUNTIF(Y$30:Y$60,">0")),"NIL"),"NIL") -> NIL | Z22: =IFERROR(IF(LARGE(Z$30:Z$60,COUNTIF(Z$30:Z$60,">0"))<>Z$21,LARGE(Z$30:Z$60,COUNTIF(Z$30:Z$60,">0")),"NIL"),"NIL") -> NIL | AA22: =IFERROR(IF(LARGE(AA$30:AA$60,COUNTIF(AA$30:AA$60,">0"))<>AA$21,LARGE(AA$30:AA$60,COUNTIF(AA$30:AA$60,">0")),"NIL"),"NIL") -> NIL | AB22: =IFERROR(IF(LARGE(AB$30:AB$60,COUNTIF(AB$30:AB$60,">0"))<>AB$21,LARGE(AB$30:AB$60,COUNTIF(AB$30:AB$60,">0")),"NIL"),"NIL") -> NIL
B23: AVERAGE FOR | C23: MONDAY | X23: =IFERROR(SUMIF($C$30:$C$60,"Monday*",X$30:X$60)/COUNTIF($C$30:$C$60,"Monday*"),"") -> 0 | Y23: =IFERROR(SUMIF($C$30:$C$60,"Monday*",Y$30:Y$60)/COUNTIF($C$30:$C$60,"Monday*"),"") -> 0 | Z23: 0 | AA23: 0 | AB23: 0
C24: TUESDAY | X24: =IFERROR(SUMIF($C$30:$C$60,"Tuesday*",X$30:X$60)/COUNTIF($C$30:$C$60,"Tuesday*"),"") -> 0 | Y24: =IFERROR(SUMIF($C$30:$C$60,"Tuesday*",Y$30:Y$60)/COUNTIF($C$30:$C$60,"Tuesday*"),"") -> 0 | Z24: 0 | AA24: 0 | AB24: 0
C25: WEDNESDAY | X25: =IFERROR(SUMIF($C$30:$C$60,"Wednesday*",X$30:X$60)/COUNTIF($C$30:$C$60,"Wednesday*"),"") -> 0 | Y25: =IFERROR(SUMIF($C$30:$C$60,"Wednesday*",Y$30:Y$60)/COUNTIF($C$30:$C$60,"Wednesday*"),"") -> 0 | Z25: 0 | AA25: 0 | AB25: 0
C26: THURSDAY | X26: =IFERROR(SUMIF($C$30:$C$60,"Thursday*",X$30:X$60)/COUNTIF($C$30:$C$60,"Thursday*"),"") -> 0 | Y26: =IFERROR(SUMIF($C$30:$C$60,"Thursday*",Y$30:Y$60)/COUNTIF($C$30:$C$60,"Thursday*"),"") -> 0 | Z26: 0 | AA26: 0 | AB26: 0
C27: FRIDAY | X27: =IFERROR(SUMIF($C$30:$C$60,"Friday*",X$30:X$60)/COUNTIF($C$30:$C$60,"Friday*"),"") -> 0 | Y27: =IFERROR(SUMIF($C$30:$C$60,"Friday*",Y$30:Y$60)/COUNTIF($C$30:$C$60,"Friday*"),"") -> 0 | Z27: 0 | AA27: 0 | AB27: 0
C28: SATURDAY | X28: =IFERROR(SUMIF($C$30:$C$60,"Saturday*",X$30:X$60)/COUNTIF($C$30:$C$60,"Saturday*"),"") -> 0 | Y28: =IFERROR(SUMIF($C$30:$C$60,"Saturday*",Y$30:Y$60)/COUNTIF($C$30:$C$60,"Saturday*"),"") -> 0 | Z28: 0 | AA28: 0 | AB28: 0
C29: SUNDAY | X29: =IFERROR(SUMIF($C$30:$C$60,"Sunday*",X$30:X$60)/COUNTIF($C$30:$C$60,"Sunday*"),"") -> 0 | Y29: =IFERROR(SUMIF($C$30:$C$60,"Sunday*",Y$30:Y$60)/COUNTIF($C$30:$C$60,"Sunday*"),"") -> 0 | Z29: 0 | AA29: 0 | AB29: 0
B30: ='Report A'!$B32 -> 2014-07-01 | C30: ='Report A'!$C32 -> Tuesday | D30: ='Report A'!$D32 -> 1 | E30: =IFERROR(INDIRECT("Data!"&E$17&$D30+32),"") -> K-Lunch | F30: K-Dinner | G30: 4BP | H30: Member 30% | I30: Tiger 2+1 | J30: Heineken 3+1 | K30: WC Ladies 30% | L30: 2 Bkt Tiger Rm 88 | M30: 5pm-8pm RM 8 | N30: 0 | O30: =IFERROR(IFERROR(INDEX(($E$30:$E$60), MATCH(0, COUNTIF($O$29:O29, ($E$30:$E$60)), 0)), INDEX(($F$30:$F$60), MATCH(0, COUNTIF($O$29:O29, ($F$30:$F$60)), 0))), "") -> K-Lunch | P30: =IFERROR(IFERROR(INDEX(($G$30:$G$60), MATCH(0, COUNTIF($P$29:P29, ($G$30:$G$60)), 0)), INDEX(($H$30:$H$60), MATCH(0, COUNTIF($P$29:P29, ($H$30:$H$60)), 0))), "") -> 4BP | Q30: =IFERROR(IFERROR(INDEX(($I$30:$I$60), MATCH(0, COUNTIF($Q$29:Q29, ($I$30:$I$60)), 0)), INDEX(($J$30:$J$60), MATCH(0, COUNTIF($Q$29:Q29, ($J$30:$J$60)), 0))), "") -> Tiger 2+1 | R30: =IFERROR(IFERROR(INDEX(($K$30:$K$60), MATCH(0, COUNTIF($R$29:R29, ($K$30:$K$60)), 0)), INDEX(($L$30:$L$60), MATCH(0, COUNTIF($R$29:R29, ($L$30:$L$60)), 0))), "") -> WC Ladies 30% | S30: =IFERROR(IFERROR(INDEX(($M$30:$M$60), MATCH(0, COUNTIF($S$29:S29, ($M$30:$M$60)), 0)), INDEX(($N$30:$N$60), MATCH(0, COUNTIF($S$29:S29, ($N$30:$N$60)), 0))), "") -> 5pm-8pm RM 8 | T30: =IFERROR(IFERROR(INDEX(($O$30:$O$60), MATCH(0, COUNTIF($T$29:T29, ($O$30:$O$60)), 0)), INDEX(($P$30:$P$60), MATCH(0, COUNTIF($T$29:T29, ($P$30:$P$60)), 0))), "") -> K-Lunch | U30: =IFERROR(IFERROR(INDEX(($Q$30:$Q$60), MATCH(0, COUNTIF($U$29:U29, ($Q$30:$Q$60)), 0)), INDEX(($R$30:$R$60), MATCH(0, COUNTIF($U$29:U29, ($R$30:$R$60)), 0))), "") -> Tiger 2+1 | V30: =IFERROR(IFERROR(INDEX(($S$30:$S$60), MATCH(0, COUNTIF($V$29:V29, ($S$30:$S$60)), 0)), INDEX(($T$30:$T$60), MATCH(0, COUNTIF($V$29:V29, ($T$30:$T$60)), 0))), "") -> 5pm-8pm RM 8 | W30: =IFERROR(IFERROR(INDEX(($U$30:$U$60), MATCH(0, COUNTIF($W$29:W29, ($U$30:$U$60)), 0)), INDEX(($V$30:$V$60), MATCH(0, COUNTIF($W$29:W29, ($V$30:$V$60)), 0))), "") -> Tiger 2+1 | X30: =IFERROR(INDEX((Data!$AT$33:$AX$82,Data!$AY$33:$BC$82,Data!$BD$33:$BH$82,Data!$BI$33:$BM$82,Data!$BN$33:$BR$82,Data!$BS$33:$BW$82,Data!$BX$33:$CB$82,Data!$CC$33:$CG$82,Data!$CH$33:$CL$82,Data!$CM$33:$CQ$82),$D30,2,CHOOSE(MATCH($Z$14,INDIRECT("Data!$AT$"&$D30+32&":$CM$"&$D30+32),0),1,0,0,0,0,2,0,0,0,0,3,0,0,0,0,4,0,0,0,0,5,0,0,0,0,6,0,0,0,0,7,0,0,0,0,8,0,0,0,0,9,0,0,0,0,10)),"") ->  | Y30: =IFERROR(INDEX((Data!$AT$33:$AX$82,Data!$AY$33:$BC$82,Data!$BD$33:$BH$82,Data!$BI$33:$BM$82,Data!$BN$33:$BR$82,Data!$BS$33:$BW$82,Data!$BX$33:$CB$82,Data!$CC$33:$CG$82,Data!$CH$33:$CL$82,Data!$CM$33:$CQ$82),$D30,3,CHOOSE(MATCH($Z$14,INDIRECT("Data!$AT$"&$D30+32&":$CM$"&$D30+32),0),1,0,0,0,0,2,0,0,0,0,3,0,0,0,0,4,0,0,0,0,5,0,0,0,0,6,0,0,0,0,7,0,0,0,0,8,0,0,0,0,9,0,0,0,0,10)),"") ->  | Z30: =IFERROR(INDEX((Data!$AT$33:$AX$82,Data!$AY$33:$BC$82,Data!$BD$33:$BH$82,Data!$BI$33:$BM$82,Data!$BN$33:$BR$82,Data!$BS$33:$BW$82,Data!$BX$33:$CB$82,Data!$CC$33:$CG$82,Data!$CH$33:$CL$82,Data!$CM$33:$CQ$82),$D30,4,CHOOSE(MATCH($Z$14,INDIRECT("Data!$AT$"&$D30+32&":$CM$"&$D30+32),0),1,0,0,0,0,2,0,0,0,0,3,0,0,0,0,4,0,0,0,0,5,0,0,0,0,6,0,0,0,0,7,0,0,0,0,8,0,0,0,0,9,0,0,0,0,10)),"") ->  | AA30: =IFERROR(INDEX((Data!$AT$33:$AX$82,Data!$AY$33:$BC$82,Data!$BD$33:$BH$82,Data!$BI$33:$BM$82,Data!$BN$33:$BR$82,Data!$BS$33:$BW$82,Data!$BX$33:$CB$82,Data!$CC$33:$CG$82,Data!$CH$33:$CL$82,Data!$CM$33:$CQ$82),$D30,5,CHOOSE(MATCH($Z$14,INDIRECT("Data!$AT$"&$D30+32&":$CM$"&$D30+32),0),1,0,0,0,0,2,0,0,0,0,3,0,0,0,0,4,0,0,0,0,5,0,0,0,0,6,0,0,0,0,7,0,0,0,0,8,0,0,0,0,9,0,0,0,0,10)),"") ->  | AB30: =IFERROR(SUM($X30:$AA30),"") -> 0
B31: ='Report A'!$B33 -> 2014-07-02 | C31: ='Report A'!$C33 -> Wednesday | D31: ='Report A'!$D33 -> 2 | E31: K-Lunch | F31: K-Dinner | G31: 4BP | H31: Member 30% | I31: Tiger 2+1 | J31: Heineken 3+1 | K31: WC Ladies 30% | L31: 2 Bkt Tiger Rm 88 | M31: 5pm-8pm RM 8 | N31: 0 | O31: =IFERROR(IFERROR(INDEX(($E$30:$E$60), MATCH(0, COUNTIF($O$29:O30, ($E$30:$E$60)), 0)), INDEX(($F$30:$F$60), MATCH(0, COUNTIF($O$29:O30, ($F$30:$F$60)), 0))), "") -> K-Dinner | P31: =IFERROR(IFERROR(INDEX(($G$30:$G$60), MATCH(0, COUNTIF($P$29:P30, ($G$30:$G$60)), 0)), INDEX(($H$30:$H$60), MATCH(0, COUNTIF($P$29:P30, ($H$30:$H$60)), 0))), "") -> Member 30% | Q31: =IFERROR(IFERROR(INDEX(($I$30:$I$60), MATCH(0, COUNTIF($Q$29:Q30, ($I$30:$I$60)), 0)), INDEX(($J$30:$J$60), MATCH(0, COUNTIF($Q$29:Q30, ($J$30:$J$60)), 0))), "") -> 0 | R31: =IFERROR(IFERROR(INDEX(($K$30:$K$60), MATCH(0, COUNTIF($R$29:R30, ($K$30:$K$60)), 0)), INDEX(($L$30:$L$60), MATCH(0, COUNTIF($R$29:R30, ($L$30:$L$60)), 0))), "") -> 0 | S31: =IFERROR(IFERROR(INDEX(($M$30:$M$60), MATCH(0, COUNTIF($S$29:S30, ($M$30:$M$60)), 0)), INDEX(($N$30:$N$60), MATCH(0, COUNTIF($S$29:S30, ($N$30:$N$60)), 0))), "") -> 0 | T31: =IFERROR(IFERROR(INDEX(($O$30:$O$60), MATCH(0, COUNTIF($T$29:T30, ($O$30:$O$60)), 0)), INDEX(($P$30:$P$60), MATCH(0, COUNTIF($T$29:T30, ($P$30:$P$60)), 0))), "") -> K-Dinner | U31: =IFERROR(IFERROR(INDEX(($Q$30:$Q$60), MATCH(0, COUNTIF($U$29:U30, ($Q$30:$Q$60)), 0)), INDEX(($R$30:$R$60), MATCH(0, COUNTIF($U$29:U30, ($R$30:$R$60)), 0))), "") -> 0 | V31: =IFERROR(IFERROR(INDEX(($S$30:$S$60), MATCH(0, COUNTIF($V$29:V30, ($S$30:$S$60)), 0)), INDEX(($T$30:$T$60), MATCH(0, COUNTIF($V$29:V30, ($T$30:$T$60)), 0))), "") -> 0 | W31: =IFERROR(IFERROR(INDEX(($U$30:$U$60), MATCH(0, COUNTIF($W$29:W30, ($U$30:$U$60)), 0)), INDEX(($V$30:$V$60), MATCH(0, COUNTIF($W$29:W30, ($V$30:$V$60)), 0))), "") -> 0 | X31: =IFERROR(INDEX((Data!$AT$33:$AX$82,Data!$AY$33:$BC$82,Data!$BD$33:$BH$82,Data!$BI$33:$BM$82,Data!$BN$33:$BR$82,Data!$BS$33:$BW$82,Data!$BX$33:$CB$82,Data!$CC$33:$CG$82,Data!$CH$33:$CL$82,Data!$CM$33:$CQ$82),$D31,2,CHOOSE(MATCH($Z$14,INDIRECT("Data!$AT$"&$D31+32&":$CM$"&$D31+32),0),1,0,0,0,0,2,0,0,0,0,3,0,0,0,0,4,0,0,0,0,5,0,0,0,0,6,0,0,0,0,7,0,0,0,0,8,0,0,0,0,9,0,0,0,0,10)),"") ->  | Y31: =IFERROR(INDEX((Data!$AT$33:$AX$82,Data!$AY$33:$BC$82,Data!$BD$33:$BH$82,Data!$BI$33:$BM$82,Data!$BN$33:$BR$82,Data!$BS$33:$BW$82,Data!$BX$33:$CB$82,Data!$CC$33:$CG$82,Data!$CH$33:$CL$82,Data!$CM$33:$CQ$82),$D31,3,CHOOSE(MATCH($Z$14,INDIRECT("Data!$AT$"&$D31+32&":$CM$"&$D31+32),0),1,0,0,0,0,2,0,0,0,0,3,0,0,0,0,4,0,0,0,0,5,0,0,0,0,6,0,0,0,0,7,0,0,0,0,8,0,0,0,0,9,0,0,0,0,10)),"") ->  | Z31: =IFERROR(INDEX((Data!$AT$33:$AX$82,Data!$AY$33:$BC$82,Data!$BD$33:$BH$82,Data!$BI$33:$BM$82,Data!$BN$33:$BR$82,Data!$BS$33:$BW$82,Data!$BX$33:$CB$82,Data!$CC$33:$CG$82,Data!$CH$33:$CL$82,Data!$CM$33:$CQ$82),$D31,4,CHOOSE(MATCH($Z$14,INDIRECT("Data!$AT$"&$D31+32&":$CM$"&$D31+32),0),1,0,0,0,0,2,0,0,0,0,3,0,0,0,0,4,0,0,0,0,5,0,0,0,0,6,0,0,0,0,7,0,0,0,0,8,0,0,0,0,9,0,0,0,0,10)),"") ->  | AA31: =IFERROR(INDEX((Data!$AT$33:$AX$82,Data!$AY$33:$BC$82,Data!$BD$33:$BH$82,Data!$BI$33:$BM$82,Data!$BN$33:$BR$82,Data!$BS$33:$BW$82,Data!$BX$33:$CB$82,Data!$CC$33:$CG$82,Data!$CH$33:$CL$82,Data!$CM$33:$CQ$82),$D31,5,CHOOSE(MATCH($Z$14,INDIRECT("Data!$AT$"&$D31+32&":$CM$"&$D31+32),0),1,0,0,0,0,2,0,0,0,0,3,0,0,0,0,4,0,0,0,0,5,0,0,0,0,6,0,0,0,0,7,0,0,0,0,8,0,0,0,0,9,0,0,0,0,10)),"") ->  | AB31: =IFERROR(SUM($X31:$AA31),"") -> 0
B32: ='Report A'!$B34 -> 2014-07-03 | C32: ='Report A'!$C34 -> Thursday | D32: ='Report A'!$D34 -> 3 | E32: K-Lunch | F32: K-Dinner | G32: 4BP | H32: Member 30% | I32: Tiger 2+1 | J32: Heineken 3+1 | K32: WC Ladies 30% | L32: 2 Bkt Tiger Rm 88 | M32: 5pm-8pm RM 8 | N32: 0 | O32: =IFERROR(IFERROR(INDEX(($E$30:$E$60), MATCH(0, COUNTIF($O$29:O31, ($E$30:$E$60)), 0)), INDEX(($F$30:$F$60), MATCH(0, COUNTIF($O$29:O31, ($F$30:$F$60)), 0))), "") ->  | P32: =IFERROR(IFERROR(INDEX(($G$30:$G$60), MATCH(0, COUNTIF($P$29:P31, ($G$30:$G$60)), 0)), INDEX(($H$30:$H$60), MATCH(0, COUNTIF($P$29:P31, ($H$30:$H$60)), 0))), "") -> 0 | Q32: =IFERROR(IFERROR(INDEX(($I$30:$I$60), MATCH(0, COUNTIF($Q$29:Q31, ($I$30:$I$60)), 0)), INDEX(($J$30:$J$60), MATCH(0, COUNTIF($Q$29:Q31, ($J$30:$J$60)), 0))), "") -> Heineken 3+1 | R32: =IFERROR(IFERROR(INDEX(($K$30:$K$60), MATCH(0, COUNTIF($R$29:R31, ($K$30:$K$60)), 0)), INDEX(($L$30:$L$60), MATCH(0, COUNTIF($R$29:R31, ($L$30:$L$60)), 0))), "") -> 5PM-8PM Rm 4 | S32: =IFERROR(IFERROR(INDEX(($M$30:$M$60), MATCH(0, COUNTIF($S$29:S31, ($M$30:$M$60)), 0)), INDEX(($N$30:$N$60), MATCH(0, COUNTIF($S$29:S31, ($N$30:$N$60)), 0))), "") -> WC COMBO | T32: =IFERROR(IFERROR(INDEX(($O$30:$O$60), MATCH(0, COUNTIF($T$29:T31, ($O$30:$O$60)), 0)), INDEX(($P$30:$P$60), MATCH(0, COUNTIF($T$29:T31, ($P$30:$P$60)), 0))), "") -> 4BP | U32: =IFERROR(IFERROR(INDEX(($Q$30:$Q$60), MATCH(0, COUNTIF($U$29:U31, ($Q$30:$Q$60)), 0)), INDEX(($R$30:$R$60), MATCH(0, COUNTIF($U$29:U31, ($R$30:$R$60)), 0))), "") -> Heineken 3+1 | V32: =IFERROR(IFERROR(INDEX(($S$30:$S$60), MATCH(0, COUNTIF($V$29:V31, ($S$30:$S$60)), 0)), INDEX(($T$30:$T$60), MATCH(0, COUNTIF($V$29:V31, ($T$30:$T$60)), 0))), "") -> WC COMBO | W32: =IFERROR(IFERROR(INDEX(($U$30:$U$60), MATCH(0, COUNTIF($W$29:W31, ($U$30:$U$60)), 0)), INDEX(($V$30:$V$60), MATCH(0, COUNTIF($W$29:W31, ($V$30:$V$60)), 0))), "") -> Heineken 3+1 | X32: =IFERROR(INDEX((Data!$AT$33:$AX$82,Data!$AY$33:$BC$82,Data!$BD$33:$BH$82,Data!$BI$33:$BM$82,Data!$BN$33:$BR$82,Data!$BS$33:$BW$82,Data!$BX$33:$CB$82,Data!$CC$33:$CG$82,Data!$CH$33:$CL$82,Data!$CM$33:$CQ$82),$D32,2,CHOOSE(MATCH($Z$14,INDIRECT("Data!$AT$"&$D32+32&":$CM$"&$D32+32),0),1,0,0,0,0,2,0,0,0,0,3,0,0,0,0,4,0,0,0,0,5,0,0,0,0,6,0,0,0,0,7,0,0,0,0,8,0,0,0,0,9,0,0,0,0,10)),"") ->  | Y32: =IFERROR(INDEX((Data!$AT$33:$AX$82,Data!$AY$33:$BC$82,Data!$BD$33:$BH$82,Data!$BI$33:$BM$82,Data!$BN$33:$BR$82,Data!$BS$33:$BW$82,Data!$BX$33:$CB$82,Data!$CC$33:$CG$82,Data!$CH$33:$CL$82,Data!$CM$33:$CQ$82),$D32,3,CHOOSE(MATCH($Z$14,INDIRECT("Data!$AT$"&$D32+32&":$CM$"&$D32+32),0),1,0,0,0,0,2,0,0,0,0,3,0,0,0,0,4,0,0,0,0,5,0,0,0,0,6,0,0,0,0,7,0,0,0,0,8,0,0,0,0,9,0,0,0,0,10)),"") ->  | Z32: =IFERROR(INDEX((Data!$AT$33:$AX$82,Data!$AY$33:$BC$82,Data!$BD$33:$BH$82,Data!$BI$33:$BM$82,Data!$BN$33:$BR$82,Data!$BS$33:$BW$82,Data!$BX$33:$CB$82,Data!$CC$33:$CG$82,Data!$CH$33:$CL$82,Data!$CM$33:$CQ$82),$D32,4,CHOOSE(MATCH($Z$14,INDIRECT("Data!$AT$"&$D32+32&":$CM$"&$D32+32),0),1,0,0,0,0,2,0,0,0,0,3,0,0,0,0,4,0,0,0,0,5,0,0,0,0,6,0,0,0,0,7,0,0,0,0,8,0,0,0,0,9,0,0,0,0,10)),"") ->  | AA32: =IFERROR(INDEX((Data!$AT$33:$AX$82,Data!$AY$33:$BC$82,Data!$BD$33:$BH$82,Data!$BI$33:$BM$82,Data!$BN$33:$BR$82,Data!$BS$33:$BW$82,Data!$BX$33:$CB$82,Data!$CC$33:$CG$82,Data!$CH$33:$CL$82,Data!$CM$33:$CQ$82),$D32,5,CHOOSE(MATCH($Z$14,INDIRECT("Data!$AT$"&$D32+32&":$CM$"&$D32+32),0),1,0,0,0,0,2,0,0,0,0,3,0,0,0,0,4,0,0,0,0,5,0,0,0,0,6,0,0,0,0,7,0,0,0,0,8,0,0,0,0,9,0,0,0,0,10)),"") ->  | AB32: 0
B33: ='Report A'!$B35 -> 2014-07-04 | C33: ='Report A'!$C35 -> Friday | D33: ='Report A'!$D35 -> 4 | E33: K-Lunch | F33: K-Dinner | G33: 4BP | H33: 0 | I33: 0 | J33: 0 | K33: 0 | L33: 0 | M33: 0 | N33: 0 | O33: =IFERROR(IFERROR(INDEX(($E$30:$E$60), MATCH(0, COUNTIF($O$29:O32, ($E$30:$E$60)), 0)), INDEX(($F$30:$F$60), MATCH(0, COUNTIF($O$29:O32, ($F$30:$F$60)), 0))), "") ->  | P33: =IFERROR(IFERROR(INDEX(($G$30:$G$60), MATCH(0, COUNTIF($P$29:P32, ($G$30:$G$60)), 0)), INDEX(($H$30:$H$60), MATCH(0, COUNTIF($P$29:P32, ($H$30:$H$60)), 0))), "") ->  | Q33: =IFERROR(IFERROR(INDEX(($I$30:$I$60), MATCH(0, COUNTIF($Q$29:Q32, ($I$30:$I$60)), 0)), INDEX(($J$30:$J$60), MATCH(0, COUNTIF($Q$29:Q32, ($J$30:$J$60)), 0))), "") -> WC Ladies 30% | R33: =IFERROR(IFERROR(INDEX(($K$30:$K$60), MATCH(0, COUNTIF($R$29:R32, ($K$30:$K$60)), 0)), INDEX(($L$30:$L$60), MATCH(0, COUNTIF($R$29:R32, ($L$30:$L$60)), 0))), "") -> RM4 PROMO | S33: =IFERROR(IFERROR(INDEX(($M$30:$M$60), MATCH(0, COUNTIF($S$29:S32, ($M$30:$M$60)), 0)), INDEX(($N$30:$N$60), MATCH(0, COUNTIF($S$29:S32, ($N$30:$N$60)), 0))), "") -> WC 30% | T33: =IFERROR(IFERROR(INDEX(($O$30:$O$60), MATCH(0, COUNTIF($T$29:T32, ($O$30:$O$60)), 0)), INDEX(($P$30:$P$60), MATCH(0, COUNTIF($T$29:T32, ($P$30:$P$60)), 0))), "") -> Member 30% | U33: =IFERROR(IFERROR(INDEX(($Q$30:$Q$60), MATCH(0, COUNTIF($U$29:U32, ($Q$30:$Q$60)), 0)), INDEX(($R$30:$R$60), MATCH(0, COUNTIF($U$29:U32, ($R$30:$R$60)), 0))), "") -> WC Ladies 30% | V33: =IFERROR(IFERROR(INDEX(($S$30:$S$60), MATCH(0, COUNTIF($V$29:V32, ($S$30:$S$60)), 0)), INDEX(($T$30:$T$60), MATCH(0, COUNTIF($V$29:V32, ($T$30:$T$60)), 0))), "") -> WC 30% | W33: =IFERROR(IFERROR(INDEX(($U$30:$U$60), MATCH(0, COUNTIF($W$29:W32, ($U$30:$U$60)), 0)), INDEX(($V$30:$V$60), MATCH(0, COUNTIF($W$29:W32, ($V$30:$V$60)), 0))), "") -> WC Ladies 30% | X33: =IFERROR(INDEX((Data!$AT$33:$AX$82,Data!$AY$33:$BC$82,Data!$BD$33:$BH$82,Data!$BI$33:$BM$82,Data!$BN$33:$BR$82,Data!$BS$33:$BW$82,Data!$BX$33:$CB$82,Data!$CC$33:$CG$82,Data!$CH$33:$CL$82,Data!$CM$33:$CQ$82),$D33,2,CHOOSE(MATCH($Z$14,INDIRECT("Data!$AT$"&$D33+32&":$CM$"&$D33+32),0),1,0,0,0,0,2,0,0,0,0,3,0,0,0,0,4,0,0,0,0,5,0,0,0,0,6,0,0,0,0,7,0,0,0,0,8,0,0,0,0,9,0,0,0,0,10)),"") ->  | Y33: =IFERROR(INDEX((Data!$AT$33:$AX$82,Data!$AY$33:$BC$82,Data!$BD$33:$BH$82,Data!$BI$33:$BM$82,Data!$BN$33:$BR$82,Data!$BS$33:$BW$82,Data!$BX$33:$CB$82,Data!$CC$33:$CG$82,Data!$CH$33:$CL$82,Data!$CM$33:$CQ$82),$D33,3,CHOOSE(MATCH($Z$14,INDIRECT("Data!$AT$"&$D33+32&":$CM$"&$D33+32),0),1,0,0,0,0,2,0,0,0,0,3,0,0,0,0,4,0,0,0,0,5,0,0,0,0,6,0,0,0,0,7,0,0,0,0,8,0,0,0,0,9,0,0,0,0,10)),"") ->  | Z33: =IFERROR(INDEX((Data!$AT$33:$AX$82,Data!$AY$33:$BC$82,Data!$BD$33:$BH$82,Data!$BI$33:$BM$82,Data!$BN$33:$BR$82,Data!$BS$33:$BW$82,Data!$BX$33:$CB$82,Data!$CC$33:$CG$82,Data!$CH$33:$CL$82,Data!$CM$33:$CQ$82),$D33,4,CHOOSE(MATCH($Z$14,INDIRECT("Data!$AT$"&$D33+32&":$CM$"&$D33+32),0),1,0,0,0,0,2,0,0,0,0,3,0,0,0,0,4,0,0,0,0,5,0,0,0,0,6,0,0,0,0,7,0,0,0,0,8,0,0,0,0,9,0,0,0,0,10)),"") ->  | AA33: =IFERROR(INDEX((Data!$AT$33:$AX$82,Data!$AY$33:$BC$82,Data!$BD$33:$BH$82,Data!$BI$33:$BM$82,Data!$BN$33:$BR$82,Data!$BS$33:$BW$82,Data!$BX$33:$CB$82,Data!$CC$33:$CG$82,Data!$CH$33:$CL$82,Data!$CM$33:$CQ$82),$D33,5,CHOOSE(MATCH($Z$14,INDIRECT("Data!$AT$"&$D33+32&":$CM$"&$D33+32),0),1,0,0,0,0,2,0,0,0,0,3,0,0,0,0,4,0,0,0,0,5,0,0,0,0,6,0,0,0,0,7,0,0,0,0,8,0,0,0,0,9,0,0,0,0,10)),"") ->  | AB33: 0
B34: ='Report A'!$B36 -> 2014-07-05 | C34: ='Report A'!$C36 -> Saturday | D34: ='Report A'!$D36 -> 5 | E34: K-Lunch | F34: K-Dinner | G34: 4BP | H34: 0 | I34: 0 | J34: 0 | K34: 0 | L34: 0 | M34: 0 | N34: 0 | O34: =IFERROR(IFERROR(INDEX(($E$30:$E$60), MATCH(0, COUNTIF($O$29:O33, ($E$30:$E$60)), 0)), INDEX(($F$30:$F$60), MATCH(0, COUNTIF($O$29:O33, ($F$30:$F$60)), 0))), "") ->  | P34: =IFERROR(IFERROR(INDEX(($G$30:$G$60), MATCH(0, COUNTIF($P$29:P33, ($G$30:$G$60)), 0)), INDEX(($H$30:$H$60), MATCH(0, COUNTIF($P$29:P33, ($H$30:$H$60)), 0))), "") ->  | Q34: =IFERROR(IFERROR(INDEX(($I$30:$I$60), MATCH(0, COUNTIF($Q$29:Q33, ($I$30:$I$60)), 0)), INDEX(($J$30:$J$60), MATCH(0, COUNTIF($Q$29:Q33, ($J$30:$J$60)), 0))), "") ->  | R34: =IFERROR(IFERROR(INDEX(($K$30:$K$60), MATCH(0, COUNTIF($R$29:R33, ($K$30:$K$60)), 0)), INDEX(($L$30:$L$60), MATCH(0, COUNTIF($R$29:R33, ($L$30:$L$60)), 0))), "") -> Opening Promo 60% | S34: =IFERROR(IFERROR(INDEX(($M$30:$M$60), MATCH(0, COUNTIF($S$29:S33, ($M$30:$M$60)), 0)), INDEX(($N$30:$N$60), MATCH(0, COUNTIF($S$29:S33, ($N$30:$N$60)), 0))), "") ->  | T34: =IFERROR(IFERROR(INDEX(($O$30:$O$60), MATCH(0, COUNTIF($T$29:T33, ($O$30:$O$60)), 0)), INDEX(($P$30:$P$60), MATCH(0, COUNTIF($T$29:T33, ($P$30:$P$60)), 0))), "") -> 0 | U34: =IFERROR(IFERROR(INDEX(($Q$30:$Q$60), MATCH(0, COUNTIF($U$29:U33, ($Q$30:$Q$60)), 0)), INDEX(($R$30:$R$60), MATCH(0, COUNTIF($U$29:U33, ($R$30:$R$60)), 0))), "") -> 5PM-8PM Rm 4 | V34: =IFERROR(IFERROR(INDEX(($S$30:$S$60), MATCH(0, COUNTIF($V$29:V33, ($S$30:$S$60)), 0)), INDEX(($T$30:$T$60), MATCH(0, COUNTIF($V$29:V33, ($T$30:$T$60)), 0))), "") -> K-Lunch | W34: =IFERROR(IFERROR(INDEX(($U$30:$U$60), MATCH(0, COUNTIF($W$29:W33, ($U$30:$U$60)), 0)), INDEX(($V$30:$V$60), MATCH(0, COUNTIF($W$29:W33, ($V$30:$V$60)), 0))), "") -> 5PM-8PM Rm 4 | X34: =IFERROR(INDEX((Data!$AT$33:$AX$82,Data!$AY$33:$BC$82,Data!$BD$33:$BH$82,Data!$BI$33:$BM$82,Data!$BN$33:$BR$82,Data!$BS$33:$BW$82,Data!$BX$33:$CB$82,Data!$CC$33:$CG$82,Data!$CH$33:$CL$82,Data!$CM$33:$CQ$82),$D34,2,CHOOSE(MATCH($Z$14,INDIRECT("Data!$AT$"&$D34+32&":$CM$"&$D34+32),0),1,0,0,0,0,2,0,0,0,0,3,0,0,0,0,4,0,0,0,0,5,0,0,0,0,6,0,0,0,0,7,0,0,0,0,8,0,0,0,0,9,0,0,0,0,10)),"") ->  | Y34: =IFERROR(INDEX((Data!$AT$33:$AX$82,Data!$AY$33:$BC$82,Data!$BD$33:$BH$82,Data!$BI$33:$BM$82,Data!$BN$33:$BR$82,Data!$BS$33:$BW$82,Data!$BX$33:$CB$82,Data!$CC$33:$CG$82,Data!$CH$33:$CL$82,Data!$CM$33:$CQ$82),$D34,3,CHOOSE(MATCH($Z$14,INDIRECT("Data!$AT$"&$D34+32&":$CM$"&$D34+32),0),1,0,0,0,0,2,0,0,0,0,3,0,0,0,0,4,0,0,0,0,5,0,0,0,0,6,0,0,0,0,7,0,0,0,0,8,0,0,0,0,9,0,0,0,0,10)),"") ->  | Z34: =IFERROR(INDEX((Data!$AT$33:$AX$82,Data!$AY$33:$BC$82,Data!$BD$33:$BH$82,Data!$BI$33:$BM$82,Data!$BN$33:$BR$82,Data!$BS$33:$BW$82,Data!$BX$33:$CB$82,Data!$CC$33:$CG$82,Data!$CH$33:$CL$82,Data!$CM$33:$CQ$82),$D34,4,CHOOSE(MATCH($Z$14,INDIRECT("Data!$AT$"&$D34+32&":$CM$"&$D34+32),0),1,0,0,0,0,2,0,0,0,0,3,0,0,0,0,4,0,0,0,0,5,0,0,0,0,6,0,0,0,0,7,0,0,0,0,8,0,0,0,0,9,0,0,0,0,10)),"") ->  | AA34: =IFERROR(INDEX((Data!$AT$33:$AX$82,Data!$AY$33:$BC$82,Data!$BD$33:$BH$82,Data!$BI$33:$BM$82,Data!$BN$33:$BR$82,Data!$BS$33:$BW$82,Data!$BX$33:$CB$82,Data!$CC$33:$CG$82,Data!$CH$33:$CL$82,Data!$CM$33:$CQ$82),$D34,5,CHOOSE(MATCH($Z$14,INDIRECT("Data!$AT$"&$D34+32&":$CM$"&$D34+32),0),1,0,0,0,0,2,0,0,0,0,3,0,0,0,0,4,0,0,0,0,5,0,0,0,0,6,0,0,0,0,7,0,0,0,0,8,0,0,0,0,9,0,0,0,0,10)),"") ->  | AB34: 0
B35: ='Report A'!$B37 -> 2014-07-06 | C35: ='Report A'!$C37 -> Sunday | D35: ='Report A'!$D37 -> 6 | E35: K-Lunch | F35: K-Dinner | G35: 4BP | H35: 0 | I35: 0 | J35: 0 | K35: 0 | L35: 0 | M35: 0 | N35: 0 | O35: =IFERROR(IFERROR(INDEX(($E$30:$E$60), MATCH(0, COUNTIF($O$29:O34, ($E$30:$E$60)), 0)), INDEX(($F$30:$F$60), MATCH(0, COUNTIF($O$29:O34, ($F$30:$F$60)), 0))), "") ->  | P35: =IFERROR(IFERROR(INDEX(($G$30:$G$60), MATCH(0, COUNTIF($P$29:P34, ($G$30:$G$60)), 0)), INDEX(($H$30:$H$60), MATCH(0, COUNTIF($P$29:P34, ($H$30:$H$60)), 0))), "") ->  | Q35: =IFERROR(IFERROR(INDEX(($I$30:$I$60), MATCH(0, COUNTIF($Q$29:Q34, ($I$30:$I$60)), 0)), INDEX(($J$30:$J$60), MATCH(0, COUNTIF($Q$29:Q34, ($J$30:$J$60)), 0))), "") ->  | R35: =IFERROR(IFERROR(INDEX(($K$30:$K$60), MATCH(0, COUNTIF($R$29:R34, ($K$30:$K$60)), 0)), INDEX(($L$30:$L$60), MATCH(0, COUNTIF($R$29:R34, ($L$30:$L$60)), 0))), "") -> 2 Bkt Tiger Rm 88 | S35: =IFERROR(IFERROR(INDEX(($M$30:$M$60), MATCH(0, COUNTIF($S$29:S34, ($M$30:$M$60)), 0)), INDEX(($N$30:$N$60), MATCH(0, COUNTIF($S$29:S34, ($N$30:$N$60)), 0))), "") ->  | T35: =IFERROR(IFERROR(INDEX(($O$30:$O$60), MATCH(0, COUNTIF($T$29:T34, ($O$30:$O$60)), 0)), INDEX(($P$30:$P$60), MATCH(0, COUNTIF($T$29:T34, ($P$30:$P$60)), 0))), "") ->  | U35: =IFERROR(IFERROR(INDEX(($Q$30:$Q$60), MATCH(0, COUNTIF($U$29:U34, ($Q$30:$Q$60)), 0)), INDEX(($R$30:$R$60), MATCH(0, COUNTIF($U$29:U34, ($R$30:$R$60)), 0))), "") -> RM4 PROMO | V35: =IFERROR(IFERROR(INDEX(($S$30:$S$60), MATCH(0, COUNTIF($V$29:V34, ($S$30:$S$60)), 0)), INDEX(($T$30:$T$60), MATCH(0, COUNTIF($V$29:V34, ($T$30:$T$60)), 0))), "") -> K-Dinner | W35: =IFERROR(IFERROR(INDEX(($U$30:$U$60), MATCH(0, COUNTIF($W$29:W34, ($U$30:$U$60)), 0)), INDEX(($V$30:$V$60), MATCH(0, COUNTIF($W$29:W34, ($V$30:$V$60)), 0))), "") -> RM4 PROMO | X35: =IFERROR(INDEX((Data!$AT$33:$AX$82,Data!$AY$33:$BC$82,Data!$BD$33:$BH$82,Data!$BI$33:$BM$82,Data!$BN$33:$BR$82,Data!$BS$33:$BW$82,Data!$BX$33:$CB$82,Data!$CC$33:$CG$82,Data!$CH$33:$CL$82,Data!$CM$33:$CQ$82),$D35,2,CHOOSE(MATCH($Z$14,INDIRECT("Data!$AT$"&$D35+32&":$CM$"&$D35+32),0),1,0,0,0,0,2,0,0,0,0,3,0,0,0,0,4,0,0,0,0,5,0,0,0,0,6,0,0,0,0,7,0,0,0,0,8,0,0,0,0,9,0,0,0,0,10)),"") ->  | Y35: =IFERROR(INDEX((Data!$AT$33:$AX$82,Data!$AY$33:$BC$82,Data!$BD$33:$BH$82,Data!$BI$33:$BM$82,Data!$BN$33:$BR$82,Data!$BS$33:$BW$82,Data!$BX$33:$CB$82,Data!$CC$33:$CG$82,Data!$CH$33:$CL$82,Data!$CM$33:$CQ$82),$D35,3,CHOOSE(MATCH($Z$14,INDIRECT("Data!$AT$"&$D35+32&":$CM$"&$D35+32),0),1,0,0,0,0,2,0,0,0,0,3,0,0,0,0,4,0,0,0,0,5,0,0,0,0,6,0,0,0,0,7,0,0,0,0,8,0,0,0,0,9,0,0,0,0,10)),"") ->  | Z35: =IFERROR(INDEX((Data!$AT$33:$AX$82,Data!$AY$33:$BC$82,Data!$BD$33:$BH$82,Data!$BI$33:$BM$82,Data!$BN$33:$BR$82,Data!$BS$33:$BW$82,Data!$BX$33:$CB$82,Data!$CC$33:$CG$82,Data!$CH$33:$CL$82,Data!$CM$33:$CQ$82),$D35,4,CHOOSE(MATCH($Z$14,INDIRECT("Data!$AT$"&$D35+32&":$CM$"&$D35+32),0),1,0,0,0,0,2,0,0,0,0,3,0,0,0,0,4,0,0,0,0,5,0,0,0,0,6,0,0,0,0,7,0,0,0,0,8,0,0,0,0,9,0,0,0,0,10)),"") ->  | AA35: =IFERROR(INDEX((Data!$AT$33:$AX$82,Data!$AY$33:$BC$82,Data!$BD$33:$BH$82,Data!$BI$33:$BM$82,Data!$BN$33:$BR$82,Data!$BS$33:$BW$82,Data!$BX$33:$CB$82,Data!$CC$33:$CG$82,Data!$CH$33:$CL$82,Data!$CM$33:$CQ$82),$D35,5,CHOOSE(MATCH($Z$14,INDIRECT("Data!$AT$"&$D35+32&":$CM$"&$D35+32),0),1,0,0,0,0,2,0,0,0,0,3,0,0,0,0,4,0,0,0,0,5,0,0,0,0,6,0,0,0,0,7,0,0,0,0,8,0,0,0,0,9,0,0,0,0,10)),"") ->  | AB35: 0
B36: ='Report A'!$B38 -> 2014-07-07 | C36: ='Report A'!$C38 -> Monday | D36: ='Report A'!$D38 -> 7 | E36: K-Lunch | F36: K-Dinner | G36: 4BP | H36: Member 30% | I36: Tiger 2+1 | J36: WC Ladies 30% | K36: 5PM-8PM Rm 4 | L36: 2 Bkt Tiger Rm 88 | M36: 0 | N36: 0 | O36: =IFERROR(IFERROR(INDEX(($E$30:$E$60), MATCH(0, COUNTIF($O$29:O35, ($E$30:$E$60)), 0)), INDEX(($F$30:$F$60), MATCH(0, COUNTIF($O$29:O35, ($F$30:$F$60)), 0))), "") ->  | P36: =IFERROR(IFERROR(INDEX(($G$30:$G$60), MATCH(0, COUNTIF($P$29:P35, ($G$30:$G$60)), 0)), INDEX(($H$30:$H$60), MATCH(0, COUNTIF($P$29:P35, ($H$30:$H$60)), 0))), "") ->  | Q36: =IFERROR(IFERROR(INDEX(($I$30:$I$60), MATCH(0, COUNTIF($Q$29:Q35, ($I$30:$I$60)), 0)), INDEX(($J$30:$J$60), MATCH(0, COUNTIF($Q$29:Q35, ($J$30:$J$60)), 0))), "") ->  | R36: =IFERROR(IFERROR(INDEX(($K$30:$K$60), MATCH(0, COUNTIF($R$29:R35, ($K$30:$K$60)), 0)), INDEX(($L$30:$L$60), MATCH(0, COUNTIF($R$29:R35, ($L$30:$L$60)), 0))), "") ->  | S36: =IFERROR(IFERROR(INDEX(($M$30:$M$60), MATCH(0, COUNTIF($S$29:S35, ($M$30:$M$60)), 0)), INDEX(($N$30:$N$60), MATCH(0, COUNTIF($S$29:S35, ($N$30:$N$60)), 0))), "") ->  | T36: =IFERROR(IFERROR(INDEX(($O$30:$O$60), MATCH(0, COUNTIF($T$29:T35, ($O$30:$O$60)), 0)), INDEX(($P$30:$P$60), MATCH(0, COUNTIF($T$29:T35, ($P$30:$P$60)), 0))), "") ->  | U36: =IFERROR(IFERROR(INDEX(($Q$30:$Q$60), MATCH(0, COUNTIF($U$29:U35, ($Q$30:$Q$60)), 0)), INDEX(($R$30:$R$60), MATCH(0, COUNTIF($U$29:U35, ($R$30:$R$60)), 0))), "") -> Opening Promo 60% | V36: =IFERROR(IFERROR(INDEX(($S$30:$S$60), MATCH(0, COUNTIF($V$29:V35, ($S$30:$S$60)), 0)), INDEX(($T$30:$T$60), MATCH(0, COUNTIF($V$29:V35, ($T$30:$T$60)), 0))), "") -> 4BP | W36: =IFERROR(IFERROR(INDEX(($U$30:$U$60), MATCH(0, COUNTIF($W$29:W35, ($U$30:$U$60)), 0)), INDEX(($V$30:$V$60), MATCH(0, COUNTIF($W$29:W35, ($V$30:$V$60)), 0))), "") -> Opening Promo 60% | X36: =IFERROR(INDEX((Data!$AT$33:$AX$82,Data!$AY$33:$BC$82,Data!$BD$33:$BH$82,Data!$BI$33:$BM$82,Data!$BN$33:$BR$82,Data!$BS$33:$BW$82,Data!$BX$33:$CB$82,Data!$CC$33:$CG$82,Data!$CH$33:$CL$82,Data!$CM$33:$CQ$82),$D36,2,CHOOSE(MATCH($Z$14,INDIRECT("Data!$AT$"&$D36+32&":$CM$"&$D36+32),0),1,0,0,0,0,2,0,0,0,0,3,0,0,0,0,4,0,0,0,0,5,0,0,0,0,6,0,0,0,0,7,0,0,0,0,8,0,0,0,0,9,0,0,0,0,10)),"") ->  | Y36: =IFERROR(INDEX((Data!$AT$33:$AX$82,Data!$AY$33:$BC$82,Data!$BD$33:$BH$82,Data!$BI$33:$BM$82,Data!$BN$33:$BR$82,Data!$BS$33:$BW$82,Data!$BX$33:$CB$82,Data!$CC$33:$CG$82,Data!$CH$33:$CL$82,Data!$CM$33:$CQ$82),$D36,3,CHOOSE(MATCH($Z$14,INDIRECT("Data!$AT$"&$D36+32&":$CM$"&$D36+32),0),1,0,0,0,0,2,0,0,0,0,3,0,0,0,0,4,0,0,0,0,5,0,0,0,0,6,0,0,0,0,7,0,0,0,0,8,0,0,0,0,9,0,0,0,0,10)),"") ->  | Z36: =IFERROR(INDEX((Data!$AT$33:$AX$82,Data!$AY$33:$BC$82,Data!$BD$33:$BH$82,Data!$BI$33:$BM$82,Data!$BN$33:$BR$82,Data!$BS$33:$BW$82,Data!$BX$33:$CB$82,Data!$CC$33:$CG$82,Data!$CH$33:$CL$82,Data!$CM$33:$CQ$82),$D36,4,CHOOSE(MATCH($Z$14,INDIRECT("Data!$AT$"&$D36+32&":$CM$"&$D36+32),0),1,0,0,0,0,2,0,0,0,0,3,0,0,0,0,4,0,0,0,0,5,0,0,0,0,6,0,0,0,0,7,0,0,0,0,8,0,0,0,0,9,0,0,0,0,10)),"") ->  | AA36: =IFERROR(INDEX((Data!$AT$33:$AX$82,Data!$AY$33:$BC$82,Data!$BD$33:$BH$82,Data!$BI$33:$BM$82,Data!$BN$33:$BR$82,Data!$BS$33:$BW$82,Data!$BX$33:$CB$82,Data!$CC$33:$CG$82,Data!$CH$33:$CL$82,Data!$CM$33:$CQ$82),$D36,5,CHOOSE(MATCH($Z$14,INDIRECT("Data!$AT$"&$D36+32&":$CM$"&$D36+32),0),1,0,0,0,0,2,0,0,0,0,3,0,0,0,0,4,0,0,0,0,5,0,0,0,0,6,0,0,0,0,7,0,0,0,0,8,0,0,0,0,9,0,0,0,0,10)),"") ->  | AB36: 0
B37: ='Report A'!$B39 -> 2014-07-08 | C37: ='Report A'!$C39 -> Tuesday | D37: ='Report A'!$D39 -> 8 | E37: K-Lunch | F37: K-Dinner | G37: 4BP | H37: Member 30% | I37: Tiger 2+1 | J37: Heineken 3+1 | K37: RM4 PROMO | L37: 2 Bkt Tiger Rm 88 | M37: WC COMBO | N37: WC 30% | O37: =IFERROR(IFERROR(INDEX(($E$30:$E$60), MATCH(0, COUNTIF($O$29:O36, ($E$30:$E$60)), 0)), INDEX(($F$30:$F$60), MATCH(0, COUNTIF($O$29:O36, ($F$30:$F$60)), 0))), "") ->  | P37: =IFERROR(IFERROR(INDEX(($G$30:$G$60), MATCH(0, COUNTIF($P$29:P36, ($G$30:$G$60)), 0)), INDEX(($H$30:$H$60), MATCH(0, COUNTIF($P$29:P36, ($H$30:$H$60)), 0))), "") ->  | Q37: =IFERROR(IFERROR(INDEX(($I$30:$I$60), MATCH(0, COUNTIF($Q$29:Q36, ($I$30:$I$60)), 0)), INDEX(($J$30:$J$60), MATCH(0, COUNTIF($Q$29:Q36, ($J$30:$J$60)), 0))), "") ->  | R37: =IFERROR(IFERROR(INDEX(($K$30:$K$60), MATCH(0, COUNTIF($R$29:R36, ($K$30:$K$60)), 0)), INDEX(($L$30:$L$60), MATCH(0, COUNTIF($R$29:R36, ($L$30:$L$60)), 0))), "") ->  | S37: =IFERROR(IFERROR(INDEX(($M$30:$M$60), MATCH(0, COUNTIF($S$29:S36, ($M$30:$M$60)), 0)), INDEX(($N$30:$N$60), MATCH(0, COUNTIF($S$29:S36, ($N$30:$N$60)), 0))), "") ->  | T37: =IFERROR(IFERROR(INDEX(($O$30:$O$60), MATCH(0, COUNTIF($T$29:T36, ($O$30:$O$60)), 0)), INDEX(($P$30:$P$60), MATCH(0, COUNTIF($T$29:T36, ($P$30:$P$60)), 0))), "") ->  | U37: =IFERROR(IFERROR(INDEX(($Q$30:$Q$60), MATCH(0, COUNTIF($U$29:U36, ($Q$30:$Q$60)), 0)), INDEX(($R$30:$R$60), MATCH(0, COUNTIF($U$29:U36, ($R$30:$R$60)), 0))), "") -> 2 Bkt Tiger Rm 88 | V37: =IFERROR(IFERROR(INDEX(($S$30:$S$60), MATCH(0, COUNTIF($V$29:V36, ($S$30:$S$60)), 0)), INDEX(($T$30:$T$60), MATCH(0, COUNTIF($V$29:V36, ($T$30:$T$60)), 0))), "") -> Member 30% | W37: =IFERROR(IFERROR(INDEX(($U$30:$U$60), MATCH(0, COUNTIF($W$29:W36, ($U$30:$U$60)), 0)), INDEX(($V$30:$V$60), MATCH(0, COUNTIF($W$29:W36, ($V$30:$V$60)), 0))), "") -> 2 Bkt Tiger Rm 88 | X37: =IFERROR(INDEX((Data!$AT$33:$AX$82,Data!$AY$33:$BC$82,Data!$BD$33:$BH$82,Data!$BI$33:$BM$82,Data!$BN$33:$BR$82,Data!$BS$33:$BW$82,Data!$BX$33:$CB$82,Data!$CC$33:$CG$82,Data!$CH$33:$CL$82,Data!$CM$33:$CQ$82),$D37,2,CHOOSE(MATCH($Z$14,INDIRECT("Data!$AT$"&$D37+32&":$CM$"&$D37+32),0),1,0,0,0,0,2,0,0,0,0,3,0,0,0,0,4,0,0,0,0,5,0,0,0,0,6,0,0,0,0,7,0,0,0,0,8,0,0,0,0,9,0,0,0,0,10)),"") ->  | Y37: =IFERROR(INDEX((Data!$AT$33:$AX$82,Data!$AY$33:$BC$82,Data!$BD$33:$BH$82,Data!$BI$33:$BM$82,Data!$BN$33:$BR$82,Data!$BS$33:$BW$82,Data!$BX$33:$CB$82,Data!$CC$33:$CG$82,Data!$CH$33:$CL$82,Data!$CM$33:$CQ$82),$D37,3,CHOOSE(MATCH($Z$14,INDIRECT("Data!$AT$"&$D37+32&":$CM$"&$D37+32),0),1,0,0,0,0,2,0,0,0,0,3,0,0,0,0,4,0,0,0,0,5,0,0,0,0,6,0,0,0,0,7,0,0,0,0,8,0,0,0,0,9,0,0,0,0,10)),"") ->  | Z37: =IFERROR(INDEX((Data!$AT$33:$AX$82,Data!$AY$33:$BC$82,Data!$BD$33:$BH$82,Data!$BI$33:$BM$82,Data!$BN$33:$BR$82,Data!$BS$33:$BW$82,Data!$BX$33:$CB$82,Data!$CC$33:$CG$82,Data!$CH$33:$CL$82,Data!$CM$33:$CQ$82),$D37,4,CHOOSE(MATCH($Z$14,INDIRECT("Data!$AT$"&$D37+32&":$CM$"&$D37+32),0),1,0,0,0,0,2,0,0,0,0,3,0,0,0,0,4,0,0,0,0,5,0,0,0,0,6,0,0,0,0,7,0,0,0,0,8,0,0,0,0,9,0,0,0,0,10)),"") ->  | AA37: =IFERROR(INDEX((Data!$AT$33:$AX$82,Data!$AY$33:$BC$82,Data!$BD$33:$BH$82,Data!$BI$33:$BM$82,Data!$BN$33:$BR$82,Data!$BS$33:$BW$82,Data!$BX$33:$CB$82,Data!$CC$33:$CG$82,Data!$CH$33:$CL$82,Data!$CM$33:$CQ$82),$D37,5,CHOOSE(MATCH($Z$14,INDIRECT("Data!$AT$"&$D37+32&":$CM$"&$D37+32),0),1,0,0,0,0,2,0,0,0,0,3,0,0,0,0,4,0,0,0,0,5,0,0,0,0,6,0,0,0,0,7,0,0,0,0,8,0,0,0,0,9,0,0,0,0,10)),"") ->  | AB37: 0
B38: ='Report A'!$B40 -> 2014-07-09 | C38: ='Report A'!$C40 -> Wednesday | D38: ='Report A'!$D40 -> 9 | E38: K-Lunch | F38: K-Dinner | G38: 4BP | H38: Member 30% | I38: Tiger 2+1 | J38: Heineken 3+1 | K38: RM4 PROMO | L38: 2 Bkt Tiger Rm 88 | M38: WC COMBO | N38: WC 30% | O38: =IFERROR(IFERROR(INDEX(($E$30:$E$60), MATCH(0, COUNTIF($O$29:O37, ($E$30:$E$60)), 0)), INDEX(($F$30:$F$60), MATCH(0, COUNTIF($O$29:O37, ($F$30:$F$60)), 0))), "") ->  | P38: =IFERROR(IFERROR(INDEX(($G$30:$G$60), MATCH(0, COUNTIF($P$29:P37, ($G$30:$G$60)), 0)), INDEX(($H$30:$H$60), MATCH(0, COUNTIF($P$29:P37, ($H$30:$H$60)), 0))), "") ->  | Q38: =IFERROR(IFERROR(INDEX(($I$30:$I$60), MATCH(0, COUNTIF($Q$29:Q37, ($I$30:$I$60)), 0)), INDEX(($J$30:$J$60), MATCH(0, COUNTIF($Q$29:Q37, ($J$30:$J$60)), 0))), "") ->  | R38: =IFERROR(IFERROR(INDEX(($K$30:$K$60), MATCH(0, COUNTIF($R$29:R37, ($K$30:$K$60)), 0)), INDEX(($L$30:$L$60), MATCH(0, COUNTIF($R$29:R37, ($L$30:$L$60)), 0))), "") ->  | S38: =IFERROR(IFERROR(INDEX(($M$30:$M$60), MATCH(0, COUNTIF($S$29:S37, ($M$30:$M$60)), 0)), INDEX(($N$30:$N$60), MATCH(0, COUNTIF($S$29:S37, ($N$30:$N$60)), 0))), "") ->  | T38: =IFERROR(IFERROR(INDEX(($O$30:$O$60), MATCH(0, COUNTIF($T$29:T37, ($O$30:$O$60)), 0)), INDEX(($P$30:$P$60), MATCH(0, COUNTIF($T$29:T37, ($P$30:$P$60)), 0))), "") ->  | U38: =IFERROR(IFERROR(INDEX(($Q$30:$Q$60), MATCH(0, COUNTIF($U$29:U37, ($Q$30:$Q$60)), 0)), INDEX(($R$30:$R$60), MATCH(0, COUNTIF($U$29:U37, ($R$30:$R$60)), 0))), "") ->  | V38: =IFERROR(IFERROR(INDEX(($S$30:$S$60), MATCH(0, COUNTIF($V$29:V37, ($S$30:$S$60)), 0)), INDEX(($T$30:$T$60), MATCH(0, COUNTIF($V$29:V37, ($T$30:$T$60)), 0))), "") ->  | W38: =IFERROR(IFERROR(INDEX(($U$30:$U$60), MATCH(0, COUNTIF($W$29:W37, ($U$30:$U$60)), 0)), INDEX(($V$30:$V$60), MATCH(0, COUNTIF($W$29:W37, ($V$30:$V$60)), 0))), "") -> 5pm-8pm RM 8 | X38: =IFERROR(INDEX((Data!$AT$33:$AX$82,Data!$AY$33:$BC$82,Data!$BD$33:$BH$82,Data!$BI$33:$BM$82,Data!$BN$33:$BR$82,Data!$BS$33:$BW$82,Data!$BX$33:$CB$82,Data!$CC$33:$CG$82,Data!$CH$33:$CL$82,Data!$CM$33:$CQ$82),$D38,2,CHOOSE(MATCH($Z$14,INDIRECT("Data!$AT$"&$D38+32&":$CM$"&$D38+32),0),1,0,0,0,0,2,0,0,0,0,3,0,0,0,0,4,0,0,0,0,5,0,0,0,0,6,0,0,0,0,7,0,0,0,0,8,0,0,0,0,9,0,0,0,0,10)),"") ->  | Y38: =IFERROR(INDEX((Data!$AT$33:$AX$82,Data!$AY$33:$BC$82,Data!$BD$33:$BH$82,Data!$BI$33:$BM$82,Data!$BN$33:$BR$82,Data!$BS$33:$BW$82,Data!$BX$33:$CB$82,Data!$CC$33:$CG$82,Data!$CH$33:$CL$82,Data!$CM$33:$CQ$82),$D38,3,CHOOSE(MATCH($Z$14,INDIRECT("Data!$AT$"&$D38+32&":$CM$"&$D38+32),0),1,0,0,0,0,2,0,0,0,0,3,0,0,0,0,4,0,0,0,0,5,0,0,0,0,6,0,0,0,0,7,0,0,0,0,8,0,0,0,0,9,0,0,0,0,10)),"") ->  | Z38: =IFERROR(INDEX((Data!$AT$33:$AX$82,Data!$AY$33:$BC$82,Data!$BD$33:$BH$82,Data!$BI$33:$BM$82,Data!$BN$33:$BR$82,Data!$BS$33:$BW$82,Data!$BX$33:$CB$82,Data!$CC$33:$CG$82,Data!$CH$33:$CL$82,Data!$CM$33:$CQ$82),$D38,4,CHOOSE(MATCH($Z$14,INDIRECT("Data!$AT$"&$D38+32&":$CM$"&$D38+32),0),1,0,0,0,0,2,0,0,0,0,3,0,0,0,0,4,0,0,0,0,5,0,0,0,0,6,0,0,0,0,7,0,0,0,0,8,0,0,0,0,9,0,0,0,0,10)),"") ->  | AA38: =IFERROR(INDEX((Data!$AT$33:$AX$82,Data!$AY$33:$BC$82,Data!$BD$33:$BH$82,Data!$BI$33:$BM$82,Data!$BN$33:$BR$82,Data!$BS$33:$BW$82,Data!$BX$33:$CB$82,Data!$CC$33:$CG$82,Data!$CH$33:$CL$82,Data!$CM$33:$CQ$82),$D38,5,CHOOSE(MATCH($Z$14,INDIRECT("Data!$AT$"&$D38+32&":$CM$"&$D38+32),0),1,0,0,0,0,2,0,0,0,0,3,0,0,0,0,4,0,0,0,0,5,0,0,0,0,6,0,0,0,0,7,0,0,0,0,8,0,0,0,0,9,0,0,0,0,10)),"") ->  | AB38: 0
B39: ='Report A'!$B41 -> 2014-07-10 | C39: ='Report A'!$C41 -> Thursday | D39: ='Report A'!$D41 -> 10 | E39: K-Lunch | F39: K-Dinner | G39: 4BP | H39: Member 30% | I39: Tiger 2+1 | J39: Heineken 3+1 | K39: RM4 PROMO | L39: 2 Bkt Tiger Rm 88 | M39: WC COMBO | N39: WC 30% | O39: =IFERROR(IFERROR(INDEX(($E$30:$E$60), MATCH(0, COUNTIF($O$29:O38, ($E$30:$E$60)), 0)), INDEX(($F$30:$F$60), MATCH(0, COUNTIF($O$29:O38, ($F$30:$F$60)), 0))), "") ->  | P39: =IFERROR(IFERROR(INDEX(($G$30:$G$60), MATCH(0, COUNTIF($P$29:P38, ($G$30:$G$60)), 0)), INDEX(($H$30:$H$60), MATCH(0, COUNTIF($P$29:P38, ($H$30:$H$60)), 0))), "") ->  | Q39: =IFERROR(IFERROR(INDEX(($I$30:$I$60), MATCH(0, COUNTIF($Q$29:Q38, ($I$30:$I$60)), 0)), INDEX(($J$30:$J$60), MATCH(0, COUNTIF($Q$29:Q38, ($J$30:$J$60)), 0))), "") ->  | R39: =IFERROR(IFERROR(INDEX(($K$30:$K$60), MATCH(0, COUNTIF($R$29:R38, ($K$30:$K$60)), 0)), INDEX(($L$30:$L$60), MATCH(0, COUNTIF($R$29:R38, ($L$30:$L$60)), 0))), "") ->  | S39: =IFERROR(IFERROR(INDEX(($M$30:$M$60), MATCH(0, COUNTIF($S$29:S38, ($M$30:$M$60)), 0)), INDEX(($N$30:$N$60), MATCH(0, COUNTIF($S$29:S38, ($N$30:$N$60)), 0))), "") ->  | T39: =IFERROR(IFERROR(INDEX(($O$30:$O$60), MATCH(0, COUNTIF($T$29:T38, ($O$30:$O$60)), 0)), INDEX(($P$30:$P$60), MATCH(0, COUNTIF($T$29:T38, ($P$30:$P$60)), 0))), "") ->  | U39: =IFERROR(IFERROR(INDEX(($Q$30:$Q$60), MATCH(0, COUNTIF($U$29:U38, ($Q$30:$Q$60)), 0)), INDEX(($R$30:$R$60), MATCH(0, COUNTIF($U$29:U38, ($R$30:$R$60)), 0))), "") ->  | V39: =IFERROR(IFERROR(INDEX(($S$30:$S$60), MATCH(0, COUNTIF($V$29:V38, ($S$30:$S$60)), 0)), INDEX(($T$30:$T$60), MATCH(0, COUNTIF($V$29:V38, ($T$30:$T$60)), 0))), "") ->  | W39: =IFERROR(IFERROR(INDEX(($U$30:$U$60), MATCH(0, COUNTIF($W$29:W38, ($U$30:$U$60)), 0)), INDEX(($V$30:$V$60), MATCH(0, COUNTIF($W$29:W38, ($V$30:$V$60)), 0))), "") -> WC COMBO | X39: =IFERROR(INDEX((Data!$AT$33:$AX$82,Data!$AY$33:$BC$82,Data!$BD$33:$BH$82,Data!$BI$33:$BM$82,Data!$BN$33:$BR$82,Data!$BS$33:$BW$82,Data!$BX$33:$CB$82,Data!$CC$33:$CG$82,Data!$CH$33:$CL$82,Data!$CM$33:$CQ$82),$D39,2,CHOOSE(MATCH($Z$14,INDIRECT("Data!$AT$"&$D39+32&":$CM$"&$D39+32),0),1,0,0,0,0,2,0,0,0,0,3,0,0,0,0,4,0,0,0,0,5,0,0,0,0,6,0,0,0,0,7,0,0,0,0,8,0,0,0,0,9,0,0,0,0,10)),"") ->  | Y39: =IFERROR(INDEX((Data!$AT$33:$AX$82,Data!$AY$33:$BC$82,Data!$BD$33:$BH$82,Data!$BI$33:$BM$82,Data!$BN$33:$BR$82,Data!$BS$33:$BW$82,Data!$BX$33:$CB$82,Data!$CC$33:$CG$82,Data!$CH$33:$CL$82,Data!$CM$33:$CQ$82),$D39,3,CHOOSE(MATCH($Z$14,INDIRECT("Data!$AT$"&$D39+32&":$CM$"&$D39+32),0),1,0,0,0,0,2,0,0,0,0,3,0,0,0,0,4,0,0,0,0,5,0,0,0,0,6,0,0,0,0,7,0,0,0,0,8,0,0,0,0,9,0,0,0,0,10)),"") ->  | Z39: =IFERROR(INDEX((Data!$AT$33:$AX$82,Data!$AY$33:$BC$82,Data!$BD$33:$BH$82,Data!$BI$33:$BM$82,Data!$BN$33:$BR$82,Data!$BS$33:$BW$82,Data!$BX$33:$CB$82,Data!$CC$33:$CG$82,Data!$CH$33:$CL$82,Data!$CM$33:$CQ$82),$D39,4,CHOOSE(MATCH($Z$14,INDIRECT("Data!$AT$"&$D39+32&":$CM$"&$D39+32),0),1,0,0,0,0,2,0,0,0,0,3,0,0,0,0,4,0,0,0,0,5,0,0,0,0,6,0,0,0,0,7,0,0,0,0,8,0,0,0,0,9,0,0,0,0,10)),"") ->  | AA39: =IFERROR(INDEX((Data!$AT$33:$AX$82,Data!$AY$33:$BC$82,Data!$BD$33:$BH$82,Data!$BI$33:$BM$82,Data!$BN$33:$BR$82,Data!$BS$33:$BW$82,Data!$BX$33:$CB$82,Data!$CC$33:$CG$82,Data!$CH$33:$CL$82,Data!$CM$33:$CQ$82),$D39,5,CHOOSE(MATCH($Z$14,INDIRECT("Data!$AT$"&$D39+32&":$CM$"&$D39+32),0),1,0,0,0,0,2,0,0,0,0,3,0,0,0,0,4,0,0,0,0,5,0,0,0,0,6,0,0,0,0,7,0,0,0,0,8,0,0,0,0,9,0,0,0,0,10)),"") ->  | AB39: 0
B40: ='Report A'!$B42 -> 2014-07-11 | C40: ='Report A'!$C42 -> Friday | D40: ='Report A'!$D42 -> 11 | E40: =IFERROR(INDIRECT("Data!"&E$17&$D40+32),"") -> K-Lunch | F40: K-Dinner | G40: 4BP | H40: Member 30% | I40: Tiger 2+1 | J40: Heineken 3+1 | K40: RM4 PROMO | L40: 2 Bkt Tiger Rm 88 | M40: WC COMBO | N40: WC 30% | O40: =IFERROR(IFERROR(INDEX(($E$30:$E$60), MATCH(0, COUNTIF($O$29:O39, ($E$30:$E$60)), 0)), INDEX(($F$30:$F$60), MATCH(0, COUNTIF($O$29:O39, ($F$30:$F$60)), 0))), "") ->  | P40: =IFERROR(IFERROR(INDEX(($G$30:$G$60), MATCH(0, COUNTIF($P$29:P39, ($G$30:$G$60)), 0)), INDEX(($H$30:$H$60), MATCH(0, COUNTIF($P$29:P39, ($H$30:$H$60)), 0))), "") ->  | Q40: =IFERROR(IFERROR(INDEX(($I$30:$I$60), MATCH(0, COUNTIF($Q$29:Q39, ($I$30:$I$60)), 0)), INDEX(($J$30:$J$60), MATCH(0, COUNTIF($Q$29:Q39, ($J$30:$J$60)), 0))), "") ->  | R40: =IFERROR(IFERROR(INDEX(($K$30:$K$60), MATCH(0, COUNTIF($R$29:R39, ($K$30:$K$60)), 0)), INDEX(($L$30:$L$60), MATCH(0, COUNTIF($R$29:R39, ($L$30:$L$60)), 0))), "") ->  | S40: =IFERROR(IFERROR(INDEX(($M$30:$M$60), MATCH(0, COUNTIF($S$29:S39, ($M$30:$M$60)), 0)), INDEX(($N$30:$N$60), MATCH(0, COUNTIF($S$29:S39, ($N$30:$N$60)), 0))), "") ->  | T40: =IFERROR(IFERROR(INDEX(($O$30:$O$60), MATCH(0, COUNTIF($T$29:T39, ($O$30:$O$60)), 0)), INDEX(($P$30:$P$60), MATCH(0, COUNTIF($T$29:T39, ($P$30:$P$60)), 0))), "") ->  | U40: =IFERROR(IFERROR(INDEX(($Q$30:$Q$60), MATCH(0, COUNTIF($U$29:U39, ($Q$30:$Q$60)), 0)), INDEX(($R$30:$R$60), MATCH(0, COUNTIF($U$29:U39, ($R$30:$R$60)), 0))), "") ->  | V40: =IFERROR(IFERROR(INDEX(($S$30:$S$60), MATCH(0, COUNTIF($V$29:V39, ($S$30:$S$60)), 0)), INDEX(($T$30:$T$60), MATCH(0, COUNTIF($V$29:V39, ($T$30:$T$60)), 0))), "") ->  | W40: =IFERROR(IFERROR(INDEX(($U$30:$U$60), MATCH(0, COUNTIF($W$29:W39, ($U$30:$U$60)), 0)), INDEX(($V$30:$V$60), MATCH(0, COUNTIF($W$29:W39, ($V$30:$V$60)), 0))), "") -> WC 30% | X40: =IFERROR(INDEX((Data!$AT$33:$AX$82,Data!$AY$33:$BC$82,Data!$BD$33:$BH$82,Data!$BI$33:$BM$82,Data!$BN$33:$BR$82,Data!$BS$33:$BW$82,Data!$BX$33:$CB$82,Data!$CC$33:$CG$82,Data!$CH$33:$CL$82,Data!$CM$33:$CQ$82),$D40,2,CHOOSE(MATCH($Z$14,INDIRECT("Data!$AT$"&$D40+32&":$CM$"&$D40+32),0),1,0,0,0,0,2,0,0,0,0,3,0,0,0,0,4,0,0,0,0,5,0,0,0,0,6,0,0,0,0,7,0,0,0,0,8,0,0,0,0,9,0,0,0,0,10)),"") ->  | Y40: =IFERROR(INDEX((Data!$AT$33:$AX$82,Data!$AY$33:$BC$82,Data!$BD$33:$BH$82,Data!$BI$33:$BM$82,Data!$BN$33:$BR$82,Data!$BS$33:$BW$82,Data!$BX$33:$CB$82,Data!$CC$33:$CG$82,Data!$CH$33:$CL$82,Data!$CM$33:$CQ$82),$D40,3,CHOOSE(MATCH($Z$14,INDIRECT("Data!$AT$"&$D40+32&":$CM$"&$D40+32),0),1,0,0,0,0,2,0,0,0,0,3,0,0,0,0,4,0,0,0,0,5,0,0,0,0,6,0,0,0,0,7,0,0,0,0,8,0,0,0,0,9,0,0,0,0,10)),"") ->  | Z40: =IFERROR(INDEX((Data!$AT$33:$AX$82,Data!$AY$33:$BC$82,Data!$BD$33:$BH$82,Data!$BI$33:$BM$82,Data!$BN$33:$BR$82,Data!$BS$33:$BW$82,Data!$BX$33:$CB$82,Data!$CC$33:$CG$82,Data!$CH$33:$CL$82,Data!$CM$33:$CQ$82),$D40,4,CHOOSE(MATCH($Z$14,INDIRECT("Data!$AT$"&$D40+32&":$CM$"&$D40+32),0),1,0,0,0,0,2,0,0,0,0,3,0,0,0,0,4,0,0,0,0,5,0,0,0,0,6,0,0,0,0,7,0,0,0,0,8,0,0,0,0,9,0,0,0,0,10)),"") ->  | AA40: =IFERROR(INDEX((Data!$AT$33:$AX$82,Data!$AY$33:$BC$82,Data!$BD$33:$BH$82,Data!$BI$33:$BM$82,Data!$BN$33:$BR$82,Data!$BS$33:$BW$82,Data!$BX$33:$CB$82,Data!$CC$33:$CG$82,Data!$CH$33:$CL$82,Data!$CM$33:$CQ$82),$D40,5,CHOOSE(MATCH($Z$14,INDIRECT("Data!$AT$"&$D40+32&":$CM$"&$D40+32),0),1,0,0,0,0,2,0,0,0,0,3,0,0,0,0,4,0,0,0,0,5,0,0,0,0,6,0,0,0,0,7,0,0,0,0,8,0,0,0,0,9,0,0,0,0,10)),"") ->  | AB40: 0
B41: ='Report A'!$B43 -> 2014-07-12 | C41: ='Report A'!$C43 -> Saturday | D41: ='Report A'!$D43 -> 12 | E41: K-Lunch | F41: K-Dinner | G41: 4BP | H41: Member 30% | I41: Tiger 2+1 | J41: Heineken 3+1 | K41: RM4 PROMO | L41: 2 Bkt Tiger Rm 88 | M41: WC COMBO | N41: WC 30% | O41: =IFERROR(IFERROR(INDEX(($E$30:$E$60), MATCH(0, COUNTIF($O$29:O40, ($E$30:$E$60)), 0)), INDEX(($F$30:$F$60), MATCH(0, COUNTIF($O$29:O40, ($F$30:$F$60)), 0))), "") ->  | P41: =IFERROR(IFERROR(INDEX(($G$30:$G$60), MATCH(0, COUNTIF($P$29:P40, ($G$30:$G$60)), 0)), INDEX(($H$30:$H$60), MATCH(0, COUNTIF($P$29:P40, ($H$30:$H$60)), 0))), "") ->  | Q41: =IFERROR(IFERROR(INDEX(($I$30:$I$60), MATCH(0, COUNTIF($Q$29:Q40, ($I$30:$I$60)), 0)), INDEX(($J$30:$J$60), MATCH(0, COUNTIF($Q$29:Q40, ($J$30:$J$60)), 0))), "") ->  | R41: =IFERROR(IFERROR(INDEX(($K$30:$K$60), MATCH(0, COUNTIF($R$29:R40, ($K$30:$K$60)), 0)), INDEX(($L$30:$L$60), MATCH(0, COUNTIF($R$29:R40, ($L$30:$L$60)), 0))), "") ->  | S41: =IFERROR(IFERROR(INDEX(($M$30:$M$60), MATCH(0, COUNTIF($S$29:S40, ($M$30:$M$60)), 0)), INDEX(($N$30:$N$60), MATCH(0, COUNTIF($S$29:S40, ($N$30:$N$60)), 0))), "") ->  | T41: =IFERROR(IFERROR(INDEX(($O$30:$O$60), MATCH(0, COUNTIF($T$29:T40, ($O$30:$O$60)), 0)), INDEX(($P$30:$P$60), MATCH(0, COUNTIF($T$29:T40, ($P$30:$P$60)), 0))), "") ->  | U41: =IFERROR(IFERROR(INDEX(($Q$30:$Q$60), MATCH(0, COUNTIF($U$29:U40, ($Q$30:$Q$60)), 0)), INDEX(($R$30:$R$60), MATCH(0, COUNTIF($U$29:U40, ($R$30:$R$60)), 0))), "") ->  | V41: =IFERROR(IFERROR(INDEX(($S$30:$S$60), MATCH(0, COUNTIF($V$29:V40, ($S$30:$S$60)), 0)), INDEX(($T$30:$T$60), MATCH(0, COUNTIF($V$29:V40, ($T$30:$T$60)), 0))), "") ->  | W41: =IFERROR(IFERROR(INDEX(($U$30:$U$60), MATCH(0, COUNTIF($W$29:W40, ($U$30:$U$60)), 0)), INDEX(($V$30:$V$60), MATCH(0, COUNTIF($W$29:W40, ($V$30:$V$60)), 0))), "") -> K-Lunch | X41: =IFERROR(INDEX((Data!$AT$33:$AX$82,Data!$AY$33:$BC$82,Data!$BD$33:$BH$82,Data!$BI$33:$BM$82,Data!$BN$33:$BR$82,Data!$BS$33:$BW$82,Data!$BX$33:$CB$82,Data!$CC$33:$CG$82,Data!$CH$33:$CL$82,Data!$CM$33:$CQ$82),$D41,2,CHOOSE(MATCH($Z$14,INDIRECT("Data!$AT$"&$D41+32&":$CM$"&$D41+32),0),1,0,0,0,0,2,0,0,0,0,3,0,0,0,0,4,0,0,0,0,5,0,0,0,0,6,0,0,0,0,7,0,0,0,0,8,0,0,0,0,9,0,0,0,0,10)),"") ->  | Y41: =IFERROR(INDEX((Data!$AT$33:$AX$82,Data!$AY$33:$BC$82,Data!$BD$33:$BH$82,Data!$BI$33:$BM$82,Data!$BN$33:$BR$82,Data!$BS$33:$BW$82,Data!$BX$33:$CB$82,Data!$CC$33:$CG$82,Data!$CH$33:$CL$82,Data!$CM$33:$CQ$82),$D41,3,CHOOSE(MATCH($Z$14,INDIRECT("Data!$AT$"&$D41+32&":$CM$"&$D41+32),0),1,0,0,0,0,2,0,0,0,0,3,0,0,0,0,4,0,0,0,0,5,0,0,0,0,6,0,0,0,0,7,0,0,0,0,8,0,0,0,0,9,0,0,0,0,10)),"") ->  | Z41: =IFERROR(INDEX((Data!$AT$33:$AX$82,Data!$AY$33:$BC$82,Data!$BD$33:$BH$82,Data!$BI$33:$BM$82,Data!$BN$33:$BR$82,Data!$BS$33:$BW$82,Data!$BX$33:$CB$82,Data!$CC$33:$CG$82,Data!$CH$33:$CL$82,Data!$CM$33:$CQ$82),$D41,4,CHOOSE(MATCH($Z$14,INDIRECT("Data!$AT$"&$D41+32&":$CM$"&$D41+32),0),1,0,0,0,0,2,0,0,0,0,3,0,0,0,0,4,0,0,0,0,5,0,0,0,0,6,0,0,0,0,7,0,0,0,0,8,0,0,0,0,9,0,0,0,0,10)),"") ->  | AA41: =IFERROR(INDEX((Data!$AT$33:$AX$82,Data!$AY$33:$BC$82,Data!$BD$33:$BH$82,Data!$BI$33:$BM$82,Data!$BN$33:$BR$82,Data!$BS$33:$BW$82,Data!$BX$33:$CB$82,Data!$CC$33:$CG$82,Data!$CH$33:$CL$82,Data!$CM$33:$CQ$82),$D41,5,CHOOSE(MATCH($Z$14,INDIRECT("Data!$AT$"&$D41+32&":$CM$"&$D41+32),0),1,0,0,0,0,2,0,0,0,0,3,0,0,0,0,4,0,0,0,0,5,0,0,0,0,6,0,0,0,0,7,0,0,0,0,8,0,0,0,0,9,0,0,0,0,10)),"") ->  | AB41: 0
B42: ='Report A'!$B44 -> 2014-07-13 | C42: ='Report A'!$C44 -> Sunday | D42: ='Report A'!$D44 -> 13 | E42: K-Lunch | F42: K-Dinner | G42: 4BP | H42: Member 30% | I42: Tiger 2+1 | J42: Heineken 3+1 | K42: RM4 PROMO | L42: 2 Bkt Tiger Rm 88 | M42: WC COMBO | N42: WC 30% | O42: =IFERROR(IFERROR(INDEX(($E$30:$E$60), MATCH(0, COUNTIF($O$29:O41, ($E$30:$E$60)), 0)), INDEX(($F$30:$F$60), MATCH(0, COUNTIF($O$29:O41, ($F$30:$F$60)), 0))), "") ->  | P42: =IFERROR(IFERROR(INDEX(($G$30:$G$60), MATCH(0, COUNTIF($P$29:P41, ($G$30:$G$60)), 0)), INDEX(($H$30:$H$60), MATCH(0, COUNTIF($P$29:P41, ($H$30:$H$60)), 0))), "") ->  | Q42: =IFERROR(IFERROR(INDEX(($I$30:$I$60), MATCH(0, COUNTIF($Q$29:Q41, ($I$30:$I$60)), 0)), INDEX(($J$30:$J$60), MATCH(0, COUNTIF($Q$29:Q41, ($J$30:$J$60)), 0))), "") ->  | R42: =IFERROR(IFERROR(INDEX(($K$30:$K$60), MATCH(0, COUNTIF($R$29:R41, ($K$30:$K$60)), 0)), INDEX(($L$30:$L$60), MATCH(0, COUNTIF($R$29:R41, ($L$30:$L$60)), 0))), "") ->  | S42: =IFERROR(IFERROR(INDEX(($M$30:$M$60), MATCH(0, COUNTIF($S$29:S41, ($M$30:$M$60)), 0)), INDEX(($N$30:$N$60), MATCH(0, COUNTIF($S$29:S41, ($N$30:$N$60)), 0))), "") ->  | T42: =IFERROR(IFERROR(INDEX(($O$30:$O$60), MATCH(0, COUNTIF($T$29:T41, ($O$30:$O$60)), 0)), INDEX(($P$30:$P$60), MATCH(0, COUNTIF($T$29:T41, ($P$30:$P$60)), 0))), "") ->  | U42: =IFERROR(IFERROR(INDEX(($Q$30:$Q$60), MATCH(0, COUNTIF($U$29:U41, ($Q$30:$Q$60)), 0)), INDEX(($R$30:$R$60), MATCH(0, COUNTIF($U$29:U41, ($R$30:$R$60)), 0))), "") ->  | V42: =IFERROR(IFERROR(INDEX(($S$30:$S$60), MATCH(0, COUNTIF($V$29:V41, ($S$30:$S$60)), 0)), INDEX(($T$30:$T$60), MATCH(0, COUNTIF($V$29:V41, ($T$30:$T$60)), 0))), "") ->  | W42: =IFERROR(IFERROR(INDEX(($U$30:$U$60), MATCH(0, COUNTIF($W$29:W41, ($U$30:$U$60)), 0)), INDEX(($V$30:$V$60), MATCH(0, COUNTIF($W$29:W41, ($V$30:$V$60)), 0))), "") -> K-Dinner | X42: =IFERROR(INDEX((Data!$AT$33:$AX$82,Data!$AY$33:$BC$82,Data!$BD$33:$BH$82,Data!$BI$33:$BM$82,Data!$BN$33:$BR$82,Data!$BS$33:$BW$82,Data!$BX$33:$CB$82,Data!$CC$33:$CG$82,Data!$CH$33:$CL$82,Data!$CM$33:$CQ$82),$D42,2,CHOOSE(MATCH($Z$14,INDIRECT("Data!$AT$"&$D42+32&":$CM$"&$D42+32),0),1,0,0,0,0,2,0,0,0,0,3,0,0,0,0,4,0,0,0,0,5,0,0,0,0,6,0,0,0,0,7,0,0,0,0,8,0,0,0,0,9,0,0,0,0,10)),"") ->  | Y42: =IFERROR(INDEX((Data!$AT$33:$AX$82,Data!$AY$33:$BC$82,Data!$BD$33:$BH$82,Data!$BI$33:$BM$82,Data!$BN$33:$BR$82,Data!$BS$33:$BW$82,Data!$BX$33:$CB$82,Data!$CC$33:$CG$82,Data!$CH$33:$CL$82,Data!$CM$33:$CQ$82),$D42,3,CHOOSE(MATCH($Z$14,INDIRECT("Data!$AT$"&$D42+32&":$CM$"&$D42+32),0),1,0,0,0,0,2,0,0,0,0,3,0,0,0,0,4,0,0,0,0,5,0,0,0,0,6,0,0,0,0,7,0,0,0,0,8,0,0,0,0,9,0,0,0,0,10)),"") ->  | Z42: =IFERROR(INDEX((Data!$AT$33:$AX$82,Data!$AY$33:$BC$82,Data!$BD$33:$BH$82,Data!$BI$33:$BM$82,Data!$BN$33:$BR$82,Data!$BS$33:$BW$82,Data!$BX$33:$CB$82,Data!$CC$33:$CG$82,Data!$CH$33:$CL$82,Data!$CM$33:$CQ$82),$D42,4,CHOOSE(MATCH($Z$14,INDIRECT("Data!$AT$"&$D42+32&":$CM$"&$D42+32),0),1,0,0,0,0,2,0,0,0,0,3,0,0,0,0,4,0,0,0,0,5,0,0,0,0,6,0,0,0,0,7,0,0,0,0,8,0,0,0,0,9,0,0,0,0,10)),"") ->  | AA42: =IFERROR(INDEX((Data!$AT$33:$AX$82,Data!$AY$33:$BC$82,Data!$BD$33:$BH$82,Data!$BI$33:$BM$82,Data!$BN$33:$BR$82,Data!$BS$33:$BW$82,Data!$BX$33:$CB$82,Data!$CC$33:$CG$82,Data!$CH$33:$CL$82,Data!$CM$33:$CQ$82),$D42,5,CHOOSE(MATCH($Z$14,INDIRECT("Data!$AT$"&$D42+32&":$CM$"&$D42+32),0),1,0,0,0,0,2,0,0,0,0,3,0,0,0,0,4,0,0,0,0,5,0,0,0,0,6,0,0,0,0,7,0,0,0,0,8,0,0,0,0,9,0,0,0,0,10)),"") ->  | AB42: 0
B43: ='Report A'!$B45 -> 2014-07-14 | C43: ='Report A'!$C45 -> Monday | D43: ='Report A'!$D45 -> 14 | E43: K-Lunch | F43: K-Dinner | G43: 4BP | H43: Member 30% | I43: Tiger 2+1 | J43: Heineken 3+1 | K43: RM4 PROMO | L43: 2 Bkt Tiger Rm 88 | M43: WC COMBO | N43: WC 30% | O43: =IFERROR(IFERROR(INDEX(($E$30:$E$60), MATCH(0, COUNTIF($O$29:O42, ($E$30:$E$60)), 0)), INDEX(($F$30:$F$60), MATCH(0, COUNTIF($O$29:O42, ($F$30:$F$60)), 0))), "") ->  | P43: =IFERROR(IFERROR(INDEX(($G$30:$G$60), MATCH(0, COUNTIF($P$29:P42, ($G$30:$G$60)), 0)), INDEX(($H$30:$H$60), MATCH(0, COUNTIF($P$29:P42, ($H$30:$H$60)), 0))), "") ->  | Q43: =IFERROR(IFERROR(INDEX(($I$30:$I$60), MATCH(0, COUNTIF($Q$29:Q42, ($I$30:$I$60)), 0)), INDEX(($J$30:$J$60), MATCH(0, COUNTIF($Q$29:Q42, ($J$30:$J$60)), 0))), "") ->  | R43: =IFERROR(IFERROR(INDEX(($K$30:$K$60), MATCH(0, COUNTIF($R$29:R42, ($K$30:$K$60)), 0)), INDEX(($L$30:$L$60), MATCH(0, COUNTIF($R$29:R42, ($L$30:$L$60)), 0))), "") ->  | S43: =IFERROR(IFERROR(INDEX(($M$30:$M$60), MATCH(0, COUNTIF($S$29:S42, ($M$30:$M$60)), 0)), INDEX(($N$30:$N$60), MATCH(0, COUNTIF($S$29:S42, ($N$30:$N$60)), 0))), "") ->  | T43: =IFERROR(IFERROR(INDEX(($O$30:$O$60), MATCH(0, COUNTIF($T$29:T42, ($O$30:$O$60)), 0)), INDEX(($P$30:$P$60), MATCH(0, COUNTIF($T$29:T42, ($P$30:$P$60)), 0))), "") ->  | U43: =IFERROR(IFERROR(INDEX(($Q$30:$Q$60), MATCH(0, COUNTIF($U$29:U42, ($Q$30:$Q$60)), 0)), INDEX(($R$30:$R$60), MATCH(0, COUNTIF($U$29:U42, ($R$30:$R$60)), 0))), "") ->  | V43: =IFERROR(IFERROR(INDEX(($S$30:$S$60), MATCH(0, COUNTIF($V$29:V42, ($S$30:$S$60)), 0)), INDEX(($T$30:$T$60), MATCH(0, COUNTIF($V$29:V42, ($T$30:$T$60)), 0))), "") ->  | W43: =IFERROR(IFERROR(INDEX(($U$30:$U$60), MATCH(0, COUNTIF($W$29:W42, ($U$30:$U$60)), 0)), INDEX(($V$30:$V$60), MATCH(0, COUNTIF($W$29:W42, ($V$30:$V$60)), 0))), "") -> 4BP | X43: =IFERROR(INDEX((Data!$AT$33:$AX$82,Data!$AY$33:$BC$82,Data!$BD$33:$BH$82,Data!$BI$33:$BM$82,Data!$BN$33:$BR$82,Data!$BS$33:$BW$82,Data!$BX$33:$CB$82,Data!$CC$33:$CG$82,Data!$CH$33:$CL$82,Data!$CM$33:$CQ$82),$D43,2,CHOOSE(MATCH($Z$14,INDIRECT("Data!$AT$"&$D43+32&":$CM$"&$D43+32),0),1,0,0,0,0,2,0,0,0,0,3,0,0,0,0,4,0,0,0,0,5,0,0,0,0,6,0,0,0,0,7,0,0,0,0,8,0,0,0,0,9,0,0,0,0,10)),"") ->  | Y43: =IFERROR(INDEX((Data!$AT$33:$AX$82,Data!$AY$33:$BC$82,Data!$BD$33:$BH$82,Data!$BI$33:$BM$82,Data!$BN$33:$BR$82,Data!$BS$33:$BW$82,Data!$BX$33:$CB$82,Data!$CC$33:$CG$82,Data!$CH$33:$CL$82,Data!$CM$33:$CQ$82),$D43,3,CHOOSE(MATCH($Z$14,INDIRECT("Data!$AT$"&$D43+32&":$CM$"&$D43+32),0),1,0,0,0,0,2,0,0,0,0,3,0,0,0,0,4,0,0,0,0,5,0,0,0,0,6,0,0,0,0,7,0,0,0,0,8,0,0,0,0,9,0,0,0,0,10)),"") ->  | Z43: =IFERROR(INDEX((Data!$AT$33:$AX$82,Data!$AY$33:$BC$82,Data!$BD$33:$BH$82,Data!$BI$33:$BM$82,Data!$BN$33:$BR$82,Data!$BS$33:$BW$82,Data!$BX$33:$CB$82,Data!$CC$33:$CG$82,Data!$CH$33:$CL$82,Data!$CM$33:$CQ$82),$D43,4,CHOOSE(MATCH($Z$14,INDIRECT("Data!$AT$"&$D43+32&":$CM$"&$D43+32),0),1,0,0,0,0,2,0,0,0,0,3,0,0,0,0,4,0,0,0,0,5,0,0,0,0,6,0,0,0,0,7,0,0,0,0,8,0,0,0,0,9,0,0,0,0,10)),"") ->  | AA43: =IFERROR(INDEX((Data!$AT$33:$AX$82,Data!$AY$33:$BC$82,Data!$BD$33:$BH$82,Data!$BI$33:$BM$82,Data!$BN$33:$BR$82,Data!$BS$33:$BW$82,Data!$BX$33:$CB$82,Data!$CC$33:$CG$82,Data!$CH$33:$CL$82,Data!$CM$33:$CQ$82),$D43,5,CHOOSE(MATCH($Z$14,INDIRECT("Data!$AT$"&$D43+32&":$CM$"&$D43+32),0),1,0,0,0,0,2,0,0,0,0,3,0,0,0,0,4,0,0,0,0,5,0,0,0,0,6,0,0,0,0,7,0,0,0,0,8,0,0,0,0,9,0,0,0,0,10)),"") ->  | AB43: 0
B44: ='Report A'!$B46 -> 2014-07-15 | C44: ='Report A'!$C46 -> Tuesday | D44: ='Report A'!$D46 -> 15 | E44: K-Lunch | F44: K-Dinner | G44: 4BP | H44: Member 30% | I44: Tiger 2+1 | J44: Heineken 3+1 | K44: RM4 PROMO | L44: 2 Bkt Tiger Rm 88 | M44: WC COMBO | N44: WC 30% | O44: =IFERROR(IFERROR(INDEX(($E$30:$E$60), MATCH(0, COUNTIF($O$29:O43, ($E$30:$E$60)), 0)), INDEX(($F$30:$F$60), MATCH(0, COUNTIF($O$29:O43, ($F$30:$F$60)), 0))), "") ->  | P44: =IFERROR(IFERROR(INDEX(($G$30:$G$60), MATCH(0, COUNTIF($P$29:P43, ($G$30:$G$60)), 0)), INDEX(($H$30:$H$60), MATCH(0, COUNTIF($P$29:P43, ($H$30:$H$60)), 0))), "") ->  | Q44: =IFERROR(IFERROR(INDEX(($I$30:$I$60), MATCH(0, COUNTIF($Q$29:Q43, ($I$30:$I$60)), 0)), INDEX(($J$30:$J$60), MATCH(0, COUNTIF($Q$29:Q43, ($J$30:$J$60)), 0))), "") ->  | R44: =IFERROR(IFERROR(INDEX(($K$30:$K$60), MATCH(0, COUNTIF($R$29:R43, ($K$30:$K$60)), 0)), INDEX(($L$30:$L$60), MATCH(0, COUNTIF($R$29:R43, ($L$30:$L$60)), 0))), "") ->  | S44: =IFERROR(IFERROR(INDEX(($M$30:$M$60), MATCH(0, COUNTIF($S$29:S43, ($M$30:$M$60)), 0)), INDEX(($N$30:$N$60), MATCH(0, COUNTIF($S$29:S43, ($N$30:$N$60)), 0))), "") ->  | T44: =IFERROR(IFERROR(INDEX(($O$30:$O$60), MATCH(0, COUNTIF($T$29:T43, ($O$30:$O$60)), 0)), INDEX(($P$30:$P$60), MATCH(0, COUNTIF($T$29:T43, ($P$30:$P$60)), 0))), "") ->  | U44: =IFERROR(IFERROR(INDEX(($Q$30:$Q$60), MATCH(0, COUNTIF($U$29:U43, ($Q$30:$Q$60)), 0)), INDEX(($R$30:$R$60), MATCH(0, COUNTIF($U$29:U43, ($R$30:$R$60)), 0))), "") ->  | V44: =IFERROR(IFERROR(INDEX(($S$30:$S$60), MATCH(0, COUNTIF($V$29:V43, ($S$30:$S$60)), 0)), INDEX(($T$30:$T$60), MATCH(0, COUNTIF($V$29:V43, ($T$30:$T$60)), 0))), "") ->  | W44: =IFERROR(IFERROR(INDEX(($U$30:$U$60), MATCH(0, COUNTIF($W$29:W43, ($U$30:$U$60)), 0)), INDEX(($V$30:$V$60), MATCH(0, COUNTIF($W$29:W43, ($V$30:$V$60)), 0))), "") -> Member 30% | X44: =IFERROR(INDEX((Data!$AT$33:$AX$82,Data!$AY$33:$BC$82,Data!$BD$33:$BH$82,Data!$BI$33:$BM$82,Data!$BN$33:$BR$82,Data!$BS$33:$BW$82,Data!$BX$33:$CB$82,Data!$CC$33:$CG$82,Data!$CH$33:$CL$82,Data!$CM$33:$CQ$82),$D44,2,CHOOSE(MATCH($Z$14,INDIRECT("Data!$AT$"&$D44+32&":$CM$"&$D44+32),0),1,0,0,0,0,2,0,0,0,0,3,0,0,0,0,4,0,0,0,0,5,0,0,0,0,6,0,0,0,0,7,0,0,0,0,8,0,0,0,0,9,0,0,0,0,10)),"") ->  | Y44: =IFERROR(INDEX((Data!$AT$33:$AX$82,Data!$AY$33:$BC$82,Data!$BD$33:$BH$82,Data!$BI$33:$BM$82,Data!$BN$33:$BR$82,Data!$BS$33:$BW$82,Data!$BX$33:$CB$82,Data!$CC$33:$CG$82,Data!$CH$33:$CL$82,Data!$CM$33:$CQ$82),$D44,3,CHOOSE(MATCH($Z$14,INDIRECT("Data!$AT$"&$D44+32&":$CM$"&$D44+32),0),1,0,0,0,0,2,0,0,0,0,3,0,0,0,0,4,0,0,0,0,5,0,0,0,0,6,0,0,0,0,7,0,0,0,0,8,0,0,0,0,9,0,0,0,0,10)),"") ->  | Z44: =IFERROR(INDEX((Data!$AT$33:$AX$82,Data!$AY$33:$BC$82,Data!$BD$33:$BH$82,Data!$BI$33:$BM$82,Data!$BN$33:$BR$82,Data!$BS$33:$BW$82,Data!$BX$33:$CB$82,Data!$CC$33:$CG$82,Data!$CH$33:$CL$82,Data!$CM$33:$CQ$82),$D44,4,CHOOSE(MATCH($Z$14,INDIRECT("Data!$AT$"&$D44+32&":$CM$"&$D44+32),0),1,0,0,0,0,2,0,0,0,0,3,0,0,0,0,4,0,0,0,0,5,0,0,0,0,6,0,0,0,0,7,0,0,0,0,8,0,0,0,0,9,0,0,0,0,10)),"") ->  | AA44: =IFERROR(INDEX((Data!$AT$33:$AX$82,Data!$AY$33:$BC$82,Data!$BD$33:$BH$82,Data!$BI$33:$BM$82,Data!$BN$33:$BR$82,Data!$BS$33:$BW$82,Data!$BX$33:$CB$82,Data!$CC$33:$CG$82,Data!$CH$33:$CL$82,Data!$CM$33:$CQ$82),$D44,5,CHOOSE(MATCH($Z$14,INDIRECT("Data!$AT$"&$D44+32&":$CM$"&$D44+32),0),1,0,0,0,0,2,0,0,0,0,3,0,0,0,0,4,0,0,0,0,5,0,0,0,0,6,0,0,0,0,7,0,0,0,0,8,0,0,0,0,9,0,0,0,0,10)),"") ->  | AB44: 0
B45: ='Report A'!$B47 -> 2014-07-16 | C45: ='Report A'!$C47 -> Wednesday | D45: ='Report A'!$D47 -> 16 | E45: K-Lunch | F45: K-Dinner | G45: 4BP | H45: Member 30% | I45: Tiger 2+1 | J45: Heineken 3+1 | K45: 0 | L45: 0 | M45: 0 | N45: 0 | O45: =IFERROR(IFERROR(INDEX(($E$30:$E$60), MATCH(0, COUNTIF($O$29:O44, ($E$30:$E$60)), 0)), INDEX(($F$30:$F$60), MATCH(0, COUNTIF($O$29:O44, ($F$30:$F$60)), 0))), "") ->  | P45: =IFERROR(IFERROR(INDEX(($G$30:$G$60), MATCH(0, COUNTIF($P$29:P44, ($G$30:$G$60)), 0)), INDEX(($H$30:$H$60), MATCH(0, COUNTIF($P$29:P44, ($H$30:$H$60)), 0))), "") ->  | Q45: =IFERROR(IFERROR(INDEX(($I$30:$I$60), MATCH(0, COUNTIF($Q$29:Q44, ($I$30:$I$60)), 0)), INDEX(($J$30:$J$60), MATCH(0, COUNTIF($Q$29:Q44, ($J$30:$J$60)), 0))), "") ->  | R45: =IFERROR(IFERROR(INDEX(($K$30:$K$60), MATCH(0, COUNTIF($R$29:R44, ($K$30:$K$60)), 0)), INDEX(($L$30:$L$60), MATCH(0, COUNTIF($R$29:R44, ($L$30:$L$60)), 0))), "") ->  | S45: =IFERROR(IFERROR(INDEX(($M$30:$M$60), MATCH(0, COUNTIF($S$29:S44, ($M$30:$M$60)), 0)), INDEX(($N$30:$N$60), MATCH(0, COUNTIF($S$29:S44, ($N$30:$N$60)), 0))), "") ->  | T45: =IFERROR(IFERROR(INDEX(($O$30:$O$60), MATCH(0, COUNTIF($T$29:T44, ($O$30:$O$60)), 0)), INDEX(($P$30:$P$60), MATCH(0, COUNTIF($T$29:T44, ($P$30:$P$60)), 0))), "") ->  | U45: =IFERROR(IFERROR(INDEX(($Q$30:$Q$60), MATCH(0, COUNTIF($U$29:U44, ($Q$30:$Q$60)), 0)), INDEX(($R$30:$R$60), MATCH(0, COUNTIF($U$29:U44, ($R$30:$R$60)), 0))), "") ->  | V45: =IFERROR(IFERROR(INDEX(($S$30:$S$60), MATCH(0, COUNTIF($V$29:V44, ($S$30:$S$60)), 0)), INDEX(($T$30:$T$60), MATCH(0, COUNTIF($V$29:V44, ($T$30:$T$60)), 0))), "") ->  | W45: =IFERROR(IFERROR(INDEX(($U$30:$U$60), MATCH(0, COUNTIF($W$29:W44, ($U$30:$U$60)), 0)), INDEX(($V$30:$V$60), MATCH(0, COUNTIF($W$29:W44, ($V$30:$V$60)), 0))), "") ->  | X45: =IFERROR(INDEX((Data!$AT$33:$AX$82,Data!$AY$33:$BC$82,Data!$BD$33:$BH$82,Data!$BI$33:$BM$82,Data!$BN$33:$BR$82,Data!$BS$33:$BW$82,Data!$BX$33:$CB$82,Data!$CC$33:$CG$82,Data!$CH$33:$CL$82,Data!$CM$33:$CQ$82),$D45,2,CHOOSE(MATCH($Z$14,INDIRECT("Data!$AT$"&$D45+32&":$CM$"&$D45+32),0),1,0,0,0,0,2,0,0,0,0,3,0,0,0,0,4,0,0,0,0,5,0,0,0,0,6,0,0,0,0,7,0,0,0,0,8,0,0,0,0,9,0,0,0,0,10)),"") ->  | Y45: =IFERROR(INDEX((Data!$AT$33:$AX$82,Data!$AY$33:$BC$82,Data!$BD$33:$BH$82,Data!$BI$33:$BM$82,Data!$BN$33:$BR$82,Data!$BS$33:$BW$82,Data!$BX$33:$CB$82,Data!$CC$33:$CG$82,Data!$CH$33:$CL$82,Data!$CM$33:$CQ$82),$D45,3,CHOOSE(MATCH($Z$14,INDIRECT("Data!$AT$"&$D45+32&":$CM$"&$D45+32),0),1,0,0,0,0,2,0,0,0,0,3,0,0,0,0,4,0,0,0,0,5,0,0,0,0,6,0,0,0,0,7,0,0,0,0,8,0,0,0,0,9,0,0,0,0,10)),"") ->  | Z45: =IFERROR(INDEX((Data!$AT$33:$AX$82,Data!$AY$33:$BC$82,Data!$BD$33:$BH$82,Data!$BI$33:$BM$82,Data!$BN$33:$BR$82,Data!$BS$33:$BW$82,Data!$BX$33:$CB$82,Data!$CC$33:$CG$82,Data!$CH$33:$CL$82,Data!$CM$33:$CQ$82),$D45,4,CHOOSE(MATCH($Z$14,INDIRECT("Data!$AT$"&$D45+32&":$CM$"&$D45+32),0),1,0,0,0,0,2,0,0,0,0,3,0,0,0,0,4,0,0,0,0,5,0,0,0,0,6,0,0,0,0,7,0,0,0,0,8,0,0,0,0,9,0,0,0,0,10)),"") ->  | AA45: =IFERROR(INDEX((Data!$AT$33:$AX$82,Data!$AY$33:$BC$82,Data!$BD$33:$BH$82,Data!$BI$33:$BM$82,Data!$BN$33:$BR$82,Data!$BS$33:$BW$82,Data!$BX$33:$CB$82,Data!$CC$33:$CG$82,Data!$CH$33:$CL$82,Data!$CM$33:$CQ$82),$D45,5,CHOOSE(MATCH($Z$14,INDIRECT("Data!$AT$"&$D45+32&":$CM$"&$D45+32),0),1,0,0,0,0,2,0,0,0,0,3,0,0,0,0,4,0,0,0,0,5,0,0,0,0,6,0,0,0,0,7,0,0,0,0,8,0,0,0,0,9,0,0,0,0,10)),"") ->  | AB45: 0
B46: ='Report A'!$B48 -> 2014-07-17 | C46: ='Report A'!$C48 -> Thursday | D46: ='Report A'!$D48 -> 17 | E46: K-Lunch | F46: K-Dinner | G46: 4BP | H46: Member 30% | I46: Tiger 2+1 | J46: Heineken 3+1 | K46: 0 | L46: 0 | M46: 0 | N46: 0 | O46: =IFERROR(IFERROR(INDEX(($E$30:$E$60), MATCH(0, COUNTIF($O$29:O45, ($E$30:$E$60)), 0)), INDEX(($F$30:$F$60), MATCH(0, COUNTIF($O$29:O45, ($F$30:$F$60)), 0))), "") ->  | P46: =IFERROR(IFERROR(INDEX(($G$30:$G$60), MATCH(0, COUNTIF($P$29:P45, ($G$30:$G$60)), 0)), INDEX(($H$30:$H$60), MATCH(0, COUNTIF($P$29:P45, ($H$30:$H$60)), 0))), "") ->  | Q46: =IFERROR(IFERROR(INDEX(($I$30:$I$60), MATCH(0, COUNTIF($Q$29:Q45, ($I$30:$I$60)), 0)), INDEX(($J$30:$J$60), MATCH(0, COUNTIF($Q$29:Q45, ($J$30:$J$60)), 0))), "") ->  | R46: =IFERROR(IFERROR(INDEX(($K$30:$K$60), MATCH(0, COUNTIF($R$29:R45, ($K$30:$K$60)), 0)), INDEX(($L$30:$L$60), MATCH(0, COUNTIF($R$29:R45, ($L$30:$L$60)), 0))), "") ->  | S46: =IFERROR(IFERROR(INDEX(($M$30:$M$60), MATCH(0, COUNTIF($S$29:S45, ($M$30:$M$60)), 0)), INDEX(($N$30:$N$60), MATCH(0, COUNTIF($S$29:S45, ($N$30:$N$60)), 0))), "") ->  | T46: =IFERROR(IFERROR(INDEX(($O$30:$O$60), MATCH(0, COUNTIF($T$29:T45, ($O$30:$O$60)), 0)), INDEX(($P$30:$P$60), MATCH(0, COUNTIF($T$29:T45, ($P$30:$P$60)), 0))), "") ->  | U46: =IFERROR(IFERROR(INDEX(($Q$30:$Q$60), MATCH(0, COUNTIF($U$29:U45, ($Q$30:$Q$60)), 0)), INDEX(($R$30:$R$60), MATCH(0, COUNTIF($U$29:U45, ($R$30:$R$60)), 0))), "") ->  | V46: =IFERROR(IFERROR(INDEX(($S$30:$S$60), MATCH(0, COUNTIF($V$29:V45, ($S$30:$S$60)), 0)), INDEX(($T$30:$T$60), MATCH(0, COUNTIF($V$29:V45, ($T$30:$T$60)), 0))), "") ->  | W46: =IFERROR(IFERROR(INDEX(($U$30:$U$60), MATCH(0, COUNTIF($W$29:W45, ($U$30:$U$60)), 0)), INDEX(($V$30:$V$60), MATCH(0, COUNTIF($W$29:W45, ($V$30:$V$60)), 0))), "") ->  | X46: =IFERROR(INDEX((Data!$AT$33:$AX$82,Data!$AY$33:$BC$82,Data!$BD$33:$BH$82,Data!$BI$33:$BM$82,Data!$BN$33:$BR$82,Data!$BS$33:$BW$82,Data!$BX$33:$CB$82,Data!$CC$33:$CG$82,Data!$CH$33:$CL$82,Data!$CM$33:$CQ$82),$D46,2,CHOOSE(MATCH($Z$14,INDIRECT("Data!$AT$"&$D46+32&":$CM$"&$D46+32),0),1,0,0,0,0,2,0,0,0,0,3,0,0,0,0,4,0,0,0,0,5,0,0,0,0,6,0,0,0,0,7,0,0,0,0,8,0,0,0,0,9,0,0,0,0,10)),"") ->  | Y46: =IFERROR(INDEX((Data!$AT$33:$AX$82,Data!$AY$33:$BC$82,Data!$BD$33:$BH$82,Data!$BI$33:$BM$82,Data!$BN$33:$BR$82,Data!$BS$33:$BW$82,Data!$BX$33:$CB$82,Data!$CC$33:$CG$82,Data!$CH$33:$CL$82,Data!$CM$33:$CQ$82),$D46,3,CHOOSE(MATCH($Z$14,INDIRECT("Data!$AT$"&$D46+32&":$CM$"&$D46+32),0),1,0,0,0,0,2,0,0,0,0,3,0,0,0,0,4,0,0,0,0,5,0,0,0,0,6,0,0,0,0,7,0,0,0,0,8,0,0,0,0,9,0,0,0,0,10)),"") ->  | Z46: =IFERROR(INDEX((Data!$AT$33:$AX$82,Data!$AY$33:$BC$82,Data!$BD$33:$BH$82,Data!$BI$33:$BM$82,Data!$BN$33:$BR$82,Data!$BS$33:$BW$82,Data!$BX$33:$CB$82,Data!$CC$33:$CG$82,Data!$CH$33:$CL$82,Data!$CM$33:$CQ$82),$D46,4,CHOOSE(MATCH($Z$14,INDIRECT("Data!$AT$"&$D46+32&":$CM$"&$D46+32),0),1,0,0,0,0,2,0,0,0,0,3,0,0,0,0,4,0,0,0,0,5,0,0,0,0,6,0,0,0,0,7,0,0,0,0,8,0,0,0,0,9,0,0,0,0,10)),"") ->  | AA46: =IFERROR(INDEX((Data!$AT$33:$AX$82,Data!$AY$33:$BC$82,Data!$BD$33:$BH$82,Data!$BI$33:$BM$82,Data!$BN$33:$BR$82,Data!$BS$33:$BW$82,Data!$BX$33:$CB$82,Data!$CC$33:$CG$82,Data!$CH$33:$CL$82,Data!$CM$33:$CQ$82),$D46,5,CHOOSE(MATCH($Z$14,INDIRECT("Data!$AT$"&$D46+32&":$CM$"&$D46+32),0),1,0,0,0,0,2,0,0,0,0,3,0,0,0,0,4,0,0,0,0,5,0,0,0,0,6,0,0,0,0,7,0,0,0,0,8,0,0,0,0,9,0,0,0,0,10)),"") ->  | AB46: 0
B47: ='Report A'!$B49 -> 2014-07-18 | C47: ='Report A'!$C49 -> Friday | D47: ='Report A'!$D49 -> 18 | E47: K-Lunch | F47: K-Dinner | G47: 4BP | H47: Member 30% | I47: Tiger 2+1 | J47: Heineken 3+1 | K47: 0 | L47: 0 | M47: 0 | N47: 0 | O47: =IFERROR(IFERROR(INDEX(($E$30:$E$60), MATCH(0, COUNTIF($O$29:O46, ($E$30:$E$60)), 0)), INDEX(($F$30:$F$60), MATCH(0, COUNTIF($O$29:O46, ($F$30:$F$60)), 0))), "") ->  | P47: =IFERROR(IFERROR(INDEX(($G$30:$G$60), MATCH(0, COUNTIF($P$29:P46, ($G$30:$G$60)), 0)), INDEX(($H$30:$H$60), MATCH(0, COUNTIF($P$29:P46, ($H$30:$H$60)), 0))), "") ->  | Q47: =IFERROR(IFERROR(INDEX(($I$30:$I$60), MATCH(0, COUNTIF($Q$29:Q46, ($I$30:$I$60)), 0)), INDEX(($J$30:$J$60), MATCH(0, COUNTIF($Q$29:Q46, ($J$30:$J$60)), 0))), "") ->  | R47: =IFERROR(IFERROR(INDEX(($K$30:$K$60), MATCH(0, COUNTIF($R$29:R46, ($K$30:$K$60)), 0)), INDEX(($L$30:$L$60), MATCH(0, COUNTIF($R$29:R46, ($L$30:$L$60)), 0))), "") ->  | S47: =IFERROR(IFERROR(INDEX(($M$30:$M$60), MATCH(0, COUNTIF($S$29:S46, ($M$30:$M$60)), 0)), INDEX(($N$30:$N$60), MATCH(0, COUNTIF($S$29:S46, ($N$30:$N$60)), 0))), "") ->  | T47: =IFERROR(IFERROR(INDEX(($O$30:$O$60), MATCH(0, COUNTIF($T$29:T46, ($O$30:$O$60)), 0)), INDEX(($P$30:$P$60), MATCH(0, COUNTIF($T$29:T46, ($P$30:$P$60)), 0))), "") ->  | U47: =IFERROR(IFERROR(INDEX(($Q$30:$Q$60), MATCH(0, COUNTIF($U$29:U46, ($Q$30:$Q$60)), 0)), INDEX(($R$30:$R$60), MATCH(0, COUNTIF($U$29:U46, ($R$30:$R$60)), 0))), "") ->  | V47: =IFERROR(IFERROR(INDEX(($S$30:$S$60), MATCH(0, COUNTIF($V$29:V46, ($S$30:$S$60)), 0)), INDEX(($T$30:$T$60), MATCH(0, COUNTIF($V$29:V46, ($T$30:$T$60)), 0))), "") ->  | W47: =IFERROR(IFERROR(INDEX(($U$30:$U$60), MATCH(0, COUNTIF($W$29:W46, ($U$30:$U$60)), 0)), INDEX(($V$30:$V$60), MATCH(0, COUNTIF($W$29:W46, ($V$30:$V$60)), 0))), "") ->  | X47: =IFERROR(INDEX((Data!$AT$33:$AX$82,Data!$AY$33:$BC$82,Data!$BD$33:$BH$82,Data!$BI$33:$BM$82,Data!$BN$33:$BR$82,Data!$BS$33:$BW$82,Data!$BX$33:$CB$82,Data!$CC$33:$CG$82,Data!$CH$33:$CL$82,Data!$CM$33:$CQ$82),$D47,2,CHOOSE(MATCH($Z$14,INDIRECT("Data!$AT$"&$D47+32&":$CM$"&$D47+32),0),1,0,0,0,0,2,0,0,0,0,3,0,0,0,0,4,0,0,0,0,5,0,0,0,0,6,0,0,0,0,7,0,0,0,0,8,0,0,0,0,9,0,0,0,0,10)),"") ->  | Y47: =IFERROR(INDEX((Data!$AT$33:$AX$82,Data!$AY$33:$BC$82,Data!$BD$33:$BH$82,Data!$BI$33:$BM$82,Data!$BN$33:$BR$82,Data!$BS$33:$BW$82,Data!$BX$33:$CB$82,Data!$CC$33:$CG$82,Data!$CH$33:$CL$82,Data!$CM$33:$CQ$82),$D47,3,CHOOSE(MATCH($Z$14,INDIRECT("Data!$AT$"&$D47+32&":$CM$"&$D47+32),0),1,0,0,0,0,2,0,0,0,0,3,0,0,0,0,4,0,0,0,0,5,0,0,0,0,6,0,0,0,0,7,0,0,0,0,8,0,0,0,0,9,0,0,0,0,10)),"") ->  | Z47: =IFERROR(INDEX((Data!$AT$33:$AX$82,Data!$AY$33:$BC$82,Data!$BD$33:$BH$82,Data!$BI$33:$BM$82,Data!$BN$33:$BR$82,Data!$BS$33:$BW$82,Data!$BX$33:$CB$82,Data!$CC$33:$CG$82,Data!$CH$33:$CL$82,Data!$CM$33:$CQ$82),$D47,4,CHOOSE(MATCH($Z$14,INDIRECT("Data!$AT$"&$D47+32&":$CM$"&$D47+32),0),1,0,0,0,0,2,0,0,0,0,3,0,0,0,0,4,0,0,0,0,5,0,0,0,0,6,0,0,0,0,7,0,0,0,0,8,0,0,0,0,9,0,0,0,0,10)),"") ->  | AA47: =IFERROR(INDEX((Data!$AT$33:$AX$82,Data!$AY$33:$BC$82,Data!$BD$33:$BH$82,Data!$BI$33:$BM$82,Data!$BN$33:$BR$82,Data!$BS$33:$BW$82,Data!$BX$33:$CB$82,Data!$CC$33:$CG$82,Data!$CH$33:$CL$82,Data!$CM$33:$CQ$82),$D47,5,CHOOSE(MATCH($Z$14,INDIRECT("Data!$AT$"&$D47+32&":$CM$"&$D47+32),0),1,0,0,0,0,2,0,0,0,0,3,0,0,0,0,4,0,0,0,0,5,0,0,0,0,6,0,0,0,0,7,0,0,0,0,8,0,0,0,0,9,0,0,0,0,10)),"") ->  | AB47: 0
B48: ='Report A'!$B50 -> 2014-07-19 | C48: ='Report A'!$C50 -> Saturday | D48: ='Report A'!$D50 -> 19 | E48: K-Lunch | F48: K-Dinner | G48: 4BP | H48: Member 30% | I48: Tiger 2+1 | J48: Heineken 3+1 | K48: Opening Promo 60% | L48: 2 Bkt Tiger Rm 88 | M48: 0 | N48: 0 | O48: =IFERROR(IFERROR(INDEX(($E$30:$E$60), MATCH(0, COUNTIF($O$29:O47, ($E$30:$E$60)), 0)), INDEX(($F$30:$F$60), MATCH(0, COUNTIF($O$29:O47, ($F$30:$F$60)), 0))), "") ->  | P48: =IFERROR(IFERROR(INDEX(($G$30:$G$60), MATCH(0, COUNTIF($P$29:P47, ($G$30:$G$60)), 0)), INDEX(($H$30:$H$60), MATCH(0, COUNTIF($P$29:P47, ($H$30:$H$60)), 0))), "") ->  | Q48: =IFERROR(IFERROR(INDEX(($I$30:$I$60), MATCH(0, COUNTIF($Q$29:Q47, ($I$30:$I$60)), 0)), INDEX(($J$30:$J$60), MATCH(0, COUNTIF($Q$29:Q47, ($J$30:$J$60)), 0))), "") ->  | R48: =IFERROR(IFERROR(INDEX(($K$30:$K$60), MATCH(0, COUNTIF($R$29:R47, ($K$30:$K$60)), 0)), INDEX(($L$30:$L$60), MATCH(0, COUNTIF($R$29:R47, ($L$30:$L$60)), 0))), "") ->  | S48: =IFERROR(IFERROR(INDEX(($M$30:$M$60), MATCH(0, COUNTIF($S$29:S47, ($M$30:$M$60)), 0)), INDEX(($N$30:$N$60), MATCH(0, COUNTIF($S$29:S47, ($N$30:$N$60)), 0))), "") ->  | T48: =IFERROR(IFERROR(INDEX(($O$30:$O$60), MATCH(0, COUNTIF($T$29:T47, ($O$30:$O$60)), 0)), INDEX(($P$30:$P$60), MATCH(0, COUNTIF($T$29:T47, ($P$30:$P$60)), 0))), "") ->  | U48: =IFERROR(IFERROR(INDEX(($Q$30:$Q$60), MATCH(0, COUNTIF($U$29:U47, ($Q$30:$Q$60)), 0)), INDEX(($R$30:$R$60), MATCH(0, COUNTIF($U$29:U47, ($R$30:$R$60)), 0))), "") ->  | V48: =IFERROR(IFERROR(INDEX(($S$30:$S$60), MATCH(0, COUNTIF($V$29:V47, ($S$30:$S$60)), 0)), INDEX(($T$30:$T$60), MATCH(0, COUNTIF($V$29:V47, ($T$30:$T$60)), 0))), "") ->  | W48: =IFERROR(IFERROR(INDEX(($U$30:$U$60), MATCH(0, COUNTIF($W$29:W47, ($U$30:$U$60)), 0)), INDEX(($V$30:$V$60), MATCH(0, COUNTIF($W$29:W47, ($V$30:$V$60)), 0))), "") ->  | X48: =IFERROR(INDEX((Data!$AT$33:$AX$82,Data!$AY$33:$BC$82,Data!$BD$33:$BH$82,Data!$BI$33:$BM$82,Data!$BN$33:$BR$82,Data!$BS$33:$BW$82,Data!$BX$33:$CB$82,Data!$CC$33:$CG$82,Data!$CH$33:$CL$82,Data!$CM$33:$CQ$82),$D48,2,CHOOSE(MATCH($Z$14,INDIRECT("Data!$AT$"&$D48+32&":$CM$"&$D48+32),0),1,0,0,0,0,2,0,0,0,0,3,0,0,0,0,4,0,0,0,0,5,0,0,0,0,6,0,0,0,0,7,0,0,0,0,8,0,0,0,0,9,0,0,0,0,10)),"") ->  | Y48: =IFERROR(INDEX((Data!$AT$33:$AX$82,Data!$AY$33:$BC$82,Data!$BD$33:$BH$82,Data!$BI$33:$BM$82,Data!$BN$33:$BR$82,Data!$BS$33:$BW$82,Data!$BX$33:$CB$82,Data!$CC$33:$CG$82,Data!$CH$33:$CL$82,Data!$CM$33:$CQ$82),$D48,3,CHOOSE(MATCH($Z$14,INDIRECT("Data!$AT$"&$D48+32&":$CM$"&$D48+32),0),1,0,0,0,0,2,0,0,0,0,3,0,0,0,0,4,0,0,0,0,5,0,0,0,0,6,0,0,0,0,7,0,0,0,0,8,0,0,0,0,9,0,0,0,0,10)),"") ->  | Z48: =IFERROR(INDEX((Data!$AT$33:$AX$82,Data!$AY$33:$BC$82,Data!$BD$33:$BH$82,Data!$BI$33:$BM$82,Data!$BN$33:$BR$82,Data!$BS$33:$BW$82,Data!$BX$33:$CB$82,Data!$CC$33:$CG$82,Data!$CH$33:$CL$82,Data!$CM$33:$CQ$82),$D48,4,CHOOSE(MATCH($Z$14,INDIRECT("Data!$AT$"&$D48+32&":$CM$"&$D48+32),0),1,0,0,0,0,2,0,0,0,0,3,0,0,0,0,4,0,0,0,0,5,0,0,0,0,6,0,0,0,0,7,0,0,0,0,8,0,0,0,0,9,0,0,0,0,10)),"") ->  | AA48: =IFERROR(INDEX((Data!$AT$33:$AX$82,Data!$AY$33:$BC$82,Data!$BD$33:$BH$82,Data!$BI$33:$BM$82,Data!$BN$33:$BR$82,Data!$BS$33:$BW$82,Data!$BX$33:$CB$82,Data!$CC$33:$CG$82,Data!$CH$33:$CL$82,Data!$CM$33:$CQ$82),$D48,5,CHOOSE(MATCH($Z$14,INDIRECT("Data!$AT$"&$D48+32&":$CM$"&$D48+32),0),1,0,0,0,0,2,0,0,0,0,3,0,0,0,0,4,0,0,0,0,5,0,0,0,0,6,0,0,0,0,7,0,0,0,0,8,0,0,0,0,9,0,0,0,0,10)),"") ->  | AB48: 0
B49: ='Report A'!$B51 -> 2014-07-20 | C49: ='Report A'!$C51 -> Sunday | D49: ='Report A'!$D51 -> 20 | E49: K-Lunch | F49: K-Dinner | G49: 4BP | H49: Member 30% | I49: Tiger 2+1 | J49: Heineken 3+1 | K49: Opening Promo 60% | L49: 2 Bkt Tiger Rm 88 | M49: 0 | N49: 0 | O49: =IFERROR(IFERROR(INDEX(($E$30:$E$60), MATCH(0, COUNTIF($O$29:O48, ($E$30:$E$60)), 0)), INDEX(($F$30:$F$60), MATCH(0, COUNTIF($O$29:O48, ($F$30:$F$60)), 0))), "") ->  | P49: =IFERROR(IFERROR(INDEX(($G$30:$G$60), MATCH(0, COUNTIF($P$29:P48, ($G$30:$G$60)), 0)), INDEX(($H$30:$H$60), MATCH(0, COUNTIF($P$29:P48, ($H$30:$H$60)), 0))), "") ->  | Q49: =IFERROR(IFERROR(INDEX(($I$30:$I$60), MATCH(0, COUNTIF($Q$29:Q48, ($I$30:$I$60)), 0)), INDEX(($J$30:$J$60), MATCH(0, COUNTIF($Q$29:Q48, ($J$30:$J$60)), 0))), "") ->  | R49: =IFERROR(IFERROR(INDEX(($K$30:$K$60), MATCH(0, COUNTIF($R$29:R48, ($K$30:$K$60)), 0)), INDEX(($L$30:$L$60), MATCH(0, COUNTIF($R$29:R48, ($L$30:$L$60)), 0))), "") ->  | S49: =IFERROR(IFERROR(INDEX(($M$30:$M$60), MATCH(0, COUNTIF($S$29:S48, ($M$30:$M$60)), 0)), INDEX(($N$30:$N$60), MATCH(0, COUNTIF($S$29:S48, ($N$30:$N$60)), 0))), "") ->  | T49: =IFERROR(IFERROR(INDEX(($O$30:$O$60), MATCH(0, COUNTIF($T$29:T48, ($O$30:$O$60)), 0)), INDEX(($P$30:$P$60), MATCH(0, COUNTIF($T$29:T48, ($P$30:$P$60)), 0))), "") ->  | U49: =IFERROR(IFERROR(INDEX(($Q$30:$Q$60), MATCH(0, COUNTIF($U$29:U48, ($Q$30:$Q$60)), 0)), INDEX(($R$30:$R$60), MATCH(0, COUNTIF($U$29:U48, ($R$30:$R$60)), 0))), "") ->  | V49: =IFERROR(IFERROR(INDEX(($S$30:$S$60), MATCH(0, COUNTIF($V$29:V48, ($S$30:$S$60)), 0)), INDEX(($T$30:$T$60), MATCH(0, COUNTIF($V$29:V48, ($T$30:$T$60)), 0))), "") ->  | W49: =IFERROR(IFERROR(INDEX(($U$30:$U$60), MATCH(0, COUNTIF($W$29:W48, ($U$30:$U$60)), 0)), INDEX(($V$30:$V$60), MATCH(0, COUNTIF($W$29:W48, ($V$30:$V$60)), 0))), "") ->  | X49: =IFERROR(INDEX((Data!$AT$33:$AX$82,Data!$AY$33:$BC$82,Data!$BD$33:$BH$82,Data!$BI$33:$BM$82,Data!$BN$33:$BR$82,Data!$BS$33:$BW$82,Data!$BX$33:$CB$82,Data!$CC$33:$CG$82,Data!$CH$33:$CL$82,Data!$CM$33:$CQ$82),$D49,2,CHOOSE(MATCH($Z$14,INDIRECT("Data!$AT$"&$D49+32&":$CM$"&$D49+32),0),1,0,0,0,0,2,0,0,0,0,3,0,0,0,0,4,0,0,0,0,5,0,0,0,0,6,0,0,0,0,7,0,0,0,0,8,0,0,0,0,9,0,0,0,0,10)),"") ->  | Y49: =IFERROR(INDEX((Data!$AT$33:$AX$82,Data!$AY$33:$BC$82,Data!$BD$33:$BH$82,Data!$BI$33:$BM$82,Data!$BN$33:$BR$82,Data!$BS$33:$BW$82,Data!$BX$33:$CB$82,Data!$CC$33:$CG$82,Data!$CH$33:$CL$82,Data!$CM$33:$CQ$82),$D49,3,CHOOSE(MATCH($Z$14,INDIRECT("Data!$AT$"&$D49+32&":$CM$"&$D49+32),0),1,0,0,0,0,2,0,0,0,0,3,0,0,0,0,4,0,0,0,0,5,0,0,0,0,6,0,0,0,0,7,0,0,0,0,8,0,0,0,0,9,0,0,0,0,10)),"") ->  | Z49: =IFERROR(INDEX((Data!$AT$33:$AX$82,Data!$AY$33:$BC$82,Data!$BD$33:$BH$82,Data!$BI$33:$BM$82,Data!$BN$33:$BR$82,Data!$BS$33:$BW$82,Data!$BX$33:$CB$82,Data!$CC$33:$CG$82,Data!$CH$33:$CL$82,Data!$CM$33:$CQ$82),$D49,4,CHOOSE(MATCH($Z$14,INDIRECT("Data!$AT$"&$D49+32&":$CM$"&$D49+32),0),1,0,0,0,0,2,0,0,0,0,3,0,0,0,0,4,0,0,0,0,5,0,0,0,0,6,0,0,0,0,7,0,0,0,0,8,0,0,0,0,9,0,0,0,0,10)),"") ->  | AA49: =IFERROR(INDEX((Data!$AT$33:$AX$82,Data!$AY$33:$BC$82,Data!$BD$33:$BH$82,Data!$BI$33:$BM$82,Data!$BN$33:$BR$82,Data!$BS$33:$BW$82,Data!$BX$33:$CB$82,Data!$CC$33:$CG$82,Data!$CH$33:$CL$82,Data!$CM$33:$CQ$82),$D49,5,CHOOSE(MATCH($Z$14,INDIRECT("Data!$AT$"&$D49+32&":$CM$"&$D49+32),0),1,0,0,0,0,2,0,0,0,0,3,0,0,0,0,4,0,0,0,0,5,0,0,0,0,6,0,0,0,0,7,0,0,0,0,8,0,0,0,0,9,0,0,0,0,10)),"") ->  | AB49: 0
B50: ='Report A'!$B52 -> 2014-07-21 | C50: ='Report A'!$C52 -> Monday | D50: ='Report A'!$D52 -> 21 | E50: =IFERROR(INDIRECT("Data!"&E$17&$D50+32),"") -> K-Lunch | F50: K-Dinner | G50: 4BP | H50: Member 30% | I50: Tiger 2+1 | J50: Heineken 3+1 | K50: 0 | L50: 0 | M50: 0 | N50: 0 | O50: =IFERROR(IFERROR(INDEX(($E$30:$E$60), MATCH(0, COUNTIF($O$29:O49, ($E$30:$E$60)), 0)), INDEX(($F$30:$F$60), MATCH(0, COUNTIF($O$29:O49, ($F$30:$F$60)), 0))), "") ->  | P50: =IFERROR(IFERROR(INDEX(($G$30:$G$60), MATCH(0, COUNTIF($P$29:P49, ($G$30:$G$60)), 0)), INDEX(($H$30:$H$60), MATCH(0, COUNTIF($P$29:P49, ($H$30:$H$60)), 0))), "") ->  | Q50: =IFERROR(IFERROR(INDEX(($I$30:$I$60), MATCH(0, COUNTIF($Q$29:Q49, ($I$30:$I$60)), 0)), INDEX(($J$30:$J$60), MATCH(0, COUNTIF($Q$29:Q49, ($J$30:$J$60)), 0))), "") ->  | R50: =IFERROR(IFERROR(INDEX(($K$30:$K$60), MATCH(0, COUNTIF($R$29:R49, ($K$30:$K$60)), 0)), INDEX(($L$30:$L$60), MATCH(0, COUNTIF($R$29:R49, ($L$30:$L$60)), 0))), "") ->  | S50: =IFERROR(IFERROR(INDEX(($M$30:$M$60), MATCH(0, COUNTIF($S$29:S49, ($M$30:$M$60)), 0)), INDEX(($N$30:$N$60), MATCH(0, COUNTIF($S$29:S49, ($N$30:$N$60)), 0))), "") ->  | T50: =IFERROR(IFERROR(INDEX(($O$30:$O$60), MATCH(0, COUNTIF($T$29:T49, ($O$30:$O$60)), 0)), INDEX(($P$30:$P$60), MATCH(0, COUNTIF($T$29:T49, ($P$30:$P$60)), 0))), "") ->  | U50: =IFERROR(IFERROR(INDEX(($Q$30:$Q$60), MATCH(0, COUNTIF($U$29:U49, ($Q$30:$Q$60)), 0)), INDEX(($R$30:$R$60), MATCH(0, COUNTIF($U$29:U49, ($R$30:$R$60)), 0))), "") ->  | V50: =IFERROR(IFERROR(INDEX(($S$30:$S$60), MATCH(0, COUNTIF($V$29:V49, ($S$30:$S$60)), 0)), INDEX(($T$30:$T$60), MATCH(0, COUNTIF($V$29:V49, ($T$30:$T$60)), 0))), "") ->  | W50: =IFERROR(IFERROR(INDEX(($U$30:$U$60), MATCH(0, COUNTIF($W$29:W49, ($U$30:$U$60)), 0)), INDEX(($V$30:$V$60), MATCH(0, COUNTIF($W$29:W49, ($V$30:$V$60)), 0))), "") ->  | X50: =IFERROR(INDEX((Data!$AT$33:$AX$82,Data!$AY$33:$BC$82,Data!$BD$33:$BH$82,Data!$BI$33:$BM$82,Data!$BN$33:$BR$82,Data!$BS$33:$BW$82,Data!$BX$33:$CB$82,Data!$CC$33:$CG$82,Data!$CH$33:$CL$82,Data!$CM$33:$CQ$82),$D50,2,CHOOSE(MATCH($Z$14,INDIRECT("Data!$AT$"&$D50+32&":$CM$"&$D50+32),0),1,0,0,0,0,2,0,0,0,0,3,0,0,0,0,4,0,0,0,0,5,0,0,0,0,6,0,0,0,0,7,0,0,0,0,8,0,0,0,0,9,0,0,0,0,10)),"") ->  | Y50: =IFERROR(INDEX((Data!$AT$33:$AX$82,Data!$AY$33:$BC$82,Data!$BD$33:$BH$82,Data!$BI$33:$BM$82,Data!$BN$33:$BR$82,Data!$BS$33:$BW$82,Data!$BX$33:$CB$82,Data!$CC$33:$CG$82,Data!$CH$33:$CL$82,Data!$CM$33:$CQ$82),$D50,3,CHOOSE(MATCH($Z$14,INDIRECT("Data!$AT$"&$D50+32&":$CM$"&$D50+32),0),1,0,0,0,0,2,0,0,0,0,3,0,0,0,0,4,0,0,0,0,5,0,0,0,0,6,0,0,0,0,7,0,0,0,0,8,0,0,0,0,9,0,0,0,0,10)),"") ->  | Z50: =IFERROR(INDEX((Data!$AT$33:$AX$82,Data!$AY$33:$BC$82,Data!$BD$33:$BH$82,Data!$BI$33:$BM$82,Data!$BN$33:$BR$82,Data!$BS$33:$BW$82,Data!$BX$33:$CB$82,Data!$CC$33:$CG$82,Data!$CH$33:$CL$82,Data!$CM$33:$CQ$82),$D50,4,CHOOSE(MATCH($Z$14,INDIRECT("Data!$AT$"&$D50+32&":$CM$"&$D50+32),0),1,0,0,0,0,2,0,0,0,0,3,0,0,0,0,4,0,0,0,0,5,0,0,0,0,6,0,0,0,0,7,0,0,0,0,8,0,0,0,0,9,0,0,0,0,10)),"") ->  | AA50: =IFERROR(INDEX((Data!$AT$33:$AX$82,Data!$AY$33:$BC$82,Data!$BD$33:$BH$82,Data!$BI$33:$BM$82,Data!$BN$33:$BR$82,Data!$BS$33:$BW$82,Data!$BX$33:$CB$82,Data!$CC$33:$CG$82,Data!$CH$33:$CL$82,Data!$CM$33:$CQ$82),$D50,5,CHOOSE(MATCH($Z$14,INDIRECT("Data!$AT$"&$D50+32&":$CM$"&$D50+32),0),1,0,0,0,0,2,0,0,0,0,3,0,0,0,0,4,0,0,0,0,5,0,0,0,0,6,0,0,0,0,7,0,0,0,0,8,0,0,0,0,9,0,0,0,0,10)),"") ->  | AB50: 0
B51: ='Report A'!$B53 -> 2014-07-22 | C51: ='Report A'!$C53 -> Tuesday | D51: ='Report A'!$D53 -> 22 | E51: K-Lunch | F51: K-Dinner | G51: 4BP | H51: Member 30% | I51: Tiger 2+1 | J51: Heineken 3+1 | K51: 0 | L51: 0 | M51: 0 | N51: 0 | O51: =IFERROR(IFERROR(INDEX(($E$30:$E$60), MATCH(0, COUNTIF($O$29:O50, ($E$30:$E$60)), 0)), INDEX(($F$30:$F$60), MATCH(0, COUNTIF($O$29:O50, ($F$30:$F$60)), 0))), "") ->  | P51: =IFERROR(IFERROR(INDEX(($G$30:$G$60), MATCH(0, COUNTIF($P$29:P50, ($G$30:$G$60)), 0)), INDEX(($H$30:$H$60), MATCH(0, COUNTIF($P$29:P50, ($H$30:$H$60)), 0))), "") ->  | Q51: =IFERROR(IFERROR(INDEX(($I$30:$I$60), MATCH(0, COUNTIF($Q$29:Q50, ($I$30:$I$60)), 0)), INDEX(($J$30:$J$60), MATCH(0, COUNTIF($Q$29:Q50, ($J$30:$J$60)), 0))), "") ->  | R51: =IFERROR(IFERROR(INDEX(($K$30:$K$60), MATCH(0, COUNTIF($R$29:R50, ($K$30:$K$60)), 0)), INDEX(($L$30:$L$60), MATCH(0, COUNTIF($R$29:R50, ($L$30:$L$60)), 0))), "") ->  | S51: =IFERROR(IFERROR(INDEX(($M$30:$M$60), MATCH(0, COUNTIF($S$29:S50, ($M$30:$M$60)), 0)), INDEX(($N$30:$N$60), MATCH(0, COUNTIF($S$29:S50, ($N$30:$N$60)), 0))), "") ->  | T51: =IFERROR(IFERROR(INDEX(($O$30:$O$60), MATCH(0, COUNTIF($T$29:T50, ($O$30:$O$60)), 0)), INDEX(($P$30:$P$60), MATCH(0, COUNTIF($T$29:T50, ($P$30:$P$60)), 0))), "") ->  | U51: =IFERROR(IFERROR(INDEX(($Q$30:$Q$60), MATCH(0, COUNTIF($U$29:U50, ($Q$30:$Q$60)), 0)), INDEX(($R$30:$R$60), MATCH(0, COUNTIF($U$29:U50, ($R$30:$R$60)), 0))), "") ->  | V51: =IFERROR(IFERROR(INDEX(($S$30:$S$60), MATCH(0, COUNTIF($V$29:V50, ($S$30:$S$60)), 0)), INDEX(($T$30:$T$60), MATCH(0, COUNTIF($V$29:V50, ($T$30:$T$60)), 0))), "") ->  | W51: =IFERROR(IFERROR(INDEX(($U$30:$U$60), MATCH(0, COUNTIF($W$29:W50, ($U$30:$U$60)), 0)), INDEX(($V$30:$V$60), MATCH(0, COUNTIF($W$29:W50, ($V$30:$V$60)), 0))), "") ->  | X51: =IFERROR(INDEX((Data!$AT$33:$AX$82,Data!$AY$33:$BC$82,Data!$BD$33:$BH$82,Data!$BI$33:$BM$82,Data!$BN$33:$BR$82,Data!$BS$33:$BW$82,Data!$BX$33:$CB$82,Data!$CC$33:$CG$82,Data!$CH$33:$CL$82,Data!$CM$33:$CQ$82),$D51,2,CHOOSE(MATCH($Z$14,INDIRECT("Data!$AT$"&$D51+32&":$CM$"&$D51+32),0),1,0,0,0,0,2,0,0,0,0,3,0,0,0,0,4,0,0,0,0,5,0,0,0,0,6,0,0,0,0,7,0,0,0,0,8,0,0,0,0,9,0,0,0,0,10)),"") ->  | Y51: =IFERROR(INDEX((Data!$AT$33:$AX$82,Data!$AY$33:$BC$82,Data!$BD$33:$BH$82,Data!$BI$33:$BM$82,Data!$BN$33:$BR$82,Data!$BS$33:$BW$82,Data!$BX$33:$CB$82,Data!$CC$33:$CG$82,Data!$CH$33:$CL$82,Data!$CM$33:$CQ$82),$D51,3,CHOOSE(MATCH($Z$14,INDIRECT("Data!$AT$"&$D51+32&":$CM$"&$D51+32),0),1,0,0,0,0,2,0,0,0,0,3,0,0,0,0,4,0,0,0,0,5,0,0,0,0,6,0,0,0,0,7,0,0,0,0,8,0,0,0,0,9,0,0,0,0,10)),"") ->  | Z51: =IFERROR(INDEX((Data!$AT$33:$AX$82,Data!$AY$33:$BC$82,Data!$BD$33:$BH$82,Data!$BI$33:$BM$82,Data!$BN$33:$BR$82,Data!$BS$33:$BW$82,Data!$BX$33:$CB$82,Data!$CC$33:$CG$82,Data!$CH$33:$CL$82,Data!$CM$33:$CQ$82),$D51,4,CHOOSE(MATCH($Z$14,INDIRECT("Data!$AT$"&$D51+32&":$CM$"&$D51+32),0),1,0,0,0,0,2,0,0,0,0,3,0,0,0,0,4,0,0,0,0,5,0,0,0,0,6,0,0,0,0,7,0,0,0,0,8,0,0,0,0,9,0,0,0,0,10)),"") ->  | AA51: =IFERROR(INDEX((Data!$AT$33:$AX$82,Data!$AY$33:$BC$82,Data!$BD$33:$BH$82,Data!$BI$33:$BM$82,Data!$BN$33:$BR$82,Data!$BS$33:$BW$82,Data!$BX$33:$CB$82,Data!$CC$33:$CG$82,Data!$CH$33:$CL$82,Data!$CM$33:$CQ$82),$D51,5,CHOOSE(MATCH($Z$14,INDIRECT("Data!$AT$"&$D51+32&":$CM$"&$D51+32),0),1,0,0,0,0,2,0,0,0,0,3,0,0,0,0,4,0,0,0,0,5,0,0,0,0,6,0,0,0,0,7,0,0,0,0,8,0,0,0,0,9,0,0,0,0,10)),"") ->  | AB51: 0
